Workbook

Sheet Instructions

Sheet Menu Item Change Log
A1: Menu Item Change Log -Example | F1: Menu Item Change Log | K1: Menu Item Change Log
A2: Outlet | B2: Revenue Center | C2: Meal Period | D2: Date of change | F2: Outlet | G2: Revenue Center | H2: Meal Period | I2: Date of change | K2: Outlet | L2: Revenue Center | M2: Meal Period | N2: Date of change
A3: PB&G | B3: PB&G | C3: All-Day | D3: 2023-03-26
A5: Item Name: | B5: TUNA POKE | F5: Item Name: | K5: Item Name:
A6: Current Quadarant: | B6: Star | F6: Current Quadarant: | K6: Current Quadarant:
A7: Description of change: | B7: Change marination and accoutrement, change tuna spec for larger Saku loin | F7: Description of change: | K7: Description of change:
A8: Reason for change: | B8: Move to a lighter soy & sesame flavor, Tuna spec change drops cost | F8: Reason for change: | K8: Reason for change:
A9: Impact on food cost: | B9: cost dropped to 3.76/16.35% | F9: Impact on food cost: | K9: Impact on food cost:
A10: Impact on menu price: | B10: None | F10: Impact on menu price: | K10: Impact on menu price:
A11: Date of next review: | B11: 2023-06-01 | F11: Date of next review: | K11: Date of next review:
A12: Notes: | F12: Notes: | K12: Notes:
A14: Menu Item Change Log | F14: Menu Item Change Log | K14: Menu Item Change Log
A15: Outlet | B15: Revenue Center | C15: Meal Period | D15: Date of change | F15: Outlet | G15: Revenue Center | H15: Meal Period | I15: Date of change | K15: Outlet | L15: Revenue Center | M15: Meal Period | N15: Date of change
A18: Item Name: | F18: Item Name: | K18: Item Name:
A19: Current Quadarant: | F19: Current Quadarant: | K19: Current Quadarant:
A20: Description of change: | F20: Description of change: | K20: Description of change:
A21: Reason for change: | F21: Reason for change: | K21: Reason for change:
A22: Impact on food cost: | F22: Impact on food cost: | K22: Impact on food cost:
A23: Impact on menu price: | F23: Impact on menu price: | K23: Impact on menu price:
A24: Date of next review: | F24: Date of next review: | K24: Date of next review:
A25: Notes: | F25: Notes: | K25: Notes:
A27: Menu Item Change Log | F27: Menu Item Change Log | K27: Menu Item Change Log
A28: Outlet | B28: Revenue Center | C28: Meal Period | D28: Date of change | F28: Outlet | G28: Revenue Center | H28: Meal Period | I28: Date of change | K28: Outlet | L28: Revenue Center | M28: Meal Period | N28: Date of change
A31: Item Name: | F31: Item Name: | K31: Item Name:
A32: Current Quadarant: | F32: Current Quadarant: | K32: Current Quadarant:
A33: Description of change: | F33: Description of change: | K33: Description of change:
A34: Reason for change: | F34: Reason for change: | K34: Reason for change:
A35: Impact on food cost: | F35: Impact on food cost: | K35: Impact on food cost:
A36: Impact on menu price: | F36: Impact on menu price: | K36: Impact on menu price:
A37: Date of next review: | F37: Date of next review: | K37: Date of next review:
A38: Notes: | F38: Notes: | K38: Notes:

Sheet Cat 1 Setup (example to overide
K1: Restaurant Outlet Name | L1: Blue Café | M1: Check Count | N1: 600
K2: Meal Period | L2: Dinner | M2: Cover Count | N2: 1688
K3: Revenue Center | L3: Dining Room | M3: Average Check | N3: 48.09
K4: Menu Category | L4: Entrée | M4: Currency | N4: =IFERROR(IF(LEFT(N9,(FIND(MID(N9,MIN(IF(ISNUMBER(1*MID(N9,ROW($1:$254),1)),ROW($1:$254))),1),N9)-1))="","$",LEFT(N9,(FIND(MID(N9,MIN(IF(ISNUMBER(1*MID(N9,ROW($1:$254),1)),ROW($1:$254))),1),N9)-1))),"") -> $
K5: Start Date | L5: 2023-11-01 | M5: End Date | N5: 2023-01-31
A8: Item Name | B8: Item Number | C8: Qty Sold | D8: Gross Sales | E8: Avg. Item Cost | F8: COGS $ | K8: Item Name | L8: Item Number | M8: Qty Sold | N8: Gross Sales | O8: Avg. Item Cost | P8: COGS $
A9: =K9 -> SALMON | B9: 10341 | C9: =VALUE(M9) -> 998 | D9: =IF($N$4="$",N9,(VALUE(MID(N9,FIND($N$4,N9)+LEN($N$4),LEN(N9))))) -> 25948 | E9: =IF($N$4="$",O9,(VALUE(MID(O9,FIND($N$4,O9)+LEN($N$4),LEN(O9))))) -> 5.36 | F9: =IF($N$4="$",P9,(VALUE(MID(P9,FIND($N$4,P9)+LEN($N$4),LEN(P9))))) -> 5349.28 | J9: 1 | K9: SALMON | L9: 10341 | M9: 998 | N9: 25948 | O9: 5.36 | P9: 5349.28
A10: TROUT AMADINE | B10: 10302 | C10: =VALUE(M10) -> 953 | D10: 22872 | E10: 7.55 | F10: 7195.15 | J10: 2 | K10: TROUT AMADINE | L10: 10302 | M10: 953 | N10: 22872 | O10: 7.55 | P10: 7195.15
A11: MOULES FRITES | B11: 10303 | C11: 927 | D11: 16222.5 | E11: 5.46 | F11: 5061.42 | J11: 3 | K11: MOULES FRITES | L11: 10303 | M11: 927 | N11: 16222.5 | O11: 5.46 | P11: 5061.42
A12: WILD HALIBUT | B12: 10332 | C12: 919 | D12: 26651 | E12: 18.97 | F12: 17433.43 | J12: 4 | K12: WILD HALIBUT | L12: 10332 | M12: 919 | N12: 26651 | O12: 18.97 | P12: 17433.43
A13: BRAISED SHORT RIB | B13: 10314 | C13: 871 | D13: 22646 | E13: 11.46 | F13: 9981.66 | J13: 5 | K13: BRAISED SHORT RIB | L13: 10314 | M13: 871 | N13: 22646 | O13: 11.46 | P13: 9981.66
A14: LAMB SHANK | B14: 10394 | C14: 833 | D14: 23324 | E14: 10.48 | F14: 8729.84 | J14: 6 | K14: LAMB SHANK | L14: 10394 | M14: 833 | N14: 23324 | O14: 10.48 | P14: 8729.84
A15: ROTISSERIE DUCK | B15: 10316 | C15: 827 | D15: 23983 | E15: 10.61 | F15: 8774.47 | J15: 7 | K15: ROTISSERIE DUCK | L15: 10316 | M15: 827 | N15: 23983 | O15: 10.61 | P15: 8774.47
A16: NEW YORK STRIP | B16: 10329 | C16: 818 | D16: 26176 | E16: 12.54 | F16: 10259.9 | J16: 8 | K16: NEW YORK STRIP | L16: 10329 | M16: 818 | N16: 26176 | O16: 12.54 | P16: 10259.9
A17: SPAGHETTI BOLOGNESE | B17: 10304 | C17: 612 | D17: 9792 | E17: 3.16 | F17: 1933.92 | J17: 9 | K17: SPAGHETTI BOLOGNESE | L17: 10304 | M17: 612 | N17: 9792 | O17: 3.16 | P17: 1933.92
A18: SEARED SEA SCALLOPS | B18: 10343 | C18: 564 | D18: 15792 | E18: 9.41 | F18: 5306.26 | J18: 10 | K18: SEARED SEA SCALLOPS | L18: 10343 | M18: 564 | N18: 15792 | O18: 9.41 | P18: 5306.26
A19: OMELET | B19: 10308 | C19: 428 | D19: 5564 | E19: 3.34 | F19: 1429.52 | J19: 11 | K19: OMELET | L19: 10308 | M19: 428 | N19: 5564 | O19: 3.34 | P19: 1429.52
A20: ENTREE OF RAVIOLI | B20: 10310 | C20: 354 | D20: 7080 | E20: 2.64 | F20: 934.56 | J20: 12 | K20: ENTREE OF RAVIOLI | L20: 10310 | M20: 354 | N20: 7080 | O20: 2.64 | P20: 934.56
A21: DOVER SOLE | B21: 10348 | C21: 250 | D21: 7750 | E21: 20.17 | F21: 5042.5 | J21: 13 | K21: DOVER SOLE | L21: 10348 | M21: 250 | N21: 7750 | O21: 20.17 | P21: 5042.5
A22: LOUP DE MER | B22: 10380 | C22: 214 | D22: 5564 | E22: 10.91 | F22: 2334.74 | J22: 14 | K22: LOUP DE MER | L22: 10380 | M22: 214 | N22: 5564 | O22: 10.91 | P22: 2334.74
A23: BOUILLABAISSE | B23: 10325 | C23: 198 | D23: 5544 | E23: 10.82 | F23: 2142.36 | J23: 15 | K23: BOUILLABAISSE | L23: 10325 | M23: 198 | N23: 5544 | O23: 10.82 | P23: 2142.36
A24: DUNGENESS CRAB SPAGHETTI | B24: 10398 | C24: 191 | D24: 6112 | E24: 11.39 | F24: 2175.49 | J24: 16 | K24: DUNGENESS CRAB SPAGHETTI | L24: 10398 | M24: 191 | N24: 6112 | O24: 11.39 | P24: 2175.49
A25: =K25 -> FARFALLE | B25: 10023 | C25: 185 | D25: 2960 | E25: 3.22 | F25: 595.7 | J25: 17 | K25: FARFALLE | L25: 10023 | M25: 185 | N25: 2960 | O25: 3.22 | P25: 595.7
A26: VEAL MEDALLIONS | B26: 10372 | C26: 182 | D26: 6188 | E26: 12.67 | F26: 2305.94 | J26: 18 | K26: VEAL MEDALLIONS | L26: 10372 | M26: 182 | N26: 6188 | O26: 12.67 | P26: 2305.94
A27: LOBSTER AMERICAINE | B27: 10340 | C27: 166 | D27: 5478 | E27: 13.16 | F27: 2184.56 | J27: 19 | K27: LOBSTER AMERICAINE | L27: 10340 | M27: 166 | N27: 5478 | O27: 13.16 | P27: 2184.56
A28: PORK MILANESE | B28: 10356 | C28: 163 | D28: 4238 | E28: 7.48 | F28: 1219.24 | J28: 20 | K28: PORK MILANESE | L28: 10356 | M28: 163 | N28: 4238 | O28: 7.48 | P28: 1219.24
A29: =K29 -> 0 | B29: 0 | C29: 0 | D29: 0 | E29: 0 | F29: 0 | J29: 21
A30: 0 | B30: 0 | C30: 0 | D30: 0 | E30: 0 | F30: 0 | J30: 22
A31: 0 | B31: 0 | C31: 0 | D31: 0 | E31: 0 | F31: 0 | J31: 23
A32: 0 | B32: 0 | C32: 0 | D32: 0 | E32: 0 | F32: 0 | J32: 24
A33: 0 | B33: 0 | C33: 0 | D33: 0 | E33: 0 | F33: 0 | J33: 25
A34: 0 | B34: 0 | C34: 0 | D34: 0 | E34: 0 | F34: 0 | J34: 26
A35: =K35 -> 0 | B35: =L35 -> 0 | C35: 0 | D35: 0 | E35: 0 | F35: 0 | J35: 27
A36: 0 | B36: 0 | C36: 0 | D36: 0 | E36: 0 | F36: 0 | J36: 28
A37: 0 | B37: 0 | C37: 0 | D37: 0 | E37: 0 | F37: 0 | J37: 29
A38: 0 | B38: 0 | C38: 0 | D38: 0 | E38: 0 | F38: 0 | J38: 30
A39: 0 | B39: 0 | C39: 0 | D39: 0 | E39: 0 | F39: 0 | J39: 31
A40: 0 | B40: 0 | C40: 0 | D40: 0 | E40: 0 | F40: 0 | J40: 32
A41: 0 | B41: 0 | C41: 0 | D41: =IF($N$4="$",N41,(VALUE(MID(N41,FIND($N$4,N41)+LEN($N$4),LEN(N41))))) -> 0 | E41: =IF($N$4="$",O41,(VALUE(MID(O41,FIND($N$4,O41)+LEN($N$4),LEN(O41))))) -> 0 | F41: =IF($N$4="$",P41,(VALUE(MID(P41,FIND($N$4,P41)+LEN($N$4),LEN(P41))))) -> 0 | J41: 33
A42: 0 | B42: 0 | C42: 0 | D42: 0 | E42: 0 | F42: 0 | J42: 34
A43: 0 | B43: 0 | C43: 0 | D43: 0 | E43: 0 | F43: 0 | J43: 35
A44: 0 | B44: 0 | C44: 0 | D44: 0 | E44: 0 | F44: 0 | J44: 36
A45: 0 | B45: 0 | C45: 0 | D45: 0 | E45: 0 | F45: 0 | J45: 37
A46: 0 | B46: 0 | C46: 0 | D46: 0 | E46: 0 | F46: 0 | J46: 38
A47: 0 | B47: 0 | C47: 0 | D47: 0 | E47: 0 | F47: 0 | J47: 39
A48: 0 | B48: 0 | C48: 0 | D48: 0 | E48: 0 | F48: 0 | J48: 40
A49: 0 | B49: 0 | C49: 0 | D49: 0 | E49: 0 | F49: 0 | J49: 41
A50: 0 | B50: 0 | C50: 0 | D50: 0 | E50: 0 | F50: 0 | J50: 42
A51: 0 | B51: 0 | C51: 0 | D51: 0 | E51: 0 | F51: 0 | J51: 43
A52: 0 | B52: 0 | C52: 0 | D52: 0 | E52: 0 | F52: 0 | J52: 44
A53: 0 | B53: 0 | C53: 0 | D53: 0 | E53: 0 | F53: 0 | J53: 45
A54: 0 | B54: 0 | C54: 0 | D54: 0 | E54: 0 | F54: 0 | J54: 46
A55: 0 | B55: =L55 -> 0 | C55: 0 | D55: 0 | E55: 0 | F55: 0 | J55: 47
A56: 0 | B56: 0 | C56: 0 | D56: 0 | E56: 0 | F56: 0 | J56: 48
A57: 0 | B57: 0 | C57: 0 | D57: 0 | E57: 0 | F57: 0 | J57: 49
A58: 0 | B58: 0 | C58: 0 | D58: 0 | E58: 0 | F58: 0 | J58: 50
C59: =SUM(C9:C58) -> 10653 | D59: =SUM(D9:D58) -> 269884.5 | F59: =SUM(F9:F58) -> 100389.94

Sheet Cat 1 CM$
B1: Restaurant Name | C1: ='Cat 1 Setup (example to overide'!L1 -> Blue Café
B2: Start Date: | C2: ='Cat 1 Setup (example to overide'!L5 -> 2023-11-01 | E2: Check Count: | F2: ='Cat 1 Setup (example to overide'!N1 -> 600
B3: End Date | C3: ='Cat 1 Setup (example to overide'!N5 -> 2023-01-31 | E3: Cover Count: | F3: ='Cat 1 Setup (example to overide'!N2 -> 1688
B4: Meal Period: | C4: ='Cat 1 Setup (example to overide'!L2 -> Dinner | E4: Average Check: | F4: ='Cat 1 Setup (example to overide'!N3 -> 48.09
B5: Revenue Center: | C5: ='Cat 1 Setup (example to overide'!L3 -> Dining Room | E5: Menu Category | F5: ='Cat 1 Setup (example to overide'!L4 -> Entrée
B7: Item Name | C7: Quadrant | D7: Item Sales | E7: Qty Sold | F7: Food Cost | G7: Menu Mix % | H7: Item Cost % | I7: Contribution Margin $ | J7: Item Price | K7: Item/Cover% | L7: Item Cost
A8: Baseline | B8: ='Cat 1 Setup (example to overide'!A9 -> SALMON | C8: =IFERROR(IF(AND(I8>$I$159,G8>$G$159),"Star",IF(AND(I8>$I$159,G8<$G$159),"Puzzle",IF(AND(I8<$I$159,G8>$G$159),"Plow Horse","Dog"))),"") -> Star | D8: =IFERROR(VLOOKUP(B8,'Cat 1 Setup (example to overide'!$A:$F,4,FALSE),"") -> 25948 | E8: =IFERROR(VLOOKUP(B8,'Cat 1 Setup (example to overide'!$A:$F,3,FALSE),"") -> 998 | F8: =IFERROR(VLOOKUP(B8,'Cat 1 Setup (example to overide'!$A:$F,6,FALSE),"") -> 5349.28 | G8: =IFERROR(E8/$E$159,"") -> 0.09368253074 | H8: =IFERROR(F8/D8,"") -> 0.2061538462 | I8: =IFERROR(J8-L8,"") -> 20.64 | J8: =IFERROR(D8/E8,"") -> 26 | K8: =IFERROR(E8/$F$3,"") -> 0.5912322275 | L8: =IFERROR(J8*H8,"") -> 5.36
A9: Proposed | C9: =IFERROR(IF(AND(I9>$I$160,G9>$G$160),"Star",IF(AND(I9>$I$160,G9<$G$160),"Puzzle",IF(AND(I9<$I$160,G9>$G$160),"Plow Horse","Dog"))),"") -> Star | D9: =IFERROR(IF(J9="",D8,E9*J9),D8) -> 25948 | E9: =IFERROR(IF(K9="",E8,K9*$F$3),E8) -> 998 | F9: =IFERROR(D9*H9,F8) -> 5349.28 | G9: =IFERROR(IF(E9="",G8,E9/$E$160),G8) -> 0.09368253074 | H9: =IFERROR(IF(L9="",H8,L9/J9),H8) -> 0.2061538462 | I9: =IFERROR(J9-L9,"") -> 20.64 | J9: =J8 -> 26 | K9: =K8 -> 0.5912322275 | L9: =L8 -> 5.36
A11: Baseline | B11: ='Cat 1 Setup (example to overide'!A10 -> TROUT AMADINE | C11: =IFERROR(IF(AND(I11>$I$159,G11>$G$159),"Star",IF(AND(I11>$I$159,G11<$G$159),"Puzzle",IF(AND(I11<$I$159,G11>$G$159),"Plow Horse","Dog"))),"") -> Star | D11: =IFERROR(VLOOKUP(B11,'Cat 1 Setup (example to overide'!$A:$F,4,FALSE),"") -> 22872 | E11: =IFERROR(VLOOKUP(B11,'Cat 1 Setup (example to overide'!$A:$F,3,FALSE),"") -> 953 | F11: =IFERROR(VLOOKUP(B11,'Cat 1 Setup (example to overide'!$A:$F,6,FALSE),"") -> 7195.15 | G11: =IFERROR(E11/$E$159,"") -> 0.08945836853 | H11: =IFERROR(F11/D11,"") -> 0.3145833333 | I11: =IFERROR(J11-L11,"") -> 16.45 | J11: =IFERROR(D11/E11,"") -> 24 | K11: =IFERROR(E11/$F$3,"") -> 0.5645734597 | L11: =IFERROR(J11*H11,"") -> 7.55
A12: Proposed | C12: =IFERROR(IF(AND(I12>$I$160,G12>$G$160),"Star",IF(AND(I12>$I$160,G12<$G$160),"Puzzle",IF(AND(I12<$I$160,G12>$G$160),"Plow Horse","Dog"))),"") -> Star | D12: =IFERROR(IF(J12="",D11,E12*J12),D11) -> 22872 | E12: =IFERROR(IF(K12="",E11,K12*$F$3),E11) -> 953 | F12: =IFERROR(D12*H12,F11) -> 7195.15 | G12: =IFERROR(IF(E12="",G11,E12/$E$160),G11) -> 0.08945836853 | H12: =IFERROR(IF(L12="",H11,L12/J12),H11) -> 0.3145833333 | I12: =IFERROR(J12-L12,"") -> 16.45 | J12: =J11 -> 24 | K12: =K11 -> 0.5645734597 | L12: =L11 -> 7.55
A14: Baseline | B14: ='Cat 1 Setup (example to overide'!A11 -> MOULES FRITES | C14: =IFERROR(IF(AND(I14>$I$159,G14>$G$159),"Star",IF(AND(I14>$I$159,G14<$G$159),"Puzzle",IF(AND(I14<$I$159,G14>$G$159),"Plow Horse","Dog"))),"") -> Plow Horse | D14: =IFERROR(VLOOKUP(B14,'Cat 1 Setup (example to overide'!$A:$F,4,FALSE),"") -> 16222.5 | E14: =IFERROR(VLOOKUP(B14,'Cat 1 Setup (example to overide'!$A:$F,3,FALSE),"") -> 927 | F14: =IFERROR(VLOOKUP(B14,'Cat 1 Setup (example to overide'!$A:$F,6,FALSE),"") -> 5061.42 | G14: =IFERROR(E14/$E$159,"") -> 0.08701774148 | H14: =IFERROR(F14/D14,"") -> 0.312 | I14: =IFERROR(J14-L14,"") -> 12.04 | J14: =IFERROR(D14/E14,"") -> 17.5 | K14: =IFERROR(E14/$F$3,"") -> 0.5491706161 | L14: =IFERROR(J14*H14,"") -> 5.46
A15: Proposed | C15: =IFERROR(IF(AND(I15>$I$160,G15>$G$160),"Star",IF(AND(I15>$I$160,G15<$G$160),"Puzzle",IF(AND(I15<$I$160,G15>$G$160),"Plow Horse","Dog"))),"") -> Plow Horse | D15: =IFERROR(IF(J15="",D14,E15*J15),D14) -> 16222.5 | E15: =IFERROR(IF(K15="",E14,K15*$F$3),E14) -> 927 | F15: =IFERROR(D15*H15,F14) -> 5061.42 | G15: =IFERROR(IF(E15="",G14,E15/$E$160),G14) -> 0.08701774148 | H15: =IFERROR(IF(L15="",H14,L15/J15),H14) -> 0.312 | I15: =IFERROR(J15-L15,"") -> 12.04 | J15: =J14 -> 17.5 | K15: =K14 -> 0.5491706161 | L15: =L14 -> 5.46
A17: Baseline | B17: ='Cat 1 Setup (example to overide'!A12 -> WILD HALIBUT | C17: =IFERROR(IF(AND(I17>$I$159,G17>$G$159),"Star",IF(AND(I17>$I$159,G17<$G$159),"Puzzle",IF(AND(I17<$I$159,G17>$G$159),"Plow Horse","Dog"))),"") -> Plow Horse | D17: =IFERROR(VLOOKUP(B17,'Cat 1 Setup (example to overide'!$A:$F,4,FALSE),"") -> 26651 | E17: =IFERROR(VLOOKUP(B17,'Cat 1 Setup (example to overide'!$A:$F,3,FALSE),"") -> 919 | F17: =IFERROR(VLOOKUP(B17,'Cat 1 Setup (example to overide'!$A:$F,6,FALSE),"") -> 17433.43 | G17: =IFERROR(E17/$E$159,"") -> 0.08626677931 | H17: =IFERROR(F17/D17,"") -> 0.654137931 | I17: =IFERROR(J17-L17,"") -> 10.03 | J17: =IFERROR(D17/E17,"") -> 29 | K17: =IFERROR(E17/$F$3,"") -> 0.5444312796 | L17: =IFERROR(J17*H17,"") -> 18.97
A18: Proposed | C18: =IFERROR(IF(AND(I18>$I$160,G18>$G$160),"Star",IF(AND(I18>$I$160,G18<$G$160),"Puzzle",IF(AND(I18<$I$160,G18>$G$160),"Plow Horse","Dog"))),"") -> Plow Horse | D18: =IFERROR(IF(J18="",D17,E18*J18),D17) -> 26651 | E18: =IFERROR(IF(K18="",E17,K18*$F$3),E17) -> 919 | F18: =IFERROR(D18*H18,F17) -> 17433.43 | G18: =IFERROR(IF(E18="",G17,E18/$E$160),G17) -> 0.08626677931 | H18: =IFERROR(IF(L18="",H17,L18/J18),H17) -> 0.654137931 | I18: =IFERROR(J18-L18,"") -> 10.03 | J18: =J17 -> 29 | K18: =K17 -> 0.5444312796 | L18: =L17 -> 18.97
A20: Baseline | B20: ='Cat 1 Setup (example to overide'!A13 -> BRAISED SHORT RIB | C20: =IFERROR(IF(AND(I20>$I$159,G20>$G$159),"Star",IF(AND(I20>$I$159,G20<$G$159),"Puzzle",IF(AND(I20<$I$159,G20>$G$159),"Plow Horse","Dog"))),"") -> Plow Horse | D20: =IFERROR(VLOOKUP(B20,'Cat 1 Setup (example to overide'!$A:$F,4,FALSE),"") -> 22646 | E20: =IFERROR(VLOOKUP(B20,'Cat 1 Setup (example to overide'!$A:$F,3,FALSE),"") -> 871 | F20: =IFERROR(VLOOKUP(B20,'Cat 1 Setup (example to overide'!$A:$F,6,FALSE),"") -> 9981.66 | G20: =IFERROR(E20/$E$159,"") -> 0.08176100629 | H20: =IFERROR(F20/D20,"") -> 0.4407692308 | I20: =IFERROR(J20-L20,"") -> 14.54 | J20: =IFERROR(D20/E20,"") -> 26 | K20: =IFERROR(E20/$F$3,"") -> 0.5159952607 | L20: =IFERROR(J20*H20,"") -> 11.46
A21: Proposed | C21: =IFERROR(IF(AND(I21>$I$160,G21>$G$160),"Star",IF(AND(I21>$I$160,G21<$G$160),"Puzzle",IF(AND(I21<$I$160,G21>$G$160),"Plow Horse","Dog"))),"") -> Plow Horse | D21: =IFERROR(IF(J21="",D20,E21*J21),D20) -> 22646 | E21: =IFERROR(IF(K21="",E20,K21*$F$3),E20) -> 871 | F21: =IFERROR(D21*H21,F20) -> 9981.66 | G21: =IFERROR(IF(E21="",G20,E21/$E$160),G20) -> 0.08176100629 | H21: =IFERROR(IF(L21="",H20,L21/J21),H20) -> 0.4407692308 | I21: =IFERROR(J21-L21,"") -> 14.54 | J21: =J20 -> 26 | K21: =K20 -> 0.5159952607 | L21: =L20 -> 11.46
A23: Baseline | B23: ='Cat 1 Setup (example to overide'!A14 -> LAMB SHANK | C23: =IFERROR(IF(AND(I23>$I$159,G23>$G$159),"Star",IF(AND(I23>$I$159,G23<$G$159),"Puzzle",IF(AND(I23<$I$159,G23>$G$159),"Plow Horse","Dog"))),"") -> Star | D23: =IFERROR(VLOOKUP(B23,'Cat 1 Setup (example to overide'!$A:$F,4,FALSE),"") -> 23324 | E23: =IFERROR(VLOOKUP(B23,'Cat 1 Setup (example to overide'!$A:$F,3,FALSE),"") -> 833 | F23: =IFERROR(VLOOKUP(B23,'Cat 1 Setup (example to overide'!$A:$F,6,FALSE),"") -> 8729.84 | G23: =IFERROR(E23/$E$159,"") -> 0.07819393598 | H23: =IFERROR(F23/D23,"") -> 0.3742857143 | I23: =IFERROR(J23-L23,"") -> 17.52 | J23: =IFERROR(D23/E23,"") -> 28 | K23: =IFERROR(E23/$F$3,"") -> 0.4934834123 | L23: =IFERROR(J23*H23,"") -> 10.48
A24: Proposed | C24: =IFERROR(IF(AND(I24>$I$160,G24>$G$160),"Star",IF(AND(I24>$I$160,G24<$G$160),"Puzzle",IF(AND(I24<$I$160,G24>$G$160),"Plow Horse","Dog"))),"") -> Star | D24: =IFERROR(IF(J24="",D23,E24*J24),D23) -> 23324 | E24: =IFERROR(IF(K24="",E23,K24*$F$3),E23) -> 833 | F24: =IFERROR(D24*H24,F23) -> 8729.84 | G24: =IFERROR(IF(E24="",G23,E24/$E$160),G23) -> 0.07819393598 | H24: =IFERROR(IF(L24="",H23,L24/J24),H23) -> 0.3742857143 | I24: =IFERROR(J24-L24,"") -> 17.52 | J24: =J23 -> 28 | K24: =K23 -> 0.4934834123 | L24: =L23 -> 10.48
A26: Baseline | B26: ='Cat 1 Setup (example to overide'!A15 -> ROTISSERIE DUCK | C26: =IFERROR(IF(AND(I26>$I$159,G26>$G$159),"Star",IF(AND(I26>$I$159,G26<$G$159),"Puzzle",IF(AND(I26<$I$159,G26>$G$159),"Plow Horse","Dog"))),"") -> Star | D26: =IFERROR(VLOOKUP(B26,'Cat 1 Setup (example to overide'!$A:$F,4,FALSE),"") -> 23983 | E26: =IFERROR(VLOOKUP(B26,'Cat 1 Setup (example to overide'!$A:$F,3,FALSE),"") -> 827 | F26: =IFERROR(VLOOKUP(B26,'Cat 1 Setup (example to overide'!$A:$F,6,FALSE),"") -> 8774.47 | G26: =IFERROR(E26/$E$159,"") -> 0.07763071435 | H26: =IFERROR(F26/D26,"") -> 0.365862069 | I26: =IFERROR(J26-L26,"") -> 18.39 | J26: =IFERROR(D26/E26,"") -> 29 | K26: =IFERROR(E26/$F$3,"") -> 0.48992891 | L26: =IFERROR(J26*H26,"") -> 10.61
A27: Proposed | C27: =IFERROR(IF(AND(I27>$I$160,G27>$G$160),"Star",IF(AND(I27>$I$160,G27<$G$160),"Puzzle",IF(AND(I27<$I$160,G27>$G$160),"Plow Horse","Dog"))),"") -> Star | D27: =IFERROR(IF(J27="",D26,E27*J27),D26) -> 23983 | E27: =IFERROR(IF(K27="",E26,K27*$F$3),E26) -> 827 | F27: =IFERROR(D27*H27,F26) -> 8774.47 | G27: =IFERROR(IF(E27="",G26,E27/$E$160),G26) -> 0.07763071435 | H27: =IFERROR(IF(L27="",H26,L27/J27),H26) -> 0.365862069 | I27: =IFERROR(J27-L27,"") -> 18.39 | J27: =J26 -> 29 | K27: =K26 -> 0.48992891 | L27: =L26 -> 10.61
A29: Baseline | B29: ='Cat 1 Setup (example to overide'!A16 -> NEW YORK STRIP | C29: =IFERROR(IF(AND(I29>$I$159,G29>$G$159),"Star",IF(AND(I29>$I$159,G29<$G$159),"Puzzle",IF(AND(I29<$I$159,G29>$G$159),"Plow Horse","Dog"))),"") -> Star | D29: =IFERROR(VLOOKUP(B29,'Cat 1 Setup (example to overide'!$A:$F,4,FALSE),"") -> 26176 | E29: =IFERROR(VLOOKUP(B29,'Cat 1 Setup (example to overide'!$A:$F,3,FALSE),"") -> 818 | F29: =IFERROR(VLOOKUP(B29,'Cat 1 Setup (example to overide'!$A:$F,6,FALSE),"") -> 10259.9 | G29: =IFERROR(E29/$E$159,"") -> 0.07678588191 | H29: =IFERROR(F29/D29,"") -> 0.3919582824 | I29: =IFERROR(J29-L29,"") -> 19.45733496 | J29: =IFERROR(D29/E29,"") -> 32 | K29: =IFERROR(E29/$F$3,"") -> 0.4845971564 | L29: =IFERROR(J29*H29,"") -> 12.54266504
A30: Proposed | C30: =IFERROR(IF(AND(I30>$I$160,G30>$G$160),"Star",IF(AND(I30>$I$160,G30<$G$160),"Puzzle",IF(AND(I30<$I$160,G30>$G$160),"Plow Horse","Dog"))),"") -> Star | D30: =IFERROR(IF(J30="",D29,E30*J30),D29) -> 26176 | E30: =IFERROR(IF(K30="",E29,K30*$F$3),E29) -> 818 | F30: =IFERROR(D30*H30,F29) -> 10259.9 | G30: =IFERROR(IF(E30="",G29,E30/$E$160),G29) -> 0.07678588191 | H30: =IFERROR(IF(L30="",H29,L30/J30),H29) -> 0.3919582824 | I30: =IFERROR(J30-L30,"") -> 19.45733496 | J30: =J29 -> 32 | K30: =K29 -> 0.4845971564 | L30: =L29 -> 12.54266504
A32: Baseline | B32: ='Cat 1 Setup (example to overide'!A17 -> SPAGHETTI BOLOGNESE | C32: =IFERROR(IF(AND(I32>$I$159,G32>$G$159),"Star",IF(AND(I32>$I$159,G32<$G$159),"Puzzle",IF(AND(I32<$I$159,G32>$G$159),"Plow Horse","Dog"))),"") -> Plow Horse | D32: =IFERROR(VLOOKUP(B32,'Cat 1 Setup (example to overide'!$A:$F,4,FALSE),"") -> 9792 | E32: =IFERROR(VLOOKUP(B32,'Cat 1 Setup (example to overide'!$A:$F,3,FALSE),"") -> 612 | F32: =IFERROR(VLOOKUP(B32,'Cat 1 Setup (example to overide'!$A:$F,6,FALSE),"") -> 1933.92 | G32: =IFERROR(E32/$E$159,"") -> 0.05744860603 | H32: =IFERROR(F32/D32,"") -> 0.1975 | I32: =IFERROR(J32-L32,"") -> 12.84 | J32: =IFERROR(D32/E32,"") -> 16 | K32: =IFERROR(E32/$F$3,"") -> 0.3625592417 | L32: =IFERROR(J32*H32,"") -> 3.16
A33: Proposed | C33: =IFERROR(IF(AND(I33>$I$160,G33>$G$160),"Star",IF(AND(I33>$I$160,G33<$G$160),"Puzzle",IF(AND(I33<$I$160,G33>$G$160),"Plow Horse","Dog"))),"") -> Plow Horse | D33: =IFERROR(IF(J33="",D32,E33*J33),D32) -> 9792 | E33: =IFERROR(IF(K33="",E32,K33*$F$3),E32) -> 612 | F33: =IFERROR(D33*H33,F32) -> 1933.92 | G33: =IFERROR(IF(E33="",G32,E33/$E$160),G32) -> 0.05744860603 | H33: =IFERROR(IF(L33="",H32,L33/J33),H32) -> 0.1975 | I33: =IFERROR(J33-L33,"") -> 12.84 | J33: =J32 -> 16 | K33: =K32 -> 0.3625592417 | L33: =L32 -> 3.16
A35: Baseline | B35: ='Cat 1 Setup (example to overide'!A18 -> SEARED SEA SCALLOPS | C35: =IFERROR(IF(AND(I35>$I$159,G35>$G$159),"Star",IF(AND(I35>$I$159,G35<$G$159),"Puzzle",IF(AND(I35<$I$159,G35>$G$159),"Plow Horse","Dog"))),"") -> Star | D35: =IFERROR(VLOOKUP(B35,'Cat 1 Setup (example to overide'!$A:$F,4,FALSE),"") -> 15792 | E35: =IFERROR(VLOOKUP(B35,'Cat 1 Setup (example to overide'!$A:$F,3,FALSE),"") -> 564 | F35: =IFERROR(VLOOKUP(B35,'Cat 1 Setup (example to overide'!$A:$F,6,FALSE),"") -> 5306.26 | G35: =IFERROR(E35/$E$159,"") -> 0.052942833 | H35: =IFERROR(F35/D35,"") -> 0.3360093718 | I35: =IFERROR(J35-L35,"") -> 18.59173759 | J35: =IFERROR(D35/E35,"") -> 28 | K35: =IFERROR(E35/$F$3,"") -> 0.3341232227 | L35: =IFERROR(J35*H35,"") -> 9.408262411
A36: Proposed | C36: =IFERROR(IF(AND(I36>$I$160,G36>$G$160),"Star",IF(AND(I36>$I$160,G36<$G$160),"Puzzle",IF(AND(I36<$I$160,G36>$G$160),"Plow Horse","Dog"))),"") -> Star | D36: =IFERROR(IF(J36="",D35,E36*J36),D35) -> 15792 | E36: =IFERROR(IF(K36="",E35,K36*$F$3),E35) -> 564 | F36: =IFERROR(D36*H36,F35) -> 5306.26 | G36: =IFERROR(IF(E36="",G35,E36/$E$160),G35) -> 0.052942833 | H36: =IFERROR(IF(L36="",H35,L36/J36),H35) -> 0.3360093718 | I36: =IFERROR(J36-L36,"") -> 18.59173759 | J36: =J35 -> 28 | K36: =K35 -> 0.3341232227 | L36: =L35 -> 9.408262411
A38: Baseline | B38: ='Cat 1 Setup (example to overide'!A19 -> OMELET | C38: =IFERROR(IF(AND(I38>$I$159,G38>$G$159),"Star",IF(AND(I38>$I$159,G38<$G$159),"Puzzle",IF(AND(I38<$I$159,G38>$G$159),"Plow Horse","Dog"))),"") -> Dog | D38: =IFERROR(VLOOKUP(B38,'Cat 1 Setup (example to overide'!$A:$F,4,FALSE),"") -> 5564 | E38: =IFERROR(VLOOKUP(B38,'Cat 1 Setup (example to overide'!$A:$F,3,FALSE),"") -> 428 | F38: =IFERROR(VLOOKUP(B38,'Cat 1 Setup (example to overide'!$A:$F,6,FALSE),"") -> 1429.52 | G38: =IFERROR(E38/$E$159,"") -> 0.04017647611 | H38: =IFERROR(F38/D38,"") -> 0.2569230769 | I38: =IFERROR(J38-L38,"") -> 9.66 | J38: =IFERROR(D38/E38,"") -> 13 | K38: =IFERROR(E38/$F$3,"") -> 0.2535545024 | L38: =IFERROR(J38*H38,"") -> 3.34
A39: Proposed | C39: =IFERROR(IF(AND(I39>$I$160,G39>$G$160),"Star",IF(AND(I39>$I$160,G39<$G$160),"Puzzle",IF(AND(I39<$I$160,G39>$G$160),"Plow Horse","Dog"))),"") -> Dog | D39: =IFERROR(IF(J39="",D38,E39*J39),D38) -> 5564 | E39: =IFERROR(IF(K39="",E38,K39*$F$3),E38) -> 428 | F39: =IFERROR(D39*H39,F38) -> 1429.52 | G39: =IFERROR(IF(E39="",G38,E39/$E$160),G38) -> 0.04017647611 | H39: =IFERROR(IF(L39="",H38,L39/J39),H38) -> 0.2569230769 | I39: =IFERROR(J39-L39,"") -> 9.66 | J39: =J38 -> 13 | K39: =K38 -> 0.2535545024 | L39: =L38 -> 3.34
A41: Baseline | B41: ='Cat 1 Setup (example to overide'!A20 -> ENTREE OF RAVIOLI | C41: =IFERROR(IF(AND(I41>$I$159,G41>$G$159),"Star",IF(AND(I41>$I$159,G41<$G$159),"Puzzle",IF(AND(I41<$I$159,G41>$G$159),"Plow Horse","Dog"))),"") -> Puzzle | D41: =IFERROR(VLOOKUP(B41,'Cat 1 Setup (example to overide'!$A:$F,4,FALSE),"") -> 7080 | E41: =IFERROR(VLOOKUP(B41,'Cat 1 Setup (example to overide'!$A:$F,3,FALSE),"") -> 354 | F41: =IFERROR(VLOOKUP(B41,'Cat 1 Setup (example to overide'!$A:$F,6,FALSE),"") -> 934.56 | G41: =IFERROR(E41/$E$159,"") -> 0.03323007603 | H41: =IFERROR(F41/D41,"") -> 0.132 | I41: =IFERROR(J41-L41,"") -> 17.36 | J41: =IFERROR(D41/E41,"") -> 20 | K41: =IFERROR(E41/$F$3,"") -> 0.2097156398 | L41: =IFERROR(J41*H41,"") -> 2.64
A42: Proposed | C42: =IFERROR(IF(AND(I42>$I$160,G42>$G$160),"Star",IF(AND(I42>$I$160,G42<$G$160),"Puzzle",IF(AND(I42<$I$160,G42>$G$160),"Plow Horse","Dog"))),"") -> Puzzle | D42: =IFERROR(IF(J42="",D41,E42*J42),D41) -> 7080 | E42: =IFERROR(IF(K42="",E41,K42*$F$3),E41) -> 354 | F42: =IFERROR(D42*H42,F41) -> 934.56 | G42: =IFERROR(IF(E42="",G41,E42/$E$160),G41) -> 0.03323007603 | H42: =IFERROR(IF(L42="",H41,L42/J42),H41) -> 0.132 | I42: =IFERROR(J42-L42,"") -> 17.36 | J42: =J41 -> 20 | K42: =K41 -> 0.2097156398 | L42: =L41 -> 2.64
A44: Baseline | B44: ='Cat 1 Setup (example to overide'!A21 -> DOVER SOLE | C44: =IFERROR(IF(AND(I44>$I$159,G44>$G$159),"Star",IF(AND(I44>$I$159,G44<$G$159),"Puzzle",IF(AND(I44<$I$159,G44>$G$159),"Plow Horse","Dog"))),"") -> Dog | D44: =IFERROR(VLOOKUP(B44,'Cat 1 Setup (example to overide'!$A:$F,4,FALSE),"") -> 7750 | E44: =IFERROR(VLOOKUP(B44,'Cat 1 Setup (example to overide'!$A:$F,3,FALSE),"") -> 250 | F44: =IFERROR(VLOOKUP(B44,'Cat 1 Setup (example to overide'!$A:$F,6,FALSE),"") -> 5042.5 | G44: =IFERROR(E44/$E$159,"") -> 0.02346756782 | H44: =IFERROR(F44/D44,"") -> 0.6506451613 | I44: =IFERROR(J44-L44,"") -> 10.83 | J44: =IFERROR(D44/E44,"") -> 31 | K44: =IFERROR(E44/$F$3,"") -> 0.1481042654 | L44: =IFERROR(J44*H44,"") -> 20.17
A45: Proposed | C45: =IFERROR(IF(AND(I45>$I$160,G45>$G$160),"Star",IF(AND(I45>$I$160,G45<$G$160),"Puzzle",IF(AND(I45<$I$160,G45>$G$160),"Plow Horse","Dog"))),"") -> Dog | D45: =IFERROR(IF(J45="",D44,E45*J45),D44) -> 7750 | E45: =IFERROR(IF(K45="",E44,K45*$F$3),E44) -> 250 | F45: =IFERROR(D45*H45,F44) -> 5042.5 | G45: =IFERROR(IF(E45="",G44,E45/$E$160),G44) -> 0.02346756782 | H45: =IFERROR(IF(L45="",H44,L45/J45),H44) -> 0.6506451613 | I45: =IFERROR(J45-L45,"") -> 10.83 | J45: =J44 -> 31 | K45: =K44 -> 0.1481042654 | L45: =L44 -> 20.17
A47: Baseline | B47: ='Cat 1 Setup (example to overide'!A22 -> LOUP DE MER | C47: =IFERROR(IF(AND(I47>$I$159,G47>$G$159),"Star",IF(AND(I47>$I$159,G47<$G$159),"Puzzle",IF(AND(I47<$I$159,G47>$G$159),"Plow Horse","Dog"))),"") -> Dog | D47: =IFERROR(VLOOKUP(B47,'Cat 1 Setup (example to overide'!$A:$F,4,FALSE),"") -> 5564 | E47: =IFERROR(VLOOKUP(B47,'Cat 1 Setup (example to overide'!$A:$F,3,FALSE),"") -> 214 | F47: =IFERROR(VLOOKUP(B47,'Cat 1 Setup (example to overide'!$A:$F,6,FALSE),"") -> 2334.74 | G47: =IFERROR(E47/$E$159,"") -> 0.02008823806 | H47: =IFERROR(F47/D47,"") -> 0.4196153846 | I47: =IFERROR(J47-L47,"") -> 15.09 | J47: =IFERROR(D47/E47,"") -> 26 | K47: =IFERROR(E47/$F$3,"") -> 0.1267772512 | L47: =IFERROR(J47*H47,"") -> 10.91
A48: Proposed | C48: =IFERROR(IF(AND(I48>$I$160,G48>$G$160),"Star",IF(AND(I48>$I$160,G48<$G$160),"Puzzle",IF(AND(I48<$I$160,G48>$G$160),"Plow Horse","Dog"))),"") -> Dog | D48: =IFERROR(IF(J48="",D47,E48*J48),D47) -> 5564 | E48: =IFERROR(IF(K48="",E47,K48*$F$3),E47) -> 214 | F48: =IFERROR(D48*H48,F47) -> 2334.74 | G48: =IFERROR(IF(E48="",G47,E48/$E$160),G47) -> 0.02008823806 | H48: =IFERROR(IF(L48="",H47,L48/J48),H47) -> 0.4196153846 | I48: =IFERROR(J48-L48,"") -> 15.09 | J48: =J47 -> 26 | K48: =K47 -> 0.1267772512 | L48: =L47 -> 10.91
A50: Baseline | B50: ='Cat 1 Setup (example to overide'!A23 -> BOUILLABAISSE | C50: =IFERROR(IF(AND(I50>$I$159,G50>$G$159),"Star",IF(AND(I50>$I$159,G50<$G$159),"Puzzle",IF(AND(I50<$I$159,G50>$G$159),"Plow Horse","Dog"))),"") -> Puzzle | D50: =IFERROR(VLOOKUP(B50,'Cat 1 Setup (example to overide'!$A:$F,4,FALSE),"") -> 5544 | E50: =IFERROR(VLOOKUP(B50,'Cat 1 Setup (example to overide'!$A:$F,3,FALSE),"") -> 198 | F50: =IFERROR(VLOOKUP(B50,'Cat 1 Setup (example to overide'!$A:$F,6,FALSE),"") -> 2142.36 | G50: =IFERROR(E50/$E$159,"") -> 0.01858631371 | H50: =IFERROR(F50/D50,"") -> 0.3864285714 | I50: =IFERROR(J50-L50,"") -> 17.18 | J50: =IFERROR(D50/E50,"") -> 28 | K50: =IFERROR(E50/$F$3,"") -> 0.1172985782 | L50: =IFERROR(J50*H50,"") -> 10.82
A51: Proposed | C51: =IFERROR(IF(AND(I51>$I$160,G51>$G$160),"Star",IF(AND(I51>$I$160,G51<$G$160),"Puzzle",IF(AND(I51<$I$160,G51>$G$160),"Plow Horse","Dog"))),"") -> Puzzle | D51: =IFERROR(IF(J51="",D50,E51*J51),D50) -> 5544 | E51: =IFERROR(IF(K51="",E50,K51*$F$3),E50) -> 198 | F51: =IFERROR(D51*H51,F50) -> 2142.36 | G51: =IFERROR(IF(E51="",G50,E51/$E$160),G50) -> 0.01858631371 | H51: =IFERROR(IF(L51="",H50,L51/J51),H50) -> 0.3864285714 | I51: =IFERROR(J51-L51,"") -> 17.18 | J51: =J50 -> 28 | K51: =K50 -> 0.1172985782 | L51: =L50 -> 10.82
A53: Baseline | B53: ='Cat 1 Setup (example to overide'!A24 -> DUNGENESS CRAB SPAGHETTI | C53: =IFERROR(IF(AND(I53>$I$159,G53>$G$159),"Star",IF(AND(I53>$I$159,G53<$G$159),"Puzzle",IF(AND(I53<$I$159,G53>$G$159),"Plow Horse","Dog"))),"") -> Puzzle | D53: =IFERROR(VLOOKUP(B53,'Cat 1 Setup (example to overide'!$A:$F,4,FALSE),"") -> 6112 | E53: =IFERROR(VLOOKUP(B53,'Cat 1 Setup (example to overide'!$A:$F,3,FALSE),"") -> 191 | F53: =IFERROR(VLOOKUP(B53,'Cat 1 Setup (example to overide'!$A:$F,6,FALSE),"") -> 2175.49 | G53: =IFERROR(E53/$E$159,"") -> 0.01792922182 | H53: =IFERROR(F53/D53,"") -> 0.3559375 | I53: =IFERROR(J53-L53,"") -> 20.61 | J53: =IFERROR(D53/E53,"") -> 32 | K53: =IFERROR(E53/$F$3,"") -> 0.1131516588 | L53: =IFERROR(J53*H53,"") -> 11.39
A54: Proposed | C54: =IFERROR(IF(AND(I54>$I$160,G54>$G$160),"Star",IF(AND(I54>$I$160,G54<$G$160),"Puzzle",IF(AND(I54<$I$160,G54>$G$160),"Plow Horse","Dog"))),"") -> Puzzle | D54: =IFERROR(IF(J54="",D53,E54*J54),D53) -> 6112 | E54: =IFERROR(IF(K54="",E53,K54*$F$3),E53) -> 191 | F54: =IFERROR(D54*H54,F53) -> 2175.49 | G54: =IFERROR(IF(E54="",G53,E54/$E$160),G53) -> 0.01792922182 | H54: =IFERROR(IF(L54="",H53,L54/J54),H53) -> 0.3559375 | I54: =IFERROR(J54-L54,"") -> 20.61 | J54: =J53 -> 32 | K54: =K53 -> 0.1131516588 | L54: =L53 -> 11.39
A56: Baseline | B56: ='Cat 1 Setup (example to overide'!A25 -> FARFALLE | C56: =IFERROR(IF(AND(I56>$I$159,G56>$G$159),"Star",IF(AND(I56>$I$159,G56<$G$159),"Puzzle",IF(AND(I56<$I$159,G56>$G$159),"Plow Horse","Dog"))),"") -> Dog | D56: =IFERROR(VLOOKUP(B56,'Cat 1 Setup (example to overide'!$A:$F,4,FALSE),"") -> 2960 | E56: =IFERROR(VLOOKUP(B56,'Cat 1 Setup (example to overide'!$A:$F,3,FALSE),"") -> 185 | F56: =IFERROR(VLOOKUP(B56,'Cat 1 Setup (example to overide'!$A:$F,6,FALSE),"") -> 595.7 | G56: =IFERROR(E56/$E$159,"") -> 0.01736600019 | H56: =IFERROR(F56/D56,"") -> 0.20125 | I56: =IFERROR(J56-L56,"") -> 12.78 | J56: =IFERROR(D56/E56,"") -> 16 | K56: =IFERROR(E56/$F$3,"") -> 0.1095971564 | L56: =IFERROR(J56*H56,"") -> 3.22
A57: Proposed | C57: =IFERROR(IF(AND(I57>$I$160,G57>$G$160),"Star",IF(AND(I57>$I$160,G57<$G$160),"Puzzle",IF(AND(I57<$I$160,G57>$G$160),"Plow Horse","Dog"))),"") -> Dog | D57: =IFERROR(IF(J57="",D56,E57*J57),D56) -> 2960 | E57: =IFERROR(IF(K57="",E56,K57*$F$3),E56) -> 185 | F57: =IFERROR(D57*H57,F56) -> 595.7 | G57: =IFERROR(IF(E57="",G56,E57/$E$160),G56) -> 0.01736600019 | H57: =IFERROR(IF(L57="",H56,L57/J57),H56) -> 0.20125 | I57: =IFERROR(J57-L57,"") -> 12.78 | J57: =J56 -> 16 | K57: =K56 -> 0.1095971564 | L57: =L56 -> 3.22
A59: Baseline | B59: ='Cat 1 Setup (example to overide'!A26 -> VEAL MEDALLIONS | C59: =IFERROR(IF(AND(I59>$I$159,G59>$G$159),"Star",IF(AND(I59>$I$159,G59<$G$159),"Puzzle",IF(AND(I59<$I$159,G59>$G$159),"Plow Horse","Dog"))),"") -> Puzzle | D59: =IFERROR(VLOOKUP(B59,'Cat 1 Setup (example to overide'!$A:$F,4,FALSE),"") -> 6188 | E59: =IFERROR(VLOOKUP(B59,'Cat 1 Setup (example to overide'!$A:$F,3,FALSE),"") -> 182 | F59: =IFERROR(VLOOKUP(B59,'Cat 1 Setup (example to overide'!$A:$F,6,FALSE),"") -> 2305.94 | G59: =IFERROR(E59/$E$159,"") -> 0.01708438937 | H59: =IFERROR(F59/D59,"") -> 0.3726470588 | I59: =IFERROR(J59-L59,"") -> 21.33 | J59: =IFERROR(D59/E59,"") -> 34 | K59: =IFERROR(E59/$F$3,"") -> 0.1078199052 | L59: =IFERROR(J59*H59,"") -> 12.67
A60: Proposed | C60: =IFERROR(IF(AND(I60>$I$160,G60>$G$160),"Star",IF(AND(I60>$I$160,G60<$G$160),"Puzzle",IF(AND(I60<$I$160,G60>$G$160),"Plow Horse","Dog"))),"") -> Puzzle | D60: =IFERROR(IF(J60="",D59,E60*J60),D59) -> 6188 | E60: =IFERROR(IF(K60="",E59,K60*$F$3),E59) -> 182 | F60: =IFERROR(D60*H60,F59) -> 2305.94 | G60: =IFERROR(IF(E60="",G59,E60/$E$160),G59) -> 0.01708438937 | H60: =IFERROR(IF(L60="",H59,L60/J60),H59) -> 0.3726470588 | I60: =IFERROR(J60-L60,"") -> 21.33 | J60: =J59 -> 34 | K60: =K59 -> 0.1078199052 | L60: =L59 -> 12.67
A62: Baseline | B62: ='Cat 1 Setup (example to overide'!A27 -> LOBSTER AMERICAINE | C62: =IFERROR(IF(AND(I62>$I$159,G62>$G$159),"Star",IF(AND(I62>$I$159,G62<$G$159),"Puzzle",IF(AND(I62<$I$159,G62>$G$159),"Plow Horse","Dog"))),"") -> Puzzle | D62: =IFERROR(VLOOKUP(B62,'Cat 1 Setup (example to overide'!$A:$F,4,FALSE),"") -> 5478 | E62: =IFERROR(VLOOKUP(B62,'Cat 1 Setup (example to overide'!$A:$F,3,FALSE),"") -> 166 | F62: =IFERROR(VLOOKUP(B62,'Cat 1 Setup (example to overide'!$A:$F,6,FALSE),"") -> 2184.56 | G62: =IFERROR(E62/$E$159,"") -> 0.01558246503 | H62: =IFERROR(F62/D62,"") -> 0.3987878788 | I62: =IFERROR(J62-L62,"") -> 19.84 | J62: =IFERROR(D62/E62,"") -> 33 | K62: =IFERROR(E62/$F$3,"") -> 0.09834123223 | L62: =IFERROR(J62*H62,"") -> 13.16
A63: Proposed | C63: =IFERROR(IF(AND(I63>$I$160,G63>$G$160),"Star",IF(AND(I63>$I$160,G63<$G$160),"Puzzle",IF(AND(I63<$I$160,G63>$G$160),"Plow Horse","Dog"))),"") -> Puzzle | D63: =IFERROR(IF(J63="",D62,E63*J63),D62) -> 5478 | E63: =IFERROR(IF(K63="",E62,K63*$F$3),E62) -> 166 | F63: =IFERROR(D63*H63,F62) -> 2184.56 | G63: =IFERROR(IF(E63="",G62,E63/$E$160),G62) -> 0.01558246503 | H63: =IFERROR(IF(L63="",H62,L63/J63),H62) -> 0.3987878788 | I63: =IFERROR(J63-L63,"") -> 19.84 | J63: =J62 -> 33 | K63: =K62 -> 0.09834123223 | L63: =L62 -> 13.16
A65: Baseline | B65: ='Cat 1 Setup (example to overide'!A28 -> PORK MILANESE | C65: =IFERROR(IF(AND(I65>$I$159,G65>$G$159),"Star",IF(AND(I65>$I$159,G65<$G$159),"Puzzle",IF(AND(I65<$I$159,G65>$G$159),"Plow Horse","Dog"))),"") -> Puzzle | D65: =IFERROR(VLOOKUP(B65,'Cat 1 Setup (example to overide'!$A:$F,4,FALSE),"") -> 4238 | E65: =IFERROR(VLOOKUP(B65,'Cat 1 Setup (example to overide'!$A:$F,3,FALSE),"") -> 163 | F65: =IFERROR(VLOOKUP(B65,'Cat 1 Setup (example to overide'!$A:$F,6,FALSE),"") -> 1219.24 | G65: =IFERROR(E65/$E$159,"") -> 0.01530085422 | H65: =IFERROR(F65/D65,"") -> 0.2876923077 | I65: =IFERROR(J65-L65,"") -> 18.52 | J65: =IFERROR(D65/E65,"") -> 26 | K65: =IFERROR(E65/$F$3,"") -> 0.09656398104 | L65: =IFERROR(J65*H65,"") -> 7.48
A66: Proposed | C66: =IFERROR(IF(AND(I66>$I$160,G66>$G$160),"Star",IF(AND(I66>$I$160,G66<$G$160),"Puzzle",IF(AND(I66<$I$160,G66>$G$160),"Plow Horse","Dog"))),"") -> Puzzle | D66: =IFERROR(IF(J66="",D65,E66*J66),D65) -> 4238 | E66: =IFERROR(IF(K66="",E65,K66*$F$3),E65) -> 163 | F66: =IFERROR(D66*H66,F65) -> 1219.24 | G66: =IFERROR(IF(E66="",G65,E66/$E$160),G65) -> 0.01530085422 | H66: =IFERROR(IF(L66="",H65,L66/J66),H65) -> 0.2876923077 | I66: =IFERROR(J66-L66,"") -> 18.52 | J66: =J65 -> 26 | K66: =K65 -> 0.09656398104 | L66: =L65 -> 7.48
A68: Baseline | B68: ='Cat 1 Setup (example to overide'!A29 -> 0 | C68: =IFERROR(IF(AND(I68>$I$159,G68>$G$159),"Star",IF(AND(I68>$I$159,G68<$G$159),"Puzzle",IF(AND(I68<$I$159,G68>$G$159),"Plow Horse","Dog"))),"") -> Puzzle | D68: =IFERROR(VLOOKUP(B68,'Cat 1 Setup (example to overide'!$A:$F,4,FALSE),"") -> 0 | E68: =IFERROR(VLOOKUP(B68,'Cat 1 Setup (example to overide'!$A:$F,3,FALSE),"") -> 0 | F68: =IFERROR(VLOOKUP(B68,'Cat 1 Setup (example to overide'!$A:$F,6,FALSE),"") -> 0 | G68: =IFERROR(E68/$E$159,"") -> 0 | H68: =IFERROR(F68/D68,"") ->  | I68: =IFERROR(J68-L68,"") ->  | J68: =IFERROR(D68/E68,"") ->  | K68: =IFERROR(E68/$F$3,"") -> 0 | L68: =IFERROR(J68*H68,"") -> 
A69: Proposed | C69: =IFERROR(IF(AND(I69>$I$160,G69>$G$160),"Star",IF(AND(I69>$I$160,G69<$G$160),"Puzzle",IF(AND(I69<$I$160,G69>$G$160),"Plow Horse","Dog"))),"") -> Puzzle | D69: =IFERROR(IF(J69="",D68,E69*J69),D68) -> 0 | E69: =IFERROR(IF(K69="",E68,K69*$F$3),E68) -> 0 | F69: =IFERROR(D69*H69,F68) -> 0 | G69: =IFERROR(IF(E69="",G68,E69/$E$160),G68) -> 0 | H69: =IFERROR(IF(L69="",H68,L69/J69),H68) ->  | I69: =IFERROR(J69-L69,"") ->  | J69: =J68 ->  | K69: =K68 -> 0 | L69: =L68 -> 
A71: Baseline | B71: ='Cat 1 Setup (example to overide'!A30 -> 0 | C71: =IFERROR(IF(AND(I71>$I$159,G71>$G$159),"Star",IF(AND(I71>$I$159,G71<$G$159),"Puzzle",IF(AND(I71<$I$159,G71>$G$159),"Plow Horse","Dog"))),"") -> Puzzle | D71: =IFERROR(VLOOKUP(B71,'Cat 1 Setup (example to overide'!$A:$F,4,FALSE),"") -> 0 | E71: =IFERROR(VLOOKUP(B71,'Cat 1 Setup (example to overide'!$A:$F,3,FALSE),"") -> 0 | F71: =IFERROR(VLOOKUP(B71,'Cat 1 Setup (example to overide'!$A:$F,6,FALSE),"") -> 0 | G71: =IFERROR(E71/$E$159,"") -> 0 | H71: =IFERROR(F71/D71,"") ->  | I71: =IFERROR(J71-L71,"") ->  | J71: =IFERROR(D71/E71,"") ->  | K71: =IFERROR(E71/$F$3,"") -> 0 | L71: =IFERROR(J71*H71,"") -> 
A72: Proposed | C72: =IFERROR(IF(AND(I72>$I$160,G72>$G$160),"Star",IF(AND(I72>$I$160,G72<$G$160),"Puzzle",IF(AND(I72<$I$160,G72>$G$160),"Plow Horse","Dog"))),"") -> Puzzle | D72: =IFERROR(IF(J72="",D71,E72*J72),D71) -> 0 | E72: =IFERROR(IF(K72="",E71,K72*$F$3),E71) -> 0 | F72: =IFERROR(D72*H72,F71) -> 0 | G72: =IFERROR(IF(E72="",G71,E72/$E$160),G71) -> 0 | H72: =IFERROR(IF(L72="",H71,L72/J72),H71) ->  | I72: =IFERROR(J72-L72,"") ->  | J72: =J71 ->  | K72: =K71 -> 0 | L72: =L71 -> 
A74: Baseline | B74: ='Cat 1 Setup (example to overide'!A31 -> 0 | C74: =IFERROR(IF(AND(I74>$I$159,G74>$G$159),"Star",IF(AND(I74>$I$159,G74<$G$159),"Puzzle",IF(AND(I74<$I$159,G74>$G$159),"Plow Horse","Dog"))),"") -> Puzzle | D74: =IFERROR(VLOOKUP(B74,'Cat 1 Setup (example to overide'!$A:$F,4,FALSE),"") -> 0 | E74: =IFERROR(VLOOKUP(B74,'Cat 1 Setup (example to overide'!$A:$F,3,FALSE),"") -> 0 | F74: =IFERROR(VLOOKUP(B74,'Cat 1 Setup (example to overide'!$A:$F,6,FALSE),"") -> 0 | G74: =IFERROR(E74/$E$159,"") -> 0 | H74: =IFERROR(F74/D74,"") ->  | I74: =IFERROR(J74-L74,"") ->  | J74: =IFERROR(D74/E74,"") ->  | K74: =IFERROR(E74/$F$3,"") -> 0 | L74: =IFERROR(J74*H74,"") -> 
A75: Proposed | C75: =IFERROR(IF(AND(I75>$I$160,G75>$G$160),"Star",IF(AND(I75>$I$160,G75<$G$160),"Puzzle",IF(AND(I75<$I$160,G75>$G$160),"Plow Horse","Dog"))),"") -> Puzzle | D75: =IFERROR(IF(J75="",D74,E75*J75),D74) -> 0 | E75: =IFERROR(IF(K75="",E74,K75*$F$3),E74) -> 0 | F75: =IFERROR(D75*H75,F74) -> 0 | G75: =IFERROR(IF(E75="",G74,E75/$E$160),G74) -> 0 | H75: =IFERROR(IF(L75="",H74,L75/J75),H74) ->  | I75: =IFERROR(J75-L75,"") ->  | J75: =J74 ->  | K75: =K74 -> 0 | L75: =L74 -> 
A77: Baseline | B77: ='Cat 1 Setup (example to overide'!A32 -> 0 | C77: =IFERROR(IF(AND(I77>$I$159,G77>$G$159),"Star",IF(AND(I77>$I$159,G77<$G$159),"Puzzle",IF(AND(I77<$I$159,G77>$G$159),"Plow Horse","Dog"))),"") -> Puzzle | D77: =IFERROR(VLOOKUP(B77,'Cat 1 Setup (example to overide'!$A:$F,4,FALSE),"") -> 0 | E77: =IFERROR(VLOOKUP(B77,'Cat 1 Setup (example to overide'!$A:$F,3,FALSE),"") -> 0 | F77: =IFERROR(VLOOKUP(B77,'Cat 1 Setup (example to overide'!$A:$F,6,FALSE),"") -> 0 | G77: =IFERROR(E77/$E$159,"") -> 0 | H77: =IFERROR(F77/D77,"") ->  | I77: =IFERROR(J77-L77,"") ->  | J77: =IFERROR(D77/E77,"") ->  | K77: =IFERROR(E77/$F$3,"") -> 0 | L77: =IFERROR(J77*H77,"") -> 
A78: Proposed | C78: =IFERROR(IF(AND(I78>$I$160,G78>$G$160),"Star",IF(AND(I78>$I$160,G78<$G$160),"Puzzle",IF(AND(I78<$I$160,G78>$G$160),"Plow Horse","Dog"))),"") -> Puzzle | D78: =IFERROR(IF(J78="",D77,E78*J78),D77) -> 0 | E78: =IFERROR(IF(K78="",E77,K78*$F$3),E77) -> 0 | F78: =IFERROR(D78*H78,F77) -> 0 | G78: =IFERROR(IF(E78="",G77,E78/$E$160),G77) -> 0 | H78: =IFERROR(IF(L78="",H77,L78/J78),H77) ->  | I78: =IFERROR(J78-L78,"") ->  | J78: =J77 ->  | K78: =K77 -> 0 | L78: =L77 -> 
A80: Baseline | B80: ='Cat 1 Setup (example to overide'!A33 -> 0 | C80: =IFERROR(IF(AND(I80>$I$159,G80>$G$159),"Star",IF(AND(I80>$I$159,G80<$G$159),"Puzzle",IF(AND(I80<$I$159,G80>$G$159),"Plow Horse","Dog"))),"") -> Puzzle | D80: =IFERROR(VLOOKUP(B80,'Cat 1 Setup (example to overide'!$A:$F,4,FALSE),"") -> 0 | E80: =IFERROR(VLOOKUP(B80,'Cat 1 Setup (example to overide'!$A:$F,3,FALSE),"") -> 0 | F80: =IFERROR(VLOOKUP(B80,'Cat 1 Setup (example to overide'!$A:$F,6,FALSE),"") -> 0 | G80: =IFERROR(E80/$E$159,"") -> 0 | H80: =IFERROR(F80/D80,"") ->  | I80: =IFERROR(J80-L80,"") ->  | J80: =IFERROR(D80/E80,"") ->  | K80: =IFERROR(E80/$F$3,"") -> 0 | L80: =IFERROR(J80*H80,"") -> 
A81: Proposed | C81: =IFERROR(IF(AND(I81>$I$160,G81>$G$160),"Star",IF(AND(I81>$I$160,G81<$G$160),"Puzzle",IF(AND(I81<$I$160,G81>$G$160),"Plow Horse","Dog"))),"") -> Puzzle | D81: =IFERROR(IF(J81="",D80,E81*J81),D80) -> 0 | E81: =IFERROR(IF(K81="",E80,K81*$F$3),E80) -> 0 | F81: =IFERROR(D81*H81,F80) -> 0 | G81: =IFERROR(IF(E81="",G80,E81/$E$160),G80) -> 0 | H81: =IFERROR(IF(L81="",H80,L81/J81),H80) ->  | I81: =IFERROR(J81-L81,"") ->  | J81: =J80 ->  | K81: =K80 -> 0 | L81: =L80 -> 
A83: Baseline | B83: ='Cat 1 Setup (example to overide'!A34 -> 0 | C83: =IFERROR(IF(AND(I83>$I$159,G83>$G$159),"Star",IF(AND(I83>$I$159,G83<$G$159),"Puzzle",IF(AND(I83<$I$159,G83>$G$159),"Plow Horse","Dog"))),"") -> Puzzle | D83: =IFERROR(VLOOKUP(B83,'Cat 1 Setup (example to overide'!$A:$F,4,FALSE),"") -> 0 | E83: =IFERROR(VLOOKUP(B83,'Cat 1 Setup (example to overide'!$A:$F,3,FALSE),"") -> 0 | F83: =IFERROR(VLOOKUP(B83,'Cat 1 Setup (example to overide'!$A:$F,6,FALSE),"") -> 0 | G83: =IFERROR(E83/$E$159,"") -> 0 | H83: =IFERROR(F83/D83,"") ->  | I83: =IFERROR(J83-L83,"") ->  | J83: =IFERROR(D83/E83,"") ->  | K83: =IFERROR(E83/$F$3,"") -> 0 | L83: =IFERROR(J83*H83,"") -> 
A84: Proposed | C84: =IFERROR(IF(AND(I84>$I$160,G84>$G$160),"Star",IF(AND(I84>$I$160,G84<$G$160),"Puzzle",IF(AND(I84<$I$160,G84>$G$160),"Plow Horse","Dog"))),"") -> Puzzle | D84: =IFERROR(IF(J84="",D83,E84*J84),D83) -> 0 | E84: =IFERROR(IF(K84="",E83,K84*$F$3),E83) -> 0 | F84: =IFERROR(D84*H84,F83) -> 0 | G84: =IFERROR(IF(E84="",G83,E84/$E$160),G83) -> 0 | H84: =IFERROR(IF(L84="",H83,L84/J84),H83) ->  | I84: =IFERROR(J84-L84,"") ->  | J84: =J83 ->  | K84: =K83 -> 0 | L84: =L83 -> 
A86: Baseline | B86: ='Cat 1 Setup (example to overide'!A35 -> 0 | C86: =IFERROR(IF(AND(I86>$I$159,G86>$G$159),"Star",IF(AND(I86>$I$159,G86<$G$159),"Puzzle",IF(AND(I86<$I$159,G86>$G$159),"Plow Horse","Dog"))),"") -> Puzzle | D86: =IFERROR(VLOOKUP(B86,'Cat 1 Setup (example to overide'!$A:$F,4,FALSE),"") -> 0 | E86: =IFERROR(VLOOKUP(B86,'Cat 1 Setup (example to overide'!$A:$F,3,FALSE),"") -> 0 | F86: =IFERROR(VLOOKUP(B86,'Cat 1 Setup (example to overide'!$A:$F,6,FALSE),"") -> 0 | G86: =IFERROR(E86/$E$159,"") -> 0 | H86: =IFERROR(F86/D86,"") ->  | I86: =IFERROR(J86-L86,"") ->  | J86: =IFERROR(D86/E86,"") ->  | K86: =IFERROR(E86/$F$3,"") -> 0 | L86: =IFERROR(J86*H86,"") -> 
A87: Proposed | C87: =IFERROR(IF(AND(I87>$I$160,G87>$G$160),"Star",IF(AND(I87>$I$160,G87<$G$160),"Puzzle",IF(AND(I87<$I$160,G87>$G$160),"Plow Horse","Dog"))),"") -> Puzzle | D87: =IFERROR(IF(J87="",D86,E87*J87),D86) -> 0 | E87: =IFERROR(IF(K87="",E86,K87*$F$3),E86) -> 0 | F87: =IFERROR(D87*H87,F86) -> 0 | G87: =IFERROR(IF(E87="",G86,E87/$E$160),G86) -> 0 | H87: =IFERROR(IF(L87="",H86,L87/J87),H86) ->  | I87: =IFERROR(J87-L87,"") ->  | J87: =J86 ->  | K87: =K86 -> 0 | L87: =L86 -> 
A89: Baseline | B89: ='Cat 1 Setup (example to overide'!A36 -> 0 | C89: =IFERROR(IF(AND(I89>$I$159,G89>$G$159),"Star",IF(AND(I89>$I$159,G89<$G$159),"Puzzle",IF(AND(I89<$I$159,G89>$G$159),"Plow Horse","Dog"))),"") -> Puzzle | D89: =IFERROR(VLOOKUP(B89,'Cat 1 Setup (example to overide'!$A:$F,4,FALSE),"") -> 0 | E89: =IFERROR(VLOOKUP(B89,'Cat 1 Setup (example to overide'!$A:$F,3,FALSE),"") -> 0 | F89: =IFERROR(VLOOKUP(B89,'Cat 1 Setup (example to overide'!$A:$F,6,FALSE),"") -> 0 | G89: =IFERROR(E89/$E$159,"") -> 0 | H89: =IFERROR(F89/D89,"") ->  | I89: =IFERROR(J89-L89,"") ->  | J89: =IFERROR(D89/E89,"") ->  | K89: =IFERROR(E89/$F$3,"") -> 0 | L89: =IFERROR(J89*H89,"") -> 
A90: Proposed | C90: =IFERROR(IF(AND(I90>$I$160,G90>$G$160),"Star",IF(AND(I90>$I$160,G90<$G$160),"Puzzle",IF(AND(I90<$I$160,G90>$G$160),"Plow Horse","Dog"))),"") -> Puzzle | D90: =IFERROR(IF(J90="",D89,E90*J90),D89) -> 0 | E90: =IFERROR(IF(K90="",E89,K90*$F$3),E89) -> 0 | F90: =IFERROR(D90*H90,F89) -> 0 | G90: =IFERROR(IF(E90="",G89,E90/$E$160),G89) -> 0 | H90: =IFERROR(IF(L90="",H89,L90/J90),H89) ->  | I90: =IFERROR(J90-L90,"") ->  | J90: =J89 ->  | K90: =K89 -> 0 | L90: =L89 -> 
A92: Baseline | B92: ='Cat 1 Setup (example to overide'!A37 -> 0 | C92: =IFERROR(IF(AND(I92>$I$159,G92>$G$159),"Star",IF(AND(I92>$I$159,G92<$G$159),"Puzzle",IF(AND(I92<$I$159,G92>$G$159),"Plow Horse","Dog"))),"") -> Puzzle | D92: =IFERROR(VLOOKUP(B92,'Cat 1 Setup (example to overide'!$A:$F,4,FALSE),"") -> 0 | E92: =IFERROR(VLOOKUP(B92,'Cat 1 Setup (example to overide'!$A:$F,3,FALSE),"") -> 0 | F92: =IFERROR(VLOOKUP(B92,'Cat 1 Setup (example to overide'!$A:$F,6,FALSE),"") -> 0 | G92: =IFERROR(E92/$E$159,"") -> 0 | H92: =IFERROR(F92/D92,"") ->  | I92: =IFERROR(J92-L92,"") ->  | J92: =IFERROR(D92/E92,"") ->  | K92: =IFERROR(E92/$F$3,"") -> 0 | L92: =IFERROR(J92*H92,"") -> 
A93: Proposed | C93: =IFERROR(IF(AND(I93>$I$160,G93>$G$160),"Star",IF(AND(I93>$I$160,G93<$G$160),"Puzzle",IF(AND(I93<$I$160,G93>$G$160),"Plow Horse","Dog"))),"") -> Puzzle | D93: =IFERROR(IF(J93="",D92,E93*J93),D92) -> 0 | E93: =IFERROR(IF(K93="",E92,K93*$F$3),E92) -> 0 | F93: =IFERROR(D93*H93,F92) -> 0 | G93: =IFERROR(IF(E93="",G92,E93/$E$160),G92) -> 0 | H93: =IFERROR(IF(L93="",H92,L93/J93),H92) ->  | I93: =IFERROR(J93-L93,"") ->  | J93: =J92 ->  | K93: =K92 -> 0 | L93: =L92 -> 
A95: Baseline | B95: ='Cat 1 Setup (example to overide'!A38 -> 0 | C95: =IFERROR(IF(AND(I95>$I$159,G95>$G$159),"Star",IF(AND(I95>$I$159,G95<$G$159),"Puzzle",IF(AND(I95<$I$159,G95>$G$159),"Plow Horse","Dog"))),"") -> Puzzle | D95: =IFERROR(VLOOKUP(B95,'Cat 1 Setup (example to overide'!$A:$F,4,FALSE),"") -> 0 | E95: =IFERROR(VLOOKUP(B95,'Cat 1 Setup (example to overide'!$A:$F,3,FALSE),"") -> 0 | F95: =IFERROR(VLOOKUP(B95,'Cat 1 Setup (example to overide'!$A:$F,6,FALSE),"") -> 0 | G95: =IFERROR(E95/$E$159,"") -> 0 | H95: =IFERROR(F95/D95,"") ->  | I95: =IFERROR(J95-L95,"") ->  | J95: =IFERROR(D95/E95,"") ->  | K95: =IFERROR(E95/$F$3,"") -> 0 | L95: =IFERROR(J95*H95,"") -> 
A96: Proposed | C96: =IFERROR(IF(AND(I96>$I$160,G96>$G$160),"Star",IF(AND(I96>$I$160,G96<$G$160),"Puzzle",IF(AND(I96<$I$160,G96>$G$160),"Plow Horse","Dog"))),"") -> Puzzle | D96: =IFERROR(IF(J96="",D95,E96*J96),D95) -> 0 | E96: =IFERROR(IF(K96="",E95,K96*$F$3),E95) -> 0 | F96: =IFERROR(D96*H96,F95) -> 0 | G96: =IFERROR(IF(E96="",G95,E96/$E$160),G95) -> 0 | H96: =IFERROR(IF(L96="",H95,L96/J96),H95) ->  | I96: =IFERROR(J96-L96,"") ->  | J96: =J95 ->  | K96: =K95 -> 0 | L96: =L95 -> 
A98: Baseline | B98: ='Cat 1 Setup (example to overide'!A39 -> 0 | C98: =IFERROR(IF(AND(I98>$I$159,G98>$G$159),"Star",IF(AND(I98>$I$159,G98<$G$159),"Puzzle",IF(AND(I98<$I$159,G98>$G$159),"Plow Horse","Dog"))),"") -> Puzzle | D98: =IFERROR(VLOOKUP(B98,'Cat 1 Setup (example to overide'!$A:$F,4,FALSE),"") -> 0 | E98: =IFERROR(VLOOKUP(B98,'Cat 1 Setup (example to overide'!$A:$F,3,FALSE),"") -> 0 | F98: =IFERROR(VLOOKUP(B98,'Cat 1 Setup (example to overide'!$A:$F,6,FALSE),"") -> 0 | G98: =IFERROR(E98/$E$159,"") -> 0 | H98: =IFERROR(F98/D98,"") ->  | I98: =IFERROR(J98-L98,"") ->  | J98: =IFERROR(D98/E98,"") ->  | K98: =IFERROR(E98/$F$3,"") -> 0 | L98: =IFERROR(J98*H98,"") -> 
A99: Proposed | C99: =IFERROR(IF(AND(I99>$I$160,G99>$G$160),"Star",IF(AND(I99>$I$160,G99<$G$160),"Puzzle",IF(AND(I99<$I$160,G99>$G$160),"Plow Horse","Dog"))),"") -> Puzzle | D99: =IFERROR(IF(J99="",D98,E99*J99),D98) -> 0 | E99: =IFERROR(IF(K99="",E98,K99*$F$3),E98) -> 0 | F99: =IFERROR(D99*H99,F98) -> 0 | G99: =IFERROR(IF(E99="",G98,E99/$E$160),G98) -> 0 | H99: =IFERROR(IF(L99="",H98,L99/J99),H98) ->  | I99: =IFERROR(J99-L99,"") ->  | J99: =J98 ->  | K99: =K98 -> 0 | L99: =L98 -> 
A101: Baseline | B101: ='Cat 1 Setup (example to overide'!A40 -> 0 | C101: =IFERROR(IF(AND(I101>$I$159,G101>$G$159),"Star",IF(AND(I101>$I$159,G101<$G$159),"Puzzle",IF(AND(I101<$I$159,G101>$G$159),"Plow Horse","Dog"))),"") -> Puzzle | D101: =IFERROR(VLOOKUP(B101,'Cat 1 Setup (example to overide'!$A:$F,4,FALSE),"") -> 0 | E101: =IFERROR(VLOOKUP(B101,'Cat 1 Setup (example to overide'!$A:$F,3,FALSE),"") -> 0 | F101: =IFERROR(VLOOKUP(B101,'Cat 1 Setup (example to overide'!$A:$F,6,FALSE),"") -> 0 | G101: =IFERROR(E101/$E$159,"") -> 0 | H101: =IFERROR(F101/D101,"") ->  | I101: =IFERROR(J101-L101,"") ->  | J101: =IFERROR(D101/E101,"") ->  | K101: =IFERROR(E101/$F$3,"") -> 0 | L101: =IFERROR(J101*H101,"") -> 
A102: Proposed | C102: =IFERROR(IF(AND(I102>$I$160,G102>$G$160),"Star",IF(AND(I102>$I$160,G102<$G$160),"Puzzle",IF(AND(I102<$I$160,G102>$G$160),"Plow Horse","Dog"))),"") -> Puzzle | D102: =IFERROR(IF(J102="",D101,E102*J102),D101) -> 0 | E102: =IFERROR(IF(K102="",E101,K102*$F$3),E101) -> 0 | F102: =IFERROR(D102*H102,F101) -> 0 | G102: =IFERROR(IF(E102="",G101,E102/$E$160),G101) -> 0 | H102: =IFERROR(IF(L102="",H101,L102/J102),H101) ->  | I102: =IFERROR(J102-L102,"") ->  | J102: =J101 ->  | K102: =K101 -> 0 | L102: =L101 -> 
A104: Baseline | B104: ='Cat 1 Setup (example to overide'!A41 -> 0 | C104: =IFERROR(IF(AND(I104>$I$159,G104>$G$159),"Star",IF(AND(I104>$I$159,G104<$G$159),"Puzzle",IF(AND(I104<$I$159,G104>$G$159),"Plow Horse","Dog"))),"") -> Puzzle | D104: =IFERROR(VLOOKUP(B104,'Cat 1 Setup (example to overide'!$A:$F,4,FALSE),"") -> 0 | E104: =IFERROR(VLOOKUP(B104,'Cat 1 Setup (example to overide'!$A:$F,3,FALSE),"") -> 0 | F104: =IFERROR(VLOOKUP(B104,'Cat 1 Setup (example to overide'!$A:$F,6,FALSE),"") -> 0 | G104: =IFERROR(E104/$E$159,"") -> 0 | H104: =IFERROR(F104/D104,"") ->  | I104: =IFERROR(J104-L104,"") ->  | J104: =IFERROR(D104/E104,"") ->  | K104: =IFERROR(E104/$F$3,"") -> 0 | L104: =IFERROR(J104*H104,"") -> 
A105: Proposed | C105: =IFERROR(IF(AND(I105>$I$160,G105>$G$160),"Star",IF(AND(I105>$I$160,G105<$G$160),"Puzzle",IF(AND(I105<$I$160,G105>$G$160),"Plow Horse","Dog"))),"") -> Puzzle | D105: =IFERROR(IF(J105="",D104,E105*J105),D104) -> 0 | E105: =IFERROR(IF(K105="",E104,K105*$F$3),E104) -> 0 | F105: =IFERROR(D105*H105,F104) -> 0 | G105: =IFERROR(IF(E105="",G104,E105/$E$160),G104) -> 0 | H105: =IFERROR(IF(L105="",H104,L105/J105),H104) ->  | I105: =IFERROR(J105-L105,"") ->  | J105: =J104 ->  | K105: =K104 -> 0 | L105: =L104 -> 
A107: Baseline | B107: ='Cat 1 Setup (example to overide'!A42 -> 0 | C107: =IFERROR(IF(AND(I107>$I$159,G107>$G$159),"Star",IF(AND(I107>$I$159,G107<$G$159),"Puzzle",IF(AND(I107<$I$159,G107>$G$159),"Plow Horse","Dog"))),"") -> Puzzle | D107: =IFERROR(VLOOKUP(B107,'Cat 1 Setup (example to overide'!$A:$F,4,FALSE),"") -> 0 | E107: =IFERROR(VLOOKUP(B107,'Cat 1 Setup (example to overide'!$A:$F,3,FALSE),"") -> 0 | F107: =IFERROR(VLOOKUP(B107,'Cat 1 Setup (example to overide'!$A:$F,6,FALSE),"") -> 0 | G107: =IFERROR(E107/$E$159,"") -> 0 | H107: =IFERROR(F107/D107,"") ->  | I107: =IFERROR(J107-L107,"") ->  | J107: =IFERROR(D107/E107,"") ->  | K107: =IFERROR(E107/$F$3,"") -> 0 | L107: =IFERROR(J107*H107,"") -> 
A108: Proposed | C108: =IFERROR(IF(AND(I108>$I$160,G108>$G$160),"Star",IF(AND(I108>$I$160,G108<$G$160),"Puzzle",IF(AND(I108<$I$160,G108>$G$160),"Plow Horse","Dog"))),"") -> Puzzle | D108: =IFERROR(IF(J108="",D107,E108*J108),D107) -> 0 | E108: =IFERROR(IF(K108="",E107,K108*$F$3),E107) -> 0 | F108: =IFERROR(D108*H108,F107) -> 0 | G108: =IFERROR(IF(E108="",G107,E108/$E$160),G107) -> 0 | H108: =IFERROR(IF(L108="",H107,L108/J108),H107) ->  | I108: =IFERROR(J108-L108,"") ->  | J108: =J107 ->  | K108: =K107 -> 0 | L108: =L107 -> 
A110: Baseline | B110: ='Cat 1 Setup (example to overide'!A43 -> 0 | C110: =IFERROR(IF(AND(I110>$I$159,G110>$G$159),"Star",IF(AND(I110>$I$159,G110<$G$159),"Puzzle",IF(AND(I110<$I$159,G110>$G$159),"Plow Horse","Dog"))),"") -> Puzzle | D110: =IFERROR(VLOOKUP(B110,'Cat 1 Setup (example to overide'!$A:$F,4,FALSE),"") -> 0 | E110: =IFERROR(VLOOKUP(B110,'Cat 1 Setup (example to overide'!$A:$F,3,FALSE),"") -> 0 | F110: =IFERROR(VLOOKUP(B110,'Cat 1 Setup (example to overide'!$A:$F,6,FALSE),"") -> 0 | G110: =IFERROR(E110/$E$159,"") -> 0 | H110: =IFERROR(F110/D110,"") ->  | I110: =IFERROR(J110-L110,"") ->  | J110: =IFERROR(D110/E110,"") ->  | K110: =IFERROR(E110/$F$3,"") -> 0 | L110: =IFERROR(J110*H110,"") -> 
A111: Proposed | C111: =IFERROR(IF(AND(I111>$I$160,G111>$G$160),"Star",IF(AND(I111>$I$160,G111<$G$160),"Puzzle",IF(AND(I111<$I$160,G111>$G$160),"Plow Horse","Dog"))),"") -> Puzzle | D111: =IFERROR(IF(J111="",D110,E111*J111),D110) -> 0 | E111: =IFERROR(IF(K111="",E110,K111*$F$3),E110) -> 0 | F111: =IFERROR(D111*H111,F110) -> 0 | G111: =IFERROR(IF(E111="",G110,E111/$E$160),G110) -> 0 | H111: =IFERROR(IF(L111="",H110,L111/J111),H110) ->  | I111: =IFERROR(J111-L111,"") ->  | J111: =J110 ->  | K111: =K110 -> 0 | L111: =L110 -> 
A113: Baseline | B113: ='Cat 1 Setup (example to overide'!A44 -> 0 | C113: =IFERROR(IF(AND(I113>$I$159,G113>$G$159),"Star",IF(AND(I113>$I$159,G113<$G$159),"Puzzle",IF(AND(I113<$I$159,G113>$G$159),"Plow Horse","Dog"))),"") -> Puzzle | D113: =IFERROR(VLOOKUP(B113,'Cat 1 Setup (example to overide'!$A:$F,4,FALSE),"") -> 0 | E113: =IFERROR(VLOOKUP(B113,'Cat 1 Setup (example to overide'!$A:$F,3,FALSE),"") -> 0 | F113: =IFERROR(VLOOKUP(B113,'Cat 1 Setup (example to overide'!$A:$F,6,FALSE),"") -> 0 | G113: =IFERROR(E113/$E$159,"") -> 0 | H113: =IFERROR(F113/D113,"") ->  | I113: =IFERROR(J113-L113,"") ->  | J113: =IFERROR(D113/E113,"") ->  | K113: =IFERROR(E113/$F$3,"") -> 0 | L113: =IFERROR(J113*H113,"") -> 
A114: Proposed | C114: =IFERROR(IF(AND(I114>$I$160,G114>$G$160),"Star",IF(AND(I114>$I$160,G114<$G$160),"Puzzle",IF(AND(I114<$I$160,G114>$G$160),"Plow Horse","Dog"))),"") -> Puzzle | D114: =IFERROR(IF(J114="",D113,E114*J114),D113) -> 0 | E114: =IFERROR(IF(K114="",E113,K114*$F$3),E113) -> 0 | F114: =IFERROR(D114*H114,F113) -> 0 | G114: =IFERROR(IF(E114="",G113,E114/$E$160),G113) -> 0 | H114: =IFERROR(IF(L114="",H113,L114/J114),H113) ->  | I114: =IFERROR(J114-L114,"") ->  | J114: =J113 ->  | K114: =K113 -> 0 | L114: =L113 -> 
A116: Baseline | B116: ='Cat 1 Setup (example to overide'!A45 -> 0 | C116: =IFERROR(IF(AND(I116>$I$159,G116>$G$159),"Star",IF(AND(I116>$I$159,G116<$G$159),"Puzzle",IF(AND(I116<$I$159,G116>$G$159),"Plow Horse","Dog"))),"") -> Puzzle | D116: =IFERROR(VLOOKUP(B116,'Cat 1 Setup (example to overide'!$A:$F,4,FALSE),"") -> 0 | E116: =IFERROR(VLOOKUP(B116,'Cat 1 Setup (example to overide'!$A:$F,3,FALSE),"") -> 0 | F116: =IFERROR(VLOOKUP(B116,'Cat 1 Setup (example to overide'!$A:$F,6,FALSE),"") -> 0 | G116: =IFERROR(E116/$E$159,"") -> 0 | H116: =IFERROR(F116/D116,"") ->  | I116: =IFERROR(J116-L116,"") ->  | J116: =IFERROR(D116/E116,"") ->  | K116: =IFERROR(E116/$F$3,"") -> 0 | L116: =IFERROR(J116*H116,"") -> 
A117: Proposed | C117: =IFERROR(IF(AND(I117>$I$160,G117>$G$160),"Star",IF(AND(I117>$I$160,G117<$G$160),"Puzzle",IF(AND(I117<$I$160,G117>$G$160),"Plow Horse","Dog"))),"") -> Puzzle | D117: =IFERROR(IF(J117="",D116,E117*J117),D116) -> 0 | E117: =IFERROR(IF(K117="",E116,K117*$F$3),E116) -> 0 | F117: =IFERROR(D117*H117,F116) -> 0 | G117: =IFERROR(IF(E117="",G116,E117/$E$160),G116) -> 0 | H117: =IFERROR(IF(L117="",H116,L117/J117),H116) ->  | I117: =IFERROR(J117-L117,"") ->  | J117: =J116 ->  | K117: =K116 -> 0 | L117: =L116 -> 
A119: Baseline | B119: ='Cat 1 Setup (example to overide'!A46 -> 0 | C119: =IFERROR(IF(AND(I119>$I$159,G119>$G$159),"Star",IF(AND(I119>$I$159,G119<$G$159),"Puzzle",IF(AND(I119<$I$159,G119>$G$159),"Plow Horse","Dog"))),"") -> Puzzle | D119: =IFERROR(VLOOKUP(B119,'Cat 1 Setup (example to overide'!$A:$F,4,FALSE),"") -> 0 | E119: =IFERROR(VLOOKUP(B119,'Cat 1 Setup (example to overide'!$A:$F,3,FALSE),"") -> 0 | F119: =IFERROR(VLOOKUP(B119,'Cat 1 Setup (example to overide'!$A:$F,6,FALSE),"") -> 0 | G119: =IFERROR(E119/$E$159,"") -> 0 | H119: =IFERROR(F119/D119,"") ->  | I119: =IFERROR(J119-L119,"") ->  | J119: =IFERROR(D119/E119,"") ->  | K119: =IFERROR(E119/$F$3,"") -> 0 | L119: =IFERROR(J119*H119,"") -> 
A120: Proposed | C120: =IFERROR(IF(AND(I120>$I$160,G120>$G$160),"Star",IF(AND(I120>$I$160,G120<$G$160),"Puzzle",IF(AND(I120<$I$160,G120>$G$160),"Plow Horse","Dog"))),"") -> Puzzle | D120: =IFERROR(IF(J120="",D119,E120*J120),D119) -> 0 | E120: =IFERROR(IF(K120="",E119,K120*$F$3),E119) -> 0 | F120: =IFERROR(D120*H120,F119) -> 0 | G120: =IFERROR(IF(E120="",G119,E120/$E$160),G119) -> 0 | H120: =IFERROR(IF(L120="",H119,L120/J120),H119) ->  | I120: =IFERROR(J120-L120,"") ->  | J120: =J119 ->  | K120: =K119 -> 0 | L120: =L119 -> 
A122: Baseline | B122: ='Cat 1 Setup (example to overide'!A47 -> 0 | C122: =IFERROR(IF(AND(I122>$I$159,G122>$G$159),"Star",IF(AND(I122>$I$159,G122<$G$159),"Puzzle",IF(AND(I122<$I$159,G122>$G$159),"Plow Horse","Dog"))),"") -> Puzzle | D122: =IFERROR(VLOOKUP(B122,'Cat 1 Setup (example to overide'!$A:$F,4,FALSE),"") -> 0 | E122: =IFERROR(VLOOKUP(B122,'Cat 1 Setup (example to overide'!$A:$F,3,FALSE),"") -> 0 | F122: =IFERROR(VLOOKUP(B122,'Cat 1 Setup (example to overide'!$A:$F,6,FALSE),"") -> 0 | G122: =IFERROR(E122/$E$159,"") -> 0 | H122: =IFERROR(F122/D122,"") ->  | I122: =IFERROR(J122-L122,"") ->  | J122: =IFERROR(D122/E122,"") ->  | K122: =IFERROR(E122/$F$3,"") -> 0 | L122: =IFERROR(J122*H122,"") -> 
A123: Proposed | C123: =IFERROR(IF(AND(I123>$I$160,G123>$G$160),"Star",IF(AND(I123>$I$160,G123<$G$160),"Puzzle",IF(AND(I123<$I$160,G123>$G$160),"Plow Horse","Dog"))),"") -> Puzzle | D123: =IFERROR(IF(J123="",D122,E123*J123),D122) -> 0 | E123: =IFERROR(IF(K123="",E122,K123*$F$3),E122) -> 0 | F123: =IFERROR(D123*H123,F122) -> 0 | G123: =IFERROR(IF(E123="",G122,E123/$E$160),G122) -> 0 | H123: =IFERROR(IF(L123="",H122,L123/J123),H122) ->  | J123: =J122 ->  | K123: =K122 -> 0 | L123: =L122 -> 
A125: Baseline | B125: ='Cat 1 Setup (example to overide'!A48 -> 0 | C125: =IFERROR(IF(AND(I125>$I$159,G125>$G$159),"Star",IF(AND(I125>$I$159,G125<$G$159),"Puzzle",IF(AND(I125<$I$159,G125>$G$159),"Plow Horse","Dog"))),"") -> Puzzle | D125: =IFERROR(VLOOKUP(B125,'Cat 1 Setup (example to overide'!$A:$F,4,FALSE),"") -> 0 | E125: =IFERROR(VLOOKUP(B125,'Cat 1 Setup (example to overide'!$A:$F,3,FALSE),"") -> 0 | F125: =IFERROR(VLOOKUP(B125,'Cat 1 Setup (example to overide'!$A:$F,6,FALSE),"") -> 0 | G125: =IFERROR(E125/$E$159,"") -> 0 | H125: =IFERROR(F125/D125,"") ->  | I125: =IFERROR(J125-L125,"") ->  | J125: =IFERROR(D125/E125,"") ->  | K125: =IFERROR(E125/$F$3,"") -> 0 | L125: =IFERROR(J125*H125,"") -> 
A126: Proposed | C126: =IFERROR(IF(AND(I126>$I$160,G126>$G$160),"Star",IF(AND(I126>$I$160,G126<$G$160),"Puzzle",IF(AND(I126<$I$160,G126>$G$160),"Plow Horse","Dog"))),"") -> Puzzle | D126: =IFERROR(IF(J126="",D125,E126*J126),D125) -> 0 | E126: =IFERROR(IF(K126="",E125,K126*$F$3),E125) -> 0 | F126: =IFERROR(D126*H126,F125) -> 0 | G126: =IFERROR(IF(E126="",G125,E126/$E$160),G125) -> 0 | H126: =IFERROR(IF(L126="",H125,L126/J126),H125) ->  | J126: =J125 ->  | K126: =K125 -> 0 | L126: =L125 -> 
A128: Baseline | B128: ='Cat 1 Setup (example to overide'!A49 -> 0 | C128: =IFERROR(IF(AND(I128>$I$159,G128>$G$159),"Star",IF(AND(I128>$I$159,G128<$G$159),"Puzzle",IF(AND(I128<$I$159,G128>$G$159),"Plow Horse","Dog"))),"") -> Puzzle | D128: =IFERROR(VLOOKUP(B128,'Cat 1 Setup (example to overide'!$A:$F,4,FALSE),"") -> 0 | E128: =IFERROR(VLOOKUP(B128,'Cat 1 Setup (example to overide'!$A:$F,3,FALSE),"") -> 0 | F128: =IFERROR(VLOOKUP(B128,'Cat 1 Setup (example to overide'!$A:$F,6,FALSE),"") -> 0 | G128: =IFERROR(E128/$E$159,"") -> 0 | H128: =IFERROR(F128/D128,"") ->  | I128: =IFERROR(J128-L128,"") ->  | J128: =IFERROR(D128/E128,"") ->  | K128: =IFERROR(E128/$F$3,"") -> 0 | L128: =IFERROR(J128*H128,"") -> 
A129: Proposed | C129: =IFERROR(IF(AND(I129>$I$160,G129>$G$160),"Star",IF(AND(I129>$I$160,G129<$G$160),"Puzzle",IF(AND(I129<$I$160,G129>$G$160),"Plow Horse","Dog"))),"") -> Puzzle | D129: =IFERROR(IF(J129="",D128,E129*J129),D128) -> 0 | E129: =IFERROR(IF(K129="",E128,K129*$F$3),E128) -> 0 | F129: =IFERROR(D129*H129,F128) -> 0 | G129: =IFERROR(IF(E129="",G128,E129/$E$160),G128) -> 0 | H129: =IFERROR(IF(L129="",H128,L129/J129),H128) ->  | J129: =J128 ->  | K129: =K128 -> 0 | L129: =L128 -> 
A131: Baseline | B131: ='Cat 1 Setup (example to overide'!A50 -> 0 | C131: =IFERROR(IF(AND(I131>$I$159,G131>$G$159),"Star",IF(AND(I131>$I$159,G131<$G$159),"Puzzle",IF(AND(I131<$I$159,G131>$G$159),"Plow Horse","Dog"))),"") -> Puzzle | D131: =IFERROR(VLOOKUP(B131,'Cat 1 Setup (example to overide'!$A:$F,4,FALSE),"") -> 0 | E131: =IFERROR(VLOOKUP(B131,'Cat 1 Setup (example to overide'!$A:$F,3,FALSE),"") -> 0 | F131: =IFERROR(VLOOKUP(B131,'Cat 1 Setup (example to overide'!$A:$F,6,FALSE),"") -> 0 | G131: =IFERROR(E131/$E$159,"") -> 0 | H131: =IFERROR(F131/D131,"") ->  | I131: =IFERROR(J131-L131,"") ->  | J131: =IFERROR(D131/E131,"") ->  | K131: =IFERROR(E131/$F$3,"") -> 0 | L131: =IFERROR(J131*H131,"") -> 
A132: Proposed | C132: =IFERROR(IF(AND(I132>$I$160,G132>$G$160),"Star",IF(AND(I132>$I$160,G132<$G$160),"Puzzle",IF(AND(I132<$I$160,G132>$G$160),"Plow Horse","Dog"))),"") -> Puzzle | D132: =IFERROR(IF(J132="",D131,E132*J132),D131) -> 0 | E132: =IFERROR(IF(K132="",E131,K132*$F$3),E131) -> 0 | F132: =IFERROR(D132*H132,F131) -> 0 | G132: =IFERROR(IF(E132="",G131,E132/$E$160),G131) -> 0 | H132: =IFERROR(IF(L132="",H131,L132/J132),H131) ->  | J132: =J131 ->  | K132: =K131 -> 0 | L132: =L131 -> 
A134: Baseline | B134: ='Cat 1 Setup (example to overide'!A51 -> 0 | C134: =IFERROR(IF(AND(I134>$I$159,G134>$G$159),"Star",IF(AND(I134>$I$159,G134<$G$159),"Puzzle",IF(AND(I134<$I$159,G134>$G$159),"Plow Horse","Dog"))),"") -> Puzzle | D134: =IFERROR(VLOOKUP(B134,'Cat 1 Setup (example to overide'!$A:$F,4,FALSE),"") -> 0 | E134: =IFERROR(VLOOKUP(B134,'Cat 1 Setup (example to overide'!$A:$F,3,FALSE),"") -> 0 | F134: =IFERROR(VLOOKUP(B134,'Cat 1 Setup (example to overide'!$A:$F,6,FALSE),"") -> 0 | G134: =IFERROR(E134/$E$159,"") -> 0 | H134: =IFERROR(F134/D134,"") ->  | I134: =IFERROR(J134-L134,"") ->  | J134: =IFERROR(D134/E134,"") ->  | K134: =IFERROR(E134/$F$3,"") -> 0 | L134: =IFERROR(J134*H134,"") -> 
A135: Proposed | C135: =IFERROR(IF(AND(I135>$I$160,G135>$G$160),"Star",IF(AND(I135>$I$160,G135<$G$160),"Puzzle",IF(AND(I135<$I$160,G135>$G$160),"Plow Horse","Dog"))),"") -> Puzzle | D135: =IFERROR(IF(J135="",D134,E135*J135),D134) -> 0 | E135: =IFERROR(IF(K135="",E134,K135*$F$3),E134) -> 0 | F135: =IFERROR(D135*H135,F134) -> 0 | G135: =IFERROR(IF(E135="",G134,E135/$E$160),G134) -> 0 | H135: =IFERROR(IF(L135="",H134,L135/J135),H134) ->  | J135: =J134 ->  | K135: =K134 -> 0 | L135: =L134 -> 
A137: Baseline | B137: ='Cat 1 Setup (example to overide'!A52 -> 0 | C137: =IFERROR(IF(AND(I137>$I$159,G137>$G$159),"Star",IF(AND(I137>$I$159,G137<$G$159),"Puzzle",IF(AND(I137<$I$159,G137>$G$159),"Plow Horse","Dog"))),"") -> Puzzle | D137: =IFERROR(VLOOKUP(B137,'Cat 1 Setup (example to overide'!$A:$F,4,FALSE),"") -> 0 | E137: =IFERROR(VLOOKUP(B137,'Cat 1 Setup (example to overide'!$A:$F,3,FALSE),"") -> 0 | F137: =IFERROR(VLOOKUP(B137,'Cat 1 Setup (example to overide'!$A:$F,6,FALSE),"") -> 0 | G137: =IFERROR(E137/$E$159,"") -> 0 | H137: =IFERROR(F137/D137,"") ->  | I137: =IFERROR(J137-L137,"") ->  | J137: =IFERROR(D137/E137,"") ->  | K137: =IFERROR(E137/$F$3,"") -> 0 | L137: =IFERROR(J137*H137,"") -> 
A138: Proposed | C138: =IFERROR(IF(AND(I138>$I$160,G138>$G$160),"Star",IF(AND(I138>$I$160,G138<$G$160),"Puzzle",IF(AND(I138<$I$160,G138>$G$160),"Plow Horse","Dog"))),"") -> Puzzle | D138: =IFERROR(IF(J138="",D137,E138*J138),D137) -> 0 | E138: =IFERROR(IF(K138="",E137,K138*$F$3),E137) -> 0 | F138: =IFERROR(D138*H138,F137) -> 0 | G138: =IFERROR(IF(E138="",G137,E138/$E$160),G137) -> 0 | H138: =IFERROR(IF(L138="",H137,L138/J138),H137) ->  | J138: =J137 ->  | K138: =K137 -> 0 | L138: =L137 -> 
A140: Baseline | B140: ='Cat 1 Setup (example to overide'!A53 -> 0 | C140: =IFERROR(IF(AND(I140>$I$159,G140>$G$159),"Star",IF(AND(I140>$I$159,G140<$G$159),"Puzzle",IF(AND(I140<$I$159,G140>$G$159),"Plow Horse","Dog"))),"") -> Puzzle | D140: =IFERROR(VLOOKUP(B140,'Cat 1 Setup (example to overide'!$A:$F,4,FALSE),"") -> 0 | E140: =IFERROR(VLOOKUP(B140,'Cat 1 Setup (example to overide'!$A:$F,3,FALSE),"") -> 0 | F140: =IFERROR(VLOOKUP(B140,'Cat 1 Setup (example to overide'!$A:$F,6,FALSE),"") -> 0 | G140: =IFERROR(E140/$E$159,"") -> 0 | H140: =IFERROR(F140/D140,"") ->  | I140: =IFERROR(J140-L140,"") ->  | J140: =IFERROR(D140/E140,"") ->  | K140: =IFERROR(E140/$F$3,"") -> 0 | L140: =IFERROR(J140*H140,"") -> 
A141: Proposed | C141: =IFERROR(IF(AND(I141>$I$160,G141>$G$160),"Star",IF(AND(I141>$I$160,G141<$G$160),"Puzzle",IF(AND(I141<$I$160,G141>$G$160),"Plow Horse","Dog"))),"") -> Puzzle | D141: =IFERROR(IF(J141="",D140,E141*J141),D140) -> 0 | E141: =IFERROR(IF(K141="",E140,K141*$F$3),E140) -> 0 | F141: =IFERROR(D141*H141,F140) -> 0 | G141: =IFERROR(IF(E141="",G140,E141/$E$160),G140) -> 0 | H141: =IFERROR(IF(L141="",H140,L141/J141),H140) ->  | J141: =J140 ->  | K141: =K140 -> 0 | L141: =L140 -> 
A143: Baseline | B143: ='Cat 1 Setup (example to overide'!A54 -> 0 | C143: =IFERROR(IF(AND(I143>$I$159,G143>$G$159),"Star",IF(AND(I143>$I$159,G143<$G$159),"Puzzle",IF(AND(I143<$I$159,G143>$G$159),"Plow Horse","Dog"))),"") -> Puzzle | D143: =IFERROR(VLOOKUP(B143,'Cat 1 Setup (example to overide'!$A:$F,4,FALSE),"") -> 0 | E143: =IFERROR(VLOOKUP(B143,'Cat 1 Setup (example to overide'!$A:$F,3,FALSE),"") -> 0 | F143: =IFERROR(VLOOKUP(B143,'Cat 1 Setup (example to overide'!$A:$F,6,FALSE),"") -> 0 | G143: =IFERROR(E143/$E$159,"") -> 0 | H143: =IFERROR(F143/D143,"") ->  | I143: =IFERROR(J143-L143,"") ->  | J143: =IFERROR(D143/E143,"") ->  | K143: =IFERROR(E143/$F$3,"") -> 0 | L143: =IFERROR(J143*H143,"") -> 
A144: Proposed | C144: =IFERROR(IF(AND(I144>$I$160,G144>$G$160),"Star",IF(AND(I144>$I$160,G144<$G$160),"Puzzle",IF(AND(I144<$I$160,G144>$G$160),"Plow Horse","Dog"))),"") -> Puzzle | D144: =IFERROR(IF(J144="",D143,E144*J144),D143) -> 0 | E144: =IFERROR(IF(K144="",E143,K144*$F$3),E143) -> 0 | F144: =IFERROR(D144*H144,F143) -> 0 | G144: =IFERROR(IF(E144="",G143,E144/$E$160),G143) -> 0 | H144: =IFERROR(IF(L144="",H143,L144/J144),H143) ->  | J144: =J143 ->  | K144: =K143 -> 0 | L144: =L143 -> 
A146: Baseline | B146: ='Cat 1 Setup (example to overide'!A55 -> 0 | C146: =IFERROR(IF(AND(I146>$I$159,G146>$G$159),"Star",IF(AND(I146>$I$159,G146<$G$159),"Puzzle",IF(AND(I146<$I$159,G146>$G$159),"Plow Horse","Dog"))),"") -> Puzzle | D146: =IFERROR(VLOOKUP(B146,'Cat 1 Setup (example to overide'!$A:$F,4,FALSE),"") -> 0 | E146: =IFERROR(VLOOKUP(B146,'Cat 1 Setup (example to overide'!$A:$F,3,FALSE),"") -> 0 | F146: =IFERROR(VLOOKUP(B146,'Cat 1 Setup (example to overide'!$A:$F,6,FALSE),"") -> 0 | G146: =IFERROR(E146/$E$159,"") -> 0 | H146: =IFERROR(F146/D146,"") ->  | I146: =IFERROR(J146-L146,"") ->  | J146: =IFERROR(D146/E146,"") ->  | K146: =IFERROR(E146/$F$3,"") -> 0 | L146: =IFERROR(J146*H146,"") -> 
A147: Proposed | C147: =IFERROR(IF(AND(I147>$I$160,G147>$G$160),"Star",IF(AND(I147>$I$160,G147<$G$160),"Puzzle",IF(AND(I147<$I$160,G147>$G$160),"Plow Horse","Dog"))),"") -> Puzzle | D147: =IFERROR(IF(J147="",D146,E147*J147),D146) -> 0 | E147: =IFERROR(IF(K147="",E146,K147*$F$3),E146) -> 0 | F147: =IFERROR(D147*H147,F146) -> 0 | G147: =IFERROR(IF(E147="",G146,E147/$E$160),G146) -> 0 | H147: =IFERROR(IF(L147="",H146,L147/J147),H146) ->  | J147: =J146 ->  | K147: =K146 -> 0 | L147: =L146 -> 
A149: Baseline | B149: ='Cat 1 Setup (example to overide'!A56 -> 0 | C149: =IFERROR(IF(AND(I149>$I$159,G149>$G$159),"Star",IF(AND(I149>$I$159,G149<$G$159),"Puzzle",IF(AND(I149<$I$159,G149>$G$159),"Plow Horse","Dog"))),"") -> Puzzle | D149: =IFERROR(VLOOKUP(B149,'Cat 1 Setup (example to overide'!$A:$F,4,FALSE),"") -> 0 | E149: =IFERROR(VLOOKUP(B149,'Cat 1 Setup (example to overide'!$A:$F,3,FALSE),"") -> 0 | F149: =IFERROR(VLOOKUP(B149,'Cat 1 Setup (example to overide'!$A:$F,6,FALSE),"") -> 0 | G149: =IFERROR(E149/$E$159,"") -> 0 | H149: =IFERROR(F149/D149,"") ->  | I149: =IFERROR(J149-L149,"") ->  | J149: =IFERROR(D149/E149,"") ->  | K149: =IFERROR(E149/$F$3,"") -> 0 | L149: =IFERROR(J149*H149,"") -> 
A150: Proposed | C150: =IFERROR(IF(AND(I150>$I$160,G150>$G$160),"Star",IF(AND(I150>$I$160,G150<$G$160),"Puzzle",IF(AND(I150<$I$160,G150>$G$160),"Plow Horse","Dog"))),"") -> Puzzle | D150: =IFERROR(IF(J150="",D149,E150*J150),D149) -> 0 | E150: =IFERROR(IF(K150="",E149,K150*$F$3),E149) -> 0 | F150: =IFERROR(D150*H150,F149) -> 0 | G150: =IFERROR(IF(E150="",G149,E150/$E$160),G149) -> 0 | H150: =IFERROR(IF(L150="",H149,L150/J150),H149) ->  | J150: =J149 ->  | K150: =K149 -> 0 | L150: =L149 -> 
A152: Baseline | B152: ='Cat 1 Setup (example to overide'!A57 -> 0 | C152: =IFERROR(IF(AND(I152>$I$159,G152>$G$159),"Star",IF(AND(I152>$I$159,G152<$G$159),"Puzzle",IF(AND(I152<$I$159,G152>$G$159),"Plow Horse","Dog"))),"") -> Puzzle | D152: =IFERROR(VLOOKUP(B152,'Cat 1 Setup (example to overide'!$A:$F,4,FALSE),"") -> 0 | E152: =IFERROR(VLOOKUP(B152,'Cat 1 Setup (example to overide'!$A:$F,3,FALSE),"") -> 0 | F152: =IFERROR(VLOOKUP(B152,'Cat 1 Setup (example to overide'!$A:$F,6,FALSE),"") -> 0 | G152: =IFERROR(E152/$E$159,"") -> 0 | H152: =IFERROR(F152/D152,"") ->  | I152: =IFERROR(J152-L152,"") ->  | J152: =IFERROR(D152/E152,"") ->  | K152: =IFERROR(E152/$F$3,"") -> 0 | L152: =IFERROR(J152*H152,"") -> 
A153: Proposed | C153: =IFERROR(IF(AND(I153>$I$160,G153>$G$160),"Star",IF(AND(I153>$I$160,G153<$G$160),"Puzzle",IF(AND(I153<$I$160,G153>$G$160),"Plow Horse","Dog"))),"") -> Puzzle | D153: =IFERROR(IF(J153="",D152,E153*J153),D152) -> 0 | E153: =IFERROR(IF(K153="",E152,K153*$F$3),E152) -> 0 | F153: =IFERROR(D153*H153,F152) -> 0 | G153: =IFERROR(IF(E153="",G152,E153/$E$160),G152) -> 0 | H153: =IFERROR(IF(L153="",H152,L153/J153),H152) ->  | J153: =J152 ->  | K153: =K152 -> 0 | L153: =L152 -> 
A155: Baseline | B155: ='Cat 1 Setup (example to overide'!A58 -> 0 | C155: =IFERROR(IF(AND(I155>$I$159,G155>$G$159),"Star",IF(AND(I155>$I$159,G155<$G$159),"Puzzle",IF(AND(I155<$I$159,G155>$G$159),"Plow Horse","Dog"))),"") -> Puzzle | D155: =IFERROR(VLOOKUP(B155,'Cat 1 Setup (example to overide'!$A:$F,4,FALSE),"") -> 0 | E155: =IFERROR(VLOOKUP(B155,'Cat 1 Setup (example to overide'!$A:$F,3,FALSE),"") -> 0 | F155: =IFERROR(VLOOKUP(B155,'Cat 1 Setup (example to overide'!$A:$F,6,FALSE),"") -> 0 | G155: =IFERROR(E155/$E$159,"") -> 0 | H155: =IFERROR(F155/D155,"") ->  | I155: =IFERROR(J155-L155,"") ->  | J155: =IFERROR(D155/E155,"") ->  | K155: =IFERROR(E155/$F$3,"") -> 0 | L155: =IFERROR(J155*H155,"") -> 
A156: Proposed | C156: =IFERROR(IF(AND(I156>$I$160,G156>$G$160),"Star",IF(AND(I156>$I$160,G156<$G$160),"Puzzle",IF(AND(I156<$I$160,G156>$G$160),"Plow Horse","Dog"))),"") -> Puzzle | D156: =IFERROR(IF(J156="",D155,E156*J156),D155) -> 0 | E156: =IFERROR(IF(K156="",E155,K156*$F$3),E155) -> 0 | F156: =IFERROR(D156*H156,F155) -> 0 | G156: =IFERROR(IF(E156="",G155,E156/$E$160),G155) -> 0 | H156: =IFERROR(IF(L156="",H155,L156/J156),H155) ->  | J156: =J155 ->  | K156: =K155 -> 0 | L156: =L155 -> 
K158: (Items/Cover)
A159: Baseline | B159: Total | D159: =IFERROR(SUMIF($A$8:$A$156,"Baseline",D$8:D$156),"") -> 269884.5 | E159: =IFERROR(SUMIF($A$8:$A$156,"Baseline",E$8:E$156),"") -> 10653 | F159: =IFERROR(SUMIF($A$8:$A$156,"Baseline",F$8:F$156),"") -> 100389.94 | G159: =IFERROR((AVERAGEIFS(G$8:G$156,$A$8:$A$156,"Baseline",G$8:G$156,">0")),"") -> 0.05 | H159: =IFERROR(F159/D159,"") -> 0.3719737147 | I159: =IFERROR(AVERAGEIF($A$8:$A$156,"Baseline",I$8:I$156),"") -> 16.18495363 | J159: =IFERROR(D159/E159,"") -> 25.33413123 | K159: =IFERROR(E159/$F$3,"") -> 6.311018957 | L159: =IFERROR(F159/E159,"") -> 9.423630902
A160: Proposed | D160: =IFERROR(SUMIF($A$8:$A$156,"Proposed",D$8:D$156),"") -> 269884.5 | E160: =IFERROR(SUMIF($A$8:$A$156,"Proposed",E$8:E$156),"") -> 10653 | F160: =IFERROR(SUMIF($A$8:$A$156,"Proposed",F$8:F$156),"") -> 100389.94 | G160: =IFERROR((AVERAGEIFS(G$8:G$156,$A$8:$A$156,"Proposed",G$8:G$156,">0")),"") -> 0.05 | H160: =IFERROR(F160/D160,"") -> 0.3719737147 | I160: =IFERROR(AVERAGEIF($A$8:$A$156,"Proposed",I$8:I$156),"") -> 16.18495363 | J160: =IFERROR(D160/E160,"") -> 25.33413123 | K160: =IFERROR(E160/$F$3,"") -> 6.311018957 | L160: =IFERROR(F160/E160,"") -> 9.423630902
B161: %/BPs change | D161: =IFERROR((D160-D159)/D159,"") -> 0 | E161: =IFERROR((E160-E159)/E159,"") -> 0 | F161: 0 | G161: =(G160-G159)*100 -> 0 | H161: =(H160-H159)*100 -> 0 | I161: 0 | J161: 0 | K161: 0 | L161: 0
B164: Assumptions/Exclusions:
B171: Admin Use:
B172: CM (min): | C172: =ROUND(MIN(I8:I157),0)-5 -> 5 | D172: Demand (max): | F172: =MIN(G8:G157)-0.05 -> -0.05
B173: CM (max): | C173: =ROUND(MAX(I8:I157),0)+5 -> 26 | D173: Demand (min): | F173: =MAX(G8:G157)+0.05 -> 0.1436825307

Sheet Cat 1 CM$ Chart
A1: =CONCATENATE('Cat 1 CM$'!C1," ",'Cat 1 CM$'!C5," ",'Cat 1 CM$'!C4," - ",'Cat 1 CM$'!F5) -> Blue Café Dining Room Dinner - Entrée
A2: Menu Enginnering Graph by Contribution Margin Dollars
F44: Low | G44: High
C45: X-AXIS --> | D45: Menu Mix Parameters: | F45: =IFERROR(IF('Cat 1 CM$'!D8="","",MIN('Cat 1 CM$'!G8:G157)*0.9),"") -> 0 | G45: =IFERROR(IF('Cat 1 CM$'!D8="","",MAX('Cat 1 CM$'!G8:G157)*1.1),"") -> 0.1030507838
C46: Y-AXIS --> | D46: Contribution Margin: | F46: =IFERROR(IF('Cat 1 CM$'!D8="","",MIN('Cat 1 CM$'!$I$8:$I$157)*0.9),"") -> 8.694 | G46: =IFERROR(IF('Cat 1 CM$'!D8="","",MAX('Cat 1 CM$'!$I$8:$I$157)*1.1),"") -> 23.463

Sheet Cat 1 CM%
B1: Restaurant Name | C1: ='Cat 1 Setup (example to overide'!L1 -> Blue Café
B2: Start Date: | C2: ='Cat 1 Setup (example to overide'!L5 -> 2023-11-01 | E2: Check Count: | F2: ='Cat 1 Setup (example to overide'!N1 -> 600
B3: End Date | C3: ='Cat 1 Setup (example to overide'!N5 -> 2023-01-31 | E3: Cover Count: | F3: ='Cat 1 Setup (example to overide'!N2 -> 1688
B4: Meal Period: | C4: ='Cat 1 Setup (example to overide'!L2 -> Dinner | E4: Average Check: | F4: ='Cat 1 Setup (example to overide'!N3 -> 48.09
B5: Revenue Center: | C5: ='Cat 1 Setup (example to overide'!L3 -> Dining Room | E5: Menu Category | F5: ='Cat 1 Setup (example to overide'!L4 -> Entrée
B7: Item Name | C7: Quadrant | D7: Item Sales | E7: Qty Sold | F7: Food Cost | G7: Menu Mix % | H7: Item Cost % | I7: Contribution Margin % | J7: Item Price | K7: Item/Cover% | L7: Item Cost
A8: Baseline | B8: ='Cat 1 Setup (example to overide'!A9 -> SALMON | C8: =IFERROR(IF(AND(I8>$I$159,G8>$G$159),"Star",IF(AND(I8>$I$159,G8<$G$159),"Puzzle",IF(AND(I8<$I$159,G8>$G$159),"Plow Horse","Dog"))),"") -> Star | D8: =IFERROR(VLOOKUP(B8,'Cat 1 Setup (example to overide'!$A:$F,4,FALSE),"") -> 25948 | E8: =IFERROR(VLOOKUP(B8,'Cat 1 Setup (example to overide'!$A:$F,3,FALSE),"") -> 998 | F8: =IFERROR(VLOOKUP(B8,'Cat 1 Setup (example to overide'!$A:$F,6,FALSE),"") -> 5349.28 | G8: =IFERROR(E8/$E$159,"") -> 0.09368253074 | H8: =IFERROR(F8/D8,"") -> 0.2061538462 | I8: =IFERROR((J8-L8)/J8,"") -> 0.7938461538 | J8: =IFERROR(D8/E8,"") -> 26 | K8: =IFERROR(E8/$F$3,"") -> 0.5912322275 | L8: =IFERROR(J8*H8,"") -> 5.36
A9: Proposed | C9: =IFERROR(IF(AND(I9>$I$160,G9>$G$160),"Star",IF(AND(I9>$I$160,G9<$G$160),"Puzzle",IF(AND(I9<$I$160,G9>$G$160),"Plow Horse","Dog"))),"") -> Star | D9: =IFERROR(IF(J9="",D8,E9*J9),D8) -> 25948 | E9: =IFERROR(IF(K9="",E8,K9*$F$3),E8) -> 998 | F9: =IFERROR(D9*H9,F8) -> 5349.28 | G9: =IFERROR(IF(E9="",G8,E9/$E$160),G8) -> 0.09368253074 | H9: =IFERROR(IF(L9="",H8,L9/J9),H8) -> 0.2061538462 | I9: =IFERROR((J9-L9)/J9,"") -> 0.7938461538 | J9: =J8 -> 26 | K9: =K8 -> 0.5912322275 | L9: =L8 -> 5.36
A11: Baseline | B11: ='Cat 1 Setup (example to overide'!A10 -> TROUT AMADINE | C11: =IFERROR(IF(AND(I11>$I$159,G11>$G$159),"Star",IF(AND(I11>$I$159,G11<$G$159),"Puzzle",IF(AND(I11<$I$159,G11>$G$159),"Plow Horse","Dog"))),"") -> Star | D11: =IFERROR(VLOOKUP(B11,'Cat 1 Setup (example to overide'!$A:$F,4,FALSE),"") -> 22872 | E11: =IFERROR(VLOOKUP(B11,'Cat 1 Setup (example to overide'!$A:$F,3,FALSE),"") -> 953 | F11: =IFERROR(VLOOKUP(B11,'Cat 1 Setup (example to overide'!$A:$F,6,FALSE),"") -> 7195.15 | G11: =IFERROR(E11/$E$159,"") -> 0.08945836853 | H11: =IFERROR(F11/D11,"") -> 0.3145833333 | I11: =IFERROR((J11-L11)/J11,"") -> 0.6854166667 | J11: =IFERROR(D11/E11,"") -> 24 | K11: =IFERROR(E11/$F$3,"") -> 0.5645734597 | L11: =IFERROR(J11*H11,"") -> 7.55
A12: Proposed | C12: =IFERROR(IF(AND(I12>$I$160,G12>$G$160),"Star",IF(AND(I12>$I$160,G12<$G$160),"Puzzle",IF(AND(I12<$I$160,G12>$G$160),"Plow Horse","Dog"))),"") -> Star | D12: =IFERROR(IF(J12="",D11,E12*J12),D11) -> 22872 | E12: =IFERROR(IF(K12="",E11,K12*$F$3),E11) -> 953 | F12: =IFERROR(D12*H12,F11) -> 7195.15 | G12: =IFERROR(IF(E12="",G11,E12/$E$160),G11) -> 0.08945836853 | H12: =IFERROR(IF(L12="",H11,L12/J12),H11) -> 0.3145833333 | I12: =IFERROR((J12-L12)/J12,"") -> 0.6854166667 | J12: =J11 -> 24 | K12: =K11 -> 0.5645734597 | L12: =L11 -> 7.55
A14: Baseline | B14: ='Cat 1 Setup (example to overide'!A11 -> MOULES FRITES | C14: =IFERROR(IF(AND(I14>$I$159,G14>$G$159),"Star",IF(AND(I14>$I$159,G14<$G$159),"Puzzle",IF(AND(I14<$I$159,G14>$G$159),"Plow Horse","Dog"))),"") -> Star | D14: =IFERROR(VLOOKUP(B14,'Cat 1 Setup (example to overide'!$A:$F,4,FALSE),"") -> 16222.5 | E14: =IFERROR(VLOOKUP(B14,'Cat 1 Setup (example to overide'!$A:$F,3,FALSE),"") -> 927 | F14: =IFERROR(VLOOKUP(B14,'Cat 1 Setup (example to overide'!$A:$F,6,FALSE),"") -> 5061.42 | G14: =IFERROR(E14/$E$159,"") -> 0.08701774148 | H14: =IFERROR(F14/D14,"") -> 0.312 | I14: =IFERROR((J14-L14)/J14,"") -> 0.688 | J14: =IFERROR(D14/E14,"") -> 17.5 | K14: =IFERROR(E14/$F$3,"") -> 0.5491706161 | L14: =IFERROR(J14*H14,"") -> 5.46
A15: Proposed | C15: =IFERROR(IF(AND(I15>$I$160,G15>$G$160),"Star",IF(AND(I15>$I$160,G15<$G$160),"Puzzle",IF(AND(I15<$I$160,G15>$G$160),"Plow Horse","Dog"))),"") -> Star | D15: =IFERROR(IF(J15="",D14,E15*J15),D14) -> 16222.5 | E15: =IFERROR(IF(K15="",E14,K15*$F$3),E14) -> 927 | F15: =IFERROR(D15*H15,F14) -> 5061.42 | G15: =IFERROR(IF(E15="",G14,E15/$E$160),G14) -> 0.08701774148 | H15: =IFERROR(IF(L15="",H14,L15/J15),H14) -> 0.312 | I15: =IFERROR((J15-L15)/J15,"") -> 0.688 | J15: =J14 -> 17.5 | K15: =K14 -> 0.5491706161 | L15: =L14 -> 5.46
A17: Baseline | B17: ='Cat 1 Setup (example to overide'!A12 -> WILD HALIBUT | C17: =IFERROR(IF(AND(I17>$I$159,G17>$G$159),"Star",IF(AND(I17>$I$159,G17<$G$159),"Puzzle",IF(AND(I17<$I$159,G17>$G$159),"Plow Horse","Dog"))),"") -> Plow Horse | D17: =IFERROR(VLOOKUP(B17,'Cat 1 Setup (example to overide'!$A:$F,4,FALSE),"") -> 26651 | E17: =IFERROR(VLOOKUP(B17,'Cat 1 Setup (example to overide'!$A:$F,3,FALSE),"") -> 919 | F17: =IFERROR(VLOOKUP(B17,'Cat 1 Setup (example to overide'!$A:$F,6,FALSE),"") -> 17433.43 | G17: =IFERROR(E17/$E$159,"") -> 0.08626677931 | H17: =IFERROR(F17/D17,"") -> 0.654137931 | I17: =IFERROR((J17-L17)/J17,"") -> 0.345862069 | J17: =IFERROR(D17/E17,"") -> 29 | K17: =IFERROR(E17/$F$3,"") -> 0.5444312796 | L17: =IFERROR(J17*H17,"") -> 18.97
A18: Proposed | C18: =IFERROR(IF(AND(I18>$I$160,G18>$G$160),"Star",IF(AND(I18>$I$160,G18<$G$160),"Puzzle",IF(AND(I18<$I$160,G18>$G$160),"Plow Horse","Dog"))),"") -> Plow Horse | D18: =IFERROR(IF(J18="",D17,E18*J18),D17) -> 26651 | E18: =IFERROR(IF(K18="",E17,K18*$F$3),E17) -> 919 | F18: =IFERROR(D18*H18,F17) -> 17433.43 | G18: =IFERROR(IF(E18="",G17,E18/$E$160),G17) -> 0.08626677931 | H18: =IFERROR(IF(L18="",H17,L18/J18),H17) -> 0.654137931 | I18: =IFERROR((J18-L18)/J18,"") -> 0.345862069 | J18: =J17 -> 29 | K18: =K17 -> 0.5444312796 | L18: =L17 -> 18.97
A20: Baseline | B20: ='Cat 1 Setup (example to overide'!A13 -> BRAISED SHORT RIB | C20: =IFERROR(IF(AND(I20>$I$159,G20>$G$159),"Star",IF(AND(I20>$I$159,G20<$G$159),"Puzzle",IF(AND(I20<$I$159,G20>$G$159),"Plow Horse","Dog"))),"") -> Plow Horse | D20: =IFERROR(VLOOKUP(B20,'Cat 1 Setup (example to overide'!$A:$F,4,FALSE),"") -> 22646 | E20: =IFERROR(VLOOKUP(B20,'Cat 1 Setup (example to overide'!$A:$F,3,FALSE),"") -> 871 | F20: =IFERROR(VLOOKUP(B20,'Cat 1 Setup (example to overide'!$A:$F,6,FALSE),"") -> 9981.66 | G20: =IFERROR(E20/$E$159,"") -> 0.08176100629 | H20: =IFERROR(F20/D20,"") -> 0.4407692308 | I20: =IFERROR((J20-L20)/J20,"") -> 0.5592307692 | J20: =IFERROR(D20/E20,"") -> 26 | K20: =IFERROR(E20/$F$3,"") -> 0.5159952607 | L20: =IFERROR(J20*H20,"") -> 11.46
A21: Proposed | C21: =IFERROR(IF(AND(I21>$I$160,G21>$G$160),"Star",IF(AND(I21>$I$160,G21<$G$160),"Puzzle",IF(AND(I21<$I$160,G21>$G$160),"Plow Horse","Dog"))),"") -> Plow Horse | D21: =IFERROR(IF(J21="",D20,E21*J21),D20) -> 22646 | E21: =IFERROR(IF(K21="",E20,K21*$F$3),E20) -> 871 | F21: =IFERROR(D21*H21,F20) -> 9981.66 | G21: =IFERROR(IF(E21="",G20,E21/$E$160),G20) -> 0.08176100629 | H21: =IFERROR(IF(L21="",H20,L21/J21),H20) -> 0.4407692308 | I21: =IFERROR((J21-L21)/J21,"") -> 0.5592307692 | J21: =J20 -> 26 | K21: =K20 -> 0.5159952607 | L21: =L20 -> 11.46
A23: Baseline | B23: ='Cat 1 Setup (example to overide'!A14 -> LAMB SHANK | C23: =IFERROR(IF(AND(I23>$I$159,G23>$G$159),"Star",IF(AND(I23>$I$159,G23<$G$159),"Puzzle",IF(AND(I23<$I$159,G23>$G$159),"Plow Horse","Dog"))),"") -> Plow Horse | D23: =IFERROR(VLOOKUP(B23,'Cat 1 Setup (example to overide'!$A:$F,4,FALSE),"") -> 23324 | E23: =IFERROR(VLOOKUP(B23,'Cat 1 Setup (example to overide'!$A:$F,3,FALSE),"") -> 833 | F23: =IFERROR(VLOOKUP(B23,'Cat 1 Setup (example to overide'!$A:$F,6,FALSE),"") -> 8729.84 | G23: =IFERROR(E23/$E$159,"") -> 0.07819393598 | H23: =IFERROR(F23/D23,"") -> 0.3742857143 | I23: =IFERROR((J23-L23)/J23,"") -> 0.6257142857 | J23: =IFERROR(D23/E23,"") -> 28 | K23: =IFERROR(E23/$F$3,"") -> 0.4934834123 | L23: =IFERROR(J23*H23,"") -> 10.48
A24: Proposed | C24: =IFERROR(IF(AND(I24>$I$160,G24>$G$160),"Star",IF(AND(I24>$I$160,G24<$G$160),"Puzzle",IF(AND(I24<$I$160,G24>$G$160),"Plow Horse","Dog"))),"") -> Plow Horse | D24: =IFERROR(IF(J24="",D23,E24*J24),D23) -> 23324 | E24: =IFERROR(IF(K24="",E23,K24*$F$3),E23) -> 833 | F24: =IFERROR(D24*H24,F23) -> 8729.84 | G24: =IFERROR(IF(E24="",G23,E24/$E$160),G23) -> 0.07819393598 | H24: =IFERROR(IF(L24="",H23,L24/J24),H23) -> 0.3742857143 | I24: =IFERROR((J24-L24)/J24,"") -> 0.6257142857 | J24: =J23 -> 28 | K24: =K23 -> 0.4934834123 | L24: =L23 -> 10.48
A26: Baseline | B26: ='Cat 1 Setup (example to overide'!A15 -> ROTISSERIE DUCK | C26: =IFERROR(IF(AND(I26>$I$159,G26>$G$159),"Star",IF(AND(I26>$I$159,G26<$G$159),"Puzzle",IF(AND(I26<$I$159,G26>$G$159),"Plow Horse","Dog"))),"") -> Plow Horse | D26: =IFERROR(VLOOKUP(B26,'Cat 1 Setup (example to overide'!$A:$F,4,FALSE),"") -> 23983 | E26: =IFERROR(VLOOKUP(B26,'Cat 1 Setup (example to overide'!$A:$F,3,FALSE),"") -> 827 | F26: =IFERROR(VLOOKUP(B26,'Cat 1 Setup (example to overide'!$A:$F,6,FALSE),"") -> 8774.47 | G26: =IFERROR(E26/$E$159,"") -> 0.07763071435 | H26: =IFERROR(F26/D26,"") -> 0.365862069 | I26: =IFERROR((J26-L26)/J26,"") -> 0.634137931 | J26: =IFERROR(D26/E26,"") -> 29 | K26: =IFERROR(E26/$F$3,"") -> 0.48992891 | L26: =IFERROR(J26*H26,"") -> 10.61
A27: Proposed | C27: =IFERROR(IF(AND(I27>$I$160,G27>$G$160),"Star",IF(AND(I27>$I$160,G27<$G$160),"Puzzle",IF(AND(I27<$I$160,G27>$G$160),"Plow Horse","Dog"))),"") -> Plow Horse | D27: =IFERROR(IF(J27="",D26,E27*J27),D26) -> 23983 | E27: =IFERROR(IF(K27="",E26,K27*$F$3),E26) -> 827 | F27: =IFERROR(D27*H27,F26) -> 8774.47 | G27: =IFERROR(IF(E27="",G26,E27/$E$160),G26) -> 0.07763071435 | H27: =IFERROR(IF(L27="",H26,L27/J27),H26) -> 0.365862069 | I27: =IFERROR((J27-L27)/J27,"") -> 0.634137931 | J27: =J26 -> 29 | K27: =K26 -> 0.48992891 | L27: =L26 -> 10.61
A29: Baseline | B29: ='Cat 1 Setup (example to overide'!A16 -> NEW YORK STRIP | C29: =IFERROR(IF(AND(I29>$I$159,G29>$G$159),"Star",IF(AND(I29>$I$159,G29<$G$159),"Puzzle",IF(AND(I29<$I$159,G29>$G$159),"Plow Horse","Dog"))),"") -> Plow Horse | D29: =IFERROR(VLOOKUP(B29,'Cat 1 Setup (example to overide'!$A:$F,4,FALSE),"") -> 26176 | E29: =IFERROR(VLOOKUP(B29,'Cat 1 Setup (example to overide'!$A:$F,3,FALSE),"") -> 818 | F29: =IFERROR(VLOOKUP(B29,'Cat 1 Setup (example to overide'!$A:$F,6,FALSE),"") -> 10259.9 | G29: =IFERROR(E29/$E$159,"") -> 0.07678588191 | H29: =IFERROR(F29/D29,"") -> 0.3919582824 | I29: =IFERROR((J29-L29)/J29,"") -> 0.6080417176 | J29: =IFERROR(D29/E29,"") -> 32 | K29: =IFERROR(E29/$F$3,"") -> 0.4845971564 | L29: =IFERROR(J29*H29,"") -> 12.54266504
A30: Proposed | C30: =IFERROR(IF(AND(I30>$I$160,G30>$G$160),"Star",IF(AND(I30>$I$160,G30<$G$160),"Puzzle",IF(AND(I30<$I$160,G30>$G$160),"Plow Horse","Dog"))),"") -> Plow Horse | D30: =IFERROR(IF(J30="",D29,E30*J30),D29) -> 26176 | E30: =IFERROR(IF(K30="",E29,K30*$F$3),E29) -> 818 | F30: =IFERROR(D30*H30,F29) -> 10259.9 | G30: =IFERROR(IF(E30="",G29,E30/$E$160),G29) -> 0.07678588191 | H30: =IFERROR(IF(L30="",H29,L30/J30),H29) -> 0.3919582824 | I30: =IFERROR((J30-L30)/J30,"") -> 0.6080417176 | J30: =J29 -> 32 | K30: =K29 -> 0.4845971564 | L30: =L29 -> 12.54266504
A32: Baseline | B32: ='Cat 1 Setup (example to overide'!A17 -> SPAGHETTI BOLOGNESE | C32: =IFERROR(IF(AND(I32>$I$159,G32>$G$159),"Star",IF(AND(I32>$I$159,G32<$G$159),"Puzzle",IF(AND(I32<$I$159,G32>$G$159),"Plow Horse","Dog"))),"") -> Star | D32: =IFERROR(VLOOKUP(B32,'Cat 1 Setup (example to overide'!$A:$F,4,FALSE),"") -> 9792 | E32: =IFERROR(VLOOKUP(B32,'Cat 1 Setup (example to overide'!$A:$F,3,FALSE),"") -> 612 | F32: =IFERROR(VLOOKUP(B32,'Cat 1 Setup (example to overide'!$A:$F,6,FALSE),"") -> 1933.92 | G32: =IFERROR(E32/$E$159,"") -> 0.05744860603 | H32: =IFERROR(F32/D32,"") -> 0.1975 | I32: =IFERROR((J32-L32)/J32,"") -> 0.8025 | J32: =IFERROR(D32/E32,"") -> 16 | K32: =IFERROR(E32/$F$3,"") -> 0.3625592417 | L32: =IFERROR(J32*H32,"") -> 3.16
A33: Proposed | C33: =IFERROR(IF(AND(I33>$I$160,G33>$G$160),"Star",IF(AND(I33>$I$160,G33<$G$160),"Puzzle",IF(AND(I33<$I$160,G33>$G$160),"Plow Horse","Dog"))),"") -> Star | D33: =IFERROR(IF(J33="",D32,E33*J33),D32) -> 9792 | E33: =IFERROR(IF(K33="",E32,K33*$F$3),E32) -> 612 | F33: =IFERROR(D33*H33,F32) -> 1933.92 | G33: =IFERROR(IF(E33="",G32,E33/$E$160),G32) -> 0.05744860603 | H33: =IFERROR(IF(L33="",H32,L33/J33),H32) -> 0.1975 | I33: =IFERROR((J33-L33)/J33,"") -> 0.8025 | J33: =J32 -> 16 | K33: =K32 -> 0.3625592417 | L33: =L32 -> 3.16
A35: Baseline | B35: ='Cat 1 Setup (example to overide'!A18 -> SEARED SEA SCALLOPS | C35: =IFERROR(IF(AND(I35>$I$159,G35>$G$159),"Star",IF(AND(I35>$I$159,G35<$G$159),"Puzzle",IF(AND(I35<$I$159,G35>$G$159),"Plow Horse","Dog"))),"") -> Star | D35: =IFERROR(VLOOKUP(B35,'Cat 1 Setup (example to overide'!$A:$F,4,FALSE),"") -> 15792 | E35: =IFERROR(VLOOKUP(B35,'Cat 1 Setup (example to overide'!$A:$F,3,FALSE),"") -> 564 | F35: =IFERROR(VLOOKUP(B35,'Cat 1 Setup (example to overide'!$A:$F,6,FALSE),"") -> 5306.26 | G35: =IFERROR(E35/$E$159,"") -> 0.052942833 | H35: =IFERROR(F35/D35,"") -> 0.3360093718 | I35: =IFERROR((J35-L35)/J35,"") -> 0.6639906282 | J35: =IFERROR(D35/E35,"") -> 28 | K35: =IFERROR(E35/$F$3,"") -> 0.3341232227 | L35: =IFERROR(J35*H35,"") -> 9.408262411
A36: Proposed | C36: =IFERROR(IF(AND(I36>$I$160,G36>$G$160),"Star",IF(AND(I36>$I$160,G36<$G$160),"Puzzle",IF(AND(I36<$I$160,G36>$G$160),"Plow Horse","Dog"))),"") -> Star | D36: =IFERROR(IF(J36="",D35,E36*J36),D35) -> 15792 | E36: =IFERROR(IF(K36="",E35,K36*$F$3),E35) -> 564 | F36: =IFERROR(D36*H36,F35) -> 5306.26 | G36: =IFERROR(IF(E36="",G35,E36/$E$160),G35) -> 0.052942833 | H36: =IFERROR(IF(L36="",H35,L36/J36),H35) -> 0.3360093718 | I36: =IFERROR((J36-L36)/J36,"") -> 0.6639906282 | J36: =J35 -> 28 | K36: =K35 -> 0.3341232227 | L36: =L35 -> 9.408262411
A38: Baseline | B38: ='Cat 1 Setup (example to overide'!A19 -> OMELET | C38: =IFERROR(IF(AND(I38>$I$159,G38>$G$159),"Star",IF(AND(I38>$I$159,G38<$G$159),"Puzzle",IF(AND(I38<$I$159,G38>$G$159),"Plow Horse","Dog"))),"") -> Puzzle | D38: =IFERROR(VLOOKUP(B38,'Cat 1 Setup (example to overide'!$A:$F,4,FALSE),"") -> 5564 | E38: =IFERROR(VLOOKUP(B38,'Cat 1 Setup (example to overide'!$A:$F,3,FALSE),"") -> 428 | F38: =IFERROR(VLOOKUP(B38,'Cat 1 Setup (example to overide'!$A:$F,6,FALSE),"") -> 1429.52 | G38: =IFERROR(E38/$E$159,"") -> 0.04017647611 | H38: =IFERROR(F38/D38,"") -> 0.2569230769 | I38: =IFERROR((J38-L38)/J38,"") -> 0.7430769231 | J38: =IFERROR(D38/E38,"") -> 13 | K38: =IFERROR(E38/$F$3,"") -> 0.2535545024 | L38: =IFERROR(J38*H38,"") -> 3.34
A39: Proposed | C39: =IFERROR(IF(AND(I39>$I$160,G39>$G$160),"Star",IF(AND(I39>$I$160,G39<$G$160),"Puzzle",IF(AND(I39<$I$160,G39>$G$160),"Plow Horse","Dog"))),"") -> Puzzle | D39: =IFERROR(IF(J39="",D38,E39*J39),D38) -> 5564 | E39: =IFERROR(IF(K39="",E38,K39*$F$3),E38) -> 428 | F39: =IFERROR(D39*H39,F38) -> 1429.52 | G39: =IFERROR(IF(E39="",G38,E39/$E$160),G38) -> 0.04017647611 | H39: =IFERROR(IF(L39="",H38,L39/J39),H38) -> 0.2569230769 | I39: =IFERROR((J39-L39)/J39,"") -> 0.7430769231 | J39: =J38 -> 13 | K39: =K38 -> 0.2535545024 | L39: =L38 -> 3.34
A41: Baseline | B41: ='Cat 1 Setup (example to overide'!A20 -> ENTREE OF RAVIOLI | C41: =IFERROR(IF(AND(I41>$I$159,G41>$G$159),"Star",IF(AND(I41>$I$159,G41<$G$159),"Puzzle",IF(AND(I41<$I$159,G41>$G$159),"Plow Horse","Dog"))),"") -> Puzzle | D41: =IFERROR(VLOOKUP(B41,'Cat 1 Setup (example to overide'!$A:$F,4,FALSE),"") -> 7080 | E41: =IFERROR(VLOOKUP(B41,'Cat 1 Setup (example to overide'!$A:$F,3,FALSE),"") -> 354 | F41: =IFERROR(VLOOKUP(B41,'Cat 1 Setup (example to overide'!$A:$F,6,FALSE),"") -> 934.56 | G41: =IFERROR(E41/$E$159,"") -> 0.03323007603 | H41: =IFERROR(F41/D41,"") -> 0.132 | I41: =IFERROR((J41-L41)/J41,"") -> 0.868 | J41: =IFERROR(D41/E41,"") -> 20 | K41: =IFERROR(E41/$F$3,"") -> 0.2097156398 | L41: =IFERROR(J41*H41,"") -> 2.64
A42: Proposed | C42: =IFERROR(IF(AND(I42>$I$160,G42>$G$160),"Star",IF(AND(I42>$I$160,G42<$G$160),"Puzzle",IF(AND(I42<$I$160,G42>$G$160),"Plow Horse","Dog"))),"") -> Puzzle | D42: =IFERROR(IF(J42="",D41,E42*J42),D41) -> 7080 | E42: =IFERROR(IF(K42="",E41,K42*$F$3),E41) -> 354 | F42: =IFERROR(D42*H42,F41) -> 934.56 | G42: =IFERROR(IF(E42="",G41,E42/$E$160),G41) -> 0.03323007603 | H42: =IFERROR(IF(L42="",H41,L42/J42),H41) -> 0.132 | I42: =IFERROR((J42-L42)/J42,"") -> 0.868 | J42: =J41 -> 20 | K42: =K41 -> 0.2097156398 | L42: =L41 -> 2.64
A44: Baseline | B44: ='Cat 1 Setup (example to overide'!A21 -> DOVER SOLE | C44: =IFERROR(IF(AND(I44>$I$159,G44>$G$159),"Star",IF(AND(I44>$I$159,G44<$G$159),"Puzzle",IF(AND(I44<$I$159,G44>$G$159),"Plow Horse","Dog"))),"") -> Dog | D44: =IFERROR(VLOOKUP(B44,'Cat 1 Setup (example to overide'!$A:$F,4,FALSE),"") -> 7750 | E44: =IFERROR(VLOOKUP(B44,'Cat 1 Setup (example to overide'!$A:$F,3,FALSE),"") -> 250 | F44: =IFERROR(VLOOKUP(B44,'Cat 1 Setup (example to overide'!$A:$F,6,FALSE),"") -> 5042.5 | G44: =IFERROR(E44/$E$159,"") -> 0.02346756782 | H44: =IFERROR(F44/D44,"") -> 0.6506451613 | I44: =IFERROR((J44-L44)/J44,"") -> 0.3493548387 | J44: =IFERROR(D44/E44,"") -> 31 | K44: =IFERROR(E44/$F$3,"") -> 0.1481042654 | L44: =IFERROR(J44*H44,"") -> 20.17
A45: Proposed | C45: =IFERROR(IF(AND(I45>$I$160,G45>$G$160),"Star",IF(AND(I45>$I$160,G45<$G$160),"Puzzle",IF(AND(I45<$I$160,G45>$G$160),"Plow Horse","Dog"))),"") -> Dog | D45: =IFERROR(IF(J45="",D44,E45*J45),D44) -> 7750 | E45: =IFERROR(IF(K45="",E44,K45*$F$3),E44) -> 250 | F45: =IFERROR(D45*H45,F44) -> 5042.5 | G45: =IFERROR(IF(E45="",G44,E45/$E$160),G44) -> 0.02346756782 | H45: =IFERROR(IF(L45="",H44,L45/J45),H44) -> 0.6506451613 | I45: =IFERROR((J45-L45)/J45,"") -> 0.3493548387 | J45: =J44 -> 31 | K45: =K44 -> 0.1481042654 | L45: =L44 -> 20.17
A47: Baseline | B47: ='Cat 1 Setup (example to overide'!A22 -> LOUP DE MER | C47: =IFERROR(IF(AND(I47>$I$159,G47>$G$159),"Star",IF(AND(I47>$I$159,G47<$G$159),"Puzzle",IF(AND(I47<$I$159,G47>$G$159),"Plow Horse","Dog"))),"") -> Dog | D47: =IFERROR(VLOOKUP(B47,'Cat 1 Setup (example to overide'!$A:$F,4,FALSE),"") -> 5564 | E47: =IFERROR(VLOOKUP(B47,'Cat 1 Setup (example to overide'!$A:$F,3,FALSE),"") -> 214 | F47: =IFERROR(VLOOKUP(B47,'Cat 1 Setup (example to overide'!$A:$F,6,FALSE),"") -> 2334.74 | G47: =IFERROR(E47/$E$159,"") -> 0.02008823806 | H47: =IFERROR(F47/D47,"") -> 0.4196153846 | I47: =IFERROR((J47-L47)/J47,"") -> 0.5803846154 | J47: =IFERROR(D47/E47,"") -> 26 | K47: =IFERROR(E47/$F$3,"") -> 0.1267772512 | L47: =IFERROR(J47*H47,"") -> 10.91
A48: Proposed | C48: =IFERROR(IF(AND(I48>$I$160,G48>$G$160),"Star",IF(AND(I48>$I$160,G48<$G$160),"Puzzle",IF(AND(I48<$I$160,G48>$G$160),"Plow Horse","Dog"))),"") -> Dog | D48: =IFERROR(IF(J48="",D47,E48*J48),D47) -> 5564 | E48: =IFERROR(IF(K48="",E47,K48*$F$3),E47) -> 214 | F48: =IFERROR(D48*H48,F47) -> 2334.74 | G48: =IFERROR(IF(E48="",G47,E48/$E$160),G47) -> 0.02008823806 | H48: =IFERROR(IF(L48="",H47,L48/J48),H47) -> 0.4196153846 | I48: =IFERROR((J48-L48)/J48,"") -> 0.5803846154 | J48: =J47 -> 26 | K48: =K47 -> 0.1267772512 | L48: =L47 -> 10.91
A50: Baseline | B50: ='Cat 1 Setup (example to overide'!A23 -> BOUILLABAISSE | C50: =IFERROR(IF(AND(I50>$I$159,G50>$G$159),"Star",IF(AND(I50>$I$159,G50<$G$159),"Puzzle",IF(AND(I50<$I$159,G50>$G$159),"Plow Horse","Dog"))),"") -> Dog | D50: =IFERROR(VLOOKUP(B50,'Cat 1 Setup (example to overide'!$A:$F,4,FALSE),"") -> 5544 | E50: =IFERROR(VLOOKUP(B50,'Cat 1 Setup (example to overide'!$A:$F,3,FALSE),"") -> 198 | F50: =IFERROR(VLOOKUP(B50,'Cat 1 Setup (example to overide'!$A:$F,6,FALSE),"") -> 2142.36 | G50: =IFERROR(E50/$E$159,"") -> 0.01858631371 | H50: =IFERROR(F50/D50,"") -> 0.3864285714 | I50: =IFERROR((J50-L50)/J50,"") -> 0.6135714286 | J50: =IFERROR(D50/E50,"") -> 28 | K50: =IFERROR(E50/$F$3,"") -> 0.1172985782 | L50: =IFERROR(J50*H50,"") -> 10.82
A51: Proposed | C51: =IFERROR(IF(AND(I51>$I$160,G51>$G$160),"Star",IF(AND(I51>$I$160,G51<$G$160),"Puzzle",IF(AND(I51<$I$160,G51>$G$160),"Plow Horse","Dog"))),"") -> Dog | D51: =IFERROR(IF(J51="",D50,E51*J51),D50) -> 5544 | E51: =IFERROR(IF(K51="",E50,K51*$F$3),E50) -> 198 | F51: =IFERROR(D51*H51,F50) -> 2142.36 | G51: =IFERROR(IF(E51="",G50,E51/$E$160),G50) -> 0.01858631371 | H51: =IFERROR(IF(L51="",H50,L51/J51),H50) -> 0.3864285714 | I51: =IFERROR((J51-L51)/J51,"") -> 0.6135714286 | J51: =J50 -> 28 | K51: =K50 -> 0.1172985782 | L51: =L50 -> 10.82
A53: Baseline | B53: ='Cat 1 Setup (example to overide'!A24 -> DUNGENESS CRAB SPAGHETTI | C53: =IFERROR(IF(AND(I53>$I$159,G53>$G$159),"Star",IF(AND(I53>$I$159,G53<$G$159),"Puzzle",IF(AND(I53<$I$159,G53>$G$159),"Plow Horse","Dog"))),"") -> Dog | D53: =IFERROR(VLOOKUP(B53,'Cat 1 Setup (example to overide'!$A:$F,4,FALSE),"") -> 6112 | E53: =IFERROR(VLOOKUP(B53,'Cat 1 Setup (example to overide'!$A:$F,3,FALSE),"") -> 191 | F53: =IFERROR(VLOOKUP(B53,'Cat 1 Setup (example to overide'!$A:$F,6,FALSE),"") -> 2175.49 | G53: =IFERROR(E53/$E$159,"") -> 0.01792922182 | H53: =IFERROR(F53/D53,"") -> 0.3559375 | I53: =IFERROR((J53-L53)/J53,"") -> 0.6440625 | J53: =IFERROR(D53/E53,"") -> 32 | K53: =IFERROR(E53/$F$3,"") -> 0.1131516588 | L53: =IFERROR(J53*H53,"") -> 11.39
A54: Proposed | C54: =IFERROR(IF(AND(I54>$I$160,G54>$G$160),"Star",IF(AND(I54>$I$160,G54<$G$160),"Puzzle",IF(AND(I54<$I$160,G54>$G$160),"Plow Horse","Dog"))),"") -> Dog | D54: =IFERROR(IF(J54="",D53,E54*J54),D53) -> 6112 | E54: =IFERROR(IF(K54="",E53,K54*$F$3),E53) -> 191 | F54: =IFERROR(D54*H54,F53) -> 2175.49 | G54: =IFERROR(IF(E54="",G53,E54/$E$160),G53) -> 0.01792922182 | H54: =IFERROR(IF(L54="",H53,L54/J54),H53) -> 0.3559375 | I54: =IFERROR((J54-L54)/J54,"") -> 0.6440625 | J54: =J53 -> 32 | K54: =K53 -> 0.1131516588 | L54: =L53 -> 11.39
A56: Baseline | B56: ='Cat 1 Setup (example to overide'!A25 -> FARFALLE | C56: =IFERROR(IF(AND(I56>$I$159,G56>$G$159),"Star",IF(AND(I56>$I$159,G56<$G$159),"Puzzle",IF(AND(I56<$I$159,G56>$G$159),"Plow Horse","Dog"))),"") -> Puzzle | D56: =IFERROR(VLOOKUP(B56,'Cat 1 Setup (example to overide'!$A:$F,4,FALSE),"") -> 2960 | E56: =IFERROR(VLOOKUP(B56,'Cat 1 Setup (example to overide'!$A:$F,3,FALSE),"") -> 185 | F56: =IFERROR(VLOOKUP(B56,'Cat 1 Setup (example to overide'!$A:$F,6,FALSE),"") -> 595.7 | G56: =IFERROR(E56/$E$159,"") -> 0.01736600019 | H56: =IFERROR(F56/D56,"") -> 0.20125 | I56: =IFERROR((J56-L56)/J56,"") -> 0.79875 | J56: =IFERROR(D56/E56,"") -> 16 | K56: =IFERROR(E56/$F$3,"") -> 0.1095971564 | L56: =IFERROR(J56*H56,"") -> 3.22
A57: Proposed | C57: =IFERROR(IF(AND(I57>$I$160,G57>$G$160),"Star",IF(AND(I57>$I$160,G57<$G$160),"Puzzle",IF(AND(I57<$I$160,G57>$G$160),"Plow Horse","Dog"))),"") -> Puzzle | D57: =IFERROR(IF(J57="",D56,E57*J57),D56) -> 2960 | E57: =IFERROR(IF(K57="",E56,K57*$F$3),E56) -> 185 | F57: =IFERROR(D57*H57,F56) -> 595.7 | G57: =IFERROR(IF(E57="",G56,E57/$E$160),G56) -> 0.01736600019 | H57: =IFERROR(IF(L57="",H56,L57/J57),H56) -> 0.20125 | I57: =IFERROR((J57-L57)/J57,"") -> 0.79875 | J57: =J56 -> 16 | K57: =K56 -> 0.1095971564 | L57: =L56 -> 3.22
A59: Baseline | B59: ='Cat 1 Setup (example to overide'!A26 -> VEAL MEDALLIONS | C59: =IFERROR(IF(AND(I59>$I$159,G59>$G$159),"Star",IF(AND(I59>$I$159,G59<$G$159),"Puzzle",IF(AND(I59<$I$159,G59>$G$159),"Plow Horse","Dog"))),"") -> Dog | D59: =IFERROR(VLOOKUP(B59,'Cat 1 Setup (example to overide'!$A:$F,4,FALSE),"") -> 6188 | E59: =IFERROR(VLOOKUP(B59,'Cat 1 Setup (example to overide'!$A:$F,3,FALSE),"") -> 182 | F59: =IFERROR(VLOOKUP(B59,'Cat 1 Setup (example to overide'!$A:$F,6,FALSE),"") -> 2305.94 | G59: =IFERROR(E59/$E$159,"") -> 0.01708438937 | H59: =IFERROR(F59/D59,"") -> 0.3726470588 | I59: =IFERROR((J59-L59)/J59,"") -> 0.6273529412 | J59: =IFERROR(D59/E59,"") -> 34 | K59: =IFERROR(E59/$F$3,"") -> 0.1078199052 | L59: =IFERROR(J59*H59,"") -> 12.67
A60: Proposed | C60: =IFERROR(IF(AND(I60>$I$160,G60>$G$160),"Star",IF(AND(I60>$I$160,G60<$G$160),"Puzzle",IF(AND(I60<$I$160,G60>$G$160),"Plow Horse","Dog"))),"") -> Dog | D60: =IFERROR(IF(J60="",D59,E60*J60),D59) -> 6188 | E60: =IFERROR(IF(K60="",E59,K60*$F$3),E59) -> 182 | F60: =IFERROR(D60*H60,F59) -> 2305.94 | G60: =IFERROR(IF(E60="",G59,E60/$E$160),G59) -> 0.01708438937 | H60: =IFERROR(IF(L60="",H59,L60/J60),H59) -> 0.3726470588 | I60: =IFERROR((J60-L60)/J60,"") -> 0.6273529412 | J60: =J59 -> 34 | K60: =K59 -> 0.1078199052 | L60: =L59 -> 12.67
A62: Baseline | B62: ='Cat 1 Setup (example to overide'!A27 -> LOBSTER AMERICAINE | C62: =IFERROR(IF(AND(I62>$I$159,G62>$G$159),"Star",IF(AND(I62>$I$159,G62<$G$159),"Puzzle",IF(AND(I62<$I$159,G62>$G$159),"Plow Horse","Dog"))),"") -> Dog | D62: =IFERROR(VLOOKUP(B62,'Cat 1 Setup (example to overide'!$A:$F,4,FALSE),"") -> 5478 | E62: =IFERROR(VLOOKUP(B62,'Cat 1 Setup (example to overide'!$A:$F,3,FALSE),"") -> 166 | F62: =IFERROR(VLOOKUP(B62,'Cat 1 Setup (example to overide'!$A:$F,6,FALSE),"") -> 2184.56 | G62: =IFERROR(E62/$E$159,"") -> 0.01558246503 | H62: =IFERROR(F62/D62,"") -> 0.3987878788 | I62: =IFERROR((J62-L62)/J62,"") -> 0.6012121212 | J62: =IFERROR(D62/E62,"") -> 33 | K62: =IFERROR(E62/$F$3,"") -> 0.09834123223 | L62: =IFERROR(J62*H62,"") -> 13.16
A63: Proposed | C63: =IFERROR(IF(AND(I63>$I$160,G63>$G$160),"Star",IF(AND(I63>$I$160,G63<$G$160),"Puzzle",IF(AND(I63<$I$160,G63>$G$160),"Plow Horse","Dog"))),"") -> Dog | D63: =IFERROR(IF(J63="",D62,E63*J63),D62) -> 5478 | E63: =IFERROR(IF(K63="",E62,K63*$F$3),E62) -> 166 | F63: =IFERROR(D63*H63,F62) -> 2184.56 | G63: =IFERROR(IF(E63="",G62,E63/$E$160),G62) -> 0.01558246503 | H63: =IFERROR(IF(L63="",H62,L63/J63),H62) -> 0.3987878788 | I63: =IFERROR((J63-L63)/J63,"") -> 0.6012121212 | J63: =J62 -> 33 | K63: =K62 -> 0.09834123223 | L63: =L62 -> 13.16
A65: Baseline | B65: ='Cat 1 Setup (example to overide'!A28 -> PORK MILANESE | C65: =IFERROR(IF(AND(I65>$I$159,G65>$G$159),"Star",IF(AND(I65>$I$159,G65<$G$159),"Puzzle",IF(AND(I65<$I$159,G65>$G$159),"Plow Horse","Dog"))),"") -> Puzzle | D65: =IFERROR(VLOOKUP(B65,'Cat 1 Setup (example to overide'!$A:$F,4,FALSE),"") -> 4238 | E65: =IFERROR(VLOOKUP(B65,'Cat 1 Setup (example to overide'!$A:$F,3,FALSE),"") -> 163 | F65: =IFERROR(VLOOKUP(B65,'Cat 1 Setup (example to overide'!$A:$F,6,FALSE),"") -> 1219.24 | G65: =IFERROR(E65/$E$159,"") -> 0.01530085422 | H65: =IFERROR(F65/D65,"") -> 0.2876923077 | I65: =IFERROR((J65-L65)/J65,"") -> 0.7123076923 | J65: =IFERROR(D65/E65,"") -> 26 | K65: =IFERROR(E65/$F$3,"") -> 0.09656398104 | L65: =IFERROR(J65*H65,"") -> 7.48
A66: Proposed | C66: =IFERROR(IF(AND(I66>$I$160,G66>$G$160),"Star",IF(AND(I66>$I$160,G66<$G$160),"Puzzle",IF(AND(I66<$I$160,G66>$G$160),"Plow Horse","Dog"))),"") -> Puzzle | D66: =IFERROR(IF(J66="",D65,E66*J66),D65) -> 4238 | E66: =IFERROR(IF(K66="",E65,K66*$F$3),E65) -> 163 | F66: =IFERROR(D66*H66,F65) -> 1219.24 | G66: =IFERROR(IF(E66="",G65,E66/$E$160),G65) -> 0.01530085422 | H66: =IFERROR(IF(L66="",H65,L66/J66),H65) -> 0.2876923077 | I66: =IFERROR((J66-L66)/J66,"") -> 0.7123076923 | J66: =J65 -> 26 | K66: =K65 -> 0.09656398104 | L66: =L65 -> 7.48
A68: Baseline | B68: ='Cat 1 Setup (example to overide'!A29 -> 0 | C68: =IFERROR(IF(AND(I68>$I$159,G68>$G$159),"Star",IF(AND(I68>$I$159,G68<$G$159),"Puzzle",IF(AND(I68<$I$159,G68>$G$159),"Plow Horse","Dog"))),"") -> Puzzle | D68: =IFERROR(VLOOKUP(B68,'Cat 1 Setup (example to overide'!$A:$F,4,FALSE),"") -> 0 | E68: =IFERROR(VLOOKUP(B68,'Cat 1 Setup (example to overide'!$A:$F,3,FALSE),"") -> 0 | F68: =IFERROR(VLOOKUP(B68,'Cat 1 Setup (example to overide'!$A:$F,6,FALSE),"") -> 0 | G68: =IFERROR(E68/$E$159,"") -> 0 | H68: =IFERROR(F68/D68,"") ->  | I68: =IFERROR((J68-L68)/J68,"") ->  | J68: =IFERROR(D68/E68,"") ->  | K68: =IFERROR(E68/$F$3,"") -> 0 | L68: =IFERROR(J68*H68,"") -> 
A69: Proposed | C69: =IFERROR(IF(AND(I69>$I$160,G69>$G$160),"Star",IF(AND(I69>$I$160,G69<$G$160),"Puzzle",IF(AND(I69<$I$160,G69>$G$160),"Plow Horse","Dog"))),"") -> Puzzle | D69: =IFERROR(IF(J69="",D68,E69*J69),D68) -> 0 | E69: =IFERROR(IF(K69="",E68,K69*$F$3),E68) -> 0 | F69: =IFERROR(D69*H69,F68) -> 0 | G69: =IFERROR(IF(E69="",G68,E69/$E$160),G68) -> 0 | H69: =IFERROR(IF(L69="",H68,L69/J69),H68) ->  | I69: =IFERROR((J69-L69)/J69,"") ->  | J69: =J68 ->  | K69: =K68 -> 0 | L69: =L68 -> 
A71: Baseline | B71: ='Cat 1 Setup (example to overide'!A30 -> 0 | C71: =IFERROR(IF(AND(I71>$I$159,G71>$G$159),"Star",IF(AND(I71>$I$159,G71<$G$159),"Puzzle",IF(AND(I71<$I$159,G71>$G$159),"Plow Horse","Dog"))),"") -> Puzzle | D71: =IFERROR(VLOOKUP(B71,'Cat 1 Setup (example to overide'!$A:$F,4,FALSE),"") -> 0 | E71: =IFERROR(VLOOKUP(B71,'Cat 1 Setup (example to overide'!$A:$F,3,FALSE),"") -> 0 | F71: =IFERROR(VLOOKUP(B71,'Cat 1 Setup (example to overide'!$A:$F,6,FALSE),"") -> 0 | G71: =IFERROR(E71/$E$159,"") -> 0 | H71: =IFERROR(F71/D71,"") ->  | I71: =IFERROR((J71-L71)/J71,"") ->  | J71: =IFERROR(D71/E71,"") ->  | K71: =IFERROR(E71/$F$3,"") -> 0 | L71: =IFERROR(J71*H71,"") -> 
A72: Proposed | C72: =IFERROR(IF(AND(I72>$I$160,G72>$G$160),"Star",IF(AND(I72>$I$160,G72<$G$160),"Puzzle",IF(AND(I72<$I$160,G72>$G$160),"Plow Horse","Dog"))),"") -> Puzzle | D72: =IFERROR(IF(J72="",D71,E72*J72),D71) -> 0 | E72: =IFERROR(IF(K72="",E71,K72*$F$3),E71) -> 0 | F72: =IFERROR(D72*H72,F71) -> 0 | G72: =IFERROR(IF(E72="",G71,E72/$E$160),G71) -> 0 | H72: =IFERROR(IF(L72="",H71,L72/J72),H71) ->  | I72: =IFERROR((J72-L72)/J72,"") ->  | J72: =J71 ->  | K72: =K71 -> 0 | L72: =L71 -> 
A74: Baseline | B74: ='Cat 1 Setup (example to overide'!A31 -> 0 | C74: =IFERROR(IF(AND(I74>$I$159,G74>$G$159),"Star",IF(AND(I74>$I$159,G74<$G$159),"Puzzle",IF(AND(I74<$I$159,G74>$G$159),"Plow Horse","Dog"))),"") -> Puzzle | D74: =IFERROR(VLOOKUP(B74,'Cat 1 Setup (example to overide'!$A:$F,4,FALSE),"") -> 0 | E74: =IFERROR(VLOOKUP(B74,'Cat 1 Setup (example to overide'!$A:$F,3,FALSE),"") -> 0 | F74: =IFERROR(VLOOKUP(B74,'Cat 1 Setup (example to overide'!$A:$F,6,FALSE),"") -> 0 | G74: =IFERROR(E74/$E$159,"") -> 0 | H74: =IFERROR(F74/D74,"") ->  | I74: =IFERROR((J74-L74)/J74,"") ->  | J74: =IFERROR(D74/E74,"") ->  | K74: =IFERROR(E74/$F$3,"") -> 0 | L74: =IFERROR(J74*H74,"") -> 
A75: Proposed | C75: =IFERROR(IF(AND(I75>$I$160,G75>$G$160),"Star",IF(AND(I75>$I$160,G75<$G$160),"Puzzle",IF(AND(I75<$I$160,G75>$G$160),"Plow Horse","Dog"))),"") -> Puzzle | D75: =IFERROR(IF(J75="",D74,E75*J75),D74) -> 0 | E75: =IFERROR(IF(K75="",E74,K75*$F$3),E74) -> 0 | F75: =IFERROR(D75*H75,F74) -> 0 | G75: =IFERROR(IF(E75="",G74,E75/$E$160),G74) -> 0 | H75: =IFERROR(IF(L75="",H74,L75/J75),H74) ->  | I75: =IFERROR((J75-L75)/J75,"") ->  | J75: =J74 ->  | K75: =K74 -> 0 | L75: =L74 -> 
A77: Baseline | B77: ='Cat 1 Setup (example to overide'!A32 -> 0 | C77: =IFERROR(IF(AND(I77>$I$159,G77>$G$159),"Star",IF(AND(I77>$I$159,G77<$G$159),"Puzzle",IF(AND(I77<$I$159,G77>$G$159),"Plow Horse","Dog"))),"") -> Puzzle | D77: =IFERROR(VLOOKUP(B77,'Cat 1 Setup (example to overide'!$A:$F,4,FALSE),"") -> 0 | E77: =IFERROR(VLOOKUP(B77,'Cat 1 Setup (example to overide'!$A:$F,3,FALSE),"") -> 0 | F77: =IFERROR(VLOOKUP(B77,'Cat 1 Setup (example to overide'!$A:$F,6,FALSE),"") -> 0 | G77: =IFERROR(E77/$E$159,"") -> 0 | H77: =IFERROR(F77/D77,"") ->  | I77: =IFERROR((J77-L77)/J77,"") ->  | J77: =IFERROR(D77/E77,"") ->  | K77: =IFERROR(E77/$F$3,"") -> 0 | L77: =IFERROR(J77*H77,"") -> 
A78: Proposed | C78: =IFERROR(IF(AND(I78>$I$160,G78>$G$160),"Star",IF(AND(I78>$I$160,G78<$G$160),"Puzzle",IF(AND(I78<$I$160,G78>$G$160),"Plow Horse","Dog"))),"") -> Puzzle | D78: =IFERROR(IF(J78="",D77,E78*J78),D77) -> 0 | E78: =IFERROR(IF(K78="",E77,K78*$F$3),E77) -> 0 | F78: =IFERROR(D78*H78,F77) -> 0 | G78: =IFERROR(IF(E78="",G77,E78/$E$160),G77) -> 0 | H78: =IFERROR(IF(L78="",H77,L78/J78),H77) ->  | I78: =IFERROR((J78-L78)/J78,"") ->  | J78: =J77 ->  | K78: =K77 -> 0 | L78: =L77 -> 
A80: Baseline | B80: ='Cat 1 Setup (example to overide'!A33 -> 0 | C80: =IFERROR(IF(AND(I80>$I$159,G80>$G$159),"Star",IF(AND(I80>$I$159,G80<$G$159),"Puzzle",IF(AND(I80<$I$159,G80>$G$159),"Plow Horse","Dog"))),"") -> Puzzle | D80: =IFERROR(VLOOKUP(B80,'Cat 1 Setup (example to overide'!$A:$F,4,FALSE),"") -> 0 | E80: =IFERROR(VLOOKUP(B80,'Cat 1 Setup (example to overide'!$A:$F,3,FALSE),"") -> 0 | F80: =IFERROR(VLOOKUP(B80,'Cat 1 Setup (example to overide'!$A:$F,6,FALSE),"") -> 0 | G80: =IFERROR(E80/$E$159,"") -> 0 | H80: =IFERROR(F80/D80,"") ->  | I80: =IFERROR((J80-L80)/J80,"") ->  | J80: =IFERROR(D80/E80,"") ->  | K80: =IFERROR(E80/$F$3,"") -> 0 | L80: =IFERROR(J80*H80,"") -> 
A81: Proposed | C81: =IFERROR(IF(AND(I81>$I$160,G81>$G$160),"Star",IF(AND(I81>$I$160,G81<$G$160),"Puzzle",IF(AND(I81<$I$160,G81>$G$160),"Plow Horse","Dog"))),"") -> Puzzle | D81: =IFERROR(IF(J81="",D80,E81*J81),D80) -> 0 | E81: =IFERROR(IF(K81="",E80,K81*$F$3),E80) -> 0 | F81: =IFERROR(D81*H81,F80) -> 0 | G81: =IFERROR(IF(E81="",G80,E81/$E$160),G80) -> 0 | H81: =IFERROR(IF(L81="",H80,L81/J81),H80) ->  | I81: =IFERROR((J81-L81)/J81,"") ->  | J81: =J80 ->  | K81: =K80 -> 0 | L81: =L80 -> 
A83: Baseline | B83: ='Cat 1 Setup (example to overide'!A34 -> 0 | C83: =IFERROR(IF(AND(I83>$I$159,G83>$G$159),"Star",IF(AND(I83>$I$159,G83<$G$159),"Puzzle",IF(AND(I83<$I$159,G83>$G$159),"Plow Horse","Dog"))),"") -> Puzzle | D83: =IFERROR(VLOOKUP(B83,'Cat 1 Setup (example to overide'!$A:$F,4,FALSE),"") -> 0 | E83: =IFERROR(VLOOKUP(B83,'Cat 1 Setup (example to overide'!$A:$F,3,FALSE),"") -> 0 | F83: =IFERROR(VLOOKUP(B83,'Cat 1 Setup (example to overide'!$A:$F,6,FALSE),"") -> 0 | G83: =IFERROR(E83/$E$159,"") -> 0 | H83: =IFERROR(F83/D83,"") ->  | I83: =IFERROR((J83-L83)/J83,"") ->  | J83: =IFERROR(D83/E83,"") ->  | K83: =IFERROR(E83/$F$3,"") -> 0 | L83: =IFERROR(J83*H83,"") -> 
A84: Proposed | C84: =IFERROR(IF(AND(I84>$I$160,G84>$G$160),"Star",IF(AND(I84>$I$160,G84<$G$160),"Puzzle",IF(AND(I84<$I$160,G84>$G$160),"Plow Horse","Dog"))),"") -> Puzzle | D84: =IFERROR(IF(J84="",D83,E84*J84),D83) -> 0 | E84: =IFERROR(IF(K84="",E83,K84*$F$3),E83) -> 0 | F84: =IFERROR(D84*H84,F83) -> 0 | G84: =IFERROR(IF(E84="",G83,E84/$E$160),G83) -> 0 | H84: =IFERROR(IF(L84="",H83,L84/J84),H83) ->  | I84: =IFERROR((J84-L84)/J84,"") ->  | J84: =J83 ->  | K84: =K83 -> 0 | L84: =L83 -> 
A86: Baseline | B86: ='Cat 1 Setup (example to overide'!A35 -> 0 | C86: =IFERROR(IF(AND(I86>$I$159,G86>$G$159),"Star",IF(AND(I86>$I$159,G86<$G$159),"Puzzle",IF(AND(I86<$I$159,G86>$G$159),"Plow Horse","Dog"))),"") -> Puzzle | D86: =IFERROR(VLOOKUP(B86,'Cat 1 Setup (example to overide'!$A:$F,4,FALSE),"") -> 0 | E86: =IFERROR(VLOOKUP(B86,'Cat 1 Setup (example to overide'!$A:$F,3,FALSE),"") -> 0 | F86: =IFERROR(VLOOKUP(B86,'Cat 1 Setup (example to overide'!$A:$F,6,FALSE),"") -> 0 | G86: =IFERROR(E86/$E$159,"") -> 0 | H86: =IFERROR(F86/D86,"") ->  | I86: =IFERROR((J86-L86)/J86,"") ->  | J86: =IFERROR(D86/E86,"") ->  | K86: =IFERROR(E86/$F$3,"") -> 0 | L86: =IFERROR(J86*H86,"") -> 
A87: Proposed | C87: =IFERROR(IF(AND(I87>$I$160,G87>$G$160),"Star",IF(AND(I87>$I$160,G87<$G$160),"Puzzle",IF(AND(I87<$I$160,G87>$G$160),"Plow Horse","Dog"))),"") -> Puzzle | D87: =IFERROR(IF(J87="",D86,E87*J87),D86) -> 0 | E87: =IFERROR(IF(K87="",E86,K87*$F$3),E86) -> 0 | F87: =IFERROR(D87*H87,F86) -> 0 | G87: =IFERROR(IF(E87="",G86,E87/$E$160),G86) -> 0 | H87: =IFERROR(IF(L87="",H86,L87/J87),H86) ->  | I87: =IFERROR((J87-L87)/J87,"") ->  | J87: =J86 ->  | K87: =K86 -> 0 | L87: =L86 -> 
A89: Baseline | B89: ='Cat 1 Setup (example to overide'!A36 -> 0 | C89: =IFERROR(IF(AND(I89>$I$159,G89>$G$159),"Star",IF(AND(I89>$I$159,G89<$G$159),"Puzzle",IF(AND(I89<$I$159,G89>$G$159),"Plow Horse","Dog"))),"") -> Puzzle | D89: =IFERROR(VLOOKUP(B89,'Cat 1 Setup (example to overide'!$A:$F,4,FALSE),"") -> 0 | E89: =IFERROR(VLOOKUP(B89,'Cat 1 Setup (example to overide'!$A:$F,3,FALSE),"") -> 0 | F89: =IFERROR(VLOOKUP(B89,'Cat 1 Setup (example to overide'!$A:$F,6,FALSE),"") -> 0 | G89: =IFERROR(E89/$E$159,"") -> 0 | H89: =IFERROR(F89/D89,"") ->  | I89: =IFERROR((J89-L89)/J89,"") ->  | J89: =IFERROR(D89/E89,"") ->  | K89: =IFERROR(E89/$F$3,"") -> 0 | L89: =IFERROR(J89*H89,"") -> 
A90: Proposed | C90: =IFERROR(IF(AND(I90>$I$160,G90>$G$160),"Star",IF(AND(I90>$I$160,G90<$G$160),"Puzzle",IF(AND(I90<$I$160,G90>$G$160),"Plow Horse","Dog"))),"") -> Puzzle | D90: =IFERROR(IF(J90="",D89,E90*J90),D89) -> 0 | E90: =IFERROR(IF(K90="",E89,K90*$F$3),E89) -> 0 | F90: =IFERROR(D90*H90,F89) -> 0 | G90: =IFERROR(IF(E90="",G89,E90/$E$160),G89) -> 0 | H90: =IFERROR(IF(L90="",H89,L90/J90),H89) ->  | I90: =IFERROR((J90-L90)/J90,"") ->  | J90: =J89 ->  | K90: =K89 -> 0 | L90: =L89 -> 
A92: Baseline | B92: ='Cat 1 Setup (example to overide'!A37 -> 0 | C92: =IFERROR(IF(AND(I92>$I$159,G92>$G$159),"Star",IF(AND(I92>$I$159,G92<$G$159),"Puzzle",IF(AND(I92<$I$159,G92>$G$159),"Plow Horse","Dog"))),"") -> Puzzle | D92: =IFERROR(VLOOKUP(B92,'Cat 1 Setup (example to overide'!$A:$F,4,FALSE),"") -> 0 | E92: =IFERROR(VLOOKUP(B92,'Cat 1 Setup (example to overide'!$A:$F,3,FALSE),"") -> 0 | F92: =IFERROR(VLOOKUP(B92,'Cat 1 Setup (example to overide'!$A:$F,6,FALSE),"") -> 0 | G92: =IFERROR(E92/$E$159,"") -> 0 | H92: =IFERROR(F92/D92,"") ->  | I92: =IFERROR((J92-L92)/J92,"") ->  | J92: =IFERROR(D92/E92,"") ->  | K92: =IFERROR(E92/$F$3,"") -> 0 | L92: =IFERROR(J92*H92,"") -> 
A93: Proposed | C93: =IFERROR(IF(AND(I93>$I$160,G93>$G$160),"Star",IF(AND(I93>$I$160,G93<$G$160),"Puzzle",IF(AND(I93<$I$160,G93>$G$160),"Plow Horse","Dog"))),"") -> Puzzle | D93: =IFERROR(IF(J93="",D92,E93*J93),D92) -> 0 | E93: =IFERROR(IF(K93="",E92,K93*$F$3),E92) -> 0 | F93: =IFERROR(D93*H93,F92) -> 0 | G93: =IFERROR(IF(E93="",G92,E93/$E$160),G92) -> 0 | H93: =IFERROR(IF(L93="",H92,L93/J93),H92) ->  | I93: =IFERROR((J93-L93)/J93,"") ->  | J93: =J92 ->  | K93: =K92 -> 0 | L93: =L92 -> 
A95: Baseline | B95: ='Cat 1 Setup (example to overide'!A38 -> 0 | C95: =IFERROR(IF(AND(I95>$I$159,G95>$G$159),"Star",IF(AND(I95>$I$159,G95<$G$159),"Puzzle",IF(AND(I95<$I$159,G95>$G$159),"Plow Horse","Dog"))),"") -> Puzzle | D95: =IFERROR(VLOOKUP(B95,'Cat 1 Setup (example to overide'!$A:$F,4,FALSE),"") -> 0 | E95: =IFERROR(VLOOKUP(B95,'Cat 1 Setup (example to overide'!$A:$F,3,FALSE),"") -> 0 | F95: =IFERROR(VLOOKUP(B95,'Cat 1 Setup (example to overide'!$A:$F,6,FALSE),"") -> 0 | G95: =IFERROR(E95/$E$159,"") -> 0 | H95: =IFERROR(F95/D95,"") ->  | I95: =IFERROR((J95-L95)/J95,"") ->  | J95: =IFERROR(D95/E95,"") ->  | K95: =IFERROR(E95/$F$3,"") -> 0 | L95: =IFERROR(J95*H95,"") -> 
A96: Proposed | C96: =IFERROR(IF(AND(I96>$I$160,G96>$G$160),"Star",IF(AND(I96>$I$160,G96<$G$160),"Puzzle",IF(AND(I96<$I$160,G96>$G$160),"Plow Horse","Dog"))),"") -> Puzzle | D96: =IFERROR(IF(J96="",D95,E96*J96),D95) -> 0 | E96: =IFERROR(IF(K96="",E95,K96*$F$3),E95) -> 0 | F96: =IFERROR(D96*H96,F95) -> 0 | G96: =IFERROR(IF(E96="",G95,E96/$E$160),G95) -> 0 | H96: =IFERROR(IF(L96="",H95,L96/J96),H95) ->  | I96: =IFERROR((J96-L96)/J96,"") ->  | J96: =J95 ->  | K96: =K95 -> 0 | L96: =L95 -> 
A98: Baseline | B98: ='Cat 1 Setup (example to overide'!A39 -> 0 | C98: =IFERROR(IF(AND(I98>$I$159,G98>$G$159),"Star",IF(AND(I98>$I$159,G98<$G$159),"Puzzle",IF(AND(I98<$I$159,G98>$G$159),"Plow Horse","Dog"))),"") -> Puzzle | D98: =IFERROR(VLOOKUP(B98,'Cat 1 Setup (example to overide'!$A:$F,4,FALSE),"") -> 0 | E98: =IFERROR(VLOOKUP(B98,'Cat 1 Setup (example to overide'!$A:$F,3,FALSE),"") -> 0 | F98: =IFERROR(VLOOKUP(B98,'Cat 1 Setup (example to overide'!$A:$F,6,FALSE),"") -> 0 | G98: =IFERROR(E98/$E$159,"") -> 0 | H98: =IFERROR(F98/D98,"") ->  | I98: =IFERROR((J98-L98)/J98,"") ->  | J98: =IFERROR(D98/E98,"") ->  | K98: =IFERROR(E98/$F$3,"") -> 0 | L98: =IFERROR(J98*H98,"") -> 
A99: Proposed | C99: =IFERROR(IF(AND(I99>$I$160,G99>$G$160),"Star",IF(AND(I99>$I$160,G99<$G$160),"Puzzle",IF(AND(I99<$I$160,G99>$G$160),"Plow Horse","Dog"))),"") -> Puzzle | D99: =IFERROR(IF(J99="",D98,E99*J99),D98) -> 0 | E99: =IFERROR(IF(K99="",E98,K99*$F$3),E98) -> 0 | F99: =IFERROR(D99*H99,F98) -> 0 | G99: =IFERROR(IF(E99="",G98,E99/$E$160),G98) -> 0 | H99: =IFERROR(IF(L99="",H98,L99/J99),H98) ->  | I99: =IFERROR((J99-L99)/J99,"") ->  | J99: =J98 ->  | K99: =K98 -> 0 | L99: =L98 -> 
A101: Baseline | B101: ='Cat 1 Setup (example to overide'!A40 -> 0 | C101: =IFERROR(IF(AND(I101>$I$159,G101>$G$159),"Star",IF(AND(I101>$I$159,G101<$G$159),"Puzzle",IF(AND(I101<$I$159,G101>$G$159),"Plow Horse","Dog"))),"") -> Puzzle | D101: =IFERROR(VLOOKUP(B101,'Cat 1 Setup (example to overide'!$A:$F,4,FALSE),"") -> 0 | E101: =IFERROR(VLOOKUP(B101,'Cat 1 Setup (example to overide'!$A:$F,3,FALSE),"") -> 0 | F101: =IFERROR(VLOOKUP(B101,'Cat 1 Setup (example to overide'!$A:$F,6,FALSE),"") -> 0 | G101: =IFERROR(E101/$E$159,"") -> 0 | H101: =IFERROR(F101/D101,"") ->  | I101: =IFERROR((J101-L101)/J101,"") ->  | J101: =IFERROR(D101/E101,"") ->  | K101: =IFERROR(E101/$F$3,"") -> 0 | L101: =IFERROR(J101*H101,"") -> 
A102: Proposed | C102: =IFERROR(IF(AND(I102>$I$160,G102>$G$160),"Star",IF(AND(I102>$I$160,G102<$G$160),"Puzzle",IF(AND(I102<$I$160,G102>$G$160),"Plow Horse","Dog"))),"") -> Puzzle | D102: =IFERROR(IF(J102="",D101,E102*J102),D101) -> 0 | E102: =IFERROR(IF(K102="",E101,K102*$F$3),E101) -> 0 | F102: =IFERROR(D102*H102,F101) -> 0 | G102: =IFERROR(IF(E102="",G101,E102/$E$160),G101) -> 0 | H102: =IFERROR(IF(L102="",H101,L102/J102),H101) ->  | I102: =IFERROR((J102-L102)/J102,"") ->  | J102: =J101 ->  | K102: =K101 -> 0 | L102: =L101 -> 
A104: Baseline | B104: ='Cat 1 Setup (example to overide'!A41 -> 0 | C104: =IFERROR(IF(AND(I104>$I$159,G104>$G$159),"Star",IF(AND(I104>$I$159,G104<$G$159),"Puzzle",IF(AND(I104<$I$159,G104>$G$159),"Plow Horse","Dog"))),"") -> Puzzle | D104: =IFERROR(VLOOKUP(B104,'Cat 1 Setup (example to overide'!$A:$F,4,FALSE),"") -> 0 | E104: =IFERROR(VLOOKUP(B104,'Cat 1 Setup (example to overide'!$A:$F,3,FALSE),"") -> 0 | F104: =IFERROR(VLOOKUP(B104,'Cat 1 Setup (example to overide'!$A:$F,6,FALSE),"") -> 0 | G104: =IFERROR(E104/$E$159,"") -> 0 | H104: =IFERROR(F104/D104,"") ->  | I104: =IFERROR((J104-L104)/J104,"") ->  | J104: =IFERROR(D104/E104,"") ->  | K104: =IFERROR(E104/$F$3,"") -> 0 | L104: =IFERROR(J104*H104,"") -> 
A105: Proposed | C105: =IFERROR(IF(AND(I105>$I$160,G105>$G$160),"Star",IF(AND(I105>$I$160,G105<$G$160),"Puzzle",IF(AND(I105<$I$160,G105>$G$160),"Plow Horse","Dog"))),"") -> Puzzle | D105: =IFERROR(IF(J105="",D104,E105*J105),D104) -> 0 | E105: =IFERROR(IF(K105="",E104,K105*$F$3),E104) -> 0 | F105: =IFERROR(D105*H105,F104) -> 0 | G105: =IFERROR(IF(E105="",G104,E105/$E$160),G104) -> 0 | H105: =IFERROR(IF(L105="",H104,L105/J105),H104) ->  | I105: =IFERROR((J105-L105)/J105,"") ->  | J105: =J104 ->  | K105: =K104 -> 0 | L105: =L104 -> 
A107: Baseline | B107: ='Cat 1 Setup (example to overide'!A42 -> 0 | C107: =IFERROR(IF(AND(I107>$I$159,G107>$G$159),"Star",IF(AND(I107>$I$159,G107<$G$159),"Puzzle",IF(AND(I107<$I$159,G107>$G$159),"Plow Horse","Dog"))),"") -> Puzzle | D107: =IFERROR(VLOOKUP(B107,'Cat 1 Setup (example to overide'!$A:$F,4,FALSE),"") -> 0 | E107: =IFERROR(VLOOKUP(B107,'Cat 1 Setup (example to overide'!$A:$F,3,FALSE),"") -> 0 | F107: =IFERROR(VLOOKUP(B107,'Cat 1 Setup (example to overide'!$A:$F,6,FALSE),"") -> 0 | G107: =IFERROR(E107/$E$159,"") -> 0 | H107: =IFERROR(F107/D107,"") ->  | I107: =IFERROR((J107-L107)/J107,"") ->  | J107: =IFERROR(D107/E107,"") ->  | K107: =IFERROR(E107/$F$3,"") -> 0 | L107: =IFERROR(J107*H107,"") -> 
A108: Proposed | C108: =IFERROR(IF(AND(I108>$I$160,G108>$G$160),"Star",IF(AND(I108>$I$160,G108<$G$160),"Puzzle",IF(AND(I108<$I$160,G108>$G$160),"Plow Horse","Dog"))),"") -> Puzzle | D108: =IFERROR(IF(J108="",D107,E108*J108),D107) -> 0 | E108: =IFERROR(IF(K108="",E107,K108*$F$3),E107) -> 0 | F108: =IFERROR(D108*H108,F107) -> 0 | G108: =IFERROR(IF(E108="",G107,E108/$E$160),G107) -> 0 | H108: =IFERROR(IF(L108="",H107,L108/J108),H107) ->  | I108: =IFERROR((J108-L108)/J108,"") ->  | J108: =J107 ->  | K108: =K107 -> 0 | L108: =L107 -> 
A110: Baseline | B110: ='Cat 1 Setup (example to overide'!A43 -> 0 | C110: =IFERROR(IF(AND(I110>$I$159,G110>$G$159),"Star",IF(AND(I110>$I$159,G110<$G$159),"Puzzle",IF(AND(I110<$I$159,G110>$G$159),"Plow Horse","Dog"))),"") -> Puzzle | D110: =IFERROR(VLOOKUP(B110,'Cat 1 Setup (example to overide'!$A:$F,4,FALSE),"") -> 0 | E110: =IFERROR(VLOOKUP(B110,'Cat 1 Setup (example to overide'!$A:$F,3,FALSE),"") -> 0 | F110: =IFERROR(VLOOKUP(B110,'Cat 1 Setup (example to overide'!$A:$F,6,FALSE),"") -> 0 | G110: =IFERROR(E110/$E$159,"") -> 0 | H110: =IFERROR(F110/D110,"") ->  | I110: =IFERROR((J110-L110)/J110,"") ->  | J110: =IFERROR(D110/E110,"") ->  | K110: =IFERROR(E110/$F$3,"") -> 0 | L110: =IFERROR(J110*H110,"") -> 
A111: Proposed | C111: =IFERROR(IF(AND(I111>$I$160,G111>$G$160),"Star",IF(AND(I111>$I$160,G111<$G$160),"Puzzle",IF(AND(I111<$I$160,G111>$G$160),"Plow Horse","Dog"))),"") -> Puzzle | D111: =IFERROR(IF(J111="",D110,E111*J111),D110) -> 0 | E111: =IFERROR(IF(K111="",E110,K111*$F$3),E110) -> 0 | F111: =IFERROR(D111*H111,F110) -> 0 | G111: =IFERROR(IF(E111="",G110,E111/$E$160),G110) -> 0 | H111: =IFERROR(IF(L111="",H110,L111/J111),H110) ->  | I111: =IFERROR((J111-L111)/J111,"") ->  | J111: =J110 ->  | K111: =K110 -> 0 | L111: =L110 -> 
A113: Baseline | B113: ='Cat 1 Setup (example to overide'!A44 -> 0 | C113: =IFERROR(IF(AND(I113>$I$159,G113>$G$159),"Star",IF(AND(I113>$I$159,G113<$G$159),"Puzzle",IF(AND(I113<$I$159,G113>$G$159),"Plow Horse","Dog"))),"") -> Puzzle | D113: =IFERROR(VLOOKUP(B113,'Cat 1 Setup (example to overide'!$A:$F,4,FALSE),"") -> 0 | E113: =IFERROR(VLOOKUP(B113,'Cat 1 Setup (example to overide'!$A:$F,3,FALSE),"") -> 0 | F113: =IFERROR(VLOOKUP(B113,'Cat 1 Setup (example to overide'!$A:$F,6,FALSE),"") -> 0 | G113: =IFERROR(E113/$E$159,"") -> 0 | H113: =IFERROR(F113/D113,"") ->  | I113: =IFERROR((J113-L113)/J113,"") ->  | J113: =IFERROR(D113/E113,"") ->  | K113: =IFERROR(E113/$F$3,"") -> 0 | L113: =IFERROR(J113*H113,"") -> 
A114: Proposed | C114: =IFERROR(IF(AND(I114>$I$160,G114>$G$160),"Star",IF(AND(I114>$I$160,G114<$G$160),"Puzzle",IF(AND(I114<$I$160,G114>$G$160),"Plow Horse","Dog"))),"") -> Puzzle | D114: =IFERROR(IF(J114="",D113,E114*J114),D113) -> 0 | E114: =IFERROR(IF(K114="",E113,K114*$F$3),E113) -> 0 | F114: =IFERROR(D114*H114,F113) -> 0 | G114: =IFERROR(IF(E114="",G113,E114/$E$160),G113) -> 0 | H114: =IFERROR(IF(L114="",H113,L114/J114),H113) ->  | I114: =IFERROR((J114-L114)/J114,"") ->  | J114: =J113 ->  | K114: =K113 -> 0 | L114: =L113 -> 
A116: Baseline | B116: ='Cat 1 Setup (example to overide'!A45 -> 0 | C116: =IFERROR(IF(AND(I116>$I$159,G116>$G$159),"Star",IF(AND(I116>$I$159,G116<$G$159),"Puzzle",IF(AND(I116<$I$159,G116>$G$159),"Plow Horse","Dog"))),"") -> Puzzle | D116: =IFERROR(VLOOKUP(B116,'Cat 1 Setup (example to overide'!$A:$F,4,FALSE),"") -> 0 | E116: =IFERROR(VLOOKUP(B116,'Cat 1 Setup (example to overide'!$A:$F,3,FALSE),"") -> 0 | F116: =IFERROR(VLOOKUP(B116,'Cat 1 Setup (example to overide'!$A:$F,6,FALSE),"") -> 0 | G116: =IFERROR(E116/$E$159,"") -> 0 | H116: =IFERROR(F116/D116,"") ->  | I116: =IFERROR((J116-L116)/J116,"") ->  | J116: =IFERROR(D116/E116,"") ->  | K116: =IFERROR(E116/$F$3,"") -> 0 | L116: =IFERROR(J116*H116,"") -> 
A117: Proposed | C117: =IFERROR(IF(AND(I117>$I$160,G117>$G$160),"Star",IF(AND(I117>$I$160,G117<$G$160),"Puzzle",IF(AND(I117<$I$160,G117>$G$160),"Plow Horse","Dog"))),"") -> Puzzle | D117: =IFERROR(IF(J117="",D116,E117*J117),D116) -> 0 | E117: =IFERROR(IF(K117="",E116,K117*$F$3),E116) -> 0 | F117: =IFERROR(D117*H117,F116) -> 0 | G117: =IFERROR(IF(E117="",G116,E117/$E$160),G116) -> 0 | H117: =IFERROR(IF(L117="",H116,L117/J117),H116) ->  | I117: =IFERROR((J117-L117)/J117,"") ->  | J117: =J116 ->  | K117: =K116 -> 0 | L117: =L116 -> 
A119: Baseline | B119: ='Cat 1 Setup (example to overide'!A46 -> 0 | C119: =IFERROR(IF(AND(I119>$I$159,G119>$G$159),"Star",IF(AND(I119>$I$159,G119<$G$159),"Puzzle",IF(AND(I119<$I$159,G119>$G$159),"Plow Horse","Dog"))),"") -> Puzzle | D119: =IFERROR(VLOOKUP(B119,'Cat 1 Setup (example to overide'!$A:$F,4,FALSE),"") -> 0 | E119: =IFERROR(VLOOKUP(B119,'Cat 1 Setup (example to overide'!$A:$F,3,FALSE),"") -> 0 | F119: =IFERROR(VLOOKUP(B119,'Cat 1 Setup (example to overide'!$A:$F,6,FALSE),"") -> 0 | G119: =IFERROR(E119/$E$159,"") -> 0 | H119: =IFERROR(F119/D119,"") ->  | I119: =IFERROR((J119-L119)/J119,"") ->  | J119: =IFERROR(D119/E119,"") ->  | K119: =IFERROR(E119/$F$3,"") -> 0 | L119: =IFERROR(J119*H119,"") -> 
A120: Proposed | C120: =IFERROR(IF(AND(I120>$I$160,G120>$G$160),"Star",IF(AND(I120>$I$160,G120<$G$160),"Puzzle",IF(AND(I120<$I$160,G120>$G$160),"Plow Horse","Dog"))),"") -> Puzzle | D120: =IFERROR(IF(J120="",D119,E120*J120),D119) -> 0 | E120: =IFERROR(IF(K120="",E119,K120*$F$3),E119) -> 0 | F120: =IFERROR(D120*H120,F119) -> 0 | G120: =IFERROR(IF(E120="",G119,E120/$E$160),G119) -> 0 | H120: =IFERROR(IF(L120="",H119,L120/J120),H119) ->  | I120: =IFERROR((J120-L120)/J120,"") ->  | J120: =J119 ->  | K120: =K119 -> 0 | L120: =L119 -> 
A122: Baseline | B122: ='Cat 1 Setup (example to overide'!A47 -> 0 | C122: =IFERROR(IF(AND(I122>$I$159,G122>$G$159),"Star",IF(AND(I122>$I$159,G122<$G$159),"Puzzle",IF(AND(I122<$I$159,G122>$G$159),"Plow Horse","Dog"))),"") -> Puzzle | D122: =IFERROR(VLOOKUP(B122,'Cat 1 Setup (example to overide'!$A:$F,4,FALSE),"") -> 0 | E122: =IFERROR(VLOOKUP(B122,'Cat 1 Setup (example to overide'!$A:$F,3,FALSE),"") -> 0 | F122: =IFERROR(VLOOKUP(B122,'Cat 1 Setup (example to overide'!$A:$F,6,FALSE),"") -> 0 | G122: =IFERROR(E122/$E$159,"") -> 0 | H122: =IFERROR(F122/D122,"") ->  | I122: =IFERROR((J122-L122)/J122,"") ->  | J122: =IFERROR(D122/E122,"") ->  | K122: =IFERROR(E122/$F$3,"") -> 0 | L122: =IFERROR(J122*H122,"") -> 
A123: Proposed | C123: =IFERROR(IF(AND(I123>$I$160,G123>$G$160),"Star",IF(AND(I123>$I$160,G123<$G$160),"Puzzle",IF(AND(I123<$I$160,G123>$G$160),"Plow Horse","Dog"))),"") -> Puzzle | D123: =IFERROR(IF(J123="",D122,E123*J123),D122) -> 0 | E123: =IFERROR(IF(K123="",E122,K123*$F$3),E122) -> 0 | F123: =IFERROR(D123*H123,F122) -> 0 | G123: =IFERROR(IF(E123="",G122,E123/$E$160),G122) -> 0 | H123: =IFERROR(IF(L123="",H122,L123/J123),H122) ->  | J123: =J122 ->  | K123: =K122 -> 0 | L123: =L122 -> 
A125: Baseline | B125: ='Cat 1 Setup (example to overide'!A48 -> 0 | C125: =IFERROR(IF(AND(I125>$I$159,G125>$G$159),"Star",IF(AND(I125>$I$159,G125<$G$159),"Puzzle",IF(AND(I125<$I$159,G125>$G$159),"Plow Horse","Dog"))),"") -> Puzzle | D125: =IFERROR(VLOOKUP(B125,'Cat 1 Setup (example to overide'!$A:$F,4,FALSE),"") -> 0 | E125: =IFERROR(VLOOKUP(B125,'Cat 1 Setup (example to overide'!$A:$F,3,FALSE),"") -> 0 | F125: =IFERROR(VLOOKUP(B125,'Cat 1 Setup (example to overide'!$A:$F,6,FALSE),"") -> 0 | G125: =IFERROR(E125/$E$159,"") -> 0 | H125: =IFERROR(F125/D125,"") ->  | I125: =IFERROR((J125-L125)/J125,"") ->  | J125: =IFERROR(D125/E125,"") ->  | K125: =IFERROR(E125/$F$3,"") -> 0 | L125: =IFERROR(J125*H125,"") -> 
A126: Proposed | C126: =IFERROR(IF(AND(I126>$I$160,G126>$G$160),"Star",IF(AND(I126>$I$160,G126<$G$160),"Puzzle",IF(AND(I126<$I$160,G126>$G$160),"Plow Horse","Dog"))),"") -> Puzzle | D126: =IFERROR(IF(J126="",D125,E126*J126),D125) -> 0 | E126: =IFERROR(IF(K126="",E125,K126*$F$3),E125) -> 0 | F126: =IFERROR(D126*H126,F125) -> 0 | G126: =IFERROR(IF(E126="",G125,E126/$E$160),G125) -> 0 | H126: =IFERROR(IF(L126="",H125,L126/J126),H125) ->  | J126: =J125 ->  | K126: =K125 -> 0 | L126: =L125 -> 
A128: Baseline | B128: ='Cat 1 Setup (example to overide'!A49 -> 0 | C128: =IFERROR(IF(AND(I128>$I$159,G128>$G$159),"Star",IF(AND(I128>$I$159,G128<$G$159),"Puzzle",IF(AND(I128<$I$159,G128>$G$159),"Plow Horse","Dog"))),"") -> Puzzle | D128: =IFERROR(VLOOKUP(B128,'Cat 1 Setup (example to overide'!$A:$F,4,FALSE),"") -> 0 | E128: =IFERROR(VLOOKUP(B128,'Cat 1 Setup (example to overide'!$A:$F,3,FALSE),"") -> 0 | F128: =IFERROR(VLOOKUP(B128,'Cat 1 Setup (example to overide'!$A:$F,6,FALSE),"") -> 0 | G128: =IFERROR(E128/$E$159,"") -> 0 | H128: =IFERROR(F128/D128,"") ->  | I128: =IFERROR((J128-L128)/J128,"") ->  | J128: =IFERROR(D128/E128,"") ->  | K128: =IFERROR(E128/$F$3,"") -> 0 | L128: =IFERROR(J128*H128,"") -> 
A129: Proposed | C129: =IFERROR(IF(AND(I129>$I$160,G129>$G$160),"Star",IF(AND(I129>$I$160,G129<$G$160),"Puzzle",IF(AND(I129<$I$160,G129>$G$160),"Plow Horse","Dog"))),"") -> Puzzle | D129: =IFERROR(IF(J129="",D128,E129*J129),D128) -> 0 | E129: =IFERROR(IF(K129="",E128,K129*$F$3),E128) -> 0 | F129: =IFERROR(D129*H129,F128) -> 0 | G129: =IFERROR(IF(E129="",G128,E129/$E$160),G128) -> 0 | H129: =IFERROR(IF(L129="",H128,L129/J129),H128) ->  | J129: =J128 ->  | K129: =K128 -> 0 | L129: =L128 -> 
A131: Baseline | B131: ='Cat 1 Setup (example to overide'!A50 -> 0 | C131: =IFERROR(IF(AND(I131>$I$159,G131>$G$159),"Star",IF(AND(I131>$I$159,G131<$G$159),"Puzzle",IF(AND(I131<$I$159,G131>$G$159),"Plow Horse","Dog"))),"") -> Puzzle | D131: =IFERROR(VLOOKUP(B131,'Cat 1 Setup (example to overide'!$A:$F,4,FALSE),"") -> 0 | E131: =IFERROR(VLOOKUP(B131,'Cat 1 Setup (example to overide'!$A:$F,3,FALSE),"") -> 0 | F131: =IFERROR(VLOOKUP(B131,'Cat 1 Setup (example to overide'!$A:$F,6,FALSE),"") -> 0 | G131: =IFERROR(E131/$E$159,"") -> 0 | H131: =IFERROR(F131/D131,"") ->  | I131: =IFERROR((J131-L131)/J131,"") ->  | J131: =IFERROR(D131/E131,"") ->  | K131: =IFERROR(E131/$F$3,"") -> 0 | L131: =IFERROR(J131*H131,"") -> 
A132: Proposed | C132: =IFERROR(IF(AND(I132>$I$160,G132>$G$160),"Star",IF(AND(I132>$I$160,G132<$G$160),"Puzzle",IF(AND(I132<$I$160,G132>$G$160),"Plow Horse","Dog"))),"") -> Puzzle | D132: =IFERROR(IF(J132="",D131,E132*J132),D131) -> 0 | E132: =IFERROR(IF(K132="",E131,K132*$F$3),E131) -> 0 | F132: =IFERROR(D132*H132,F131) -> 0 | G132: =IFERROR(IF(E132="",G131,E132/$E$160),G131) -> 0 | H132: =IFERROR(IF(L132="",H131,L132/J132),H131) ->  | J132: =J131 ->  | K132: =K131 -> 0 | L132: =L131 -> 
A134: Baseline | B134: ='Cat 1 Setup (example to overide'!A51 -> 0 | C134: =IFERROR(IF(AND(I134>$I$159,G134>$G$159),"Star",IF(AND(I134>$I$159,G134<$G$159),"Puzzle",IF(AND(I134<$I$159,G134>$G$159),"Plow Horse","Dog"))),"") -> Puzzle | D134: =IFERROR(VLOOKUP(B134,'Cat 1 Setup (example to overide'!$A:$F,4,FALSE),"") -> 0 | E134: =IFERROR(VLOOKUP(B134,'Cat 1 Setup (example to overide'!$A:$F,3,FALSE),"") -> 0 | F134: =IFERROR(VLOOKUP(B134,'Cat 1 Setup (example to overide'!$A:$F,6,FALSE),"") -> 0 | G134: =IFERROR(E134/$E$159,"") -> 0 | H134: =IFERROR(F134/D134,"") ->  | I134: =IFERROR((J134-L134)/J134,"") ->  | J134: =IFERROR(D134/E134,"") ->  | K134: =IFERROR(E134/$F$3,"") -> 0 | L134: =IFERROR(J134*H134,"") -> 
A135: Proposed | C135: =IFERROR(IF(AND(I135>$I$160,G135>$G$160),"Star",IF(AND(I135>$I$160,G135<$G$160),"Puzzle",IF(AND(I135<$I$160,G135>$G$160),"Plow Horse","Dog"))),"") -> Puzzle | D135: =IFERROR(IF(J135="",D134,E135*J135),D134) -> 0 | E135: =IFERROR(IF(K135="",E134,K135*$F$3),E134) -> 0 | F135: =IFERROR(D135*H135,F134) -> 0 | G135: =IFERROR(IF(E135="",G134,E135/$E$160),G134) -> 0 | H135: =IFERROR(IF(L135="",H134,L135/J135),H134) ->  | J135: =J134 ->  | K135: =K134 -> 0 | L135: =L134 -> 
A137: Baseline | B137: ='Cat 1 Setup (example to overide'!A52 -> 0 | C137: =IFERROR(IF(AND(I137>$I$159,G137>$G$159),"Star",IF(AND(I137>$I$159,G137<$G$159),"Puzzle",IF(AND(I137<$I$159,G137>$G$159),"Plow Horse","Dog"))),"") -> Puzzle | D137: =IFERROR(VLOOKUP(B137,'Cat 1 Setup (example to overide'!$A:$F,4,FALSE),"") -> 0 | E137: =IFERROR(VLOOKUP(B137,'Cat 1 Setup (example to overide'!$A:$F,3,FALSE),"") -> 0 | F137: =IFERROR(VLOOKUP(B137,'Cat 1 Setup (example to overide'!$A:$F,6,FALSE),"") -> 0 | G137: =IFERROR(E137/$E$159,"") -> 0 | H137: =IFERROR(F137/D137,"") ->  | I137: =IFERROR((J137-L137)/J137,"") ->  | J137: =IFERROR(D137/E137,"") ->  | K137: =IFERROR(E137/$F$3,"") -> 0 | L137: =IFERROR(J137*H137,"") -> 
A138: Proposed | C138: =IFERROR(IF(AND(I138>$I$160,G138>$G$160),"Star",IF(AND(I138>$I$160,G138<$G$160),"Puzzle",IF(AND(I138<$I$160,G138>$G$160),"Plow Horse","Dog"))),"") -> Puzzle | D138: =IFERROR(IF(J138="",D137,E138*J138),D137) -> 0 | E138: =IFERROR(IF(K138="",E137,K138*$F$3),E137) -> 0 | F138: =IFERROR(D138*H138,F137) -> 0 | G138: =IFERROR(IF(E138="",G137,E138/$E$160),G137) -> 0 | H138: =IFERROR(IF(L138="",H137,L138/J138),H137) ->  | J138: =J137 ->  | K138: =K137 -> 0 | L138: =L137 -> 
A140: Baseline | B140: ='Cat 1 Setup (example to overide'!A53 -> 0 | C140: =IFERROR(IF(AND(I140>$I$159,G140>$G$159),"Star",IF(AND(I140>$I$159,G140<$G$159),"Puzzle",IF(AND(I140<$I$159,G140>$G$159),"Plow Horse","Dog"))),"") -> Puzzle | D140: =IFERROR(VLOOKUP(B140,'Cat 1 Setup (example to overide'!$A:$F,4,FALSE),"") -> 0 | E140: =IFERROR(VLOOKUP(B140,'Cat 1 Setup (example to overide'!$A:$F,3,FALSE),"") -> 0 | F140: =IFERROR(VLOOKUP(B140,'Cat 1 Setup (example to overide'!$A:$F,6,FALSE),"") -> 0 | G140: =IFERROR(E140/$E$159,"") -> 0 | H140: =IFERROR(F140/D140,"") ->  | I140: =IFERROR((J140-L140)/J140,"") ->  | J140: =IFERROR(D140/E140,"") ->  | K140: =IFERROR(E140/$F$3,"") -> 0 | L140: =IFERROR(J140*H140,"") -> 
A141: Proposed | C141: =IFERROR(IF(AND(I141>$I$160,G141>$G$160),"Star",IF(AND(I141>$I$160,G141<$G$160),"Puzzle",IF(AND(I141<$I$160,G141>$G$160),"Plow Horse","Dog"))),"") -> Puzzle | D141: =IFERROR(IF(J141="",D140,E141*J141),D140) -> 0 | E141: =IFERROR(IF(K141="",E140,K141*$F$3),E140) -> 0 | F141: =IFERROR(D141*H141,F140) -> 0 | G141: =IFERROR(IF(E141="",G140,E141/$E$160),G140) -> 0 | H141: =IFERROR(IF(L141="",H140,L141/J141),H140) ->  | J141: =J140 ->  | K141: =K140 -> 0 | L141: =L140 -> 
A143: Baseline | B143: ='Cat 1 Setup (example to overide'!A54 -> 0 | C143: =IFERROR(IF(AND(I143>$I$159,G143>$G$159),"Star",IF(AND(I143>$I$159,G143<$G$159),"Puzzle",IF(AND(I143<$I$159,G143>$G$159),"Plow Horse","Dog"))),"") -> Puzzle | D143: =IFERROR(VLOOKUP(B143,'Cat 1 Setup (example to overide'!$A:$F,4,FALSE),"") -> 0 | E143: =IFERROR(VLOOKUP(B143,'Cat 1 Setup (example to overide'!$A:$F,3,FALSE),"") -> 0 | F143: =IFERROR(VLOOKUP(B143,'Cat 1 Setup (example to overide'!$A:$F,6,FALSE),"") -> 0 | G143: =IFERROR(E143/$E$159,"") -> 0 | H143: =IFERROR(F143/D143,"") ->  | I143: =IFERROR((J143-L143)/J143,"") ->  | J143: =IFERROR(D143/E143,"") ->  | K143: =IFERROR(E143/$F$3,"") -> 0 | L143: =IFERROR(J143*H143,"") -> 
A144: Proposed | C144: =IFERROR(IF(AND(I144>$I$160,G144>$G$160),"Star",IF(AND(I144>$I$160,G144<$G$160),"Puzzle",IF(AND(I144<$I$160,G144>$G$160),"Plow Horse","Dog"))),"") -> Puzzle | D144: =IFERROR(IF(J144="",D143,E144*J144),D143) -> 0 | E144: =IFERROR(IF(K144="",E143,K144*$F$3),E143) -> 0 | F144: =IFERROR(D144*H144,F143) -> 0 | G144: =IFERROR(IF(E144="",G143,E144/$E$160),G143) -> 0 | H144: =IFERROR(IF(L144="",H143,L144/J144),H143) ->  | J144: =J143 ->  | K144: =K143 -> 0 | L144: =L143 -> 
A146: Baseline | B146: ='Cat 1 Setup (example to overide'!A55 -> 0 | C146: =IFERROR(IF(AND(I146>$I$159,G146>$G$159),"Star",IF(AND(I146>$I$159,G146<$G$159),"Puzzle",IF(AND(I146<$I$159,G146>$G$159),"Plow Horse","Dog"))),"") -> Puzzle | D146: =IFERROR(VLOOKUP(B146,'Cat 1 Setup (example to overide'!$A:$F,4,FALSE),"") -> 0 | E146: =IFERROR(VLOOKUP(B146,'Cat 1 Setup (example to overide'!$A:$F,3,FALSE),"") -> 0 | F146: =IFERROR(VLOOKUP(B146,'Cat 1 Setup (example to overide'!$A:$F,6,FALSE),"") -> 0 | G146: =IFERROR(E146/$E$159,"") -> 0 | H146: =IFERROR(F146/D146,"") ->  | I146: =IFERROR((J146-L146)/J146,"") ->  | J146: =IFERROR(D146/E146,"") ->  | K146: =IFERROR(E146/$F$3,"") -> 0 | L146: =IFERROR(J146*H146,"") -> 
A147: Proposed | C147: =IFERROR(IF(AND(I147>$I$160,G147>$G$160),"Star",IF(AND(I147>$I$160,G147<$G$160),"Puzzle",IF(AND(I147<$I$160,G147>$G$160),"Plow Horse","Dog"))),"") -> Puzzle | D147: =IFERROR(IF(J147="",D146,E147*J147),D146) -> 0 | E147: =IFERROR(IF(K147="",E146,K147*$F$3),E146) -> 0 | F147: =IFERROR(D147*H147,F146) -> 0 | G147: =IFERROR(IF(E147="",G146,E147/$E$160),G146) -> 0 | H147: =IFERROR(IF(L147="",H146,L147/J147),H146) ->  | J147: =J146 ->  | K147: =K146 -> 0 | L147: =L146 -> 
A149: Baseline | B149: ='Cat 1 Setup (example to overide'!A56 -> 0 | C149: =IFERROR(IF(AND(I149>$I$159,G149>$G$159),"Star",IF(AND(I149>$I$159,G149<$G$159),"Puzzle",IF(AND(I149<$I$159,G149>$G$159),"Plow Horse","Dog"))),"") -> Puzzle | D149: =IFERROR(VLOOKUP(B149,'Cat 1 Setup (example to overide'!$A:$F,4,FALSE),"") -> 0 | E149: =IFERROR(VLOOKUP(B149,'Cat 1 Setup (example to overide'!$A:$F,3,FALSE),"") -> 0 | F149: =IFERROR(VLOOKUP(B149,'Cat 1 Setup (example to overide'!$A:$F,6,FALSE),"") -> 0 | G149: =IFERROR(E149/$E$159,"") -> 0 | H149: =IFERROR(F149/D149,"") ->  | I149: =IFERROR((J149-L149)/J149,"") ->  | J149: =IFERROR(D149/E149,"") ->  | K149: =IFERROR(E149/$F$3,"") -> 0 | L149: =IFERROR(J149*H149,"") -> 
A150: Proposed | C150: =IFERROR(IF(AND(I150>$I$160,G150>$G$160),"Star",IF(AND(I150>$I$160,G150<$G$160),"Puzzle",IF(AND(I150<$I$160,G150>$G$160),"Plow Horse","Dog"))),"") -> Puzzle | D150: =IFERROR(IF(J150="",D149,E150*J150),D149) -> 0 | E150: =IFERROR(IF(K150="",E149,K150*$F$3),E149) -> 0 | F150: =IFERROR(D150*H150,F149) -> 0 | G150: =IFERROR(IF(E150="",G149,E150/$E$160),G149) -> 0 | H150: =IFERROR(IF(L150="",H149,L150/J150),H149) ->  | J150: =J149 ->  | K150: =K149 -> 0 | L150: =L149 -> 
A152: Baseline | B152: ='Cat 1 Setup (example to overide'!A57 -> 0 | C152: =IFERROR(IF(AND(I152>$I$159,G152>$G$159),"Star",IF(AND(I152>$I$159,G152<$G$159),"Puzzle",IF(AND(I152<$I$159,G152>$G$159),"Plow Horse","Dog"))),"") -> Puzzle | D152: =IFERROR(VLOOKUP(B152,'Cat 1 Setup (example to overide'!$A:$F,4,FALSE),"") -> 0 | E152: =IFERROR(VLOOKUP(B152,'Cat 1 Setup (example to overide'!$A:$F,3,FALSE),"") -> 0 | F152: =IFERROR(VLOOKUP(B152,'Cat 1 Setup (example to overide'!$A:$F,6,FALSE),"") -> 0 | G152: =IFERROR(E152/$E$159,"") -> 0 | H152: =IFERROR(F152/D152,"") ->  | I152: =IFERROR((J152-L152)/J152,"") ->  | J152: =IFERROR(D152/E152,"") ->  | K152: =IFERROR(E152/$F$3,"") -> 0 | L152: =IFERROR(J152*H152,"") -> 
A153: Proposed | C153: =IFERROR(IF(AND(I153>$I$160,G153>$G$160),"Star",IF(AND(I153>$I$160,G153<$G$160),"Puzzle",IF(AND(I153<$I$160,G153>$G$160),"Plow Horse","Dog"))),"") -> Puzzle | D153: =IFERROR(IF(J153="",D152,E153*J153),D152) -> 0 | E153: =IFERROR(IF(K153="",E152,K153*$F$3),E152) -> 0 | F153: =IFERROR(D153*H153,F152) -> 0 | G153: =IFERROR(IF(E153="",G152,E153/$E$160),G152) -> 0 | H153: =IFERROR(IF(L153="",H152,L153/J153),H152) ->  | J153: =J152 ->  | K153: =K152 -> 0 | L153: =L152 -> 
A155: Baseline | B155: ='Cat 1 Setup (example to overide'!A58 -> 0 | C155: =IFERROR(IF(AND(I155>$I$159,G155>$G$159),"Star",IF(AND(I155>$I$159,G155<$G$159),"Puzzle",IF(AND(I155<$I$159,G155>$G$159),"Plow Horse","Dog"))),"") -> Puzzle | D155: =IFERROR(VLOOKUP(B155,'Cat 1 Setup (example to overide'!$A:$F,4,FALSE),"") -> 0 | E155: =IFERROR(VLOOKUP(B155,'Cat 1 Setup (example to overide'!$A:$F,3,FALSE),"") -> 0 | F155: =IFERROR(VLOOKUP(B155,'Cat 1 Setup (example to overide'!$A:$F,6,FALSE),"") -> 0 | G155: =IFERROR(E155/$E$159,"") -> 0 | H155: =IFERROR(F155/D155,"") ->  | I155: =IFERROR((J155-L155)/J155,"") ->  | J155: =IFERROR(D155/E155,"") ->  | K155: =IFERROR(E155/$F$3,"") -> 0 | L155: =IFERROR(J155*H155,"") -> 
A156: Proposed | C156: =IFERROR(IF(AND(I156>$I$160,G156>$G$160),"Star",IF(AND(I156>$I$160,G156<$G$160),"Puzzle",IF(AND(I156<$I$160,G156>$G$160),"Plow Horse","Dog"))),"") -> Puzzle | D156: =IFERROR(IF(J156="",D155,E156*J156),D155) -> 0 | E156: =IFERROR(IF(K156="",E155,K156*$F$3),E155) -> 0 | F156: =IFERROR(D156*H156,F155) -> 0 | G156: =IFERROR(IF(E156="",G155,E156/$E$160),G155) -> 0 | H156: =IFERROR(IF(L156="",H155,L156/J156),H155) ->  | J156: =J155 ->  | K156: =K155 -> 0 | L156: =L155 -> 
K158: (Items/Cover)
A159: Baseline | B159: Total | D159: =IFERROR(SUMIF($A$8:$A$157,"Baseline",D$8:D$157),"") -> 269884.5 | E159: =IFERROR(SUMIF($A$8:$A$157,"Baseline",E$8:E$157),"") -> 10653 | F159: =IFERROR(SUMIF($A$8:$A$157,"Baseline",F$8:F$157),"") -> 100389.94 | G159: =IFERROR((AVERAGEIFS(G$8:G$156,$A$8:$A$156,"Baseline",G$8:G$156,">0")),"") -> 0.05 | H159: =IFERROR(F159/D159,"") -> 0.3719737147 | I159: =IFERROR(AVERAGEIF($A$8:$A$156,"Baseline",I$8:I$156),"") -> 0.6472406641 | J159: =IFERROR(D159/E159,"") -> 25.33413123 | K159: =IFERROR(E159/$F$3,"") -> 6.311018957 | L159: =IFERROR(F159/E159,"") -> 9.423630902
A160: Proposed | D160: =IFERROR(SUMIF($A$8:$A$157,"Proposed",D$8:D$157),"") -> 269884.5 | E160: =IFERROR(SUMIF($A$8:$A$157,"Proposed",E$8:E$157),"") -> 10653 | F160: =IFERROR(SUMIF($A$8:$A$157,"Proposed",F$8:F$157),"") -> 100389.94 | G160: =IFERROR((AVERAGEIFS(G$8:G$156,$A$8:$A$156,"Proposed",G$8:G$156,">0")),"") -> 0.05 | H160: =IFERROR(F160/D160,"") -> 0.3719737147 | I160: =IFERROR(AVERAGEIF($A$8:$A$156,"Proposed",I$8:I$156),"") -> 0.6472406641 | J160: =IFERROR(D160/E160,"") -> 25.33413123 | K160: =IFERROR(E160/$F$3,"") -> 6.311018957 | L160: =IFERROR(F160/E160,"") -> 9.423630902
B161: %/BPs change | D161: =IFERROR((D160-D159)/D159,"") -> 0 | E161: =IFERROR((E160-E159)/E159,"") -> 0 | F161: 0 | G161: =(G160-G159)*100 -> 0 | H161: =(H160-H159)*100 -> 0 | I161: =IFERROR((I160-I159)/I159,"") -> 0 | J161: 0 | K161: 0 | L161: 0
B164: Assumptions/Exclusions:
B171: Admin Use:
B172: CM (min): | C172: =ROUND(MIN(I8:I157),0)-5 -> -5 | D172: Demand (max): | E172: =MIN(G8:G157)-0.05 -> -0.05
B173: CM (max): | C173: =ROUND(MAX(I8:I157),0)+5 -> 6 | D173: Demand (min): | E173: =MAX(G8:G157)+0.05 -> 0.1436825307

Sheet Cat 1 CM% Chart
A1: =CONCATENATE('Cat 1 CM$'!C1," ",'Cat 1 CM$'!C5," ",'Cat 1 CM$'!C4," - ",'Cat 1 CM$'!F5) -> Blue Café Dining Room Dinner - Entrée
A2: Menu Enginnering Graph by Contribution Margin Percentage
F44: Low | G44: High
C45: X-AXIS --> | D45: Menu Mix Parameters: | F45: =IFERROR(IF('Cat 1 CM%'!D8="","",MIN('Cat 1 CM%'!G8:G157)*0.9),"") -> 0 | G45: =IFERROR(IF('Cat 1 CM%'!D8="","",MAX('Cat 1 CM%'!G8:G157)*1.1),"") -> 0.1030507838
C46: Y-AXIS --> | D46: Contribution Margin | F46: =IFERROR(IF('Cat 1 CM%'!D8="","",MIN('Cat 1 CM%'!$I$8:$I$157)*0.9),"") -> 0.3112758621 | G46: =IFERROR(IF('Cat 1 CM%'!D8="","",MAX('Cat 1 CM%'!$I$8:$I$157)*1.1),"") -> 0.9548

Sheet Cat 2 Setup
K1: Restaurant Outlet Name | M1: Check Count
K2: Meal Period | M2: Cover Count
K3: Revenue Center | M3: Average Check
K4: Menu Category | M4: Currency | N4: =IFERROR(IF(LEFT(N9,(FIND(MID(N9,MIN(IF(ISNUMBER(1*MID(N9,ROW($1:$255),1)),ROW($1:$255))),1),N9)-1))="","$",LEFT(N9,(FIND(MID(N9,MIN(IF(ISNUMBER(1*MID(N9,ROW($1:$255),1)),ROW($1:$255))),1),N9)-1))),"") -> 
K5: Start Date | M5: End Date
A8: Item Name | B8: Item Number | C8: Qty Sold | D8: Gross Sales | E8: Avg. Item Cost | F8: COGS $ | K8: Item Name | L8: Item Number | M8: Qty Sold | N8: Gross Sales | O8: Avg. Item Cost | P8: COGS $
A9: =K9 -> 0 | B9: =L9 -> 0 | C9: =VALUE(M9) -> 0 | D9: =IF($N$4="$",N9,(VALUE(MID(N9,FIND($N$4,N9)+LEN($N$4),LEN(N9))))) ->  | E9: =IF($N$4="$",O9,(VALUE(MID(O9,FIND($N$4,O9)+LEN($N$4),LEN(O9))))) ->  | F9: =IF($N$4="$",P9,(VALUE(MID(P9,FIND($N$4,P9)+LEN($N$4),LEN(P9))))) ->  | J9: 1
A10: 0 | B10: 0 | C10: 0 | J10: 2
A11: 0 | B11: 0 | C11: 0 | J11: 3
A12: 0 | B12: 0 | C12: 0 | J12: 4
A13: 0 | B13: 0 | C13: 0 | J13: 5
A14: 0 | B14: 0 | C14: 0 | J14: 6
A15: 0 | B15: 0 | C15: 0 | J15: 7
A16: 0 | B16: 0 | C16: 0 | J16: 8
A17: 0 | B17: 0 | C17: 0 | J17: 9
A18: 0 | B18: 0 | C18: 0 | J18: 10
A19: 0 | B19: 0 | C19: 0 | J19: 11
A20: 0 | B20: 0 | C20: 0 | J20: 12
A21: 0 | B21: 0 | C21: 0 | J21: 13
A22: 0 | B22: 0 | C22: 0 | J22: 14
A23: 0 | B23: 0 | C23: 0 | J23: 15
A24: 0 | B24: 0 | C24: 0 | J24: 16
A25: 0 | B25: 0 | C25: 0 | J25: 17
A26: 0 | B26: 0 | C26: 0 | J26: 18
A27: 0 | B27: 0 | C27: 0 | J27: 19
A28: 0 | B28: 0 | C28: 0 | J28: 20
A29: 0 | B29: 0 | C29: 0 | J29: 21
A30: 0 | B30: 0 | C30: 0 | J30: 22
A31: 0 | B31: 0 | C31: 0 | J31: 23
A32: 0 | B32: 0 | C32: 0 | J32: 24
A33: 0 | B33: 0 | C33: 0 | J33: 25
A34: 0 | B34: 0 | C34: 0 | J34: 26
A35: 0 | B35: 0 | C35: 0 | J35: 27
A36: 0 | B36: 0 | C36: 0 | J36: 28
A37: 0 | B37: 0 | C37: 0 | J37: 29
A38: 0 | B38: 0 | C38: 0 | J38: 30
A39: 0 | B39: 0 | C39: 0 | J39: 31
A40: 0 | B40: 0 | C40: 0 | J40: 32
A41: =K41 -> 0 | B41: =L41 -> 0 | C41: =VALUE(M41) -> 0 | D41: =IF($N$4="$",N41,(VALUE(MID(N41,FIND($N$4,N41)+LEN($N$4),LEN(N41))))) ->  | E41: =IF($N$4="$",O41,(VALUE(MID(O41,FIND($N$4,O41)+LEN($N$4),LEN(O41))))) ->  | F41: =IF($N$4="$",P41,(VALUE(MID(P41,FIND($N$4,P41)+LEN($N$4),LEN(P41))))) ->  | J41: 33
A42: 0 | B42: 0 | C42: 0 | J42: 34
A43: 0 | B43: 0 | C43: 0 | J43: 35
A44: 0 | B44: 0 | C44: 0 | J44: 36
A45: 0 | B45: 0 | C45: 0 | J45: 37
A46: 0 | B46: 0 | C46: 0 | J46: 38
A47: 0 | B47: 0 | C47: 0 | J47: 39
A48: 0 | B48: 0 | C48: 0 | J48: 40
A49: 0 | B49: 0 | C49: 0 | J49: 41
A50: 0 | B50: 0 | C50: 0 | J50: 42
A51: 0 | B51: 0 | C51: 0 | J51: 43
A52: 0 | B52: 0 | C52: 0 | J52: 44
A53: 0 | B53: 0 | C53: 0 | J53: 45
A54: 0 | B54: 0 | C54: 0 | J54: 46
A55: 0 | B55: 0 | C55: 0 | J55: 47
A56: 0 | B56: 0 | C56: 0 | J56: 48
A57: 0 | B57: 0 | C57: 0 | J57: 49
A58: 0 | B58: 0 | C58: 0 | J58: 50
B59: =L59 -> 0 | C59: =VALUE(M59) -> 0 | E59: =MID(O59,FIND($N$4,O59)+LEN($N$4),LEN(O59)) ->  | F59: =MID(P59,FIND($N$4,P59)+LEN($N$4),LEN(P59)) -> 
C60: =SUM(C9:C59) -> 0 | D60: =SUM(D9:D59) ->  | F60: =SUM(F9:F59) -> 

Sheet Cat 2 CM$
B1: Restaurant Name | C1: ='Cat 2 Setup'!L1 -> 0
B2: Start Date: | C2: ='Cat 2 Setup'!L5 -> 00:00:00 | E2: Check Count: | F2: ='Cat 2 Setup'!N1 -> 0
B3: End Date | C3: ='Cat 2 Setup'!N5 -> 00:00:00 | E3: Cover Count: | F3: ='Cat 2 Setup'!N2 -> 0
B4: Meal Period: | C4: ='Cat 2 Setup'!L2 -> 0 | E4: Average Check: | F4: ='Cat 2 Setup'!N3 -> 0
B5: Revenue Center: | C5: ='Cat 2 Setup'!L3 -> 0 | E5: Menu Category | F5: ='Cat 2 Setup'!L4 -> 0
B7: Item Name | C7: Quadrant | D7: Item Sales | E7: Qty Sold | F7: Food Cost | G7: Menu Mix % | H7: Item Cost % | I7: Contribution Margin $ | J7: Item Price | K7: Item/Cover% | L7: Item Cost
A8: Baseline | B8: ='Cat 2 Setup'!A9 -> 0 | C8: =IFERROR(IF(AND(I8>$I$159,G8>$G$159),"Star",IF(AND(I8>$I$159,G8<$G$159),"Puzzle",IF(AND(I8<$I$159,G8>$G$159),"Plow Horse","Dog"))),"") -> Dog | D8: =IFERROR(VLOOKUP(B8,'Cat 2 Setup'!$A:$F,4,FALSE),"") ->  | E8: =IFERROR(VLOOKUP(B8,'Cat 2 Setup'!$A:$F,3,FALSE),"") -> 0 | F8: =IFERROR(VLOOKUP(B8,'Cat 2 Setup'!$A:$F,6,FALSE),"") ->  | G8: =IFERROR(E8/$E$159,"") ->  | H8: =IFERROR(F8/D8,"") ->  | I8: =IFERROR(J8-L8,"") ->  | J8: =IFERROR(D8/E8,"") ->  | K8: =IFERROR(E8/$F$3,"") ->  | L8: =IFERROR(J8*H8,"") -> 
A9: Proposed | C9: =IFERROR(IF(AND(I9>$I$160,G9>$G$160),"Star",IF(AND(I9>$I$160,G9<$G$160),"Puzzle",IF(AND(I9<$I$160,G9>$G$160),"Plow Horse","Dog"))),"") -> Dog | D9: =IFERROR(IF(J9="",D8,E9*J9),D8) ->  | E9: =IFERROR(IF(K9="",E8,K9*$F$3),E8) -> 0 | F9: =IFERROR(D9*H9,F8) ->  | G9: =IFERROR(IF(E9="",G8,E9/$E$160),G8) ->  | H9: =IFERROR(IF(L9="",H8,L9/J9),H8) ->  | I9: =IFERROR(J9-L9,"") ->  | J9: =J8 ->  | K9: =K8 ->  | L9: =L8 -> 
A11: Baseline | B11: ='Cat 2 Setup'!A10 -> 0 | C11: =IFERROR(IF(AND(I11>$I$159,G11>$G$159),"Star",IF(AND(I11>$I$159,G11<$G$159),"Puzzle",IF(AND(I11<$I$159,G11>$G$159),"Plow Horse","Dog"))),"") -> Dog | D11: =IFERROR(VLOOKUP(B11,'Cat 2 Setup'!$A:$F,4,FALSE),"") ->  | E11: =IFERROR(VLOOKUP(B11,'Cat 2 Setup'!$A:$F,3,FALSE),"") -> 0 | F11: =IFERROR(VLOOKUP(B11,'Cat 2 Setup'!$A:$F,6,FALSE),"") ->  | G11: =IFERROR(E11/$E$159,"") ->  | H11: =IFERROR(F11/D11,"") ->  | I11: =IFERROR(J11-L11,"") ->  | J11: =IFERROR(D11/E11,"") ->  | K11: =IFERROR(E11/$F$3,"") ->  | L11: =IFERROR(J11*H11,"") -> 
A12: Proposed | C12: =IFERROR(IF(AND(I12>$I$160,G12>$G$160),"Star",IF(AND(I12>$I$160,G12<$G$160),"Puzzle",IF(AND(I12<$I$160,G12>$G$160),"Plow Horse","Dog"))),"") -> Dog | D12: =IFERROR(IF(J12="",D11,E12*J12),D11) ->  | E12: =IFERROR(IF(K12="",E11,K12*$F$3),E11) -> 0 | F12: =IFERROR(D12*H12,F11) ->  | G12: =IFERROR(IF(E12="",G11,E12/$E$160),G11) ->  | H12: =IFERROR(IF(L12="",H11,L12/J12),H11) ->  | I12: =IFERROR(J12-L12,"") ->  | J12: =J11 ->  | K12: =K11 ->  | L12: =L11 -> 
A14: Baseline | B14: ='Cat 2 Setup'!A11 -> 0 | C14: =IFERROR(IF(AND(I14>$I$159,G14>$G$159),"Star",IF(AND(I14>$I$159,G14<$G$159),"Puzzle",IF(AND(I14<$I$159,G14>$G$159),"Plow Horse","Dog"))),"") -> Dog | D14: =IFERROR(VLOOKUP(B14,'Cat 2 Setup'!$A:$F,4,FALSE),"") ->  | E14: =IFERROR(VLOOKUP(B14,'Cat 2 Setup'!$A:$F,3,FALSE),"") -> 0 | F14: =IFERROR(VLOOKUP(B14,'Cat 2 Setup'!$A:$F,6,FALSE),"") ->  | G14: =IFERROR(E14/$E$159,"") ->  | H14: =IFERROR(F14/D14,"") ->  | I14: =IFERROR(J14-L14,"") ->  | J14: =IFERROR(D14/E14,"") ->  | K14: =IFERROR(E14/$F$3,"") ->  | L14: =IFERROR(J14*H14,"") -> 
A15: Proposed | C15: =IFERROR(IF(AND(I15>$I$160,G15>$G$160),"Star",IF(AND(I15>$I$160,G15<$G$160),"Puzzle",IF(AND(I15<$I$160,G15>$G$160),"Plow Horse","Dog"))),"") -> Dog | D15: =IFERROR(IF(J15="",D14,E15*J15),D14) ->  | E15: =IFERROR(IF(K15="",E14,K15*$F$3),E14) -> 0 | F15: =IFERROR(D15*H15,F14) ->  | G15: =IFERROR(IF(E15="",G14,E15/$E$160),G14) ->  | H15: =IFERROR(IF(L15="",H14,L15/J15),H14) ->  | I15: =IFERROR(J15-L15,"") ->  | J15: =J14 ->  | K15: =K14 ->  | L15: =L14 -> 
A17: Baseline | B17: ='Cat 2 Setup'!A12 -> 0 | C17: =IFERROR(IF(AND(I17>$I$159,G17>$G$159),"Star",IF(AND(I17>$I$159,G17<$G$159),"Puzzle",IF(AND(I17<$I$159,G17>$G$159),"Plow Horse","Dog"))),"") -> Dog | D17: =IFERROR(VLOOKUP(B17,'Cat 2 Setup'!$A:$F,4,FALSE),"") ->  | E17: =IFERROR(VLOOKUP(B17,'Cat 2 Setup'!$A:$F,3,FALSE),"") -> 0 | F17: =IFERROR(VLOOKUP(B17,'Cat 2 Setup'!$A:$F,6,FALSE),"") ->  | G17: =IFERROR(E17/$E$159,"") ->  | H17: =IFERROR(F17/D17,"") ->  | I17: =IFERROR(J17-L17,"") ->  | J17: =IFERROR(D17/E17,"") ->  | K17: =IFERROR(E17/$F$3,"") ->  | L17: =IFERROR(J17*H17,"") -> 
A18: Proposed | C18: =IFERROR(IF(AND(I18>$I$160,G18>$G$160),"Star",IF(AND(I18>$I$160,G18<$G$160),"Puzzle",IF(AND(I18<$I$160,G18>$G$160),"Plow Horse","Dog"))),"") -> Dog | D18: =IFERROR(IF(J18="",D17,E18*J18),D17) ->  | E18: =IFERROR(IF(K18="",E17,K18*$F$3),E17) -> 0 | F18: =IFERROR(D18*H18,F17) ->  | G18: =IFERROR(IF(E18="",G17,E18/$E$160),G17) ->  | H18: =IFERROR(IF(L18="",H17,L18/J18),H17) ->  | I18: =IFERROR(J18-L18,"") ->  | J18: =J17 ->  | K18: =K17 ->  | L18: =L17 -> 
A20: Baseline | B20: ='Cat 2 Setup'!A13 -> 0 | C20: =IFERROR(IF(AND(I20>$I$159,G20>$G$159),"Star",IF(AND(I20>$I$159,G20<$G$159),"Puzzle",IF(AND(I20<$I$159,G20>$G$159),"Plow Horse","Dog"))),"") -> Dog | D20: =IFERROR(VLOOKUP(B20,'Cat 2 Setup'!$A:$F,4,FALSE),"") ->  | E20: =IFERROR(VLOOKUP(B20,'Cat 2 Setup'!$A:$F,3,FALSE),"") -> 0 | F20: =IFERROR(VLOOKUP(B20,'Cat 2 Setup'!$A:$F,6,FALSE),"") ->  | G20: =IFERROR(E20/$E$159,"") ->  | H20: =IFERROR(F20/D20,"") ->  | I20: =IFERROR(J20-L20,"") ->  | J20: =IFERROR(D20/E20,"") ->  | K20: =IFERROR(E20/$F$3,"") ->  | L20: =IFERROR(J20*H20,"") -> 
A21: Proposed | C21: =IFERROR(IF(AND(I21>$I$160,G21>$G$160),"Star",IF(AND(I21>$I$160,G21<$G$160),"Puzzle",IF(AND(I21<$I$160,G21>$G$160),"Plow Horse","Dog"))),"") -> Dog | D21: =IFERROR(IF(J21="",D20,E21*J21),D20) ->  | E21: =IFERROR(IF(K21="",E20,K21*$F$3),E20) -> 0 | F21: =IFERROR(D21*H21,F20) ->  | G21: =IFERROR(IF(E21="",G20,E21/$E$160),G20) ->  | H21: =IFERROR(IF(L21="",H20,L21/J21),H20) ->  | I21: =IFERROR(J21-L21,"") ->  | J21: =J20 ->  | K21: =K20 ->  | L21: =L20 -> 
A23: Baseline | B23: ='Cat 2 Setup'!A14 -> 0 | C23: =IFERROR(IF(AND(I23>$I$159,G23>$G$159),"Star",IF(AND(I23>$I$159,G23<$G$159),"Puzzle",IF(AND(I23<$I$159,G23>$G$159),"Plow Horse","Dog"))),"") -> Dog | D23: =IFERROR(VLOOKUP(B23,'Cat 2 Setup'!$A:$F,4,FALSE),"") ->  | E23: =IFERROR(VLOOKUP(B23,'Cat 2 Setup'!$A:$F,3,FALSE),"") -> 0 | F23: =IFERROR(VLOOKUP(B23,'Cat 2 Setup'!$A:$F,6,FALSE),"") ->  | G23: =IFERROR(E23/$E$159,"") ->  | H23: =IFERROR(F23/D23,"") ->  | I23: =IFERROR(J23-L23,"") ->  | J23: =IFERROR(D23/E23,"") ->  | K23: =IFERROR(E23/$F$3,"") ->  | L23: =IFERROR(J23*H23,"") -> 
A24: Proposed | C24: =IFERROR(IF(AND(I24>$I$160,G24>$G$160),"Star",IF(AND(I24>$I$160,G24<$G$160),"Puzzle",IF(AND(I24<$I$160,G24>$G$160),"Plow Horse","Dog"))),"") -> Dog | D24: =IFERROR(IF(J24="",D23,E24*J24),D23) ->  | E24: =IFERROR(IF(K24="",E23,K24*$F$3),E23) -> 0 | F24: =IFERROR(D24*H24,F23) ->  | G24: =IFERROR(IF(E24="",G23,E24/$E$160),G23) ->  | H24: =IFERROR(IF(L24="",H23,L24/J24),H23) ->  | I24: =IFERROR(J24-L24,"") ->  | J24: =J23 ->  | K24: =K23 ->  | L24: =L23 -> 
A26: Baseline | B26: ='Cat 2 Setup'!A15 -> 0 | C26: =IFERROR(IF(AND(I26>$I$159,G26>$G$159),"Star",IF(AND(I26>$I$159,G26<$G$159),"Puzzle",IF(AND(I26<$I$159,G26>$G$159),"Plow Horse","Dog"))),"") -> Dog | D26: =IFERROR(VLOOKUP(B26,'Cat 2 Setup'!$A:$F,4,FALSE),"") ->  | E26: =IFERROR(VLOOKUP(B26,'Cat 2 Setup'!$A:$F,3,FALSE),"") -> 0 | F26: =IFERROR(VLOOKUP(B26,'Cat 2 Setup'!$A:$F,6,FALSE),"") ->  | G26: =IFERROR(E26/$E$159,"") ->  | H26: =IFERROR(F26/D26,"") ->  | I26: =IFERROR(J26-L26,"") ->  | J26: =IFERROR(D26/E26,"") ->  | K26: =IFERROR(E26/$F$3,"") ->  | L26: =IFERROR(J26*H26,"") -> 
A27: Proposed | C27: =IFERROR(IF(AND(I27>$I$160,G27>$G$160),"Star",IF(AND(I27>$I$160,G27<$G$160),"Puzzle",IF(AND(I27<$I$160,G27>$G$160),"Plow Horse","Dog"))),"") -> Dog | D27: =IFERROR(IF(J27="",D26,E27*J27),D26) ->  | E27: =IFERROR(IF(K27="",E26,K27*$F$3),E26) -> 0 | F27: =IFERROR(D27*H27,F26) ->  | G27: =IFERROR(IF(E27="",G26,E27/$E$160),G26) ->  | H27: =IFERROR(IF(L27="",H26,L27/J27),H26) ->  | I27: =IFERROR(J27-L27,"") ->  | J27: =J26 ->  | K27: =K26 ->  | L27: =L26 -> 
A29: Baseline | B29: ='Cat 2 Setup'!A16 -> 0 | C29: =IFERROR(IF(AND(I29>$I$159,G29>$G$159),"Star",IF(AND(I29>$I$159,G29<$G$159),"Puzzle",IF(AND(I29<$I$159,G29>$G$159),"Plow Horse","Dog"))),"") -> Dog | D29: =IFERROR(VLOOKUP(B29,'Cat 2 Setup'!$A:$F,4,FALSE),"") ->  | E29: =IFERROR(VLOOKUP(B29,'Cat 2 Setup'!$A:$F,3,FALSE),"") -> 0 | F29: =IFERROR(VLOOKUP(B29,'Cat 2 Setup'!$A:$F,6,FALSE),"") ->  | G29: =IFERROR(E29/$E$159,"") ->  | H29: =IFERROR(F29/D29,"") ->  | I29: =IFERROR(J29-L29,"") ->  | J29: =IFERROR(D29/E29,"") ->  | K29: =IFERROR(E29/$F$3,"") ->  | L29: =IFERROR(J29*H29,"") -> 
A30: Proposed | C30: =IFERROR(IF(AND(I30>$I$160,G30>$G$160),"Star",IF(AND(I30>$I$160,G30<$G$160),"Puzzle",IF(AND(I30<$I$160,G30>$G$160),"Plow Horse","Dog"))),"") -> Dog | D30: =IFERROR(IF(J30="",D29,E30*J30),D29) ->  | E30: =IFERROR(IF(K30="",E29,K30*$F$3),E29) -> 0 | F30: =IFERROR(D30*H30,F29) ->  | G30: =IFERROR(IF(E30="",G29,E30/$E$160),G29) ->  | H30: =IFERROR(IF(L30="",H29,L30/J30),H29) ->  | I30: =IFERROR(J30-L30,"") ->  | J30: =J29 ->  | K30: =K29 ->  | L30: =L29 -> 
A32: Baseline | B32: ='Cat 2 Setup'!A17 -> 0 | C32: =IFERROR(IF(AND(I32>$I$159,G32>$G$159),"Star",IF(AND(I32>$I$159,G32<$G$159),"Puzzle",IF(AND(I32<$I$159,G32>$G$159),"Plow Horse","Dog"))),"") -> Dog | D32: =IFERROR(VLOOKUP(B32,'Cat 2 Setup'!$A:$F,4,FALSE),"") ->  | E32: =IFERROR(VLOOKUP(B32,'Cat 2 Setup'!$A:$F,3,FALSE),"") -> 0 | F32: =IFERROR(VLOOKUP(B32,'Cat 2 Setup'!$A:$F,6,FALSE),"") ->  | G32: =IFERROR(E32/$E$159,"") ->  | H32: =IFERROR(F32/D32,"") ->  | I32: =IFERROR(J32-L32,"") ->  | J32: =IFERROR(D32/E32,"") ->  | K32: =IFERROR(E32/$F$3,"") ->  | L32: =IFERROR(J32*H32,"") -> 
A33: Proposed | C33: =IFERROR(IF(AND(I33>$I$160,G33>$G$160),"Star",IF(AND(I33>$I$160,G33<$G$160),"Puzzle",IF(AND(I33<$I$160,G33>$G$160),"Plow Horse","Dog"))),"") -> Dog | D33: =IFERROR(IF(J33="",D32,E33*J33),D32) ->  | E33: =IFERROR(IF(K33="",E32,K33*$F$3),E32) -> 0 | F33: =IFERROR(D33*H33,F32) ->  | G33: =IFERROR(IF(E33="",G32,E33/$E$160),G32) ->  | H33: =IFERROR(IF(L33="",H32,L33/J33),H32) ->  | I33: =IFERROR(J33-L33,"") ->  | J33: =J32 ->  | K33: =K32 ->  | L33: =L32 -> 
A35: Baseline | B35: ='Cat 2 Setup'!A18 -> 0 | C35: =IFERROR(IF(AND(I35>$I$159,G35>$G$159),"Star",IF(AND(I35>$I$159,G35<$G$159),"Puzzle",IF(AND(I35<$I$159,G35>$G$159),"Plow Horse","Dog"))),"") -> Dog | D35: =IFERROR(VLOOKUP(B35,'Cat 2 Setup'!$A:$F,4,FALSE),"") ->  | E35: =IFERROR(VLOOKUP(B35,'Cat 2 Setup'!$A:$F,3,FALSE),"") -> 0 | F35: =IFERROR(VLOOKUP(B35,'Cat 2 Setup'!$A:$F,6,FALSE),"") ->  | G35: =IFERROR(E35/$E$159,"") ->  | H35: =IFERROR(F35/D35,"") ->  | I35: =IFERROR(J35-L35,"") ->  | J35: =IFERROR(D35/E35,"") ->  | K35: =IFERROR(E35/$F$3,"") ->  | L35: =IFERROR(J35*H35,"") -> 
A36: Proposed | C36: =IFERROR(IF(AND(I36>$I$160,G36>$G$160),"Star",IF(AND(I36>$I$160,G36<$G$160),"Puzzle",IF(AND(I36<$I$160,G36>$G$160),"Plow Horse","Dog"))),"") -> Dog | D36: =IFERROR(IF(J36="",D35,E36*J36),D35) ->  | E36: =IFERROR(IF(K36="",E35,K36*$F$3),E35) -> 0 | F36: =IFERROR(D36*H36,F35) ->  | G36: =IFERROR(IF(E36="",G35,E36/$E$160),G35) ->  | H36: =IFERROR(IF(L36="",H35,L36/J36),H35) ->  | I36: =IFERROR(J36-L36,"") ->  | J36: =J35 ->  | K36: =K35 ->  | L36: =L35 -> 
A38: Baseline | B38: ='Cat 2 Setup'!A19 -> 0 | C38: =IFERROR(IF(AND(I38>$I$159,G38>$G$159),"Star",IF(AND(I38>$I$159,G38<$G$159),"Puzzle",IF(AND(I38<$I$159,G38>$G$159),"Plow Horse","Dog"))),"") -> Dog | D38: =IFERROR(VLOOKUP(B38,'Cat 2 Setup'!$A:$F,4,FALSE),"") ->  | E38: =IFERROR(VLOOKUP(B38,'Cat 2 Setup'!$A:$F,3,FALSE),"") -> 0 | F38: =IFERROR(VLOOKUP(B38,'Cat 2 Setup'!$A:$F,6,FALSE),"") ->  | G38: =IFERROR(E38/$E$159,"") ->  | H38: =IFERROR(F38/D38,"") ->  | I38: =IFERROR(J38-L38,"") ->  | J38: =IFERROR(D38/E38,"") ->  | K38: =IFERROR(E38/$F$3,"") ->  | L38: =IFERROR(J38*H38,"") -> 
A39: Proposed | C39: =IFERROR(IF(AND(I39>$I$160,G39>$G$160),"Star",IF(AND(I39>$I$160,G39<$G$160),"Puzzle",IF(AND(I39<$I$160,G39>$G$160),"Plow Horse","Dog"))),"") -> Dog | D39: =IFERROR(IF(J39="",D38,E39*J39),D38) ->  | E39: =IFERROR(IF(K39="",E38,K39*$F$3),E38) -> 0 | F39: =IFERROR(D39*H39,F38) ->  | G39: =IFERROR(IF(E39="",G38,E39/$E$160),G38) ->  | H39: =IFERROR(IF(L39="",H38,L39/J39),H38) ->  | I39: =IFERROR(J39-L39,"") ->  | J39: =J38 ->  | K39: =K38 ->  | L39: =L38 -> 
A41: Baseline | B41: ='Cat 2 Setup'!A20 -> 0 | C41: =IFERROR(IF(AND(I41>$I$159,G41>$G$159),"Star",IF(AND(I41>$I$159,G41<$G$159),"Puzzle",IF(AND(I41<$I$159,G41>$G$159),"Plow Horse","Dog"))),"") -> Dog | D41: =IFERROR(VLOOKUP(B41,'Cat 2 Setup'!$A:$F,4,FALSE),"") ->  | E41: =IFERROR(VLOOKUP(B41,'Cat 2 Setup'!$A:$F,3,FALSE),"") -> 0 | F41: =IFERROR(VLOOKUP(B41,'Cat 2 Setup'!$A:$F,6,FALSE),"") ->  | G41: =IFERROR(E41/$E$159,"") ->  | H41: =IFERROR(F41/D41,"") ->  | I41: =IFERROR(J41-L41,"") ->  | J41: =IFERROR(D41/E41,"") ->  | K41: =IFERROR(E41/$F$3,"") ->  | L41: =IFERROR(J41*H41,"") -> 
A42: Proposed | C42: =IFERROR(IF(AND(I42>$I$160,G42>$G$160),"Star",IF(AND(I42>$I$160,G42<$G$160),"Puzzle",IF(AND(I42<$I$160,G42>$G$160),"Plow Horse","Dog"))),"") -> Dog | D42: =IFERROR(IF(J42="",D41,E42*J42),D41) ->  | E42: =IFERROR(IF(K42="",E41,K42*$F$3),E41) -> 0 | F42: =IFERROR(D42*H42,F41) ->  | G42: =IFERROR(IF(E42="",G41,E42/$E$160),G41) ->  | H42: =IFERROR(IF(L42="",H41,L42/J42),H41) ->  | I42: =IFERROR(J42-L42,"") ->  | J42: =J41 ->  | K42: =K41 ->  | L42: =L41 -> 
A44: Baseline | B44: ='Cat 2 Setup'!A21 -> 0 | C44: =IFERROR(IF(AND(I44>$I$159,G44>$G$159),"Star",IF(AND(I44>$I$159,G44<$G$159),"Puzzle",IF(AND(I44<$I$159,G44>$G$159),"Plow Horse","Dog"))),"") -> Dog | D44: =IFERROR(VLOOKUP(B44,'Cat 2 Setup'!$A:$F,4,FALSE),"") ->  | E44: =IFERROR(VLOOKUP(B44,'Cat 2 Setup'!$A:$F,3,FALSE),"") -> 0 | F44: =IFERROR(VLOOKUP(B44,'Cat 2 Setup'!$A:$F,6,FALSE),"") ->  | G44: =IFERROR(E44/$E$159,"") ->  | H44: =IFERROR(F44/D44,"") ->  | I44: =IFERROR(J44-L44,"") ->  | J44: =IFERROR(D44/E44,"") ->  | K44: =IFERROR(E44/$F$3,"") ->  | L44: =IFERROR(J44*H44,"") -> 
A45: Proposed | C45: =IFERROR(IF(AND(I45>$I$160,G45>$G$160),"Star",IF(AND(I45>$I$160,G45<$G$160),"Puzzle",IF(AND(I45<$I$160,G45>$G$160),"Plow Horse","Dog"))),"") -> Dog | D45: =IFERROR(IF(J45="",D44,E45*J45),D44) ->  | E45: =IFERROR(IF(K45="",E44,K45*$F$3),E44) -> 0 | F45: =IFERROR(D45*H45,F44) ->  | G45: =IFERROR(IF(E45="",G44,E45/$E$160),G44) ->  | H45: =IFERROR(IF(L45="",H44,L45/J45),H44) ->  | I45: =IFERROR(J45-L45,"") ->  | J45: =J44 ->  | K45: =K44 ->  | L45: =L44 -> 
A47: Baseline | B47: ='Cat 2 Setup'!A22 -> 0 | C47: =IFERROR(IF(AND(I47>$I$159,G47>$G$159),"Star",IF(AND(I47>$I$159,G47<$G$159),"Puzzle",IF(AND(I47<$I$159,G47>$G$159),"Plow Horse","Dog"))),"") -> Dog | D47: =IFERROR(VLOOKUP(B47,'Cat 2 Setup'!$A:$F,4,FALSE),"") ->  | E47: =IFERROR(VLOOKUP(B47,'Cat 2 Setup'!$A:$F,3,FALSE),"") -> 0 | F47: =IFERROR(VLOOKUP(B47,'Cat 2 Setup'!$A:$F,6,FALSE),"") ->  | G47: =IFERROR(E47/$E$159,"") ->  | H47: =IFERROR(F47/D47,"") ->  | I47: =IFERROR(J47-L47,"") ->  | J47: =IFERROR(D47/E47,"") ->  | K47: =IFERROR(E47/$F$3,"") ->  | L47: =IFERROR(J47*H47,"") -> 
A48: Proposed | C48: =IFERROR(IF(AND(I48>$I$160,G48>$G$160),"Star",IF(AND(I48>$I$160,G48<$G$160),"Puzzle",IF(AND(I48<$I$160,G48>$G$160),"Plow Horse","Dog"))),"") -> Dog | D48: =IFERROR(IF(J48="",D47,E48*J48),D47) ->  | E48: =IFERROR(IF(K48="",E47,K48*$F$3),E47) -> 0 | F48: =IFERROR(D48*H48,F47) ->  | G48: =IFERROR(IF(E48="",G47,E48/$E$160),G47) ->  | H48: =IFERROR(IF(L48="",H47,L48/J48),H47) ->  | I48: =IFERROR(J48-L48,"") ->  | J48: =J47 ->  | K48: =K47 ->  | L48: =L47 -> 
A50: Baseline | B50: ='Cat 2 Setup'!A23 -> 0 | C50: =IFERROR(IF(AND(I50>$I$159,G50>$G$159),"Star",IF(AND(I50>$I$159,G50<$G$159),"Puzzle",IF(AND(I50<$I$159,G50>$G$159),"Plow Horse","Dog"))),"") -> Dog | D50: =IFERROR(VLOOKUP(B50,'Cat 2 Setup'!$A:$F,4,FALSE),"") ->  | E50: =IFERROR(VLOOKUP(B50,'Cat 2 Setup'!$A:$F,3,FALSE),"") -> 0 | F50: =IFERROR(VLOOKUP(B50,'Cat 2 Setup'!$A:$F,6,FALSE),"") ->  | G50: =IFERROR(E50/$E$159,"") ->  | H50: =IFERROR(F50/D50,"") ->  | I50: =IFERROR(J50-L50,"") ->  | J50: =IFERROR(D50/E50,"") ->  | K50: =IFERROR(E50/$F$3,"") ->  | L50: =IFERROR(J50*H50,"") -> 
A51: Proposed | C51: =IFERROR(IF(AND(I51>$I$160,G51>$G$160),"Star",IF(AND(I51>$I$160,G51<$G$160),"Puzzle",IF(AND(I51<$I$160,G51>$G$160),"Plow Horse","Dog"))),"") -> Dog | D51: =IFERROR(IF(J51="",D50,E51*J51),D50) ->  | E51: =IFERROR(IF(K51="",E50,K51*$F$3),E50) -> 0 | F51: =IFERROR(D51*H51,F50) ->  | G51: =IFERROR(IF(E51="",G50,E51/$E$160),G50) ->  | H51: =IFERROR(IF(L51="",H50,L51/J51),H50) ->  | I51: =IFERROR(J51-L51,"") ->  | J51: =J50 ->  | K51: =K50 ->  | L51: =L50 -> 
A53: Baseline | B53: ='Cat 2 Setup'!A24 -> 0 | C53: =IFERROR(IF(AND(I53>$I$159,G53>$G$159),"Star",IF(AND(I53>$I$159,G53<$G$159),"Puzzle",IF(AND(I53<$I$159,G53>$G$159),"Plow Horse","Dog"))),"") -> Dog | D53: =IFERROR(VLOOKUP(B53,'Cat 2 Setup'!$A:$F,4,FALSE),"") ->  | E53: =IFERROR(VLOOKUP(B53,'Cat 2 Setup'!$A:$F,3,FALSE),"") -> 0 | F53: =IFERROR(VLOOKUP(B53,'Cat 2 Setup'!$A:$F,6,FALSE),"") ->  | G53: =IFERROR(E53/$E$159,"") ->  | H53: =IFERROR(F53/D53,"") ->  | I53: =IFERROR(J53-L53,"") ->  | J53: =IFERROR(D53/E53,"") ->  | K53: =IFERROR(E53/$F$3,"") ->  | L53: =IFERROR(J53*H53,"") -> 
A54: Proposed | C54: =IFERROR(IF(AND(I54>$I$160,G54>$G$160),"Star",IF(AND(I54>$I$160,G54<$G$160),"Puzzle",IF(AND(I54<$I$160,G54>$G$160),"Plow Horse","Dog"))),"") -> Dog | D54: =IFERROR(IF(J54="",D53,E54*J54),D53) ->  | E54: =IFERROR(IF(K54="",E53,K54*$F$3),E53) -> 0 | F54: =IFERROR(D54*H54,F53) ->  | G54: =IFERROR(IF(E54="",G53,E54/$E$160),G53) ->  | H54: =IFERROR(IF(L54="",H53,L54/J54),H53) ->  | I54: =IFERROR(J54-L54,"") ->  | J54: =J53 ->  | K54: =K53 ->  | L54: =L53 -> 
A56: Baseline | B56: ='Cat 2 Setup'!A25 -> 0 | C56: =IFERROR(IF(AND(I56>$I$159,G56>$G$159),"Star",IF(AND(I56>$I$159,G56<$G$159),"Puzzle",IF(AND(I56<$I$159,G56>$G$159),"Plow Horse","Dog"))),"") -> Dog | D56: =IFERROR(VLOOKUP(B56,'Cat 2 Setup'!$A:$F,4,FALSE),"") ->  | E56: =IFERROR(VLOOKUP(B56,'Cat 2 Setup'!$A:$F,3,FALSE),"") -> 0 | F56: =IFERROR(VLOOKUP(B56,'Cat 2 Setup'!$A:$F,6,FALSE),"") ->  | G56: =IFERROR(E56/$E$159,"") ->  | H56: =IFERROR(F56/D56,"") ->  | I56: =IFERROR(J56-L56,"") ->  | J56: =IFERROR(D56/E56,"") ->  | K56: =IFERROR(E56/$F$3,"") ->  | L56: =IFERROR(J56*H56,"") -> 
A57: Proposed | C57: =IFERROR(IF(AND(I57>$I$160,G57>$G$160),"Star",IF(AND(I57>$I$160,G57<$G$160),"Puzzle",IF(AND(I57<$I$160,G57>$G$160),"Plow Horse","Dog"))),"") -> Dog | D57: =IFERROR(IF(J57="",D56,E57*J57),D56) ->  | E57: =IFERROR(IF(K57="",E56,K57*$F$3),E56) -> 0 | F57: =IFERROR(D57*H57,F56) ->  | G57: =IFERROR(IF(E57="",G56,E57/$E$160),G56) ->  | H57: =IFERROR(IF(L57="",H56,L57/J57),H56) ->  | I57: =IFERROR(J57-L57,"") ->  | J57: =J56 ->  | K57: =K56 ->  | L57: =L56 -> 
A59: Baseline | B59: ='Cat 2 Setup'!A26 -> 0 | C59: =IFERROR(IF(AND(I59>$I$159,G59>$G$159),"Star",IF(AND(I59>$I$159,G59<$G$159),"Puzzle",IF(AND(I59<$I$159,G59>$G$159),"Plow Horse","Dog"))),"") -> Dog | D59: =IFERROR(VLOOKUP(B59,'Cat 2 Setup'!$A:$F,4,FALSE),"") ->  | E59: =IFERROR(VLOOKUP(B59,'Cat 2 Setup'!$A:$F,3,FALSE),"") -> 0 | F59: =IFERROR(VLOOKUP(B59,'Cat 2 Setup'!$A:$F,6,FALSE),"") ->  | G59: =IFERROR(E59/$E$159,"") ->  | H59: =IFERROR(F59/D59,"") ->  | I59: =IFERROR(J59-L59,"") ->  | J59: =IFERROR(D59/E59,"") ->  | K59: =IFERROR(E59/$F$3,"") ->  | L59: =IFERROR(J59*H59,"") -> 
A60: Proposed | C60: =IFERROR(IF(AND(I60>$I$160,G60>$G$160),"Star",IF(AND(I60>$I$160,G60<$G$160),"Puzzle",IF(AND(I60<$I$160,G60>$G$160),"Plow Horse","Dog"))),"") -> Dog | D60: =IFERROR(IF(J60="",D59,E60*J60),D59) ->  | E60: =IFERROR(IF(K60="",E59,K60*$F$3),E59) -> 0 | F60: =IFERROR(D60*H60,F59) ->  | G60: =IFERROR(IF(E60="",G59,E60/$E$160),G59) ->  | H60: =IFERROR(IF(L60="",H59,L60/J60),H59) ->  | I60: =IFERROR(J60-L60,"") ->  | J60: =J59 ->  | K60: =K59 ->  | L60: =L59 -> 
A62: Baseline | B62: ='Cat 2 Setup'!A27 -> 0 | C62: =IFERROR(IF(AND(I62>$I$159,G62>$G$159),"Star",IF(AND(I62>$I$159,G62<$G$159),"Puzzle",IF(AND(I62<$I$159,G62>$G$159),"Plow Horse","Dog"))),"") -> Dog | D62: =IFERROR(VLOOKUP(B62,'Cat 2 Setup'!$A:$F,4,FALSE),"") ->  | E62: =IFERROR(VLOOKUP(B62,'Cat 2 Setup'!$A:$F,3,FALSE),"") -> 0 | F62: =IFERROR(VLOOKUP(B62,'Cat 2 Setup'!$A:$F,6,FALSE),"") ->  | G62: =IFERROR(E62/$E$159,"") ->  | H62: =IFERROR(F62/D62,"") ->  | I62: =IFERROR(J62-L62,"") ->  | J62: =IFERROR(D62/E62,"") ->  | K62: =IFERROR(E62/$F$3,"") ->  | L62: =IFERROR(J62*H62,"") -> 
A63: Proposed | C63: =IFERROR(IF(AND(I63>$I$160,G63>$G$160),"Star",IF(AND(I63>$I$160,G63<$G$160),"Puzzle",IF(AND(I63<$I$160,G63>$G$160),"Plow Horse","Dog"))),"") -> Dog | D63: =IFERROR(IF(J63="",D62,E63*J63),D62) ->  | E63: =IFERROR(IF(K63="",E62,K63*$F$3),E62) -> 0 | F63: =IFERROR(D63*H63,F62) ->  | G63: =IFERROR(IF(E63="",G62,E63/$E$160),G62) ->  | H63: =IFERROR(IF(L63="",H62,L63/J63),H62) ->  | I63: =IFERROR(J63-L63,"") ->  | J63: =J62 ->  | K63: =K62 ->  | L63: =L62 -> 
A65: Baseline | B65: ='Cat 2 Setup'!A28 -> 0 | C65: =IFERROR(IF(AND(I65>$I$159,G65>$G$159),"Star",IF(AND(I65>$I$159,G65<$G$159),"Puzzle",IF(AND(I65<$I$159,G65>$G$159),"Plow Horse","Dog"))),"") -> Dog | D65: =IFERROR(VLOOKUP(B65,'Cat 2 Setup'!$A:$F,4,FALSE),"") ->  | E65: =IFERROR(VLOOKUP(B65,'Cat 2 Setup'!$A:$F,3,FALSE),"") -> 0 | F65: =IFERROR(VLOOKUP(B65,'Cat 2 Setup'!$A:$F,6,FALSE),"") ->  | G65: =IFERROR(E65/$E$159,"") ->  | H65: =IFERROR(F65/D65,"") ->  | I65: =IFERROR(J65-L65,"") ->  | J65: =IFERROR(D65/E65,"") ->  | K65: =IFERROR(E65/$F$3,"") ->  | L65: =IFERROR(J65*H65,"") -> 
A66: Proposed | C66: =IFERROR(IF(AND(I66>$I$160,G66>$G$160),"Star",IF(AND(I66>$I$160,G66<$G$160),"Puzzle",IF(AND(I66<$I$160,G66>$G$160),"Plow Horse","Dog"))),"") -> Dog | D66: =IFERROR(IF(J66="",D65,E66*J66),D65) ->  | E66: =IFERROR(IF(K66="",E65,K66*$F$3),E65) -> 0 | F66: =IFERROR(D66*H66,F65) ->  | G66: =IFERROR(IF(E66="",G65,E66/$E$160),G65) ->  | H66: =IFERROR(IF(L66="",H65,L66/J66),H65) ->  | I66: =IFERROR(J66-L66,"") ->  | J66: =J65 ->  | K66: =K65 ->  | L66: =L65 -> 
A68: Baseline | B68: ='Cat 2 Setup'!A29 -> 0 | C68: =IFERROR(IF(AND(I68>$I$159,G68>$G$159),"Star",IF(AND(I68>$I$159,G68<$G$159),"Puzzle",IF(AND(I68<$I$159,G68>$G$159),"Plow Horse","Dog"))),"") -> Dog | D68: =IFERROR(VLOOKUP(B68,'Cat 2 Setup'!$A:$F,4,FALSE),"") ->  | E68: =IFERROR(VLOOKUP(B68,'Cat 2 Setup'!$A:$F,3,FALSE),"") -> 0 | F68: =IFERROR(VLOOKUP(B68,'Cat 2 Setup'!$A:$F,6,FALSE),"") ->  | G68: =IFERROR(E68/$E$159,"") ->  | H68: =IFERROR(F68/D68,"") ->  | I68: =IFERROR(J68-L68,"") ->  | J68: =IFERROR(D68/E68,"") ->  | K68: =IFERROR(E68/$F$3,"") ->  | L68: =IFERROR(J68*H68,"") -> 
A69: Proposed | C69: =IFERROR(IF(AND(I69>$I$160,G69>$G$160),"Star",IF(AND(I69>$I$160,G69<$G$160),"Puzzle",IF(AND(I69<$I$160,G69>$G$160),"Plow Horse","Dog"))),"") -> Dog | D69: =IFERROR(IF(J69="",D68,E69*J69),D68) ->  | E69: =IFERROR(IF(K69="",E68,K69*$F$3),E68) -> 0 | F69: =IFERROR(D69*H69,F68) ->  | G69: =IFERROR(IF(E69="",G68,E69/$E$160),G68) ->  | H69: =IFERROR(IF(L69="",H68,L69/J69),H68) ->  | I69: =IFERROR(J69-L69,"") ->  | J69: =J68 ->  | K69: =K68 ->  | L69: =L68 -> 
A71: Baseline | B71: ='Cat 2 Setup'!A30 -> 0 | C71: =IFERROR(IF(AND(I71>$I$159,G71>$G$159),"Star",IF(AND(I71>$I$159,G71<$G$159),"Puzzle",IF(AND(I71<$I$159,G71>$G$159),"Plow Horse","Dog"))),"") -> Dog | D71: =IFERROR(VLOOKUP(B71,'Cat 2 Setup'!$A:$F,4,FALSE),"") ->  | E71: =IFERROR(VLOOKUP(B71,'Cat 2 Setup'!$A:$F,3,FALSE),"") -> 0 | F71: =IFERROR(VLOOKUP(B71,'Cat 2 Setup'!$A:$F,6,FALSE),"") ->  | G71: =IFERROR(E71/$E$159,"") ->  | H71: =IFERROR(F71/D71,"") ->  | I71: =IFERROR(J71-L71,"") ->  | J71: =IFERROR(D71/E71,"") ->  | K71: =IFERROR(E71/$F$3,"") ->  | L71: =IFERROR(J71*H71,"") -> 
A72: Proposed | C72: =IFERROR(IF(AND(I72>$I$160,G72>$G$160),"Star",IF(AND(I72>$I$160,G72<$G$160),"Puzzle",IF(AND(I72<$I$160,G72>$G$160),"Plow Horse","Dog"))),"") -> Dog | D72: =IFERROR(IF(J72="",D71,E72*J72),D71) ->  | E72: =IFERROR(IF(K72="",E71,K72*$F$3),E71) -> 0 | F72: =IFERROR(D72*H72,F71) ->  | G72: =IFERROR(IF(E72="",G71,E72/$E$160),G71) ->  | H72: =IFERROR(IF(L72="",H71,L72/J72),H71) ->  | I72: =IFERROR(J72-L72,"") ->  | J72: =J71 ->  | K72: =K71 ->  | L72: =L71 -> 
A74: Baseline | B74: ='Cat 2 Setup'!A31 -> 0 | C74: =IFERROR(IF(AND(I74>$I$159,G74>$G$159),"Star",IF(AND(I74>$I$159,G74<$G$159),"Puzzle",IF(AND(I74<$I$159,G74>$G$159),"Plow Horse","Dog"))),"") -> Dog | D74: =IFERROR(VLOOKUP(B74,'Cat 2 Setup'!$A:$F,4,FALSE),"") ->  | E74: =IFERROR(VLOOKUP(B74,'Cat 2 Setup'!$A:$F,3,FALSE),"") -> 0 | F74: =IFERROR(VLOOKUP(B74,'Cat 2 Setup'!$A:$F,6,FALSE),"") ->  | G74: =IFERROR(E74/$E$159,"") ->  | H74: =IFERROR(F74/D74,"") ->  | I74: =IFERROR(J74-L74,"") ->  | J74: =IFERROR(D74/E74,"") ->  | K74: =IFERROR(E74/$F$3,"") ->  | L74: =IFERROR(J74*H74,"") -> 
A75: Proposed | C75: =IFERROR(IF(AND(I75>$I$160,G75>$G$160),"Star",IF(AND(I75>$I$160,G75<$G$160),"Puzzle",IF(AND(I75<$I$160,G75>$G$160),"Plow Horse","Dog"))),"") -> Dog | D75: =IFERROR(IF(J75="",D74,E75*J75),D74) ->  | E75: =IFERROR(IF(K75="",E74,K75*$F$3),E74) -> 0 | F75: =IFERROR(D75*H75,F74) ->  | G75: =IFERROR(IF(E75="",G74,E75/$E$160),G74) ->  | H75: =IFERROR(IF(L75="",H74,L75/J75),H74) ->  | I75: =IFERROR(J75-L75,"") ->  | J75: =J74 ->  | K75: =K74 ->  | L75: =L74 -> 
A77: Baseline | B77: ='Cat 2 Setup'!A32 -> 0 | C77: =IFERROR(IF(AND(I77>$I$159,G77>$G$159),"Star",IF(AND(I77>$I$159,G77<$G$159),"Puzzle",IF(AND(I77<$I$159,G77>$G$159),"Plow Horse","Dog"))),"") -> Dog | D77: =IFERROR(VLOOKUP(B77,'Cat 2 Setup'!$A:$F,4,FALSE),"") ->  | E77: =IFERROR(VLOOKUP(B77,'Cat 2 Setup'!$A:$F,3,FALSE),"") -> 0 | F77: =IFERROR(VLOOKUP(B77,'Cat 2 Setup'!$A:$F,6,FALSE),"") ->  | G77: =IFERROR(E77/$E$159,"") ->  | H77: =IFERROR(F77/D77,"") ->  | I77: =IFERROR(J77-L77,"") ->  | J77: =IFERROR(D77/E77,"") ->  | K77: =IFERROR(E77/$F$3,"") ->  | L77: =IFERROR(J77*H77,"") -> 
A78: Proposed | C78: =IFERROR(IF(AND(I78>$I$160,G78>$G$160),"Star",IF(AND(I78>$I$160,G78<$G$160),"Puzzle",IF(AND(I78<$I$160,G78>$G$160),"Plow Horse","Dog"))),"") -> Dog | D78: =IFERROR(IF(J78="",D77,E78*J78),D77) ->  | E78: =IFERROR(IF(K78="",E77,K78*$F$3),E77) -> 0 | F78: =IFERROR(D78*H78,F77) ->  | G78: =IFERROR(IF(E78="",G77,E78/$E$160),G77) ->  | H78: =IFERROR(IF(L78="",H77,L78/J78),H77) ->  | I78: =IFERROR(J78-L78,"") ->  | J78: =J77 ->  | K78: =K77 ->  | L78: =L77 -> 
A80: Baseline | B80: ='Cat 2 Setup'!A33 -> 0 | C80: =IFERROR(IF(AND(I80>$I$159,G80>$G$159),"Star",IF(AND(I80>$I$159,G80<$G$159),"Puzzle",IF(AND(I80<$I$159,G80>$G$159),"Plow Horse","Dog"))),"") -> Dog | D80: =IFERROR(VLOOKUP(B80,'Cat 2 Setup'!$A:$F,4,FALSE),"") ->  | E80: =IFERROR(VLOOKUP(B80,'Cat 2 Setup'!$A:$F,3,FALSE),"") -> 0 | F80: =IFERROR(VLOOKUP(B80,'Cat 2 Setup'!$A:$F,6,FALSE),"") ->  | G80: =IFERROR(E80/$E$159,"") ->  | H80: =IFERROR(F80/D80,"") ->  | I80: =IFERROR(J80-L80,"") ->  | J80: =IFERROR(D80/E80,"") ->  | K80: =IFERROR(E80/$F$3,"") ->  | L80: =IFERROR(J80*H80,"") -> 
A81: Proposed | C81: =IFERROR(IF(AND(I81>$I$160,G81>$G$160),"Star",IF(AND(I81>$I$160,G81<$G$160),"Puzzle",IF(AND(I81<$I$160,G81>$G$160),"Plow Horse","Dog"))),"") -> Dog | D81: =IFERROR(IF(J81="",D80,E81*J81),D80) ->  | E81: =IFERROR(IF(K81="",E80,K81*$F$3),E80) -> 0 | F81: =IFERROR(D81*H81,F80) ->  | G81: =IFERROR(IF(E81="",G80,E81/$E$160),G80) ->  | H81: =IFERROR(IF(L81="",H80,L81/J81),H80) ->  | I81: =IFERROR(J81-L81,"") ->  | J81: =J80 ->  | K81: =K80 ->  | L81: =L80 -> 
A83: Baseline | B83: ='Cat 2 Setup'!A34 -> 0 | C83: =IFERROR(IF(AND(I83>$I$159,G83>$G$159),"Star",IF(AND(I83>$I$159,G83<$G$159),"Puzzle",IF(AND(I83<$I$159,G83>$G$159),"Plow Horse","Dog"))),"") -> Dog | D83: =IFERROR(VLOOKUP(B83,'Cat 2 Setup'!$A:$F,4,FALSE),"") ->  | E83: =IFERROR(VLOOKUP(B83,'Cat 2 Setup'!$A:$F,3,FALSE),"") -> 0 | F83: =IFERROR(VLOOKUP(B83,'Cat 2 Setup'!$A:$F,6,FALSE),"") ->  | G83: =IFERROR(E83/$E$159,"") ->  | H83: =IFERROR(F83/D83,"") ->  | I83: =IFERROR(J83-L83,"") ->  | J83: =IFERROR(D83/E83,"") ->  | K83: =IFERROR(E83/$F$3,"") ->  | L83: =IFERROR(J83*H83,"") -> 
A84: Proposed | C84: =IFERROR(IF(AND(I84>$I$160,G84>$G$160),"Star",IF(AND(I84>$I$160,G84<$G$160),"Puzzle",IF(AND(I84<$I$160,G84>$G$160),"Plow Horse","Dog"))),"") -> Dog | D84: =IFERROR(IF(J84="",D83,E84*J84),D83) ->  | E84: =IFERROR(IF(K84="",E83,K84*$F$3),E83) -> 0 | F84: =IFERROR(D84*H84,F83) ->  | G84: =IFERROR(IF(E84="",G83,E84/$E$160),G83) ->  | H84: =IFERROR(IF(L84="",H83,L84/J84),H83) ->  | I84: =IFERROR(J84-L84,"") ->  | J84: =J83 ->  | K84: =K83 ->  | L84: =L83 -> 
A86: Baseline | B86: ='Cat 2 Setup'!A35 -> 0 | C86: =IFERROR(IF(AND(I86>$I$159,G86>$G$159),"Star",IF(AND(I86>$I$159,G86<$G$159),"Puzzle",IF(AND(I86<$I$159,G86>$G$159),"Plow Horse","Dog"))),"") -> Dog | D86: =IFERROR(VLOOKUP(B86,'Cat 2 Setup'!$A:$F,4,FALSE),"") ->  | E86: =IFERROR(VLOOKUP(B86,'Cat 2 Setup'!$A:$F,3,FALSE),"") -> 0 | F86: =IFERROR(VLOOKUP(B86,'Cat 2 Setup'!$A:$F,6,FALSE),"") ->  | G86: =IFERROR(E86/$E$159,"") ->  | H86: =IFERROR(F86/D86,"") ->  | I86: =IFERROR(J86-L86,"") ->  | J86: =IFERROR(D86/E86,"") ->  | K86: =IFERROR(E86/$F$3,"") ->  | L86: =IFERROR(J86*H86,"") -> 
A87: Proposed | C87: =IFERROR(IF(AND(I87>$I$160,G87>$G$160),"Star",IF(AND(I87>$I$160,G87<$G$160),"Puzzle",IF(AND(I87<$I$160,G87>$G$160),"Plow Horse","Dog"))),"") -> Dog | D87: =IFERROR(IF(J87="",D86,E87*J87),D86) ->  | E87: =IFERROR(IF(K87="",E86,K87*$F$3),E86) -> 0 | F87: =IFERROR(D87*H87,F86) ->  | G87: =IFERROR(IF(E87="",G86,E87/$E$160),G86) ->  | H87: =IFERROR(IF(L87="",H86,L87/J87),H86) ->  | I87: =IFERROR(J87-L87,"") ->  | J87: =J86 ->  | K87: =K86 ->  | L87: =L86 -> 
A89: Baseline | B89: ='Cat 2 Setup'!A36 -> 0 | C89: =IFERROR(IF(AND(I89>$I$159,G89>$G$159),"Star",IF(AND(I89>$I$159,G89<$G$159),"Puzzle",IF(AND(I89<$I$159,G89>$G$159),"Plow Horse","Dog"))),"") -> Dog | D89: =IFERROR(VLOOKUP(B89,'Cat 2 Setup'!$A:$F,4,FALSE),"") ->  | E89: =IFERROR(VLOOKUP(B89,'Cat 2 Setup'!$A:$F,3,FALSE),"") -> 0 | F89: =IFERROR(VLOOKUP(B89,'Cat 2 Setup'!$A:$F,6,FALSE),"") ->  | G89: =IFERROR(E89/$E$159,"") ->  | H89: =IFERROR(F89/D89,"") ->  | I89: =IFERROR(J89-L89,"") ->  | J89: =IFERROR(D89/E89,"") ->  | K89: =IFERROR(E89/$F$3,"") ->  | L89: =IFERROR(J89*H89,"") -> 
A90: Proposed | C90: =IFERROR(IF(AND(I90>$I$160,G90>$G$160),"Star",IF(AND(I90>$I$160,G90<$G$160),"Puzzle",IF(AND(I90<$I$160,G90>$G$160),"Plow Horse","Dog"))),"") -> Dog | D90: =IFERROR(IF(J90="",D89,E90*J90),D89) ->  | E90: =IFERROR(IF(K90="",E89,K90*$F$3),E89) -> 0 | F90: =IFERROR(D90*H90,F89) ->  | G90: =IFERROR(IF(E90="",G89,E90/$E$160),G89) ->  | H90: =IFERROR(IF(L90="",H89,L90/J90),H89) ->  | I90: =IFERROR(J90-L90,"") ->  | J90: =J89 ->  | K90: =K89 ->  | L90: =L89 -> 
A92: Baseline | B92: ='Cat 2 Setup'!A37 -> 0 | C92: =IFERROR(IF(AND(I92>$I$159,G92>$G$159),"Star",IF(AND(I92>$I$159,G92<$G$159),"Puzzle",IF(AND(I92<$I$159,G92>$G$159),"Plow Horse","Dog"))),"") -> Dog | D92: =IFERROR(VLOOKUP(B92,'Cat 2 Setup'!$A:$F,4,FALSE),"") ->  | E92: =IFERROR(VLOOKUP(B92,'Cat 2 Setup'!$A:$F,3,FALSE),"") -> 0 | F92: =IFERROR(VLOOKUP(B92,'Cat 2 Setup'!$A:$F,6,FALSE),"") ->  | G92: =IFERROR(E92/$E$159,"") ->  | H92: =IFERROR(F92/D92,"") ->  | I92: =IFERROR(J92-L92,"") ->  | J92: =IFERROR(D92/E92,"") ->  | K92: =IFERROR(E92/$F$3,"") ->  | L92: =IFERROR(J92*H92,"") -> 
A93: Proposed | C93: =IFERROR(IF(AND(I93>$I$160,G93>$G$160),"Star",IF(AND(I93>$I$160,G93<$G$160),"Puzzle",IF(AND(I93<$I$160,G93>$G$160),"Plow Horse","Dog"))),"") -> Dog | D93: =IFERROR(IF(J93="",D92,E93*J93),D92) ->  | E93: =IFERROR(IF(K93="",E92,K93*$F$3),E92) -> 0 | F93: =IFERROR(D93*H93,F92) ->  | G93: =IFERROR(IF(E93="",G92,E93/$E$160),G92) ->  | H93: =IFERROR(IF(L93="",H92,L93/J93),H92) ->  | I93: =IFERROR(J93-L93,"") ->  | J93: =J92 ->  | K93: =K92 ->  | L93: =L92 -> 
A95: Baseline | B95: ='Cat 2 Setup'!A38 -> 0 | C95: =IFERROR(IF(AND(I95>$I$159,G95>$G$159),"Star",IF(AND(I95>$I$159,G95<$G$159),"Puzzle",IF(AND(I95<$I$159,G95>$G$159),"Plow Horse","Dog"))),"") -> Dog | D95: =IFERROR(VLOOKUP(B95,'Cat 2 Setup'!$A:$F,4,FALSE),"") ->  | E95: =IFERROR(VLOOKUP(B95,'Cat 2 Setup'!$A:$F,3,FALSE),"") -> 0 | F95: =IFERROR(VLOOKUP(B95,'Cat 2 Setup'!$A:$F,6,FALSE),"") ->  | G95: =IFERROR(E95/$E$159,"") ->  | H95: =IFERROR(F95/D95,"") ->  | I95: =IFERROR(J95-L95,"") ->  | J95: =IFERROR(D95/E95,"") ->  | K95: =IFERROR(E95/$F$3,"") ->  | L95: =IFERROR(J95*H95,"") -> 
A96: Proposed | C96: =IFERROR(IF(AND(I96>$I$160,G96>$G$160),"Star",IF(AND(I96>$I$160,G96<$G$160),"Puzzle",IF(AND(I96<$I$160,G96>$G$160),"Plow Horse","Dog"))),"") -> Dog | D96: =IFERROR(IF(J96="",D95,E96*J96),D95) ->  | E96: =IFERROR(IF(K96="",E95,K96*$F$3),E95) -> 0 | F96: =IFERROR(D96*H96,F95) ->  | G96: =IFERROR(IF(E96="",G95,E96/$E$160),G95) ->  | H96: =IFERROR(IF(L96="",H95,L96/J96),H95) ->  | I96: =IFERROR(J96-L96,"") ->  | J96: =J95 ->  | K96: =K95 ->  | L96: =L95 -> 
A98: Baseline | B98: ='Cat 2 Setup'!A39 -> 0 | C98: =IFERROR(IF(AND(I98>$I$159,G98>$G$159),"Star",IF(AND(I98>$I$159,G98<$G$159),"Puzzle",IF(AND(I98<$I$159,G98>$G$159),"Plow Horse","Dog"))),"") -> Dog | D98: =IFERROR(VLOOKUP(B98,'Cat 2 Setup'!$A:$F,4,FALSE),"") ->  | E98: =IFERROR(VLOOKUP(B98,'Cat 2 Setup'!$A:$F,3,FALSE),"") -> 0 | F98: =IFERROR(VLOOKUP(B98,'Cat 2 Setup'!$A:$F,6,FALSE),"") ->  | G98: =IFERROR(E98/$E$159,"") ->  | H98: =IFERROR(F98/D98,"") ->  | I98: =IFERROR(J98-L98,"") ->  | J98: =IFERROR(D98/E98,"") ->  | K98: =IFERROR(E98/$F$3,"") ->  | L98: =IFERROR(J98*H98,"") -> 
A99: Proposed | C99: =IFERROR(IF(AND(I99>$I$160,G99>$G$160),"Star",IF(AND(I99>$I$160,G99<$G$160),"Puzzle",IF(AND(I99<$I$160,G99>$G$160),"Plow Horse","Dog"))),"") -> Dog | D99: =IFERROR(IF(J99="",D98,E99*J99),D98) ->  | E99: =IFERROR(IF(K99="",E98,K99*$F$3),E98) -> 0 | F99: =IFERROR(D99*H99,F98) ->  | G99: =IFERROR(IF(E99="",G98,E99/$E$160),G98) ->  | H99: =IFERROR(IF(L99="",H98,L99/J99),H98) ->  | I99: =IFERROR(J99-L99,"") ->  | J99: =J98 ->  | K99: =K98 ->  | L99: =L98 -> 
A101: Baseline | B101: ='Cat 2 Setup'!A40 -> 0 | C101: =IFERROR(IF(AND(I101>$I$159,G101>$G$159),"Star",IF(AND(I101>$I$159,G101<$G$159),"Puzzle",IF(AND(I101<$I$159,G101>$G$159),"Plow Horse","Dog"))),"") -> Dog | D101: =IFERROR(VLOOKUP(B101,'Cat 2 Setup'!$A:$F,4,FALSE),"") ->  | E101: =IFERROR(VLOOKUP(B101,'Cat 2 Setup'!$A:$F,3,FALSE),"") -> 0 | F101: =IFERROR(VLOOKUP(B101,'Cat 2 Setup'!$A:$F,6,FALSE),"") ->  | G101: =IFERROR(E101/$E$159,"") ->  | H101: =IFERROR(F101/D101,"") ->  | I101: =IFERROR(J101-L101,"") ->  | J101: =IFERROR(D101/E101,"") ->  | K101: =IFERROR(E101/$F$3,"") ->  | L101: =IFERROR(J101*H101,"") -> 
A102: Proposed | C102: =IFERROR(IF(AND(I102>$I$160,G102>$G$160),"Star",IF(AND(I102>$I$160,G102<$G$160),"Puzzle",IF(AND(I102<$I$160,G102>$G$160),"Plow Horse","Dog"))),"") -> Dog | D102: =IFERROR(IF(J102="",D101,E102*J102),D101) ->  | E102: =IFERROR(IF(K102="",E101,K102*$F$3),E101) -> 0 | F102: =IFERROR(D102*H102,F101) ->  | G102: =IFERROR(IF(E102="",G101,E102/$E$160),G101) ->  | H102: =IFERROR(IF(L102="",H101,L102/J102),H101) ->  | I102: =IFERROR(J102-L102,"") ->  | J102: =J101 ->  | K102: =K101 ->  | L102: =L101 -> 
A104: Baseline | B104: ='Cat 2 Setup'!A41 -> 0 | C104: =IFERROR(IF(AND(I104>$I$159,G104>$G$159),"Star",IF(AND(I104>$I$159,G104<$G$159),"Puzzle",IF(AND(I104<$I$159,G104>$G$159),"Plow Horse","Dog"))),"") -> Dog | D104: =IFERROR(VLOOKUP(B104,'Cat 2 Setup'!$A:$F,4,FALSE),"") ->  | E104: =IFERROR(VLOOKUP(B104,'Cat 2 Setup'!$A:$F,3,FALSE),"") -> 0 | F104: =IFERROR(VLOOKUP(B104,'Cat 2 Setup'!$A:$F,6,FALSE),"") ->  | G104: =IFERROR(E104/$E$159,"") ->  | H104: =IFERROR(F104/D104,"") ->  | I104: =IFERROR(J104-L104,"") ->  | J104: =IFERROR(D104/E104,"") ->  | K104: =IFERROR(E104/$F$3,"") ->  | L104: =IFERROR(J104*H104,"") -> 
A105: Proposed | C105: =IFERROR(IF(AND(I105>$I$160,G105>$G$160),"Star",IF(AND(I105>$I$160,G105<$G$160),"Puzzle",IF(AND(I105<$I$160,G105>$G$160),"Plow Horse","Dog"))),"") -> Dog | D105: =IFERROR(IF(J105="",D104,E105*J105),D104) ->  | E105: =IFERROR(IF(K105="",E104,K105*$F$3),E104) -> 0 | F105: =IFERROR(D105*H105,F104) ->  | G105: =IFERROR(IF(E105="",G104,E105/$E$160),G104) ->  | H105: =IFERROR(IF(L105="",H104,L105/J105),H104) ->  | I105: =IFERROR(J105-L105,"") ->  | J105: =J104 ->  | K105: =K104 ->  | L105: =L104 -> 
A107: Baseline | B107: ='Cat 2 Setup'!A42 -> 0 | C107: =IFERROR(IF(AND(I107>$I$159,G107>$G$159),"Star",IF(AND(I107>$I$159,G107<$G$159),"Puzzle",IF(AND(I107<$I$159,G107>$G$159),"Plow Horse","Dog"))),"") -> Dog | D107: =IFERROR(VLOOKUP(B107,'Cat 2 Setup'!$A:$F,4,FALSE),"") ->  | E107: =IFERROR(VLOOKUP(B107,'Cat 2 Setup'!$A:$F,3,FALSE),"") -> 0 | F107: =IFERROR(VLOOKUP(B107,'Cat 2 Setup'!$A:$F,6,FALSE),"") ->  | G107: =IFERROR(E107/$E$159,"") ->  | H107: =IFERROR(F107/D107,"") ->  | I107: =IFERROR(J107-L107,"") ->  | J107: =IFERROR(D107/E107,"") ->  | K107: =IFERROR(E107/$F$3,"") ->  | L107: =IFERROR(J107*H107,"") -> 
A108: Proposed | C108: =IFERROR(IF(AND(I108>$I$160,G108>$G$160),"Star",IF(AND(I108>$I$160,G108<$G$160),"Puzzle",IF(AND(I108<$I$160,G108>$G$160),"Plow Horse","Dog"))),"") -> Dog | D108: =IFERROR(IF(J108="",D107,E108*J108),D107) ->  | E108: =IFERROR(IF(K108="",E107,K108*$F$3),E107) -> 0 | F108: =IFERROR(D108*H108,F107) ->  | G108: =IFERROR(IF(E108="",G107,E108/$E$160),G107) ->  | H108: =IFERROR(IF(L108="",H107,L108/J108),H107) ->  | I108: =IFERROR(J108-L108,"") ->  | J108: =J107 ->  | K108: =K107 ->  | L108: =L107 -> 
A110: Baseline | B110: ='Cat 2 Setup'!A43 -> 0 | C110: =IFERROR(IF(AND(I110>$I$159,G110>$G$159),"Star",IF(AND(I110>$I$159,G110<$G$159),"Puzzle",IF(AND(I110<$I$159,G110>$G$159),"Plow Horse","Dog"))),"") -> Dog | D110: =IFERROR(VLOOKUP(B110,'Cat 2 Setup'!$A:$F,4,FALSE),"") ->  | E110: =IFERROR(VLOOKUP(B110,'Cat 2 Setup'!$A:$F,3,FALSE),"") -> 0 | F110: =IFERROR(VLOOKUP(B110,'Cat 2 Setup'!$A:$F,6,FALSE),"") ->  | G110: =IFERROR(E110/$E$159,"") ->  | H110: =IFERROR(F110/D110,"") ->  | I110: =IFERROR(J110-L110,"") ->  | J110: =IFERROR(D110/E110,"") ->  | K110: =IFERROR(E110/$F$3,"") ->  | L110: =IFERROR(J110*H110,"") -> 
A111: Proposed | C111: =IFERROR(IF(AND(I111>$I$160,G111>$G$160),"Star",IF(AND(I111>$I$160,G111<$G$160),"Puzzle",IF(AND(I111<$I$160,G111>$G$160),"Plow Horse","Dog"))),"") -> Dog | D111: =IFERROR(IF(J111="",D110,E111*J111),D110) ->  | E111: =IFERROR(IF(K111="",E110,K111*$F$3),E110) -> 0 | F111: =IFERROR(D111*H111,F110) ->  | G111: =IFERROR(IF(E111="",G110,E111/$E$160),G110) ->  | H111: =IFERROR(IF(L111="",H110,L111/J111),H110) ->  | I111: =IFERROR(J111-L111,"") ->  | J111: =J110 ->  | K111: =K110 ->  | L111: =L110 -> 
A113: Baseline | B113: ='Cat 2 Setup'!A44 -> 0 | C113: =IFERROR(IF(AND(I113>$I$159,G113>$G$159),"Star",IF(AND(I113>$I$159,G113<$G$159),"Puzzle",IF(AND(I113<$I$159,G113>$G$159),"Plow Horse","Dog"))),"") -> Dog | D113: =IFERROR(VLOOKUP(B113,'Cat 2 Setup'!$A:$F,4,FALSE),"") ->  | E113: =IFERROR(VLOOKUP(B113,'Cat 2 Setup'!$A:$F,3,FALSE),"") -> 0 | F113: =IFERROR(VLOOKUP(B113,'Cat 2 Setup'!$A:$F,6,FALSE),"") ->  | G113: =IFERROR(E113/$E$159,"") ->  | H113: =IFERROR(F113/D113,"") ->  | I113: =IFERROR(J113-L113,"") ->  | J113: =IFERROR(D113/E113,"") ->  | K113: =IFERROR(E113/$F$3,"") ->  | L113: =IFERROR(J113*H113,"") -> 
A114: Proposed | C114: =IFERROR(IF(AND(I114>$I$160,G114>$G$160),"Star",IF(AND(I114>$I$160,G114<$G$160),"Puzzle",IF(AND(I114<$I$160,G114>$G$160),"Plow Horse","Dog"))),"") -> Dog | D114: =IFERROR(IF(J114="",D113,E114*J114),D113) ->  | E114: =IFERROR(IF(K114="",E113,K114*$F$3),E113) -> 0 | F114: =IFERROR(D114*H114,F113) ->  | G114: =IFERROR(IF(E114="",G113,E114/$E$160),G113) ->  | H114: =IFERROR(IF(L114="",H113,L114/J114),H113) ->  | I114: =IFERROR(J114-L114,"") ->  | J114: =J113 ->  | K114: =K113 ->  | L114: =L113 -> 
A116: Baseline | B116: ='Cat 2 Setup'!A45 -> 0 | C116: =IFERROR(IF(AND(I116>$I$159,G116>$G$159),"Star",IF(AND(I116>$I$159,G116<$G$159),"Puzzle",IF(AND(I116<$I$159,G116>$G$159),"Plow Horse","Dog"))),"") -> Dog | D116: =IFERROR(VLOOKUP(B116,'Cat 2 Setup'!$A:$F,4,FALSE),"") ->  | E116: =IFERROR(VLOOKUP(B116,'Cat 2 Setup'!$A:$F,3,FALSE),"") -> 0 | F116: =IFERROR(VLOOKUP(B116,'Cat 2 Setup'!$A:$F,6,FALSE),"") ->  | G116: =IFERROR(E116/$E$159,"") ->  | H116: =IFERROR(F116/D116,"") ->  | I116: =IFERROR(J116-L116,"") ->  | J116: =IFERROR(D116/E116,"") ->  | K116: =IFERROR(E116/$F$3,"") ->  | L116: =IFERROR(J116*H116,"") -> 
A117: Proposed | C117: =IFERROR(IF(AND(I117>$I$160,G117>$G$160),"Star",IF(AND(I117>$I$160,G117<$G$160),"Puzzle",IF(AND(I117<$I$160,G117>$G$160),"Plow Horse","Dog"))),"") -> Dog | D117: =IFERROR(IF(J117="",D116,E117*J117),D116) ->  | E117: =IFERROR(IF(K117="",E116,K117*$F$3),E116) -> 0 | F117: =IFERROR(D117*H117,F116) ->  | G117: =IFERROR(IF(E117="",G116,E117/$E$160),G116) ->  | H117: =IFERROR(IF(L117="",H116,L117/J117),H116) ->  | I117: =IFERROR(J117-L117,"") ->  | J117: =J116 ->  | K117: =K116 ->  | L117: =L116 -> 
A119: Baseline | B119: ='Cat 2 Setup'!A46 -> 0 | C119: =IFERROR(IF(AND(I119>$I$159,G119>$G$159),"Star",IF(AND(I119>$I$159,G119<$G$159),"Puzzle",IF(AND(I119<$I$159,G119>$G$159),"Plow Horse","Dog"))),"") -> Dog | D119: =IFERROR(VLOOKUP(B119,'Cat 2 Setup'!$A:$F,4,FALSE),"") ->  | E119: =IFERROR(VLOOKUP(B119,'Cat 2 Setup'!$A:$F,3,FALSE),"") -> 0 | F119: =IFERROR(VLOOKUP(B119,'Cat 2 Setup'!$A:$F,6,FALSE),"") ->  | G119: =IFERROR(E119/$E$159,"") ->  | H119: =IFERROR(F119/D119,"") ->  | I119: =IFERROR(J119-L119,"") ->  | J119: =IFERROR(D119/E119,"") ->  | K119: =IFERROR(E119/$F$3,"") ->  | L119: =IFERROR(J119*H119,"") -> 
A120: Proposed | C120: =IFERROR(IF(AND(I120>$I$160,G120>$G$160),"Star",IF(AND(I120>$I$160,G120<$G$160),"Puzzle",IF(AND(I120<$I$160,G120>$G$160),"Plow Horse","Dog"))),"") -> Dog | D120: =IFERROR(IF(J120="",D119,E120*J120),D119) ->  | E120: =IFERROR(IF(K120="",E119,K120*$F$3),E119) -> 0 | F120: =IFERROR(D120*H120,F119) ->  | G120: =IFERROR(IF(E120="",G119,E120/$E$160),G119) ->  | H120: =IFERROR(IF(L120="",H119,L120/J120),H119) ->  | I120: =IFERROR(J120-L120,"") ->  | J120: =J119 ->  | K120: =K119 ->  | L120: =L119 -> 
A122: Baseline | B122: ='Cat 2 Setup'!A47 -> 0 | C122: =IFERROR(IF(AND(I122>$I$159,G122>$G$159),"Star",IF(AND(I122>$I$159,G122<$G$159),"Puzzle",IF(AND(I122<$I$159,G122>$G$159),"Plow Horse","Dog"))),"") -> Dog | D122: =IFERROR(VLOOKUP(B122,'Cat 2 Setup'!$A:$F,4,FALSE),"") ->  | E122: =IFERROR(VLOOKUP(B122,'Cat 2 Setup'!$A:$F,3,FALSE),"") -> 0 | F122: =IFERROR(VLOOKUP(B122,'Cat 2 Setup'!$A:$F,6,FALSE),"") ->  | G122: =IFERROR(E122/$E$159,"") ->  | H122: =IFERROR(F122/D122,"") ->  | I122: =IFERROR(J122-L122,"") ->  | J122: =IFERROR(D122/E122,"") ->  | K122: =IFERROR(E122/$F$3,"") ->  | L122: =IFERROR(J122*H122,"") -> 
A123: Proposed | C123: =IFERROR(IF(AND(I123>$I$160,G123>$G$160),"Star",IF(AND(I123>$I$160,G123<$G$160),"Puzzle",IF(AND(I123<$I$160,G123>$G$160),"Plow Horse","Dog"))),"") -> Dog | D123: =IFERROR(IF(J123="",D122,E123*J123),D122) ->  | E123: =IFERROR(IF(K123="",E122,K123*$F$3),E122) -> 0 | F123: =IFERROR(D123*H123,F122) ->  | G123: =IFERROR(IF(E123="",G122,E123/$E$160),G122) ->  | H123: =IFERROR(IF(L123="",H122,L123/J123),H122) ->  | J123: =J122 ->  | K123: =K122 ->  | L123: =L122 -> 
A125: Baseline | B125: ='Cat 2 Setup'!A48 -> 0 | C125: =IFERROR(IF(AND(I125>$I$159,G125>$G$159),"Star",IF(AND(I125>$I$159,G125<$G$159),"Puzzle",IF(AND(I125<$I$159,G125>$G$159),"Plow Horse","Dog"))),"") -> Dog | D125: =IFERROR(VLOOKUP(B125,'Cat 2 Setup'!$A:$F,4,FALSE),"") ->  | E125: =IFERROR(VLOOKUP(B125,'Cat 2 Setup'!$A:$F,3,FALSE),"") -> 0 | F125: =IFERROR(VLOOKUP(B125,'Cat 2 Setup'!$A:$F,6,FALSE),"") ->  | G125: =IFERROR(E125/$E$159,"") ->  | H125: =IFERROR(F125/D125,"") ->  | I125: =IFERROR(J125-L125,"") ->  | J125: =IFERROR(D125/E125,"") ->  | K125: =IFERROR(E125/$F$3,"") ->  | L125: =IFERROR(J125*H125,"") -> 
A126: Proposed | C126: =IFERROR(IF(AND(I126>$I$160,G126>$G$160),"Star",IF(AND(I126>$I$160,G126<$G$160),"Puzzle",IF(AND(I126<$I$160,G126>$G$160),"Plow Horse","Dog"))),"") -> Dog | D126: =IFERROR(IF(J126="",D125,E126*J126),D125) ->  | E126: =IFERROR(IF(K126="",E125,K126*$F$3),E125) -> 0 | F126: =IFERROR(D126*H126,F125) ->  | G126: =IFERROR(IF(E126="",G125,E126/$E$160),G125) ->  | H126: =IFERROR(IF(L126="",H125,L126/J126),H125) ->  | J126: =J125 ->  | K126: =K125 ->  | L126: =L125 -> 
A128: Baseline | B128: ='Cat 2 Setup'!A49 -> 0 | C128: =IFERROR(IF(AND(I128>$I$159,G128>$G$159),"Star",IF(AND(I128>$I$159,G128<$G$159),"Puzzle",IF(AND(I128<$I$159,G128>$G$159),"Plow Horse","Dog"))),"") -> Dog | D128: =IFERROR(VLOOKUP(B128,'Cat 2 Setup'!$A:$F,4,FALSE),"") ->  | E128: =IFERROR(VLOOKUP(B128,'Cat 2 Setup'!$A:$F,3,FALSE),"") -> 0 | F128: =IFERROR(VLOOKUP(B128,'Cat 2 Setup'!$A:$F,6,FALSE),"") ->  | G128: =IFERROR(E128/$E$159,"") ->  | H128: =IFERROR(F128/D128,"") ->  | I128: =IFERROR(J128-L128,"") ->  | J128: =IFERROR(D128/E128,"") ->  | K128: =IFERROR(E128/$F$3,"") ->  | L128: =IFERROR(J128*H128,"") -> 
A129: Proposed | C129: =IFERROR(IF(AND(I129>$I$160,G129>$G$160),"Star",IF(AND(I129>$I$160,G129<$G$160),"Puzzle",IF(AND(I129<$I$160,G129>$G$160),"Plow Horse","Dog"))),"") -> Dog | D129: =IFERROR(IF(J129="",D128,E129*J129),D128) ->  | E129: =IFERROR(IF(K129="",E128,K129*$F$3),E128) -> 0 | F129: =IFERROR(D129*H129,F128) ->  | G129: =IFERROR(IF(E129="",G128,E129/$E$160),G128) ->  | H129: =IFERROR(IF(L129="",H128,L129/J129),H128) ->  | J129: =J128 ->  | K129: =K128 ->  | L129: =L128 -> 
A131: Baseline | B131: ='Cat 2 Setup'!A50 -> 0 | C131: =IFERROR(IF(AND(I131>$I$159,G131>$G$159),"Star",IF(AND(I131>$I$159,G131<$G$159),"Puzzle",IF(AND(I131<$I$159,G131>$G$159),"Plow Horse","Dog"))),"") -> Dog | D131: =IFERROR(VLOOKUP(B131,'Cat 2 Setup'!$A:$F,4,FALSE),"") ->  | E131: =IFERROR(VLOOKUP(B131,'Cat 2 Setup'!$A:$F,3,FALSE),"") -> 0 | F131: =IFERROR(VLOOKUP(B131,'Cat 2 Setup'!$A:$F,6,FALSE),"") ->  | G131: =IFERROR(E131/$E$159,"") ->  | H131: =IFERROR(F131/D131,"") ->  | I131: =IFERROR(J131-L131,"") ->  | J131: =IFERROR(D131/E131,"") ->  | K131: =IFERROR(E131/$F$3,"") ->  | L131: =IFERROR(J131*H131,"") -> 
A132: Proposed | C132: =IFERROR(IF(AND(I132>$I$160,G132>$G$160),"Star",IF(AND(I132>$I$160,G132<$G$160),"Puzzle",IF(AND(I132<$I$160,G132>$G$160),"Plow Horse","Dog"))),"") -> Dog | D132: =IFERROR(IF(J132="",D131,E132*J132),D131) ->  | E132: =IFERROR(IF(K132="",E131,K132*$F$3),E131) -> 0 | F132: =IFERROR(D132*H132,F131) ->  | G132: =IFERROR(IF(E132="",G131,E132/$E$160),G131) ->  | H132: =IFERROR(IF(L132="",H131,L132/J132),H131) ->  | J132: =J131 ->  | K132: =K131 ->  | L132: =L131 -> 
A134: Baseline | B134: ='Cat 2 Setup'!A51 -> 0 | C134: =IFERROR(IF(AND(I134>$I$159,G134>$G$159),"Star",IF(AND(I134>$I$159,G134<$G$159),"Puzzle",IF(AND(I134<$I$159,G134>$G$159),"Plow Horse","Dog"))),"") -> Dog | D134: =IFERROR(VLOOKUP(B134,'Cat 2 Setup'!$A:$F,4,FALSE),"") ->  | E134: =IFERROR(VLOOKUP(B134,'Cat 2 Setup'!$A:$F,3,FALSE),"") -> 0 | F134: =IFERROR(VLOOKUP(B134,'Cat 2 Setup'!$A:$F,6,FALSE),"") ->  | G134: =IFERROR(E134/$E$159,"") ->  | H134: =IFERROR(F134/D134,"") ->  | I134: =IFERROR(J134-L134,"") ->  | J134: =IFERROR(D134/E134,"") ->  | K134: =IFERROR(E134/$F$3,"") ->  | L134: =IFERROR(J134*H134,"") -> 
A135: Proposed | C135: =IFERROR(IF(AND(I135>$I$160,G135>$G$160),"Star",IF(AND(I135>$I$160,G135<$G$160),"Puzzle",IF(AND(I135<$I$160,G135>$G$160),"Plow Horse","Dog"))),"") -> Dog | D135: =IFERROR(IF(J135="",D134,E135*J135),D134) ->  | E135: =IFERROR(IF(K135="",E134,K135*$F$3),E134) -> 0 | F135: =IFERROR(D135*H135,F134) ->  | G135: =IFERROR(IF(E135="",G134,E135/$E$160),G134) ->  | H135: =IFERROR(IF(L135="",H134,L135/J135),H134) ->  | J135: =J134 ->  | K135: =K134 ->  | L135: =L134 -> 
A137: Baseline | B137: ='Cat 2 Setup'!A52 -> 0 | C137: =IFERROR(IF(AND(I137>$I$159,G137>$G$159),"Star",IF(AND(I137>$I$159,G137<$G$159),"Puzzle",IF(AND(I137<$I$159,G137>$G$159),"Plow Horse","Dog"))),"") -> Dog | D137: =IFERROR(VLOOKUP(B137,'Cat 2 Setup'!$A:$F,4,FALSE),"") ->  | E137: =IFERROR(VLOOKUP(B137,'Cat 2 Setup'!$A:$F,3,FALSE),"") -> 0 | F137: =IFERROR(VLOOKUP(B137,'Cat 2 Setup'!$A:$F,6,FALSE),"") ->  | G137: =IFERROR(E137/$E$159,"") ->  | H137: =IFERROR(F137/D137,"") ->  | I137: =IFERROR(J137-L137,"") ->  | J137: =IFERROR(D137/E137,"") ->  | K137: =IFERROR(E137/$F$3,"") ->  | L137: =IFERROR(J137*H137,"") -> 
A138: Proposed | C138: =IFERROR(IF(AND(I138>$I$160,G138>$G$160),"Star",IF(AND(I138>$I$160,G138<$G$160),"Puzzle",IF(AND(I138<$I$160,G138>$G$160),"Plow Horse","Dog"))),"") -> Dog | D138: =IFERROR(IF(J138="",D137,E138*J138),D137) ->  | E138: =IFERROR(IF(K138="",E137,K138*$F$3),E137) -> 0 | F138: =IFERROR(D138*H138,F137) ->  | G138: =IFERROR(IF(E138="",G137,E138/$E$160),G137) ->  | H138: =IFERROR(IF(L138="",H137,L138/J138),H137) ->  | J138: =J137 ->  | K138: =K137 ->  | L138: =L137 -> 
A140: Baseline | B140: ='Cat 2 Setup'!A53 -> 0 | C140: =IFERROR(IF(AND(I140>$I$159,G140>$G$159),"Star",IF(AND(I140>$I$159,G140<$G$159),"Puzzle",IF(AND(I140<$I$159,G140>$G$159),"Plow Horse","Dog"))),"") -> Dog | D140: =IFERROR(VLOOKUP(B140,'Cat 2 Setup'!$A:$F,4,FALSE),"") ->  | E140: =IFERROR(VLOOKUP(B140,'Cat 2 Setup'!$A:$F,3,FALSE),"") -> 0 | F140: =IFERROR(VLOOKUP(B140,'Cat 2 Setup'!$A:$F,6,FALSE),"") ->  | G140: =IFERROR(E140/$E$159,"") ->  | H140: =IFERROR(F140/D140,"") ->  | I140: =IFERROR(J140-L140,"") ->  | J140: =IFERROR(D140/E140,"") ->  | K140: =IFERROR(E140/$F$3,"") ->  | L140: =IFERROR(J140*H140,"") -> 
A141: Proposed | C141: =IFERROR(IF(AND(I141>$I$160,G141>$G$160),"Star",IF(AND(I141>$I$160,G141<$G$160),"Puzzle",IF(AND(I141<$I$160,G141>$G$160),"Plow Horse","Dog"))),"") -> Dog | D141: =IFERROR(IF(J141="",D140,E141*J141),D140) ->  | E141: =IFERROR(IF(K141="",E140,K141*$F$3),E140) -> 0 | F141: =IFERROR(D141*H141,F140) ->  | G141: =IFERROR(IF(E141="",G140,E141/$E$160),G140) ->  | H141: =IFERROR(IF(L141="",H140,L141/J141),H140) ->  | J141: =J140 ->  | K141: =K140 ->  | L141: =L140 -> 
A143: Baseline | B143: ='Cat 2 Setup'!A54 -> 0 | C143: =IFERROR(IF(AND(I143>$I$159,G143>$G$159),"Star",IF(AND(I143>$I$159,G143<$G$159),"Puzzle",IF(AND(I143<$I$159,G143>$G$159),"Plow Horse","Dog"))),"") -> Dog | D143: =IFERROR(VLOOKUP(B143,'Cat 2 Setup'!$A:$F,4,FALSE),"") ->  | E143: =IFERROR(VLOOKUP(B143,'Cat 2 Setup'!$A:$F,3,FALSE),"") -> 0 | F143: =IFERROR(VLOOKUP(B143,'Cat 2 Setup'!$A:$F,6,FALSE),"") ->  | G143: =IFERROR(E143/$E$159,"") ->  | H143: =IFERROR(F143/D143,"") ->  | I143: =IFERROR(J143-L143,"") ->  | J143: =IFERROR(D143/E143,"") ->  | K143: =IFERROR(E143/$F$3,"") ->  | L143: =IFERROR(J143*H143,"") -> 
A144: Proposed | C144: =IFERROR(IF(AND(I144>$I$160,G144>$G$160),"Star",IF(AND(I144>$I$160,G144<$G$160),"Puzzle",IF(AND(I144<$I$160,G144>$G$160),"Plow Horse","Dog"))),"") -> Dog | D144: =IFERROR(IF(J144="",D143,E144*J144),D143) ->  | E144: =IFERROR(IF(K144="",E143,K144*$F$3),E143) -> 0 | F144: =IFERROR(D144*H144,F143) ->  | G144: =IFERROR(IF(E144="",G143,E144/$E$160),G143) ->  | H144: =IFERROR(IF(L144="",H143,L144/J144),H143) ->  | J144: =J143 ->  | K144: =K143 ->  | L144: =L143 -> 
A146: Baseline | B146: ='Cat 2 Setup'!A55 -> 0 | C146: =IFERROR(IF(AND(I146>$I$159,G146>$G$159),"Star",IF(AND(I146>$I$159,G146<$G$159),"Puzzle",IF(AND(I146<$I$159,G146>$G$159),"Plow Horse","Dog"))),"") -> Dog | D146: =IFERROR(VLOOKUP(B146,'Cat 2 Setup'!$A:$F,4,FALSE),"") ->  | E146: =IFERROR(VLOOKUP(B146,'Cat 2 Setup'!$A:$F,3,FALSE),"") -> 0 | F146: =IFERROR(VLOOKUP(B146,'Cat 2 Setup'!$A:$F,6,FALSE),"") ->  | G146: =IFERROR(E146/$E$159,"") ->  | H146: =IFERROR(F146/D146,"") ->  | I146: =IFERROR(J146-L146,"") ->  | J146: =IFERROR(D146/E146,"") ->  | K146: =IFERROR(E146/$F$3,"") ->  | L146: =IFERROR(J146*H146,"") -> 
A147: Proposed | C147: =IFERROR(IF(AND(I147>$I$160,G147>$G$160),"Star",IF(AND(I147>$I$160,G147<$G$160),"Puzzle",IF(AND(I147<$I$160,G147>$G$160),"Plow Horse","Dog"))),"") -> Dog | D147: =IFERROR(IF(J147="",D146,E147*J147),D146) ->  | E147: =IFERROR(IF(K147="",E146,K147*$F$3),E146) -> 0 | F147: =IFERROR(D147*H147,F146) ->  | G147: =IFERROR(IF(E147="",G146,E147/$E$160),G146) ->  | H147: =IFERROR(IF(L147="",H146,L147/J147),H146) ->  | J147: =J146 ->  | K147: =K146 ->  | L147: =L146 -> 
A149: Baseline | B149: ='Cat 2 Setup'!A56 -> 0 | C149: =IFERROR(IF(AND(I149>$I$159,G149>$G$159),"Star",IF(AND(I149>$I$159,G149<$G$159),"Puzzle",IF(AND(I149<$I$159,G149>$G$159),"Plow Horse","Dog"))),"") -> Dog | D149: =IFERROR(VLOOKUP(B149,'Cat 2 Setup'!$A:$F,4,FALSE),"") ->  | E149: =IFERROR(VLOOKUP(B149,'Cat 2 Setup'!$A:$F,3,FALSE),"") -> 0 | F149: =IFERROR(VLOOKUP(B149,'Cat 2 Setup'!$A:$F,6,FALSE),"") ->  | G149: =IFERROR(E149/$E$159,"") ->  | H149: =IFERROR(F149/D149,"") ->  | I149: =IFERROR(J149-L149,"") ->  | J149: =IFERROR(D149/E149,"") ->  | K149: =IFERROR(E149/$F$3,"") ->  | L149: =IFERROR(J149*H149,"") -> 
A150: Proposed | C150: =IFERROR(IF(AND(I150>$I$160,G150>$G$160),"Star",IF(AND(I150>$I$160,G150<$G$160),"Puzzle",IF(AND(I150<$I$160,G150>$G$160),"Plow Horse","Dog"))),"") -> Dog | D150: =IFERROR(IF(J150="",D149,E150*J150),D149) ->  | E150: =IFERROR(IF(K150="",E149,K150*$F$3),E149) -> 0 | F150: =IFERROR(D150*H150,F149) ->  | G150: =IFERROR(IF(E150="",G149,E150/$E$160),G149) ->  | H150: =IFERROR(IF(L150="",H149,L150/J150),H149) ->  | J150: =J149 ->  | K150: =K149 ->  | L150: =L149 -> 
A152: Baseline | B152: ='Cat 2 Setup'!A57 -> 0 | C152: =IFERROR(IF(AND(I152>$I$159,G152>$G$159),"Star",IF(AND(I152>$I$159,G152<$G$159),"Puzzle",IF(AND(I152<$I$159,G152>$G$159),"Plow Horse","Dog"))),"") -> Dog | D152: =IFERROR(VLOOKUP(B152,'Cat 2 Setup'!$A:$F,4,FALSE),"") ->  | E152: =IFERROR(VLOOKUP(B152,'Cat 2 Setup'!$A:$F,3,FALSE),"") -> 0 | F152: =IFERROR(VLOOKUP(B152,'Cat 2 Setup'!$A:$F,6,FALSE),"") ->  | G152: =IFERROR(E152/$E$159,"") ->  | H152: =IFERROR(F152/D152,"") ->  | I152: =IFERROR(J152-L152,"") ->  | J152: =IFERROR(D152/E152,"") ->  | K152: =IFERROR(E152/$F$3,"") ->  | L152: =IFERROR(J152*H152,"") -> 
A153: Proposed | C153: =IFERROR(IF(AND(I153>$I$160,G153>$G$160),"Star",IF(AND(I153>$I$160,G153<$G$160),"Puzzle",IF(AND(I153<$I$160,G153>$G$160),"Plow Horse","Dog"))),"") -> Dog | D153: =IFERROR(IF(J153="",D152,E153*J153),D152) ->  | E153: =IFERROR(IF(K153="",E152,K153*$F$3),E152) -> 0 | F153: =IFERROR(D153*H153,F152) ->  | G153: =IFERROR(IF(E153="",G152,E153/$E$160),G152) ->  | H153: =IFERROR(IF(L153="",H152,L153/J153),H152) ->  | J153: =J152 ->  | K153: =K152 ->  | L153: =L152 -> 
A155: Baseline | B155: ='Cat 2 Setup'!A58 -> 0 | C155: =IFERROR(IF(AND(I155>$I$159,G155>$G$159),"Star",IF(AND(I155>$I$159,G155<$G$159),"Puzzle",IF(AND(I155<$I$159,G155>$G$159),"Plow Horse","Dog"))),"") -> Dog | D155: =IFERROR(VLOOKUP(B155,'Cat 2 Setup'!$A:$F,4,FALSE),"") ->  | E155: =IFERROR(VLOOKUP(B155,'Cat 2 Setup'!$A:$F,3,FALSE),"") -> 0 | F155: =IFERROR(VLOOKUP(B155,'Cat 2 Setup'!$A:$F,6,FALSE),"") ->  | G155: =IFERROR(E155/$E$159,"") ->  | H155: =IFERROR(F155/D155,"") ->  | I155: =IFERROR(J155-L155,"") ->  | J155: =IFERROR(D155/E155,"") ->  | K155: =IFERROR(E155/$F$3,"") ->  | L155: =IFERROR(J155*H155,"") -> 
A156: Proposed | C156: =IFERROR(IF(AND(I156>$I$160,G156>$G$160),"Star",IF(AND(I156>$I$160,G156<$G$160),"Puzzle",IF(AND(I156<$I$160,G156>$G$160),"Plow Horse","Dog"))),"") -> Dog | D156: =IFERROR(IF(J156="",D155,E156*J156),D155) ->  | E156: =IFERROR(IF(K156="",E155,K156*$F$3),E155) -> 0 | F156: =IFERROR(D156*H156,F155) ->  | G156: =IFERROR(IF(E156="",G155,E156/$E$160),G155) ->  | H156: =IFERROR(IF(L156="",H155,L156/J156),H155) ->  | J156: =J155 ->  | K156: =K155 ->  | L156: =L155 -> 
K158: (Items/Cover)
A159: Baseline | B159: Total | D159: =IFERROR(SUMIF($A$8:$A$156,"Baseline",D$8:D$156),"") -> 0 | E159: =IFERROR(SUMIF($A$8:$A$156,"Baseline",E$8:E$156),"") -> 0 | F159: =IFERROR(SUMIF($A$8:$A$156,"Baseline",F$8:F$156),"") -> 0 | G159: =IFERROR((AVERAGEIFS(G$8:G$156,$A$8:$A$156,"Baseline",G$8:G$156,">0")),"") ->  | H159: =IFERROR(F159/D159,"") ->  | I159: =IFERROR(AVERAGEIF($A$8:$A$156,"Baseline",I$8:I$156),"") ->  | J159: =IFERROR(D159/E159,"") ->  | K159: =IFERROR(E159/$F$3,"") ->  | L159: =IFERROR(F159/E159,"") -> 
A160: Proposed | D160: =IFERROR(SUMIF($A$8:$A$156,"Proposed",D$8:D$156),"") -> 0 | E160: =IFERROR(SUMIF($A$8:$A$156,"Proposed",E$8:E$156),"") -> 0 | F160: =IFERROR(SUMIF($A$8:$A$156,"Proposed",F$8:F$156),"") -> 0 | G160: =IFERROR((AVERAGEIFS(G$8:G$156,$A$8:$A$156,"Proposed",G$8:G$156,">0")),"") ->  | H160: =IFERROR(F160/D160,"") ->  | I160: =IFERROR(AVERAGEIF($A$8:$A$156,"Proposed",I$8:I$156),"") ->  | J160: =IFERROR(D160/E160,"") ->  | K160: =IFERROR(E160/$F$3,"") ->  | L160: =IFERROR(F160/E160,"") -> 
B161: %/BPs change | D161: =IFERROR((D160-D159)/D159,"") ->  | E161: =IFERROR((E160-E159)/E159,"") ->  | G161: =(G160-G159)*100 ->  | H161: =(H160-H159)*100 ->  | I161: =IFERROR((I160-I159)/I159,"") -> 
B164: Assumptions/Exclusions:
B171: Admin Use:
B172: CM (min): | C172: =ROUND(MIN(I8:I157),0)-5 -> -5 | D172: Demand (max): | F172: =MIN(G8:G157)-0.05 -> -0.05
B173: CM (max): | C173: =ROUND(MAX(I8:I157),0)+5 -> 5 | D173: Demand (min): | F173: =MAX(G8:G157)+0.05 -> 0.05

Sheet Cat 2 CM$ Chart
A1: =CONCATENATE('Cat 2 CM$'!C1," ",'Cat 2 CM$'!C5," ",'Cat 2 CM$'!C4," - ",'Cat 2 CM$'!F5) -> 0 0 0 - 0
A2: Menu Enginnering Graph by Contribution Margin Dollars
F44: Low | G44: High
C45: X-AXIS --> | D45: Menu Mix Parameters: | F45: =IFERROR(IF('Cat 2 CM$'!D8="","",MIN('Cat 2 CM$'!G8:G157)*0.9),"") ->  | G45: =IFERROR(IF('Cat 2 CM$'!D8="","",MAX('Cat 2 CM$'!G8:G157)*1.1),"") -> 
C46: Y-AXIS --> | D46: Contribution Margin: | F46: =IFERROR(IF('Cat 2 CM$'!D8="","",MIN('Cat 2 CM$'!$I$8:$I$157)*0.9),"") ->  | G46: =IFERROR(IF('Cat 2 CM$'!D8="","",MAX('Cat 2 CM$'!$I$8:$I$157)*1.1),"") -> 

Sheet Cat 2 CM%
B1: Restaurant Name | C1: ='Cat 2 Setup'!L1 -> 0
B2: Start Date: | C2: ='Cat 2 Setup'!L5 -> 00:00:00 | E2: Check Count: | F2: ='Cat 2 Setup'!N1 -> 0
B3: End Date | C3: ='Cat 2 Setup'!N5 -> 00:00:00 | E3: Cover Count: | F3: ='Cat 2 Setup'!N2 -> 0
B4: Meal Period: | C4: ='Cat 2 Setup'!L2 -> 0 | E4: Average Check: | F4: ='Cat 2 Setup'!N3 -> 0
B5: Revenue Center: | C5: ='Cat 2 Setup'!L3 -> 0 | E5: Menu Category | F5: ='Cat 2 Setup'!L4 -> 0
B7: Item Name | C7: Quadrant | D7: Item Sales | E7: Qty Sold | F7: Food Cost | G7: Menu Mix % | H7: Item Cost % | I7: Contribution Margin % | J7: Item Price | K7: Item/Cover% | L7: Item Cost
A8: Baseline | B8: ='Cat 2 Setup'!A9 -> 0 | C8: =IFERROR(IF(AND(I8>$I$159,G8>$G$159),"Star",IF(AND(I8>$I$159,G8<$G$159),"Puzzle",IF(AND(I8<$I$159,G8>$G$159),"Plow Horse","Dog"))),"") -> Dog | D8: =IFERROR(VLOOKUP(B8,'Cat 2 Setup'!$A:$F,4,FALSE),"") ->  | E8: =IFERROR(VLOOKUP(B8,'Cat 2 Setup'!$A:$F,3,FALSE),"") -> 0 | F8: =IFERROR(VLOOKUP(B8,'Cat 2 Setup'!$A:$F,6,FALSE),"") ->  | G8: =IFERROR(E8/$E$159,"") ->  | H8: =IFERROR(F8/D8,"") ->  | I8: =IFERROR((J8-L8)/J8,"") ->  | J8: =IFERROR(D8/E8,"") ->  | K8: =IFERROR(E8/$F$3,"") ->  | L8: =IFERROR(J8*H8,"") -> 
A9: Proposed | C9: =IFERROR(IF(AND(I9>$I$160,G9>$G$160),"Star",IF(AND(I9>$I$160,G9<$G$160),"Puzzle",IF(AND(I9<$I$160,G9>$G$160),"Plow Horse","Dog"))),"") -> Dog | D9: =IFERROR(IF(J9="",D8,E9*J9),D8) ->  | E9: =IFERROR(IF(K9="",E8,K9*$F$3),E8) -> 0 | F9: =IFERROR(D9*H9,F8) ->  | G9: =IFERROR(IF(E9="",G8,E9/$E$160),G8) ->  | H9: =IFERROR(IF(L9="",H8,L9/J9),H8) ->  | I9: =IFERROR((J9-L9)/J9,"") ->  | J9: =J8 ->  | K9: =K8 ->  | L9: =L8 -> 
A11: Baseline | B11: ='Cat 2 Setup'!A10 -> 0 | C11: =IFERROR(IF(AND(I11>$I$159,G11>$G$159),"Star",IF(AND(I11>$I$159,G11<$G$159),"Puzzle",IF(AND(I11<$I$159,G11>$G$159),"Plow Horse","Dog"))),"") -> Dog | D11: =IFERROR(VLOOKUP(B11,'Cat 2 Setup'!$A:$F,4,FALSE),"") ->  | E11: =IFERROR(VLOOKUP(B11,'Cat 2 Setup'!$A:$F,3,FALSE),"") -> 0 | F11: =IFERROR(VLOOKUP(B11,'Cat 2 Setup'!$A:$F,6,FALSE),"") ->  | G11: =IFERROR(E11/$E$159,"") ->  | H11: =IFERROR(F11/D11,"") ->  | I11: =IFERROR((J11-L11)/J11,"") ->  | J11: =IFERROR(D11/E11,"") ->  | K11: =IFERROR(E11/$F$3,"") ->  | L11: =IFERROR(J11*H11,"") -> 
A12: Proposed | C12: =IFERROR(IF(AND(I12>$I$160,G12>$G$160),"Star",IF(AND(I12>$I$160,G12<$G$160),"Puzzle",IF(AND(I12<$I$160,G12>$G$160),"Plow Horse","Dog"))),"") -> Dog | D12: =IFERROR(IF(J12="",D11,E12*J12),D11) ->  | E12: =IFERROR(IF(K12="",E11,K12*$F$3),E11) -> 0 | F12: =IFERROR(D12*H12,F11) ->  | G12: =IFERROR(IF(E12="",G11,E12/$E$160),G11) ->  | H12: =IFERROR(IF(L12="",H11,L12/J12),H11) ->  | I12: =IFERROR((J12-L12)/J12,"") ->  | J12: =J11 ->  | K12: =K11 ->  | L12: =L11 -> 
A14: Baseline | B14: ='Cat 2 Setup'!A11 -> 0 | C14: =IFERROR(IF(AND(I14>$I$159,G14>$G$159),"Star",IF(AND(I14>$I$159,G14<$G$159),"Puzzle",IF(AND(I14<$I$159,G14>$G$159),"Plow Horse","Dog"))),"") -> Dog | D14: =IFERROR(VLOOKUP(B14,'Cat 2 Setup'!$A:$F,4,FALSE),"") ->  | E14: =IFERROR(VLOOKUP(B14,'Cat 2 Setup'!$A:$F,3,FALSE),"") -> 0 | F14: =IFERROR(VLOOKUP(B14,'Cat 2 Setup'!$A:$F,6,FALSE),"") ->  | G14: =IFERROR(E14/$E$159,"") ->  | H14: =IFERROR(F14/D14,"") ->  | I14: =IFERROR((J14-L14)/J14,"") ->  | J14: =IFERROR(D14/E14,"") ->  | K14: =IFERROR(E14/$F$3,"") ->  | L14: =IFERROR(J14*H14,"") -> 
A15: Proposed | C15: =IFERROR(IF(AND(I15>$I$160,G15>$G$160),"Star",IF(AND(I15>$I$160,G15<$G$160),"Puzzle",IF(AND(I15<$I$160,G15>$G$160),"Plow Horse","Dog"))),"") -> Dog | D15: =IFERROR(IF(J15="",D14,E15*J15),D14) ->  | E15: =IFERROR(IF(K15="",E14,K15*$F$3),E14) -> 0 | F15: =IFERROR(D15*H15,F14) ->  | G15: =IFERROR(IF(E15="",G14,E15/$E$160),G14) ->  | H15: =IFERROR(IF(L15="",H14,L15/J15),H14) ->  | I15: =IFERROR((J15-L15)/J15,"") ->  | J15: =J14 ->  | K15: =K14 ->  | L15: =L14 -> 
A17: Baseline | B17: ='Cat 2 Setup'!A12 -> 0 | C17: =IFERROR(IF(AND(I17>$I$159,G17>$G$159),"Star",IF(AND(I17>$I$159,G17<$G$159),"Puzzle",IF(AND(I17<$I$159,G17>$G$159),"Plow Horse","Dog"))),"") -> Dog | D17: =IFERROR(VLOOKUP(B17,'Cat 2 Setup'!$A:$F,4,FALSE),"") ->  | E17: =IFERROR(VLOOKUP(B17,'Cat 2 Setup'!$A:$F,3,FALSE),"") -> 0 | F17: =IFERROR(VLOOKUP(B17,'Cat 2 Setup'!$A:$F,6,FALSE),"") ->  | G17: =IFERROR(E17/$E$159,"") ->  | H17: =IFERROR(F17/D17,"") ->  | I17: =IFERROR((J17-L17)/J17,"") ->  | J17: =IFERROR(D17/E17,"") ->  | K17: =IFERROR(E17/$F$3,"") ->  | L17: =IFERROR(J17*H17,"") -> 
A18: Proposed | C18: =IFERROR(IF(AND(I18>$I$160,G18>$G$160),"Star",IF(AND(I18>$I$160,G18<$G$160),"Puzzle",IF(AND(I18<$I$160,G18>$G$160),"Plow Horse","Dog"))),"") -> Dog | D18: =IFERROR(IF(J18="",D17,E18*J18),D17) ->  | E18: =IFERROR(IF(K18="",E17,K18*$F$3),E17) -> 0 | F18: =IFERROR(D18*H18,F17) ->  | G18: =IFERROR(IF(E18="",G17,E18/$E$160),G17) ->  | H18: =IFERROR(IF(L18="",H17,L18/J18),H17) ->  | I18: =IFERROR((J18-L18)/J18,"") ->  | J18: =J17 ->  | K18: =K17 ->  | L18: =L17 -> 
A20: Baseline | B20: ='Cat 2 Setup'!A13 -> 0 | C20: =IFERROR(IF(AND(I20>$I$159,G20>$G$159),"Star",IF(AND(I20>$I$159,G20<$G$159),"Puzzle",IF(AND(I20<$I$159,G20>$G$159),"Plow Horse","Dog"))),"") -> Dog | D20: =IFERROR(VLOOKUP(B20,'Cat 2 Setup'!$A:$F,4,FALSE),"") ->  | E20: =IFERROR(VLOOKUP(B20,'Cat 2 Setup'!$A:$F,3,FALSE),"") -> 0 | F20: =IFERROR(VLOOKUP(B20,'Cat 2 Setup'!$A:$F,6,FALSE),"") ->  | G20: =IFERROR(E20/$E$159,"") ->  | H20: =IFERROR(F20/D20,"") ->  | I20: =IFERROR((J20-L20)/J20,"") ->  | J20: =IFERROR(D20/E20,"") ->  | K20: =IFERROR(E20/$F$3,"") ->  | L20: =IFERROR(J20*H20,"") -> 
A21: Proposed | C21: =IFERROR(IF(AND(I21>$I$160,G21>$G$160),"Star",IF(AND(I21>$I$160,G21<$G$160),"Puzzle",IF(AND(I21<$I$160,G21>$G$160),"Plow Horse","Dog"))),"") -> Dog | D21: =IFERROR(IF(J21="",D20,E21*J21),D20) ->  | E21: =IFERROR(IF(K21="",E20,K21*$F$3),E20) -> 0 | F21: =IFERROR(D21*H21,F20) ->  | G21: =IFERROR(IF(E21="",G20,E21/$E$160),G20) ->  | H21: =IFERROR(IF(L21="",H20,L21/J21),H20) ->  | I21: =IFERROR((J21-L21)/J21,"") ->  | J21: =J20 ->  | K21: =K20 ->  | L21: =L20 -> 
A23: Baseline | B23: ='Cat 2 Setup'!A14 -> 0 | C23: =IFERROR(IF(AND(I23>$I$159,G23>$G$159),"Star",IF(AND(I23>$I$159,G23<$G$159),"Puzzle",IF(AND(I23<$I$159,G23>$G$159),"Plow Horse","Dog"))),"") -> Dog | D23: =IFERROR(VLOOKUP(B23,'Cat 2 Setup'!$A:$F,4,FALSE),"") ->  | E23: =IFERROR(VLOOKUP(B23,'Cat 2 Setup'!$A:$F,3,FALSE),"") -> 0 | F23: =IFERROR(VLOOKUP(B23,'Cat 2 Setup'!$A:$F,6,FALSE),"") ->  | G23: =IFERROR(E23/$E$159,"") ->  | H23: =IFERROR(F23/D23,"") ->  | I23: =IFERROR((J23-L23)/J23,"") ->  | J23: =IFERROR(D23/E23,"") ->  | K23: =IFERROR(E23/$F$3,"") ->  | L23: =IFERROR(J23*H23,"") -> 
A24: Proposed | C24: =IFERROR(IF(AND(I24>$I$160,G24>$G$160),"Star",IF(AND(I24>$I$160,G24<$G$160),"Puzzle",IF(AND(I24<$I$160,G24>$G$160),"Plow Horse","Dog"))),"") -> Dog | D24: =IFERROR(IF(J24="",D23,E24*J24),D23) ->  | E24: =IFERROR(IF(K24="",E23,K24*$F$3),E23) -> 0 | F24: =IFERROR(D24*H24,F23) ->  | G24: =IFERROR(IF(E24="",G23,E24/$E$160),G23) ->  | H24: =IFERROR(IF(L24="",H23,L24/J24),H23) ->  | I24: =IFERROR((J24-L24)/J24,"") ->  | J24: =J23 ->  | K24: =K23 ->  | L24: =L23 -> 
A26: Baseline | B26: ='Cat 2 Setup'!A15 -> 0 | C26: =IFERROR(IF(AND(I26>$I$159,G26>$G$159),"Star",IF(AND(I26>$I$159,G26<$G$159),"Puzzle",IF(AND(I26<$I$159,G26>$G$159),"Plow Horse","Dog"))),"") -> Dog | D26: =IFERROR(VLOOKUP(B26,'Cat 2 Setup'!$A:$F,4,FALSE),"") ->  | E26: =IFERROR(VLOOKUP(B26,'Cat 2 Setup'!$A:$F,3,FALSE),"") -> 0 | F26: =IFERROR(VLOOKUP(B26,'Cat 2 Setup'!$A:$F,6,FALSE),"") ->  | G26: =IFERROR(E26/$E$159,"") ->  | H26: =IFERROR(F26/D26,"") ->  | I26: =IFERROR((J26-L26)/J26,"") ->  | J26: =IFERROR(D26/E26,"") ->  | K26: =IFERROR(E26/$F$3,"") ->  | L26: =IFERROR(J26*H26,"") -> 
A27: Proposed | C27: =IFERROR(IF(AND(I27>$I$160,G27>$G$160),"Star",IF(AND(I27>$I$160,G27<$G$160),"Puzzle",IF(AND(I27<$I$160,G27>$G$160),"Plow Horse","Dog"))),"") -> Dog | D27: =IFERROR(IF(J27="",D26,E27*J27),D26) ->  | E27: =IFERROR(IF(K27="",E26,K27*$F$3),E26) -> 0 | F27: =IFERROR(D27*H27,F26) ->  | G27: =IFERROR(IF(E27="",G26,E27/$E$160),G26) ->  | H27: =IFERROR(IF(L27="",H26,L27/J27),H26) ->  | I27: =IFERROR((J27-L27)/J27,"") ->  | J27: =J26 ->  | K27: =K26 ->  | L27: =L26 -> 
A29: Baseline | B29: ='Cat 2 Setup'!A16 -> 0 | C29: =IFERROR(IF(AND(I29>$I$159,G29>$G$159),"Star",IF(AND(I29>$I$159,G29<$G$159),"Puzzle",IF(AND(I29<$I$159,G29>$G$159),"Plow Horse","Dog"))),"") -> Dog | D29: =IFERROR(VLOOKUP(B29,'Cat 2 Setup'!$A:$F,4,FALSE),"") ->  | E29: =IFERROR(VLOOKUP(B29,'Cat 2 Setup'!$A:$F,3,FALSE),"") -> 0 | F29: =IFERROR(VLOOKUP(B29,'Cat 2 Setup'!$A:$F,6,FALSE),"") ->  | G29: =IFERROR(E29/$E$159,"") ->  | H29: =IFERROR(F29/D29,"") ->  | I29: =IFERROR((J29-L29)/J29,"") ->  | J29: =IFERROR(D29/E29,"") ->  | K29: =IFERROR(E29/$F$3,"") ->  | L29: =IFERROR(J29*H29,"") -> 
A30: Proposed | C30: =IFERROR(IF(AND(I30>$I$160,G30>$G$160),"Star",IF(AND(I30>$I$160,G30<$G$160),"Puzzle",IF(AND(I30<$I$160,G30>$G$160),"Plow Horse","Dog"))),"") -> Dog | D30: =IFERROR(IF(J30="",D29,E30*J30),D29) ->  | E30: =IFERROR(IF(K30="",E29,K30*$F$3),E29) -> 0 | F30: =IFERROR(D30*H30,F29) ->  | G30: =IFERROR(IF(E30="",G29,E30/$E$160),G29) ->  | H30: =IFERROR(IF(L30="",H29,L30/J30),H29) ->  | I30: =IFERROR((J30-L30)/J30,"") ->  | J30: =J29 ->  | K30: =K29 ->  | L30: =L29 -> 
A32: Baseline | B32: ='Cat 2 Setup'!A17 -> 0 | C32: =IFERROR(IF(AND(I32>$I$159,G32>$G$159),"Star",IF(AND(I32>$I$159,G32<$G$159),"Puzzle",IF(AND(I32<$I$159,G32>$G$159),"Plow Horse","Dog"))),"") -> Dog | D32: =IFERROR(VLOOKUP(B32,'Cat 2 Setup'!$A:$F,4,FALSE),"") ->  | E32: =IFERROR(VLOOKUP(B32,'Cat 2 Setup'!$A:$F,3,FALSE),"") -> 0 | F32: =IFERROR(VLOOKUP(B32,'Cat 2 Setup'!$A:$F,6,FALSE),"") ->  | G32: =IFERROR(E32/$E$159,"") ->  | H32: =IFERROR(F32/D32,"") ->  | I32: =IFERROR((J32-L32)/J32,"") ->  | J32: =IFERROR(D32/E32,"") ->  | K32: =IFERROR(E32/$F$3,"") ->  | L32: =IFERROR(J32*H32,"") -> 
A33: Proposed | C33: =IFERROR(IF(AND(I33>$I$160,G33>$G$160),"Star",IF(AND(I33>$I$160,G33<$G$160),"Puzzle",IF(AND(I33<$I$160,G33>$G$160),"Plow Horse","Dog"))),"") -> Dog | D33: =IFERROR(IF(J33="",D32,E33*J33),D32) ->  | E33: =IFERROR(IF(K33="",E32,K33*$F$3),E32) -> 0 | F33: =IFERROR(D33*H33,F32) ->  | G33: =IFERROR(IF(E33="",G32,E33/$E$160),G32) ->  | H33: =IFERROR(IF(L33="",H32,L33/J33),H32) ->  | I33: =IFERROR((J33-L33)/J33,"") ->  | J33: =J32 ->  | K33: =K32 ->  | L33: =L32 -> 
A35: Baseline | B35: ='Cat 2 Setup'!A18 -> 0 | C35: =IFERROR(IF(AND(I35>$I$159,G35>$G$159),"Star",IF(AND(I35>$I$159,G35<$G$159),"Puzzle",IF(AND(I35<$I$159,G35>$G$159),"Plow Horse","Dog"))),"") -> Dog | D35: =IFERROR(VLOOKUP(B35,'Cat 2 Setup'!$A:$F,4,FALSE),"") ->  | E35: =IFERROR(VLOOKUP(B35,'Cat 2 Setup'!$A:$F,3,FALSE),"") -> 0 | F35: =IFERROR(VLOOKUP(B35,'Cat 2 Setup'!$A:$F,6,FALSE),"") ->  | G35: =IFERROR(E35/$E$159,"") ->  | H35: =IFERROR(F35/D35,"") ->  | I35: =IFERROR((J35-L35)/J35,"") ->  | J35: =IFERROR(D35/E35,"") ->  | K35: =IFERROR(E35/$F$3,"") ->  | L35: =IFERROR(J35*H35,"") -> 
A36: Proposed | C36: =IFERROR(IF(AND(I36>$I$160,G36>$G$160),"Star",IF(AND(I36>$I$160,G36<$G$160),"Puzzle",IF(AND(I36<$I$160,G36>$G$160),"Plow Horse","Dog"))),"") -> Dog | D36: =IFERROR(IF(J36="",D35,E36*J36),D35) ->  | E36: =IFERROR(IF(K36="",E35,K36*$F$3),E35) -> 0 | F36: =IFERROR(D36*H36,F35) ->  | G36: =IFERROR(IF(E36="",G35,E36/$E$160),G35) ->  | H36: =IFERROR(IF(L36="",H35,L36/J36),H35) ->  | I36: =IFERROR((J36-L36)/J36,"") ->  | J36: =J35 ->  | K36: =K35 ->  | L36: =L35 -> 
A38: Baseline | B38: ='Cat 2 Setup'!A19 -> 0 | C38: =IFERROR(IF(AND(I38>$I$159,G38>$G$159),"Star",IF(AND(I38>$I$159,G38<$G$159),"Puzzle",IF(AND(I38<$I$159,G38>$G$159),"Plow Horse","Dog"))),"") -> Dog | D38: =IFERROR(VLOOKUP(B38,'Cat 2 Setup'!$A:$F,4,FALSE),"") ->  | E38: =IFERROR(VLOOKUP(B38,'Cat 2 Setup'!$A:$F,3,FALSE),"") -> 0 | F38: =IFERROR(VLOOKUP(B38,'Cat 2 Setup'!$A:$F,6,FALSE),"") ->  | G38: =IFERROR(E38/$E$159,"") ->  | H38: =IFERROR(F38/D38,"") ->  | I38: =IFERROR((J38-L38)/J38,"") ->  | J38: =IFERROR(D38/E38,"") ->  | K38: =IFERROR(E38/$F$3,"") ->  | L38: =IFERROR(J38*H38,"") -> 
A39: Proposed | C39: =IFERROR(IF(AND(I39>$I$160,G39>$G$160),"Star",IF(AND(I39>$I$160,G39<$G$160),"Puzzle",IF(AND(I39<$I$160,G39>$G$160),"Plow Horse","Dog"))),"") -> Dog | D39: =IFERROR(IF(J39="",D38,E39*J39),D38) ->  | E39: =IFERROR(IF(K39="",E38,K39*$F$3),E38) -> 0 | F39: =IFERROR(D39*H39,F38) ->  | G39: =IFERROR(IF(E39="",G38,E39/$E$160),G38) ->  | H39: =IFERROR(IF(L39="",H38,L39/J39),H38) ->  | I39: =IFERROR((J39-L39)/J39,"") ->  | J39: =J38 ->  | K39: =K38 ->  | L39: =L38 -> 
A41: Baseline | B41: ='Cat 2 Setup'!A20 -> 0 | C41: =IFERROR(IF(AND(I41>$I$159,G41>$G$159),"Star",IF(AND(I41>$I$159,G41<$G$159),"Puzzle",IF(AND(I41<$I$159,G41>$G$159),"Plow Horse","Dog"))),"") -> Dog | D41: =IFERROR(VLOOKUP(B41,'Cat 2 Setup'!$A:$F,4,FALSE),"") ->  | E41: =IFERROR(VLOOKUP(B41,'Cat 2 Setup'!$A:$F,3,FALSE),"") -> 0 | F41: =IFERROR(VLOOKUP(B41,'Cat 2 Setup'!$A:$F,6,FALSE),"") ->  | G41: =IFERROR(E41/$E$159,"") ->  | H41: =IFERROR(F41/D41,"") ->  | I41: =IFERROR((J41-L41)/J41,"") ->  | J41: =IFERROR(D41/E41,"") ->  | K41: =IFERROR(E41/$F$3,"") ->  | L41: =IFERROR(J41*H41,"") -> 
A42: Proposed | C42: =IFERROR(IF(AND(I42>$I$160,G42>$G$160),"Star",IF(AND(I42>$I$160,G42<$G$160),"Puzzle",IF(AND(I42<$I$160,G42>$G$160),"Plow Horse","Dog"))),"") -> Dog | D42: =IFERROR(IF(J42="",D41,E42*J42),D41) ->  | E42: =IFERROR(IF(K42="",E41,K42*$F$3),E41) -> 0 | F42: =IFERROR(D42*H42,F41) ->  | G42: =IFERROR(IF(E42="",G41,E42/$E$160),G41) ->  | H42: =IFERROR(IF(L42="",H41,L42/J42),H41) ->  | I42: =IFERROR((J42-L42)/J42,"") ->  | J42: =J41 ->  | K42: =K41 ->  | L42: =L41 -> 
A44: Baseline | B44: ='Cat 2 Setup'!A21 -> 0 | C44: =IFERROR(IF(AND(I44>$I$159,G44>$G$159),"Star",IF(AND(I44>$I$159,G44<$G$159),"Puzzle",IF(AND(I44<$I$159,G44>$G$159),"Plow Horse","Dog"))),"") -> Dog | D44: =IFERROR(VLOOKUP(B44,'Cat 2 Setup'!$A:$F,4,FALSE),"") ->  | E44: =IFERROR(VLOOKUP(B44,'Cat 2 Setup'!$A:$F,3,FALSE),"") -> 0 | F44: =IFERROR(VLOOKUP(B44,'Cat 2 Setup'!$A:$F,6,FALSE),"") ->  | G44: =IFERROR(E44/$E$159,"") ->  | H44: =IFERROR(F44/D44,"") ->  | I44: =IFERROR((J44-L44)/J44,"") ->  | J44: =IFERROR(D44/E44,"") ->  | K44: =IFERROR(E44/$F$3,"") ->  | L44: =IFERROR(J44*H44,"") -> 
A45: Proposed | C45: =IFERROR(IF(AND(I45>$I$160,G45>$G$160),"Star",IF(AND(I45>$I$160,G45<$G$160),"Puzzle",IF(AND(I45<$I$160,G45>$G$160),"Plow Horse","Dog"))),"") -> Dog | D45: =IFERROR(IF(J45="",D44,E45*J45),D44) ->  | E45: =IFERROR(IF(K45="",E44,K45*$F$3),E44) -> 0 | F45: =IFERROR(D45*H45,F44) ->  | G45: =IFERROR(IF(E45="",G44,E45/$E$160),G44) ->  | H45: =IFERROR(IF(L45="",H44,L45/J45),H44) ->  | I45: =IFERROR((J45-L45)/J45,"") ->  | J45: =J44 ->  | K45: =K44 ->  | L45: =L44 -> 
A47: Baseline | B47: ='Cat 2 Setup'!A22 -> 0 | C47: =IFERROR(IF(AND(I47>$I$159,G47>$G$159),"Star",IF(AND(I47>$I$159,G47<$G$159),"Puzzle",IF(AND(I47<$I$159,G47>$G$159),"Plow Horse","Dog"))),"") -> Dog | D47: =IFERROR(VLOOKUP(B47,'Cat 2 Setup'!$A:$F,4,FALSE),"") ->  | E47: =IFERROR(VLOOKUP(B47,'Cat 2 Setup'!$A:$F,3,FALSE),"") -> 0 | F47: =IFERROR(VLOOKUP(B47,'Cat 2 Setup'!$A:$F,6,FALSE),"") ->  | G47: =IFERROR(E47/$E$159,"") ->  | H47: =IFERROR(F47/D47,"") ->  | I47: =IFERROR((J47-L47)/J47,"") ->  | J47: =IFERROR(D47/E47,"") ->  | K47: =IFERROR(E47/$F$3,"") ->  | L47: =IFERROR(J47*H47,"") -> 
A48: Proposed | C48: =IFERROR(IF(AND(I48>$I$160,G48>$G$160),"Star",IF(AND(I48>$I$160,G48<$G$160),"Puzzle",IF(AND(I48<$I$160,G48>$G$160),"Plow Horse","Dog"))),"") -> Dog | D48: =IFERROR(IF(J48="",D47,E48*J48),D47) ->  | E48: =IFERROR(IF(K48="",E47,K48*$F$3),E47) -> 0 | F48: =IFERROR(D48*H48,F47) ->  | G48: =IFERROR(IF(E48="",G47,E48/$E$160),G47) ->  | H48: =IFERROR(IF(L48="",H47,L48/J48),H47) ->  | I48: =IFERROR((J48-L48)/J48,"") ->  | J48: =J47 ->  | K48: =K47 ->  | L48: =L47 -> 
A50: Baseline | B50: ='Cat 2 Setup'!A23 -> 0 | C50: =IFERROR(IF(AND(I50>$I$159,G50>$G$159),"Star",IF(AND(I50>$I$159,G50<$G$159),"Puzzle",IF(AND(I50<$I$159,G50>$G$159),"Plow Horse","Dog"))),"") -> Dog | D50: =IFERROR(VLOOKUP(B50,'Cat 2 Setup'!$A:$F,4,FALSE),"") ->  | E50: =IFERROR(VLOOKUP(B50,'Cat 2 Setup'!$A:$F,3,FALSE),"") -> 0 | F50: =IFERROR(VLOOKUP(B50,'Cat 2 Setup'!$A:$F,6,FALSE),"") ->  | G50: =IFERROR(E50/$E$159,"") ->  | H50: =IFERROR(F50/D50,"") ->  | I50: =IFERROR((J50-L50)/J50,"") ->  | J50: =IFERROR(D50/E50,"") ->  | K50: =IFERROR(E50/$F$3,"") ->  | L50: =IFERROR(J50*H50,"") -> 
A51: Proposed | C51: =IFERROR(IF(AND(I51>$I$160,G51>$G$160),"Star",IF(AND(I51>$I$160,G51<$G$160),"Puzzle",IF(AND(I51<$I$160,G51>$G$160),"Plow Horse","Dog"))),"") -> Dog | D51: =IFERROR(IF(J51="",D50,E51*J51),D50) ->  | E51: =IFERROR(IF(K51="",E50,K51*$F$3),E50) -> 0 | F51: =IFERROR(D51*H51,F50) ->  | G51: =IFERROR(IF(E51="",G50,E51/$E$160),G50) ->  | H51: =IFERROR(IF(L51="",H50,L51/J51),H50) ->  | I51: =IFERROR((J51-L51)/J51,"") ->  | J51: =J50 ->  | K51: =K50 ->  | L51: =L50 -> 
A53: Baseline | B53: ='Cat 2 Setup'!A24 -> 0 | C53: =IFERROR(IF(AND(I53>$I$159,G53>$G$159),"Star",IF(AND(I53>$I$159,G53<$G$159),"Puzzle",IF(AND(I53<$I$159,G53>$G$159),"Plow Horse","Dog"))),"") -> Dog | D53: =IFERROR(VLOOKUP(B53,'Cat 2 Setup'!$A:$F,4,FALSE),"") ->  | E53: =IFERROR(VLOOKUP(B53,'Cat 2 Setup'!$A:$F,3,FALSE),"") -> 0 | F53: =IFERROR(VLOOKUP(B53,'Cat 2 Setup'!$A:$F,6,FALSE),"") ->  | G53: =IFERROR(E53/$E$159,"") ->  | H53: =IFERROR(F53/D53,"") ->  | I53: =IFERROR((J53-L53)/J53,"") ->  | J53: =IFERROR(D53/E53,"") ->  | K53: =IFERROR(E53/$F$3,"") ->  | L53: =IFERROR(J53*H53,"") -> 
A54: Proposed | C54: =IFERROR(IF(AND(I54>$I$160,G54>$G$160),"Star",IF(AND(I54>$I$160,G54<$G$160),"Puzzle",IF(AND(I54<$I$160,G54>$G$160),"Plow Horse","Dog"))),"") -> Dog | D54: =IFERROR(IF(J54="",D53,E54*J54),D53) ->  | E54: =IFERROR(IF(K54="",E53,K54*$F$3),E53) -> 0 | F54: =IFERROR(D54*H54,F53) ->  | G54: =IFERROR(IF(E54="",G53,E54/$E$160),G53) ->  | H54: =IFERROR(IF(L54="",H53,L54/J54),H53) ->  | I54: =IFERROR((J54-L54)/J54,"") ->  | J54: =J53 ->  | K54: =K53 ->  | L54: =L53 -> 
A56: Baseline | B56: ='Cat 2 Setup'!A25 -> 0 | C56: =IFERROR(IF(AND(I56>$I$159,G56>$G$159),"Star",IF(AND(I56>$I$159,G56<$G$159),"Puzzle",IF(AND(I56<$I$159,G56>$G$159),"Plow Horse","Dog"))),"") -> Dog | D56: =IFERROR(VLOOKUP(B56,'Cat 2 Setup'!$A:$F,4,FALSE),"") ->  | E56: =IFERROR(VLOOKUP(B56,'Cat 2 Setup'!$A:$F,3,FALSE),"") -> 0 | F56: =IFERROR(VLOOKUP(B56,'Cat 2 Setup'!$A:$F,6,FALSE),"") ->  | G56: =IFERROR(E56/$E$159,"") ->  | H56: =IFERROR(F56/D56,"") ->  | I56: =IFERROR((J56-L56)/J56,"") ->  | J56: =IFERROR(D56/E56,"") ->  | K56: =IFERROR(E56/$F$3,"") ->  | L56: =IFERROR(J56*H56,"") -> 
A57: Proposed | C57: =IFERROR(IF(AND(I57>$I$160,G57>$G$160),"Star",IF(AND(I57>$I$160,G57<$G$160),"Puzzle",IF(AND(I57<$I$160,G57>$G$160),"Plow Horse","Dog"))),"") -> Dog | D57: =IFERROR(IF(J57="",D56,E57*J57),D56) ->  | E57: =IFERROR(IF(K57="",E56,K57*$F$3),E56) -> 0 | F57: =IFERROR(D57*H57,F56) ->  | G57: =IFERROR(IF(E57="",G56,E57/$E$160),G56) ->  | H57: =IFERROR(IF(L57="",H56,L57/J57),H56) ->  | I57: =IFERROR((J57-L57)/J57,"") ->  | J57: =J56 ->  | K57: =K56 ->  | L57: =L56 -> 
A59: Baseline | B59: ='Cat 2 Setup'!A26 -> 0 | C59: =IFERROR(IF(AND(I59>$I$159,G59>$G$159),"Star",IF(AND(I59>$I$159,G59<$G$159),"Puzzle",IF(AND(I59<$I$159,G59>$G$159),"Plow Horse","Dog"))),"") -> Dog | D59: =IFERROR(VLOOKUP(B59,'Cat 2 Setup'!$A:$F,4,FALSE),"") ->  | E59: =IFERROR(VLOOKUP(B59,'Cat 2 Setup'!$A:$F,3,FALSE),"") -> 0 | F59: =IFERROR(VLOOKUP(B59,'Cat 2 Setup'!$A:$F,6,FALSE),"") ->  | G59: =IFERROR(E59/$E$159,"") ->  | H59: =IFERROR(F59/D59,"") ->  | I59: =IFERROR((J59-L59)/J59,"") ->  | J59: =IFERROR(D59/E59,"") ->  | K59: =IFERROR(E59/$F$3,"") ->  | L59: =IFERROR(J59*H59,"") -> 
A60: Proposed | C60: =IFERROR(IF(AND(I60>$I$160,G60>$G$160),"Star",IF(AND(I60>$I$160,G60<$G$160),"Puzzle",IF(AND(I60<$I$160,G60>$G$160),"Plow Horse","Dog"))),"") -> Dog | D60: =IFERROR(IF(J60="",D59,E60*J60),D59) ->  | E60: =IFERROR(IF(K60="",E59,K60*$F$3),E59) -> 0 | F60: =IFERROR(D60*H60,F59) ->  | G60: =IFERROR(IF(E60="",G59,E60/$E$160),G59) ->  | H60: =IFERROR(IF(L60="",H59,L60/J60),H59) ->  | I60: =IFERROR((J60-L60)/J60,"") ->  | J60: =J59 ->  | K60: =K59 ->  | L60: =L59 -> 
A62: Baseline | B62: ='Cat 2 Setup'!A27 -> 0 | C62: =IFERROR(IF(AND(I62>$I$159,G62>$G$159),"Star",IF(AND(I62>$I$159,G62<$G$159),"Puzzle",IF(AND(I62<$I$159,G62>$G$159),"Plow Horse","Dog"))),"") -> Dog | D62: =IFERROR(VLOOKUP(B62,'Cat 2 Setup'!$A:$F,4,FALSE),"") ->  | E62: =IFERROR(VLOOKUP(B62,'Cat 2 Setup'!$A:$F,3,FALSE),"") -> 0 | F62: =IFERROR(VLOOKUP(B62,'Cat 2 Setup'!$A:$F,6,FALSE),"") ->  | G62: =IFERROR(E62/$E$159,"") ->  | H62: =IFERROR(F62/D62,"") ->  | I62: =IFERROR((J62-L62)/J62,"") ->  | J62: =IFERROR(D62/E62,"") ->  | K62: =IFERROR(E62/$F$3,"") ->  | L62: =IFERROR(J62*H62,"") -> 
A63: Proposed | C63: =IFERROR(IF(AND(I63>$I$160,G63>$G$160),"Star",IF(AND(I63>$I$160,G63<$G$160),"Puzzle",IF(AND(I63<$I$160,G63>$G$160),"Plow Horse","Dog"))),"") -> Dog | D63: =IFERROR(IF(J63="",D62,E63*J63),D62) ->  | E63: =IFERROR(IF(K63="",E62,K63*$F$3),E62) -> 0 | F63: =IFERROR(D63*H63,F62) ->  | G63: =IFERROR(IF(E63="",G62,E63/$E$160),G62) ->  | H63: =IFERROR(IF(L63="",H62,L63/J63),H62) ->  | I63: =IFERROR((J63-L63)/J63,"") ->  | J63: =J62 ->  | K63: =K62 ->  | L63: =L62 -> 
A65: Baseline | B65: ='Cat 2 Setup'!A28 -> 0 | C65: =IFERROR(IF(AND(I65>$I$159,G65>$G$159),"Star",IF(AND(I65>$I$159,G65<$G$159),"Puzzle",IF(AND(I65<$I$159,G65>$G$159),"Plow Horse","Dog"))),"") -> Dog | D65: =IFERROR(VLOOKUP(B65,'Cat 2 Setup'!$A:$F,4,FALSE),"") ->  | E65: =IFERROR(VLOOKUP(B65,'Cat 2 Setup'!$A:$F,3,FALSE),"") -> 0 | F65: =IFERROR(VLOOKUP(B65,'Cat 2 Setup'!$A:$F,6,FALSE),"") ->  | G65: =IFERROR(E65/$E$159,"") ->  | H65: =IFERROR(F65/D65,"") ->  | I65: =IFERROR((J65-L65)/J65,"") ->  | J65: =IFERROR(D65/E65,"") ->  | K65: =IFERROR(E65/$F$3,"") ->  | L65: =IFERROR(J65*H65,"") -> 
A66: Proposed | C66: =IFERROR(IF(AND(I66>$I$160,G66>$G$160),"Star",IF(AND(I66>$I$160,G66<$G$160),"Puzzle",IF(AND(I66<$I$160,G66>$G$160),"Plow Horse","Dog"))),"") -> Dog | D66: =IFERROR(IF(J66="",D65,E66*J66),D65) ->  | E66: =IFERROR(IF(K66="",E65,K66*$F$3),E65) -> 0 | F66: =IFERROR(D66*H66,F65) ->  | G66: =IFERROR(IF(E66="",G65,E66/$E$160),G65) ->  | H66: =IFERROR(IF(L66="",H65,L66/J66),H65) ->  | I66: =IFERROR((J66-L66)/J66,"") ->  | J66: =J65 ->  | K66: =K65 ->  | L66: =L65 -> 
A68: Baseline | B68: ='Cat 2 Setup'!A29 -> 0 | C68: =IFERROR(IF(AND(I68>$I$159,G68>$G$159),"Star",IF(AND(I68>$I$159,G68<$G$159),"Puzzle",IF(AND(I68<$I$159,G68>$G$159),"Plow Horse","Dog"))),"") -> Dog | D68: =IFERROR(VLOOKUP(B68,'Cat 2 Setup'!$A:$F,4,FALSE),"") ->  | E68: =IFERROR(VLOOKUP(B68,'Cat 2 Setup'!$A:$F,3,FALSE),"") -> 0 | F68: =IFERROR(VLOOKUP(B68,'Cat 2 Setup'!$A:$F,6,FALSE),"") ->  | G68: =IFERROR(E68/$E$159,"") ->  | H68: =IFERROR(F68/D68,"") ->  | I68: =IFERROR((J68-L68)/J68,"") ->  | J68: =IFERROR(D68/E68,"") ->  | K68: =IFERROR(E68/$F$3,"") ->  | L68: =IFERROR(J68*H68,"") -> 
A69: Proposed | C69: =IFERROR(IF(AND(I69>$I$160,G69>$G$160),"Star",IF(AND(I69>$I$160,G69<$G$160),"Puzzle",IF(AND(I69<$I$160,G69>$G$160),"Plow Horse","Dog"))),"") -> Dog | D69: =IFERROR(IF(J69="",D68,E69*J69),D68) ->  | E69: =IFERROR(IF(K69="",E68,K69*$F$3),E68) -> 0 | F69: =IFERROR(D69*H69,F68) ->  | G69: =IFERROR(IF(E69="",G68,E69/$E$160),G68) ->  | H69: =IFERROR(IF(L69="",H68,L69/J69),H68) ->  | I69: =IFERROR((J69-L69)/J69,"") ->  | J69: =J68 ->  | K69: =K68 ->  | L69: =L68 -> 
A71: Baseline | B71: ='Cat 2 Setup'!A30 -> 0 | C71: =IFERROR(IF(AND(I71>$I$159,G71>$G$159),"Star",IF(AND(I71>$I$159,G71<$G$159),"Puzzle",IF(AND(I71<$I$159,G71>$G$159),"Plow Horse","Dog"))),"") -> Dog | D71: =IFERROR(VLOOKUP(B71,'Cat 2 Setup'!$A:$F,4,FALSE),"") ->  | E71: =IFERROR(VLOOKUP(B71,'Cat 2 Setup'!$A:$F,3,FALSE),"") -> 0 | F71: =IFERROR(VLOOKUP(B71,'Cat 2 Setup'!$A:$F,6,FALSE),"") ->  | G71: =IFERROR(E71/$E$159,"") ->  | H71: =IFERROR(F71/D71,"") ->  | I71: =IFERROR((J71-L71)/J71,"") ->  | J71: =IFERROR(D71/E71,"") ->  | K71: =IFERROR(E71/$F$3,"") ->  | L71: =IFERROR(J71*H71,"") -> 
A72: Proposed | C72: =IFERROR(IF(AND(I72>$I$160,G72>$G$160),"Star",IF(AND(I72>$I$160,G72<$G$160),"Puzzle",IF(AND(I72<$I$160,G72>$G$160),"Plow Horse","Dog"))),"") -> Dog | D72: =IFERROR(IF(J72="",D71,E72*J72),D71) ->  | E72: =IFERROR(IF(K72="",E71,K72*$F$3),E71) -> 0 | F72: =IFERROR(D72*H72,F71) ->  | G72: =IFERROR(IF(E72="",G71,E72/$E$160),G71) ->  | H72: =IFERROR(IF(L72="",H71,L72/J72),H71) ->  | I72: =IFERROR((J72-L72)/J72,"") ->  | J72: =J71 ->  | K72: =K71 ->  | L72: =L71 -> 
A74: Baseline | B74: ='Cat 2 Setup'!A31 -> 0 | C74: =IFERROR(IF(AND(I74>$I$159,G74>$G$159),"Star",IF(AND(I74>$I$159,G74<$G$159),"Puzzle",IF(AND(I74<$I$159,G74>$G$159),"Plow Horse","Dog"))),"") -> Dog | D74: =IFERROR(VLOOKUP(B74,'Cat 2 Setup'!$A:$F,4,FALSE),"") ->  | E74: =IFERROR(VLOOKUP(B74,'Cat 2 Setup'!$A:$F,3,FALSE),"") -> 0 | F74: =IFERROR(VLOOKUP(B74,'Cat 2 Setup'!$A:$F,6,FALSE),"") ->  | G74: =IFERROR(E74/$E$159,"") ->  | H74: =IFERROR(F74/D74,"") ->  | I74: =IFERROR((J74-L74)/J74,"") ->  | J74: =IFERROR(D74/E74,"") ->  | K74: =IFERROR(E74/$F$3,"") ->  | L74: =IFERROR(J74*H74,"") -> 
A75: Proposed | C75: =IFERROR(IF(AND(I75>$I$160,G75>$G$160),"Star",IF(AND(I75>$I$160,G75<$G$160),"Puzzle",IF(AND(I75<$I$160,G75>$G$160),"Plow Horse","Dog"))),"") -> Dog | D75: =IFERROR(IF(J75="",D74,E75*J75),D74) ->  | E75: =IFERROR(IF(K75="",E74,K75*$F$3),E74) -> 0 | F75: =IFERROR(D75*H75,F74) ->  | G75: =IFERROR(IF(E75="",G74,E75/$E$160),G74) ->  | H75: =IFERROR(IF(L75="",H74,L75/J75),H74) ->  | I75: =IFERROR((J75-L75)/J75,"") ->  | J75: =J74 ->  | K75: =K74 ->  | L75: =L74 -> 
A77: Baseline | B77: ='Cat 2 Setup'!A32 -> 0 | C77: =IFERROR(IF(AND(I77>$I$159,G77>$G$159),"Star",IF(AND(I77>$I$159,G77<$G$159),"Puzzle",IF(AND(I77<$I$159,G77>$G$159),"Plow Horse","Dog"))),"") -> Dog | D77: =IFERROR(VLOOKUP(B77,'Cat 2 Setup'!$A:$F,4,FALSE),"") ->  | E77: =IFERROR(VLOOKUP(B77,'Cat 2 Setup'!$A:$F,3,FALSE),"") -> 0 | F77: =IFERROR(VLOOKUP(B77,'Cat 2 Setup'!$A:$F,6,FALSE),"") ->  | G77: =IFERROR(E77/$E$159,"") ->  | H77: =IFERROR(F77/D77,"") ->  | I77: =IFERROR((J77-L77)/J77,"") ->  | J77: =IFERROR(D77/E77,"") ->  | K77: =IFERROR(E77/$F$3,"") ->  | L77: =IFERROR(J77*H77,"") -> 
A78: Proposed | C78: =IFERROR(IF(AND(I78>$I$160,G78>$G$160),"Star",IF(AND(I78>$I$160,G78<$G$160),"Puzzle",IF(AND(I78<$I$160,G78>$G$160),"Plow Horse","Dog"))),"") -> Dog | D78: =IFERROR(IF(J78="",D77,E78*J78),D77) ->  | E78: =IFERROR(IF(K78="",E77,K78*$F$3),E77) -> 0 | F78: =IFERROR(D78*H78,F77) ->  | G78: =IFERROR(IF(E78="",G77,E78/$E$160),G77) ->  | H78: =IFERROR(IF(L78="",H77,L78/J78),H77) ->  | I78: =IFERROR((J78-L78)/J78,"") ->  | J78: =J77 ->  | K78: =K77 ->  | L78: =L77 -> 
A80: Baseline | B80: ='Cat 2 Setup'!A33 -> 0 | C80: =IFERROR(IF(AND(I80>$I$159,G80>$G$159),"Star",IF(AND(I80>$I$159,G80<$G$159),"Puzzle",IF(AND(I80<$I$159,G80>$G$159),"Plow Horse","Dog"))),"") -> Dog | D80: =IFERROR(VLOOKUP(B80,'Cat 2 Setup'!$A:$F,4,FALSE),"") ->  | E80: =IFERROR(VLOOKUP(B80,'Cat 2 Setup'!$A:$F,3,FALSE),"") -> 0 | F80: =IFERROR(VLOOKUP(B80,'Cat 2 Setup'!$A:$F,6,FALSE),"") ->  | G80: =IFERROR(E80/$E$159,"") ->  | H80: =IFERROR(F80/D80,"") ->  | I80: =IFERROR((J80-L80)/J80,"") ->  | J80: =IFERROR(D80/E80,"") ->  | K80: =IFERROR(E80/$F$3,"") ->  | L80: =IFERROR(J80*H80,"") -> 
A81: Proposed | C81: =IFERROR(IF(AND(I81>$I$160,G81>$G$160),"Star",IF(AND(I81>$I$160,G81<$G$160),"Puzzle",IF(AND(I81<$I$160,G81>$G$160),"Plow Horse","Dog"))),"") -> Dog | D81: =IFERROR(IF(J81="",D80,E81*J81),D80) ->  | E81: =IFERROR(IF(K81="",E80,K81*$F$3),E80) -> 0 | F81: =IFERROR(D81*H81,F80) ->  | G81: =IFERROR(IF(E81="",G80,E81/$E$160),G80) ->  | H81: =IFERROR(IF(L81="",H80,L81/J81),H80) ->  | I81: =IFERROR((J81-L81)/J81,"") ->  | J81: =J80 ->  | K81: =K80 ->  | L81: =L80 -> 
A83: Baseline | B83: ='Cat 2 Setup'!A34 -> 0 | C83: =IFERROR(IF(AND(I83>$I$159,G83>$G$159),"Star",IF(AND(I83>$I$159,G83<$G$159),"Puzzle",IF(AND(I83<$I$159,G83>$G$159),"Plow Horse","Dog"))),"") -> Dog | D83: =IFERROR(VLOOKUP(B83,'Cat 2 Setup'!$A:$F,4,FALSE),"") ->  | E83: =IFERROR(VLOOKUP(B83,'Cat 2 Setup'!$A:$F,3,FALSE),"") -> 0 | F83: =IFERROR(VLOOKUP(B83,'Cat 2 Setup'!$A:$F,6,FALSE),"") ->  | G83: =IFERROR(E83/$E$159,"") ->  | H83: =IFERROR(F83/D83,"") ->  | I83: =IFERROR((J83-L83)/J83,"") ->  | J83: =IFERROR(D83/E83,"") ->  | K83: =IFERROR(E83/$F$3,"") ->  | L83: =IFERROR(J83*H83,"") -> 
A84: Proposed | C84: =IFERROR(IF(AND(I84>$I$160,G84>$G$160),"Star",IF(AND(I84>$I$160,G84<$G$160),"Puzzle",IF(AND(I84<$I$160,G84>$G$160),"Plow Horse","Dog"))),"") -> Dog | D84: =IFERROR(IF(J84="",D83,E84*J84),D83) ->  | E84: =IFERROR(IF(K84="",E83,K84*$F$3),E83) -> 0 | F84: =IFERROR(D84*H84,F83) ->  | G84: =IFERROR(IF(E84="",G83,E84/$E$160),G83) ->  | H84: =IFERROR(IF(L84="",H83,L84/J84),H83) ->  | I84: =IFERROR((J84-L84)/J84,"") ->  | J84: =J83 ->  | K84: =K83 ->  | L84: =L83 -> 
A86: Baseline | B86: ='Cat 2 Setup'!A35 -> 0 | C86: =IFERROR(IF(AND(I86>$I$159,G86>$G$159),"Star",IF(AND(I86>$I$159,G86<$G$159),"Puzzle",IF(AND(I86<$I$159,G86>$G$159),"Plow Horse","Dog"))),"") -> Dog | D86: =IFERROR(VLOOKUP(B86,'Cat 2 Setup'!$A:$F,4,FALSE),"") ->  | E86: =IFERROR(VLOOKUP(B86,'Cat 2 Setup'!$A:$F,3,FALSE),"") -> 0 | F86: =IFERROR(VLOOKUP(B86,'Cat 2 Setup'!$A:$F,6,FALSE),"") ->  | G86: =IFERROR(E86/$E$159,"") ->  | H86: =IFERROR(F86/D86,"") ->  | I86: =IFERROR((J86-L86)/J86,"") ->  | J86: =IFERROR(D86/E86,"") ->  | K86: =IFERROR(E86/$F$3,"") ->  | L86: =IFERROR(J86*H86,"") -> 
A87: Proposed | C87: =IFERROR(IF(AND(I87>$I$160,G87>$G$160),"Star",IF(AND(I87>$I$160,G87<$G$160),"Puzzle",IF(AND(I87<$I$160,G87>$G$160),"Plow Horse","Dog"))),"") -> Dog | D87: =IFERROR(IF(J87="",D86,E87*J87),D86) ->  | E87: =IFERROR(IF(K87="",E86,K87*$F$3),E86) -> 0 | F87: =IFERROR(D87*H87,F86) ->  | G87: =IFERROR(IF(E87="",G86,E87/$E$160),G86) ->  | H87: =IFERROR(IF(L87="",H86,L87/J87),H86) ->  | I87: =IFERROR((J87-L87)/J87,"") ->  | J87: =J86 ->  | K87: =K86 ->  | L87: =L86 -> 
A89: Baseline | B89: ='Cat 2 Setup'!A36 -> 0 | C89: =IFERROR(IF(AND(I89>$I$159,G89>$G$159),"Star",IF(AND(I89>$I$159,G89<$G$159),"Puzzle",IF(AND(I89<$I$159,G89>$G$159),"Plow Horse","Dog"))),"") -> Dog | D89: =IFERROR(VLOOKUP(B89,'Cat 2 Setup'!$A:$F,4,FALSE),"") ->  | E89: =IFERROR(VLOOKUP(B89,'Cat 2 Setup'!$A:$F,3,FALSE),"") -> 0 | F89: =IFERROR(VLOOKUP(B89,'Cat 2 Setup'!$A:$F,6,FALSE),"") ->  | G89: =IFERROR(E89/$E$159,"") ->  | H89: =IFERROR(F89/D89,"") ->  | I89: =IFERROR((J89-L89)/J89,"") ->  | J89: =IFERROR(D89/E89,"") ->  | K89: =IFERROR(E89/$F$3,"") ->  | L89: =IFERROR(J89*H89,"") -> 
A90: Proposed | C90: =IFERROR(IF(AND(I90>$I$160,G90>$G$160),"Star",IF(AND(I90>$I$160,G90<$G$160),"Puzzle",IF(AND(I90<$I$160,G90>$G$160),"Plow Horse","Dog"))),"") -> Dog | D90: =IFERROR(IF(J90="",D89,E90*J90),D89) ->  | E90: =IFERROR(IF(K90="",E89,K90*$F$3),E89) -> 0 | F90: =IFERROR(D90*H90,F89) ->  | G90: =IFERROR(IF(E90="",G89,E90/$E$160),G89) ->  | H90: =IFERROR(IF(L90="",H89,L90/J90),H89) ->  | I90: =IFERROR((J90-L90)/J90,"") ->  | J90: =J89 ->  | K90: =K89 ->  | L90: =L89 -> 
A92: Baseline | B92: ='Cat 2 Setup'!A37 -> 0 | C92: =IFERROR(IF(AND(I92>$I$159,G92>$G$159),"Star",IF(AND(I92>$I$159,G92<$G$159),"Puzzle",IF(AND(I92<$I$159,G92>$G$159),"Plow Horse","Dog"))),"") -> Dog | D92: =IFERROR(VLOOKUP(B92,'Cat 2 Setup'!$A:$F,4,FALSE),"") ->  | E92: =IFERROR(VLOOKUP(B92,'Cat 2 Setup'!$A:$F,3,FALSE),"") -> 0 | F92: =IFERROR(VLOOKUP(B92,'Cat 2 Setup'!$A:$F,6,FALSE),"") ->  | G92: =IFERROR(E92/$E$159,"") ->  | H92: =IFERROR(F92/D92,"") ->  | I92: =IFERROR((J92-L92)/J92,"") ->  | J92: =IFERROR(D92/E92,"") ->  | K92: =IFERROR(E92/$F$3,"") ->  | L92: =IFERROR(J92*H92,"") -> 
A93: Proposed | C93: =IFERROR(IF(AND(I93>$I$160,G93>$G$160),"Star",IF(AND(I93>$I$160,G93<$G$160),"Puzzle",IF(AND(I93<$I$160,G93>$G$160),"Plow Horse","Dog"))),"") -> Dog | D93: =IFERROR(IF(J93="",D92,E93*J93),D92) ->  | E93: =IFERROR(IF(K93="",E92,K93*$F$3),E92) -> 0 | F93: =IFERROR(D93*H93,F92) ->  | G93: =IFERROR(IF(E93="",G92,E93/$E$160),G92) ->  | H93: =IFERROR(IF(L93="",H92,L93/J93),H92) ->  | I93: =IFERROR((J93-L93)/J93,"") ->  | J93: =J92 ->  | K93: =K92 ->  | L93: =L92 -> 
A95: Baseline | B95: ='Cat 2 Setup'!A38 -> 0 | C95: =IFERROR(IF(AND(I95>$I$159,G95>$G$159),"Star",IF(AND(I95>$I$159,G95<$G$159),"Puzzle",IF(AND(I95<$I$159,G95>$G$159),"Plow Horse","Dog"))),"") -> Dog | D95: =IFERROR(VLOOKUP(B95,'Cat 2 Setup'!$A:$F,4,FALSE),"") ->  | E95: =IFERROR(VLOOKUP(B95,'Cat 2 Setup'!$A:$F,3,FALSE),"") -> 0 | F95: =IFERROR(VLOOKUP(B95,'Cat 2 Setup'!$A:$F,6,FALSE),"") ->  | G95: =IFERROR(E95/$E$159,"") ->  | H95: =IFERROR(F95/D95,"") ->  | I95: =IFERROR((J95-L95)/J95,"") ->  | J95: =IFERROR(D95/E95,"") ->  | K95: =IFERROR(E95/$F$3,"") ->  | L95: =IFERROR(J95*H95,"") -> 
A96: Proposed | C96: =IFERROR(IF(AND(I96>$I$160,G96>$G$160),"Star",IF(AND(I96>$I$160,G96<$G$160),"Puzzle",IF(AND(I96<$I$160,G96>$G$160),"Plow Horse","Dog"))),"") -> Dog | D96: =IFERROR(IF(J96="",D95,E96*J96),D95) ->  | E96: =IFERROR(IF(K96="",E95,K96*$F$3),E95) -> 0 | F96: =IFERROR(D96*H96,F95) ->  | G96: =IFERROR(IF(E96="",G95,E96/$E$160),G95) ->  | H96: =IFERROR(IF(L96="",H95,L96/J96),H95) ->  | I96: =IFERROR((J96-L96)/J96,"") ->  | J96: =J95 ->  | K96: =K95 ->  | L96: =L95 -> 
A98: Baseline | B98: ='Cat 2 Setup'!A39 -> 0 | C98: =IFERROR(IF(AND(I98>$I$159,G98>$G$159),"Star",IF(AND(I98>$I$159,G98<$G$159),"Puzzle",IF(AND(I98<$I$159,G98>$G$159),"Plow Horse","Dog"))),"") -> Dog | D98: =IFERROR(VLOOKUP(B98,'Cat 2 Setup'!$A:$F,4,FALSE),"") ->  | E98: =IFERROR(VLOOKUP(B98,'Cat 2 Setup'!$A:$F,3,FALSE),"") -> 0 | F98: =IFERROR(VLOOKUP(B98,'Cat 2 Setup'!$A:$F,6,FALSE),"") ->  | G98: =IFERROR(E98/$E$159,"") ->  | H98: =IFERROR(F98/D98,"") ->  | I98: =IFERROR((J98-L98)/J98,"") ->  | J98: =IFERROR(D98/E98,"") ->  | K98: =IFERROR(E98/$F$3,"") ->  | L98: =IFERROR(J98*H98,"") -> 
A99: Proposed | C99: =IFERROR(IF(AND(I99>$I$160,G99>$G$160),"Star",IF(AND(I99>$I$160,G99<$G$160),"Puzzle",IF(AND(I99<$I$160,G99>$G$160),"Plow Horse","Dog"))),"") -> Dog | D99: =IFERROR(IF(J99="",D98,E99*J99),D98) ->  | E99: =IFERROR(IF(K99="",E98,K99*$F$3),E98) -> 0 | F99: =IFERROR(D99*H99,F98) ->  | G99: =IFERROR(IF(E99="",G98,E99/$E$160),G98) ->  | H99: =IFERROR(IF(L99="",H98,L99/J99),H98) ->  | I99: =IFERROR((J99-L99)/J99,"") ->  | J99: =J98 ->  | K99: =K98 ->  | L99: =L98 -> 
G100: =(1/COUNTA(B8:B96))*0.7 -> 0.02333333333
A101: Baseline | B101: ='Cat 2 Setup'!A40 -> 0 | C101: =IFERROR(IF(AND(I101>$I$159,G101>$G$159),"Star",IF(AND(I101>$I$159,G101<$G$159),"Puzzle",IF(AND(I101<$I$159,G101>$G$159),"Plow Horse","Dog"))),"") -> Dog | D101: =IFERROR(VLOOKUP(B101,'Cat 2 Setup'!$A:$F,4,FALSE),"") ->  | E101: =IFERROR(VLOOKUP(B101,'Cat 2 Setup'!$A:$F,3,FALSE),"") -> 0 | F101: =IFERROR(VLOOKUP(B101,'Cat 2 Setup'!$A:$F,6,FALSE),"") ->  | G101: =IFERROR(E101/$E$159,"") ->  | H101: =IFERROR(F101/D101,"") ->  | I101: =IFERROR((J101-L101)/J101,"") ->  | J101: =IFERROR(D101/E101,"") ->  | K101: =IFERROR(E101/$F$3,"") ->  | L101: =IFERROR(J101*H101,"") -> 
A102: Proposed | C102: =IFERROR(IF(AND(I102>$I$160,G102>$G$160),"Star",IF(AND(I102>$I$160,G102<$G$160),"Puzzle",IF(AND(I102<$I$160,G102>$G$160),"Plow Horse","Dog"))),"") -> Dog | D102: =IFERROR(IF(J102="",D101,E102*J102),D101) ->  | E102: =IFERROR(IF(K102="",E101,K102*$F$3),E101) -> 0 | F102: =IFERROR(D102*H102,F101) ->  | G102: =IFERROR(IF(E102="",G101,E102/$E$160),G101) ->  | H102: =IFERROR(IF(L102="",H101,L102/J102),H101) ->  | I102: =IFERROR((J102-L102)/J102,"") ->  | J102: =J101 ->  | K102: =K101 ->  | L102: =L101 -> 
A104: Baseline | B104: ='Cat 2 Setup'!A41 -> 0 | C104: =IFERROR(IF(AND(I104>$I$159,G104>$G$159),"Star",IF(AND(I104>$I$159,G104<$G$159),"Puzzle",IF(AND(I104<$I$159,G104>$G$159),"Plow Horse","Dog"))),"") -> Dog | D104: =IFERROR(VLOOKUP(B104,'Cat 2 Setup'!$A:$F,4,FALSE),"") ->  | E104: =IFERROR(VLOOKUP(B104,'Cat 2 Setup'!$A:$F,3,FALSE),"") -> 0 | F104: =IFERROR(VLOOKUP(B104,'Cat 2 Setup'!$A:$F,6,FALSE),"") ->  | G104: =IFERROR(E104/$E$159,"") ->  | H104: =IFERROR(F104/D104,"") ->  | I104: =IFERROR((J104-L104)/J104,"") ->  | J104: =IFERROR(D104/E104,"") ->  | K104: =IFERROR(E104/$F$3,"") ->  | L104: =IFERROR(J104*H104,"") -> 
A105: Proposed | C105: =IFERROR(IF(AND(I105>$I$160,G105>$G$160),"Star",IF(AND(I105>$I$160,G105<$G$160),"Puzzle",IF(AND(I105<$I$160,G105>$G$160),"Plow Horse","Dog"))),"") -> Dog | D105: =IFERROR(IF(J105="",D104,E105*J105),D104) ->  | E105: =IFERROR(IF(K105="",E104,K105*$F$3),E104) -> 0 | F105: =IFERROR(D105*H105,F104) ->  | G105: =IFERROR(IF(E105="",G104,E105/$E$160),G104) ->  | H105: =IFERROR(IF(L105="",H104,L105/J105),H104) ->  | I105: =IFERROR((J105-L105)/J105,"") ->  | J105: =J104 ->  | K105: =K104 ->  | L105: =L104 -> 
A107: Baseline | B107: ='Cat 2 Setup'!A42 -> 0 | C107: =IFERROR(IF(AND(I107>$I$159,G107>$G$159),"Star",IF(AND(I107>$I$159,G107<$G$159),"Puzzle",IF(AND(I107<$I$159,G107>$G$159),"Plow Horse","Dog"))),"") -> Dog | D107: =IFERROR(VLOOKUP(B107,'Cat 2 Setup'!$A:$F,4,FALSE),"") ->  | E107: =IFERROR(VLOOKUP(B107,'Cat 2 Setup'!$A:$F,3,FALSE),"") -> 0 | F107: =IFERROR(VLOOKUP(B107,'Cat 2 Setup'!$A:$F,6,FALSE),"") ->  | G107: =IFERROR(E107/$E$159,"") ->  | H107: =IFERROR(F107/D107,"") ->  | I107: =IFERROR((J107-L107)/J107,"") ->  | J107: =IFERROR(D107/E107,"") ->  | K107: =IFERROR(E107/$F$3,"") ->  | L107: =IFERROR(J107*H107,"") -> 
A108: Proposed | C108: =IFERROR(IF(AND(I108>$I$160,G108>$G$160),"Star",IF(AND(I108>$I$160,G108<$G$160),"Puzzle",IF(AND(I108<$I$160,G108>$G$160),"Plow Horse","Dog"))),"") -> Dog | D108: =IFERROR(IF(J108="",D107,E108*J108),D107) ->  | E108: =IFERROR(IF(K108="",E107,K108*$F$3),E107) -> 0 | F108: =IFERROR(D108*H108,F107) ->  | G108: =IFERROR(IF(E108="",G107,E108/$E$160),G107) ->  | H108: =IFERROR(IF(L108="",H107,L108/J108),H107) ->  | I108: =IFERROR((J108-L108)/J108,"") ->  | J108: =J107 ->  | K108: =K107 ->  | L108: =L107 -> 
A110: Baseline | B110: ='Cat 2 Setup'!A43 -> 0 | C110: =IFERROR(IF(AND(I110>$I$159,G110>$G$159),"Star",IF(AND(I110>$I$159,G110<$G$159),"Puzzle",IF(AND(I110<$I$159,G110>$G$159),"Plow Horse","Dog"))),"") -> Dog | D110: =IFERROR(VLOOKUP(B110,'Cat 2 Setup'!$A:$F,4,FALSE),"") ->  | E110: =IFERROR(VLOOKUP(B110,'Cat 2 Setup'!$A:$F,3,FALSE),"") -> 0 | F110: =IFERROR(VLOOKUP(B110,'Cat 2 Setup'!$A:$F,6,FALSE),"") ->  | G110: =IFERROR(E110/$E$159,"") ->  | H110: =IFERROR(F110/D110,"") ->  | I110: =IFERROR((J110-L110)/J110,"") ->  | J110: =IFERROR(D110/E110,"") ->  | K110: =IFERROR(E110/$F$3,"") ->  | L110: =IFERROR(J110*H110,"") -> 
A111: Proposed | C111: =IFERROR(IF(AND(I111>$I$160,G111>$G$160),"Star",IF(AND(I111>$I$160,G111<$G$160),"Puzzle",IF(AND(I111<$I$160,G111>$G$160),"Plow Horse","Dog"))),"") -> Dog | D111: =IFERROR(IF(J111="",D110,E111*J111),D110) ->  | E111: =IFERROR(IF(K111="",E110,K111*$F$3),E110) -> 0 | F111: =IFERROR(D111*H111,F110) ->  | G111: =IFERROR(IF(E111="",G110,E111/$E$160),G110) ->  | H111: =IFERROR(IF(L111="",H110,L111/J111),H110) ->  | I111: =IFERROR((J111-L111)/J111,"") ->  | J111: =J110 ->  | K111: =K110 ->  | L111: =L110 -> 
A113: Baseline | B113: ='Cat 2 Setup'!A44 -> 0 | C113: =IFERROR(IF(AND(I113>$I$159,G113>$G$159),"Star",IF(AND(I113>$I$159,G113<$G$159),"Puzzle",IF(AND(I113<$I$159,G113>$G$159),"Plow Horse","Dog"))),"") -> Dog | D113: =IFERROR(VLOOKUP(B113,'Cat 2 Setup'!$A:$F,4,FALSE),"") ->  | E113: =IFERROR(VLOOKUP(B113,'Cat 2 Setup'!$A:$F,3,FALSE),"") -> 0 | F113: =IFERROR(VLOOKUP(B113,'Cat 2 Setup'!$A:$F,6,FALSE),"") ->  | G113: =IFERROR(E113/$E$159,"") ->  | H113: =IFERROR(F113/D113,"") ->  | I113: =IFERROR((J113-L113)/J113,"") ->  | J113: =IFERROR(D113/E113,"") ->  | K113: =IFERROR(E113/$F$3,"") ->  | L113: =IFERROR(J113*H113,"") -> 
A114: Proposed | C114: =IFERROR(IF(AND(I114>$I$160,G114>$G$160),"Star",IF(AND(I114>$I$160,G114<$G$160),"Puzzle",IF(AND(I114<$I$160,G114>$G$160),"Plow Horse","Dog"))),"") -> Dog | D114: =IFERROR(IF(J114="",D113,E114*J114),D113) ->  | E114: =IFERROR(IF(K114="",E113,K114*$F$3),E113) -> 0 | F114: =IFERROR(D114*H114,F113) ->  | G114: =IFERROR(IF(E114="",G113,E114/$E$160),G113) ->  | H114: =IFERROR(IF(L114="",H113,L114/J114),H113) ->  | I114: =IFERROR((J114-L114)/J114,"") ->  | J114: =J113 ->  | K114: =K113 ->  | L114: =L113 -> 
A116: Baseline | B116: ='Cat 2 Setup'!A45 -> 0 | C116: =IFERROR(IF(AND(I116>$I$159,G116>$G$159),"Star",IF(AND(I116>$I$159,G116<$G$159),"Puzzle",IF(AND(I116<$I$159,G116>$G$159),"Plow Horse","Dog"))),"") -> Dog | D116: =IFERROR(VLOOKUP(B116,'Cat 2 Setup'!$A:$F,4,FALSE),"") ->  | E116: =IFERROR(VLOOKUP(B116,'Cat 2 Setup'!$A:$F,3,FALSE),"") -> 0 | F116: =IFERROR(VLOOKUP(B116,'Cat 2 Setup'!$A:$F,6,FALSE),"") ->  | G116: =IFERROR(E116/$E$159,"") ->  | H116: =IFERROR(F116/D116,"") ->  | I116: =IFERROR((J116-L116)/J116,"") ->  | J116: =IFERROR(D116/E116,"") ->  | K116: =IFERROR(E116/$F$3,"") ->  | L116: =IFERROR(J116*H116,"") -> 
A117: Proposed | C117: =IFERROR(IF(AND(I117>$I$160,G117>$G$160),"Star",IF(AND(I117>$I$160,G117<$G$160),"Puzzle",IF(AND(I117<$I$160,G117>$G$160),"Plow Horse","Dog"))),"") -> Dog | D117: =IFERROR(IF(J117="",D116,E117*J117),D116) ->  | E117: =IFERROR(IF(K117="",E116,K117*$F$3),E116) -> 0 | F117: =IFERROR(D117*H117,F116) ->  | G117: =IFERROR(IF(E117="",G116,E117/$E$160),G116) ->  | H117: =IFERROR(IF(L117="",H116,L117/J117),H116) ->  | I117: =IFERROR((J117-L117)/J117,"") ->  | J117: =J116 ->  | K117: =K116 ->  | L117: =L116 -> 
A119: Baseline | B119: ='Cat 2 Setup'!A46 -> 0 | C119: =IFERROR(IF(AND(I119>$I$159,G119>$G$159),"Star",IF(AND(I119>$I$159,G119<$G$159),"Puzzle",IF(AND(I119<$I$159,G119>$G$159),"Plow Horse","Dog"))),"") -> Dog | D119: =IFERROR(VLOOKUP(B119,'Cat 2 Setup'!$A:$F,4,FALSE),"") ->  | E119: =IFERROR(VLOOKUP(B119,'Cat 2 Setup'!$A:$F,3,FALSE),"") -> 0 | F119: =IFERROR(VLOOKUP(B119,'Cat 2 Setup'!$A:$F,6,FALSE),"") ->  | G119: =IFERROR(E119/$E$159,"") ->  | H119: =IFERROR(F119/D119,"") ->  | I119: =IFERROR((J119-L119)/J119,"") ->  | J119: =IFERROR(D119/E119,"") ->  | K119: =IFERROR(E119/$F$3,"") ->  | L119: =IFERROR(J119*H119,"") -> 
A120: Proposed | C120: =IFERROR(IF(AND(I120>$I$160,G120>$G$160),"Star",IF(AND(I120>$I$160,G120<$G$160),"Puzzle",IF(AND(I120<$I$160,G120>$G$160),"Plow Horse","Dog"))),"") -> Dog | D120: =IFERROR(IF(J120="",D119,E120*J120),D119) ->  | E120: =IFERROR(IF(K120="",E119,K120*$F$3),E119) -> 0 | F120: =IFERROR(D120*H120,F119) ->  | G120: =IFERROR(IF(E120="",G119,E120/$E$160),G119) ->  | H120: =IFERROR(IF(L120="",H119,L120/J120),H119) ->  | I120: =IFERROR((J120-L120)/J120,"") ->  | J120: =J119 ->  | K120: =K119 ->  | L120: =L119 -> 
A122: Baseline | B122: ='Cat 2 Setup'!A47 -> 0 | C122: =IFERROR(IF(AND(I122>$I$159,G122>$G$159),"Star",IF(AND(I122>$I$159,G122<$G$159),"Puzzle",IF(AND(I122<$I$159,G122>$G$159),"Plow Horse","Dog"))),"") -> Dog | D122: =IFERROR(VLOOKUP(B122,'Cat 2 Setup'!$A:$F,4,FALSE),"") ->  | E122: =IFERROR(VLOOKUP(B122,'Cat 2 Setup'!$A:$F,3,FALSE),"") -> 0 | F122: =IFERROR(VLOOKUP(B122,'Cat 2 Setup'!$A:$F,6,FALSE),"") ->  | G122: =IFERROR(E122/$E$159,"") ->  | H122: =IFERROR(F122/D122,"") ->  | I122: =IFERROR((J122-L122)/J122,"") ->  | J122: =IFERROR(D122/E122,"") ->  | K122: =IFERROR(E122/$F$3,"") ->  | L122: =IFERROR(J122*H122,"") -> 
A123: Proposed | C123: =IFERROR(IF(AND(I123>$I$160,G123>$G$160),"Star",IF(AND(I123>$I$160,G123<$G$160),"Puzzle",IF(AND(I123<$I$160,G123>$G$160),"Plow Horse","Dog"))),"") -> Dog | D123: =IFERROR(IF(J123="",D122,E123*J123),D122) ->  | E123: =IFERROR(IF(K123="",E122,K123*$F$3),E122) -> 0 | F123: =IFERROR(D123*H123,F122) ->  | G123: =IFERROR(IF(E123="",G122,E123/$E$160),G122) ->  | H123: =IFERROR(IF(L123="",H122,L123/J123),H122) ->  | J123: =J122 ->  | K123: =K122 ->  | L123: =L122 -> 
A125: Baseline | B125: ='Cat 2 Setup'!A48 -> 0 | C125: =IFERROR(IF(AND(I125>$I$159,G125>$G$159),"Star",IF(AND(I125>$I$159,G125<$G$159),"Puzzle",IF(AND(I125<$I$159,G125>$G$159),"Plow Horse","Dog"))),"") -> Dog | D125: =IFERROR(VLOOKUP(B125,'Cat 2 Setup'!$A:$F,4,FALSE),"") ->  | E125: =IFERROR(VLOOKUP(B125,'Cat 2 Setup'!$A:$F,3,FALSE),"") -> 0 | F125: =IFERROR(VLOOKUP(B125,'Cat 2 Setup'!$A:$F,6,FALSE),"") ->  | G125: =IFERROR(E125/$E$159,"") ->  | H125: =IFERROR(F125/D125,"") ->  | I125: =IFERROR((J125-L125)/J125,"") ->  | J125: =IFERROR(D125/E125,"") ->  | K125: =IFERROR(E125/$F$3,"") ->  | L125: =IFERROR(J125*H125,"") -> 
A126: Proposed | C126: =IFERROR(IF(AND(I126>$I$160,G126>$G$160),"Star",IF(AND(I126>$I$160,G126<$G$160),"Puzzle",IF(AND(I126<$I$160,G126>$G$160),"Plow Horse","Dog"))),"") -> Dog | D126: =IFERROR(IF(J126="",D125,E126*J126),D125) ->  | E126: =IFERROR(IF(K126="",E125,K126*$F$3),E125) -> 0 | F126: =IFERROR(D126*H126,F125) ->  | G126: =IFERROR(IF(E126="",G125,E126/$E$160),G125) ->  | H126: =IFERROR(IF(L126="",H125,L126/J126),H125) ->  | J126: =J125 ->  | K126: =K125 ->  | L126: =L125 -> 
A128: Baseline | B128: ='Cat 2 Setup'!A49 -> 0 | C128: =IFERROR(IF(AND(I128>$I$159,G128>$G$159),"Star",IF(AND(I128>$I$159,G128<$G$159),"Puzzle",IF(AND(I128<$I$159,G128>$G$159),"Plow Horse","Dog"))),"") -> Dog | D128: =IFERROR(VLOOKUP(B128,'Cat 2 Setup'!$A:$F,4,FALSE),"") ->  | E128: =IFERROR(VLOOKUP(B128,'Cat 2 Setup'!$A:$F,3,FALSE),"") -> 0 | F128: =IFERROR(VLOOKUP(B128,'Cat 2 Setup'!$A:$F,6,FALSE),"") ->  | G128: =IFERROR(E128/$E$159,"") ->  | H128: =IFERROR(F128/D128,"") ->  | I128: =IFERROR((J128-L128)/J128,"") ->  | J128: =IFERROR(D128/E128,"") ->  | K128: =IFERROR(E128/$F$3,"") ->  | L128: =IFERROR(J128*H128,"") -> 
A129: Proposed | C129: =IFERROR(IF(AND(I129>$I$160,G129>$G$160),"Star",IF(AND(I129>$I$160,G129<$G$160),"Puzzle",IF(AND(I129<$I$160,G129>$G$160),"Plow Horse","Dog"))),"") -> Dog | D129: =IFERROR(IF(J129="",D128,E129*J129),D128) ->  | E129: =IFERROR(IF(K129="",E128,K129*$F$3),E128) -> 0 | F129: =IFERROR(D129*H129,F128) ->  | G129: =IFERROR(IF(E129="",G128,E129/$E$160),G128) ->  | H129: =IFERROR(IF(L129="",H128,L129/J129),H128) ->  | J129: =J128 ->  | K129: =K128 ->  | L129: =L128 -> 
A131: Baseline | B131: ='Cat 2 Setup'!A50 -> 0 | C131: =IFERROR(IF(AND(I131>$I$159,G131>$G$159),"Star",IF(AND(I131>$I$159,G131<$G$159),"Puzzle",IF(AND(I131<$I$159,G131>$G$159),"Plow Horse","Dog"))),"") -> Dog | D131: =IFERROR(VLOOKUP(B131,'Cat 2 Setup'!$A:$F,4,FALSE),"") ->  | E131: =IFERROR(VLOOKUP(B131,'Cat 2 Setup'!$A:$F,3,FALSE),"") -> 0 | F131: =IFERROR(VLOOKUP(B131,'Cat 2 Setup'!$A:$F,6,FALSE),"") ->  | G131: =IFERROR(E131/$E$159,"") ->  | H131: =IFERROR(F131/D131,"") ->  | I131: =IFERROR((J131-L131)/J131,"") ->  | J131: =IFERROR(D131/E131,"") ->  | K131: =IFERROR(E131/$F$3,"") ->  | L131: =IFERROR(J131*H131,"") -> 
A132: Proposed | C132: =IFERROR(IF(AND(I132>$I$160,G132>$G$160),"Star",IF(AND(I132>$I$160,G132<$G$160),"Puzzle",IF(AND(I132<$I$160,G132>$G$160),"Plow Horse","Dog"))),"") -> Dog | D132: =IFERROR(IF(J132="",D131,E132*J132),D131) ->  | E132: =IFERROR(IF(K132="",E131,K132*$F$3),E131) -> 0 | F132: =IFERROR(D132*H132,F131) ->  | G132: =IFERROR(IF(E132="",G131,E132/$E$160),G131) ->  | H132: =IFERROR(IF(L132="",H131,L132/J132),H131) ->  | J132: =J131 ->  | K132: =K131 ->  | L132: =L131 -> 
A134: Baseline | B134: ='Cat 2 Setup'!A51 -> 0 | C134: =IFERROR(IF(AND(I134>$I$159,G134>$G$159),"Star",IF(AND(I134>$I$159,G134<$G$159),"Puzzle",IF(AND(I134<$I$159,G134>$G$159),"Plow Horse","Dog"))),"") -> Dog | D134: =IFERROR(VLOOKUP(B134,'Cat 2 Setup'!$A:$F,4,FALSE),"") ->  | E134: =IFERROR(VLOOKUP(B134,'Cat 2 Setup'!$A:$F,3,FALSE),"") -> 0 | F134: =IFERROR(VLOOKUP(B134,'Cat 2 Setup'!$A:$F,6,FALSE),"") ->  | G134: =IFERROR(E134/$E$159,"") ->  | H134: =IFERROR(F134/D134,"") ->  | I134: =IFERROR((J134-L134)/J134,"") ->  | J134: =IFERROR(D134/E134,"") ->  | K134: =IFERROR(E134/$F$3,"") ->  | L134: =IFERROR(J134*H134,"") -> 
A135: Proposed | C135: =IFERROR(IF(AND(I135>$I$160,G135>$G$160),"Star",IF(AND(I135>$I$160,G135<$G$160),"Puzzle",IF(AND(I135<$I$160,G135>$G$160),"Plow Horse","Dog"))),"") -> Dog | D135: =IFERROR(IF(J135="",D134,E135*J135),D134) ->  | E135: =IFERROR(IF(K135="",E134,K135*$F$3),E134) -> 0 | F135: =IFERROR(D135*H135,F134) ->  | G135: =IFERROR(IF(E135="",G134,E135/$E$160),G134) ->  | H135: =IFERROR(IF(L135="",H134,L135/J135),H134) ->  | J135: =J134 ->  | K135: =K134 ->  | L135: =L134 -> 
A137: Baseline | B137: ='Cat 2 Setup'!A52 -> 0 | C137: =IFERROR(IF(AND(I137>$I$159,G137>$G$159),"Star",IF(AND(I137>$I$159,G137<$G$159),"Puzzle",IF(AND(I137<$I$159,G137>$G$159),"Plow Horse","Dog"))),"") -> Dog | D137: =IFERROR(VLOOKUP(B137,'Cat 2 Setup'!$A:$F,4,FALSE),"") ->  | E137: =IFERROR(VLOOKUP(B137,'Cat 2 Setup'!$A:$F,3,FALSE),"") -> 0 | F137: =IFERROR(VLOOKUP(B137,'Cat 2 Setup'!$A:$F,6,FALSE),"") ->  | G137: =IFERROR(E137/$E$159,"") ->  | H137: =IFERROR(F137/D137,"") ->  | I137: =IFERROR((J137-L137)/J137,"") ->  | J137: =IFERROR(D137/E137,"") ->  | K137: =IFERROR(E137/$F$3,"") ->  | L137: =IFERROR(J137*H137,"") -> 
A138: Proposed | C138: =IFERROR(IF(AND(I138>$I$160,G138>$G$160),"Star",IF(AND(I138>$I$160,G138<$G$160),"Puzzle",IF(AND(I138<$I$160,G138>$G$160),"Plow Horse","Dog"))),"") -> Dog | D138: =IFERROR(IF(J138="",D137,E138*J138),D137) ->  | E138: =IFERROR(IF(K138="",E137,K138*$F$3),E137) -> 0 | F138: =IFERROR(D138*H138,F137) ->  | G138: =IFERROR(IF(E138="",G137,E138/$E$160),G137) ->  | H138: =IFERROR(IF(L138="",H137,L138/J138),H137) ->  | J138: =J137 ->  | K138: =K137 ->  | L138: =L137 -> 
A140: Baseline | B140: ='Cat 2 Setup'!A53 -> 0 | C140: =IFERROR(IF(AND(I140>$I$159,G140>$G$159),"Star",IF(AND(I140>$I$159,G140<$G$159),"Puzzle",IF(AND(I140<$I$159,G140>$G$159),"Plow Horse","Dog"))),"") -> Dog | D140: =IFERROR(VLOOKUP(B140,'Cat 2 Setup'!$A:$F,4,FALSE),"") ->  | E140: =IFERROR(VLOOKUP(B140,'Cat 2 Setup'!$A:$F,3,FALSE),"") -> 0 | F140: =IFERROR(VLOOKUP(B140,'Cat 2 Setup'!$A:$F,6,FALSE),"") ->  | G140: =IFERROR(E140/$E$159,"") ->  | H140: =IFERROR(F140/D140,"") ->  | I140: =IFERROR((J140-L140)/J140,"") ->  | J140: =IFERROR(D140/E140,"") ->  | K140: =IFERROR(E140/$F$3,"") ->  | L140: =IFERROR(J140*H140,"") -> 
A141: Proposed | C141: =IFERROR(IF(AND(I141>$I$160,G141>$G$160),"Star",IF(AND(I141>$I$160,G141<$G$160),"Puzzle",IF(AND(I141<$I$160,G141>$G$160),"Plow Horse","Dog"))),"") -> Dog | D141: =IFERROR(IF(J141="",D140,E141*J141),D140) ->  | E141: =IFERROR(IF(K141="",E140,K141*$F$3),E140) -> 0 | F141: =IFERROR(D141*H141,F140) ->  | G141: =IFERROR(IF(E141="",G140,E141/$E$160),G140) ->  | H141: =IFERROR(IF(L141="",H140,L141/J141),H140) ->  | J141: =J140 ->  | K141: =K140 ->  | L141: =L140 -> 
A143: Baseline | B143: ='Cat 2 Setup'!A54 -> 0 | C143: =IFERROR(IF(AND(I143>$I$159,G143>$G$159),"Star",IF(AND(I143>$I$159,G143<$G$159),"Puzzle",IF(AND(I143<$I$159,G143>$G$159),"Plow Horse","Dog"))),"") -> Dog | D143: =IFERROR(VLOOKUP(B143,'Cat 2 Setup'!$A:$F,4,FALSE),"") ->  | E143: =IFERROR(VLOOKUP(B143,'Cat 2 Setup'!$A:$F,3,FALSE),"") -> 0 | F143: =IFERROR(VLOOKUP(B143,'Cat 2 Setup'!$A:$F,6,FALSE),"") ->  | G143: =IFERROR(E143/$E$159,"") ->  | H143: =IFERROR(F143/D143,"") ->  | I143: =IFERROR((J143-L143)/J143,"") ->  | J143: =IFERROR(D143/E143,"") ->  | K143: =IFERROR(E143/$F$3,"") ->  | L143: =IFERROR(J143*H143,"") -> 
A144: Proposed | C144: =IFERROR(IF(AND(I144>$I$160,G144>$G$160),"Star",IF(AND(I144>$I$160,G144<$G$160),"Puzzle",IF(AND(I144<$I$160,G144>$G$160),"Plow Horse","Dog"))),"") -> Dog | D144: =IFERROR(IF(J144="",D143,E144*J144),D143) ->  | E144: =IFERROR(IF(K144="",E143,K144*$F$3),E143) -> 0 | F144: =IFERROR(D144*H144,F143) ->  | G144: =IFERROR(IF(E144="",G143,E144/$E$160),G143) ->  | H144: =IFERROR(IF(L144="",H143,L144/J144),H143) ->  | J144: =J143 ->  | K144: =K143 ->  | L144: =L143 -> 
A146: Baseline | B146: ='Cat 2 Setup'!A55 -> 0 | C146: =IFERROR(IF(AND(I146>$I$159,G146>$G$159),"Star",IF(AND(I146>$I$159,G146<$G$159),"Puzzle",IF(AND(I146<$I$159,G146>$G$159),"Plow Horse","Dog"))),"") -> Dog | D146: =IFERROR(VLOOKUP(B146,'Cat 2 Setup'!$A:$F,4,FALSE),"") ->  | E146: =IFERROR(VLOOKUP(B146,'Cat 2 Setup'!$A:$F,3,FALSE),"") -> 0 | F146: =IFERROR(VLOOKUP(B146,'Cat 2 Setup'!$A:$F,6,FALSE),"") ->  | G146: =IFERROR(E146/$E$159,"") ->  | H146: =IFERROR(F146/D146,"") ->  | I146: =IFERROR((J146-L146)/J146,"") ->  | J146: =IFERROR(D146/E146,"") ->  | K146: =IFERROR(E146/$F$3,"") ->  | L146: =IFERROR(J146*H146,"") -> 
A147: Proposed | C147: =IFERROR(IF(AND(I147>$I$160,G147>$G$160),"Star",IF(AND(I147>$I$160,G147<$G$160),"Puzzle",IF(AND(I147<$I$160,G147>$G$160),"Plow Horse","Dog"))),"") -> Dog | D147: =IFERROR(IF(J147="",D146,E147*J147),D146) ->  | E147: =IFERROR(IF(K147="",E146,K147*$F$3),E146) -> 0 | F147: =IFERROR(D147*H147,F146) ->  | G147: =IFERROR(IF(E147="",G146,E147/$E$160),G146) ->  | H147: =IFERROR(IF(L147="",H146,L147/J147),H146) ->  | J147: =J146 ->  | K147: =K146 ->  | L147: =L146 -> 
A149: Baseline | B149: ='Cat 2 Setup'!A56 -> 0 | C149: =IFERROR(IF(AND(I149>$I$159,G149>$G$159),"Star",IF(AND(I149>$I$159,G149<$G$159),"Puzzle",IF(AND(I149<$I$159,G149>$G$159),"Plow Horse","Dog"))),"") -> Dog | D149: =IFERROR(VLOOKUP(B149,'Cat 2 Setup'!$A:$F,4,FALSE),"") ->  | E149: =IFERROR(VLOOKUP(B149,'Cat 2 Setup'!$A:$F,3,FALSE),"") -> 0 | F149: =IFERROR(VLOOKUP(B149,'Cat 2 Setup'!$A:$F,6,FALSE),"") ->  | G149: =IFERROR(E149/$E$159,"") ->  | H149: =IFERROR(F149/D149,"") ->  | I149: =IFERROR((J149-L149)/J149,"") ->  | J149: =IFERROR(D149/E149,"") ->  | K149: =IFERROR(E149/$F$3,"") ->  | L149: =IFERROR(J149*H149,"") -> 
A150: Proposed | C150: =IFERROR(IF(AND(I150>$I$160,G150>$G$160),"Star",IF(AND(I150>$I$160,G150<$G$160),"Puzzle",IF(AND(I150<$I$160,G150>$G$160),"Plow Horse","Dog"))),"") -> Dog | D150: =IFERROR(IF(J150="",D149,E150*J150),D149) ->  | E150: =IFERROR(IF(K150="",E149,K150*$F$3),E149) -> 0 | F150: =IFERROR(D150*H150,F149) ->  | G150: =IFERROR(IF(E150="",G149,E150/$E$160),G149) ->  | H150: =IFERROR(IF(L150="",H149,L150/J150),H149) ->  | J150: =J149 ->  | K150: =K149 ->  | L150: =L149 -> 
A152: Baseline | B152: ='Cat 2 Setup'!A57 -> 0 | C152: =IFERROR(IF(AND(I152>$I$159,G152>$G$159),"Star",IF(AND(I152>$I$159,G152<$G$159),"Puzzle",IF(AND(I152<$I$159,G152>$G$159),"Plow Horse","Dog"))),"") -> Dog | D152: =IFERROR(VLOOKUP(B152,'Cat 2 Setup'!$A:$F,4,FALSE),"") ->  | E152: =IFERROR(VLOOKUP(B152,'Cat 2 Setup'!$A:$F,3,FALSE),"") -> 0 | F152: =IFERROR(VLOOKUP(B152,'Cat 2 Setup'!$A:$F,6,FALSE),"") ->  | G152: =IFERROR(E152/$E$159,"") ->  | H152: =IFERROR(F152/D152,"") ->  | I152: =IFERROR((J152-L152)/J152,"") ->  | J152: =IFERROR(D152/E152,"") ->  | K152: =IFERROR(E152/$F$3,"") ->  | L152: =IFERROR(J152*H152,"") -> 
A153: Proposed | C153: =IFERROR(IF(AND(I153>$I$160,G153>$G$160),"Star",IF(AND(I153>$I$160,G153<$G$160),"Puzzle",IF(AND(I153<$I$160,G153>$G$160),"Plow Horse","Dog"))),"") -> Dog | D153: =IFERROR(IF(J153="",D152,E153*J153),D152) ->  | E153: =IFERROR(IF(K153="",E152,K153*$F$3),E152) -> 0 | F153: =IFERROR(D153*H153,F152) ->  | G153: =IFERROR(IF(E153="",G152,E153/$E$160),G152) ->  | H153: =IFERROR(IF(L153="",H152,L153/J153),H152) ->  | J153: =J152 ->  | K153: =K152 ->  | L153: =L152 -> 
A155: Baseline | B155: ='Cat 2 Setup'!A58 -> 0 | C155: =IFERROR(IF(AND(I155>$I$159,G155>$G$159),"Star",IF(AND(I155>$I$159,G155<$G$159),"Puzzle",IF(AND(I155<$I$159,G155>$G$159),"Plow Horse","Dog"))),"") -> Dog | D155: =IFERROR(VLOOKUP(B155,'Cat 2 Setup'!$A:$F,4,FALSE),"") ->  | E155: =IFERROR(VLOOKUP(B155,'Cat 2 Setup'!$A:$F,3,FALSE),"") -> 0 | F155: =IFERROR(VLOOKUP(B155,'Cat 2 Setup'!$A:$F,6,FALSE),"") ->  | G155: =IFERROR(E155/$E$159,"") ->  | H155: =IFERROR(F155/D155,"") ->  | I155: =IFERROR((J155-L155)/J155,"") ->  | J155: =IFERROR(D155/E155,"") ->  | K155: =IFERROR(E155/$F$3,"") ->  | L155: =IFERROR(J155*H155,"") -> 
A156: Proposed | C156: =IFERROR(IF(AND(I156>$I$160,G156>$G$160),"Star",IF(AND(I156>$I$160,G156<$G$160),"Puzzle",IF(AND(I156<$I$160,G156>$G$160),"Plow Horse","Dog"))),"") -> Dog | D156: =IFERROR(IF(J156="",D155,E156*J156),D155) ->  | E156: =IFERROR(IF(K156="",E155,K156*$F$3),E155) -> 0 | F156: =IFERROR(D156*H156,F155) ->  | G156: =IFERROR(IF(E156="",G155,E156/$E$160),G155) ->  | H156: =IFERROR(IF(L156="",H155,L156/J156),H155) ->  | J156: =J155 ->  | K156: =K155 ->  | L156: =L155 -> 
K158: (Items/Cover)
A159: Baseline | B159: Total | D159: =IFERROR(SUMIF($A$8:$A$156,"Baseline",D$8:D$156),"") -> 0 | E159: =IFERROR(SUMIF($A$8:$A$156,"Baseline",E$8:E$156),"") -> 0 | F159: =IFERROR(SUMIF($A$8:$A$156,"Baseline",F$8:F$156),"") -> 0 | G159: =IFERROR((AVERAGEIFS(G$8:G$156,$A$8:$A$156,"Baseline",G$8:G$156,">0")),"") ->  | H159: =IFERROR(F159/D159,"") ->  | I159: =IFERROR(AVERAGEIF($A$8:$A$156,"Baseline",I$8:I$156),"") ->  | J159: =IFERROR(D159/E159,"") ->  | K159: =IFERROR(E159/$F$3,"") ->  | L159: =IFERROR(F159/E159,"") -> 
A160: Proposed | D160: =IFERROR(SUMIF($A$8:$A$156,"Proposed",D$8:D$156),"") -> 0 | E160: =IFERROR(SUMIF($A$8:$A$156,"Proposed",E$8:E$156),"") -> 0 | F160: =IFERROR(SUMIF($A$8:$A$156,"Proposed",F$8:F$156),"") -> 0 | G160: =IFERROR((AVERAGEIFS(G$8:G$156,$A$8:$A$156,"Proposed",G$8:G$156,">0")),"") ->  | H160: =IFERROR(F160/D160,"") ->  | I160: =IFERROR(AVERAGEIF($A$8:$A$156,"Proposed",I$8:I$156),"") ->  | J160: =IFERROR(D160/E160,"") ->  | K160: =IFERROR(E160/$F$3,"") ->  | L160: =IFERROR(F160/E160,"") -> 
B161: %/BPs change | D161: =IFERROR((D160-D159)/D159,"") ->  | E161: =IFERROR((E160-E159)/E159,"") ->  | G161: =(G160-G159)*100 ->  | H161: =(H160-H159)*100 ->  | I161: =IFERROR((I160-I159)/I159,"") -> 
B164: Assumptions/Exclusions:
B171: Admin Use:
B172: CM (min): | C172: =ROUND(MIN(I8:I157),0)-5 -> -5 | D172: Demand (max): | E172: =MIN(G8:G157)-0.05 -> -0.02666666667
B173: CM (max): | C173: =ROUND(MAX(I8:I157),0)+5 -> 5 | D173: Demand (min): | E173: =MAX(G8:G157)+0.05 -> 0.07333333333

Sheet Cat 2 CM% Chart
A1: =CONCATENATE('Cat 2 CM$'!C1," ",'Cat 2 CM$'!C5," ",'Cat 2 CM$'!C4," - ",'Cat 2 CM$'!F5) -> 0 0 0 - 0
A2: Menu Enginnering Graph by Contribution Margin Percentage
F44: Low | G44: High
C45: X-AXIS --> | D45: Menu Mix Parameters: | F45: =IFERROR(IF('Cat 2 CM%'!D8="","",MIN('Cat 2 CM%'!G8:G157)*0.9),"") ->  | G45: =IFERROR(IF('Cat 2 CM%'!D8="","",MAX('Cat 2 CM%'!G8:G157)*1.1),"") -> 
C46: Y-AXIS --> | D46: Contribution Margin | F46: =IFERROR(IF('Cat 2 CM%'!D8="","",MIN('Cat 2 CM%'!$I$8:$I$157)*0.9),"") ->  | G46: =IFERROR(IF('Cat 2 CM%'!D8="","",MAX('Cat 2 CM%'!$I$8:$I$157)*1.1),"") -> 

Sheet Cat 3 Setup
K1: Restaurant Outlet Name | M1: Check Count
K2: Meal Period | M2: Cover Count
K3: Revenue Center | M3: Average Check
K4: Menu Category | M4: Currency | N4: =IFERROR(IF(LEFT(N9,(FIND(MID(N9,MIN(IF(ISNUMBER(1*MID(N9,ROW($1:$255),1)),ROW($1:$255))),1),N9)-1))="","$",LEFT(N9,(FIND(MID(N9,MIN(IF(ISNUMBER(1*MID(N9,ROW($1:$255),1)),ROW($1:$255))),1),N9)-1))),"") -> 
K5: Start Date | M5: End Date
A8: Item Name | B8: Item Number | C8: Qty Sold | D8: Gross Sales | E8: Avg. Item Cost | F8: COGS $ | K8: Item Name | L8: Item Number | M8: Qty Sold | N8: Gross Sales | O8: Avg. Item Cost | P8: COGS $
A9: =K9 -> 0 | B9: =L9 -> 0 | C9: =VALUE(M9) -> 0 | D9: =IF($N$4="$",N9,(VALUE(MID(N9,FIND($N$4,N9)+LEN($N$4),LEN(N9))))) ->  | E9: =IF($N$4="$",O9,(VALUE(MID(O9,FIND($N$4,O9)+LEN($N$4),LEN(O9))))) ->  | F9: =IF($N$4="$",P9,(VALUE(MID(P9,FIND($N$4,P9)+LEN($N$4),LEN(P9))))) ->  | J9: 1
A10: 0 | B10: 0 | C10: 0 | J10: 2
A11: 0 | B11: 0 | C11: 0 | J11: 3
A12: 0 | B12: 0 | C12: 0 | J12: 4
A13: 0 | B13: 0 | C13: 0 | J13: 5
A14: 0 | B14: 0 | C14: 0 | J14: 6
A15: 0 | B15: 0 | C15: 0 | J15: 7
A16: 0 | B16: 0 | C16: 0 | J16: 8
A17: 0 | B17: 0 | C17: 0 | J17: 9
A18: 0 | B18: 0 | C18: 0 | J18: 10
A19: 0 | B19: 0 | C19: 0 | J19: 11
A20: 0 | B20: 0 | C20: 0 | J20: 12
A21: 0 | B21: 0 | C21: 0 | J21: 13
A22: 0 | B22: 0 | C22: 0 | J22: 14
A23: 0 | B23: 0 | C23: 0 | J23: 15
A24: 0 | B24: 0 | C24: 0 | J24: 16
A25: 0 | B25: 0 | C25: 0 | J25: 17
A26: 0 | B26: 0 | C26: 0 | J26: 18
A27: 0 | B27: 0 | C27: 0 | J27: 19
A28: 0 | B28: 0 | C28: 0 | J28: 20
A29: 0 | B29: 0 | C29: 0 | J29: 21
A30: 0 | B30: 0 | C30: 0 | J30: 22
A31: 0 | B31: 0 | C31: 0 | J31: 23
A32: 0 | B32: 0 | C32: 0 | J32: 24
A33: 0 | B33: 0 | C33: 0 | J33: 25
A34: 0 | B34: 0 | C34: 0 | J34: 26
A35: 0 | B35: 0 | C35: 0 | J35: 27
A36: 0 | B36: 0 | C36: 0 | J36: 28
A37: 0 | B37: 0 | C37: 0 | J37: 29
A38: 0 | B38: 0 | C38: 0 | J38: 30
A39: 0 | B39: 0 | C39: 0 | J39: 31
A40: 0 | B40: 0 | C40: 0 | J40: 32
A41: =K41 -> 0 | B41: =L41 -> 0 | C41: =VALUE(M41) -> 0 | D41: =IF($N$4="$",N41,(VALUE(MID(N41,FIND($N$4,N41)+LEN($N$4),LEN(N41))))) ->  | E41: =IF($N$4="$",O41,(VALUE(MID(O41,FIND($N$4,O41)+LEN($N$4),LEN(O41))))) ->  | F41: =IF($N$4="$",P41,(VALUE(MID(P41,FIND($N$4,P41)+LEN($N$4),LEN(P41))))) ->  | J41: 33
A42: 0 | B42: 0 | C42: 0 | J42: 34
A43: 0 | B43: 0 | C43: 0 | J43: 35
A44: 0 | B44: 0 | C44: 0 | J44: 36
A45: 0 | B45: 0 | C45: 0 | J45: 37
A46: 0 | B46: 0 | C46: 0 | J46: 38
A47: 0 | B47: 0 | C47: 0 | J47: 39
A48: 0 | B48: 0 | C48: 0 | J48: 40
A49: 0 | B49: 0 | C49: 0 | J49: 41
A50: 0 | B50: 0 | C50: 0 | J50: 42
A51: 0 | B51: 0 | C51: 0 | J51: 43
A52: 0 | B52: 0 | C52: 0 | J52: 44
A53: 0 | B53: 0 | C53: 0 | J53: 45
A54: 0 | B54: 0 | C54: 0 | J54: 46
A55: 0 | B55: 0 | C55: 0 | J55: 47
A56: 0 | B56: 0 | C56: 0 | J56: 48
A57: 0 | B57: 0 | C57: 0 | J57: 49
A58: 0 | B58: 0 | C58: 0 | J58: 50
B59: =L59 -> 0 | C59: =VALUE(M59) -> 0 | E59: =MID(O59,FIND($N$4,O59)+LEN($N$4),LEN(O59)) ->  | F59: =MID(P59,FIND($N$4,P59)+LEN($N$4),LEN(P59)) -> 
C60: =SUM(C9:C59) -> 0 | D60: =SUM(D9:D59) ->  | F60: =SUM(F9:F59) -> 

Sheet Cat 3 CM$
B1: Restaurant Name | C1: ='Cat 3 Setup'!L1 -> 0
B2: Start Date: | C2: ='Cat 3 Setup'!L5 -> 00:00:00 | E2: Check Count: | F2: ='Cat 3 Setup'!N1 -> 0
B3: End Date | C3: ='Cat 3 Setup'!N5 -> 00:00:00 | E3: Cover Count: | F3: ='Cat 3 Setup'!N2 -> 0
B4: Meal Period: | C4: ='Cat 3 Setup'!L2 -> 0 | E4: Average Check: | F4: ='Cat 3 Setup'!N3 -> 0
B5: Revenue Center: | C5: ='Cat 3 Setup'!L3 -> 0 | E5: Menu Category | F5: ='Cat 3 Setup'!L4 -> 0
B7: Item Name | C7: Quadrant | D7: Item Sales | E7: Qty Sold | F7: Food Cost | G7: Menu Mix % | H7: Item Cost % | I7: Contribution Margin $ | J7: Item Price | K7: Item/Cover% | L7: Item Cost
A8: Baseline | B8: ='Cat 3 Setup'!A9 -> 0 | C8: =IFERROR(IF(AND(I8>$I$159,G8>$G$159),"Star",IF(AND(I8>$I$159,G8<$G$159),"Puzzle",IF(AND(I8<$I$159,G8>$G$159),"Plow Horse","Dog"))),"") -> Dog | D8: =IFERROR(VLOOKUP(B8,'Cat 3 Setup'!$A:$F,4,FALSE),"") ->  | E8: =IFERROR(VLOOKUP(B8,'Cat 3 Setup'!$A:$F,3,FALSE),"") -> 0 | F8: =IFERROR(VLOOKUP(B8,'Cat 3 Setup'!$A:$F,6,FALSE),"") ->  | G8: =IFERROR(E8/$E$159,"") ->  | H8: =IFERROR(F8/D8,"") ->  | I8: =IFERROR(J8-L8,"") ->  | J8: =IFERROR(D8/E8,"") ->  | K8: =IFERROR(E8/$F$3,"") ->  | L8: =IFERROR(J8*H8,"") -> 
A9: Proposed | C9: =IFERROR(IF(AND(I9>$I$160,G9>$G$160),"Star",IF(AND(I9>$I$160,G9<$G$160),"Puzzle",IF(AND(I9<$I$160,G9>$G$160),"Plow Horse","Dog"))),"") -> Dog | D9: =IFERROR(IF(J9="",D8,E9*J9),D8) ->  | E9: =IFERROR(IF(K9="",E8,K9*$F$3),E8) -> 0 | F9: =IFERROR(D9*H9,F8) ->  | G9: =IFERROR(IF(E9="",G8,E9/$E$160),G8) ->  | H9: =IFERROR(IF(L9="",H8,L9/J9),H8) ->  | I9: =IFERROR(J9-L9,"") ->  | J9: =J8 ->  | K9: =K8 ->  | L9: =L8 -> 
A11: Baseline | B11: ='Cat 3 Setup'!A10 -> 0 | C11: =IFERROR(IF(AND(I11>$I$159,G11>$G$159),"Star",IF(AND(I11>$I$159,G11<$G$159),"Puzzle",IF(AND(I11<$I$159,G11>$G$159),"Plow Horse","Dog"))),"") -> Dog | D11: =IFERROR(VLOOKUP(B11,'Cat 3 Setup'!$A:$F,4,FALSE),"") ->  | E11: =IFERROR(VLOOKUP(B11,'Cat 3 Setup'!$A:$F,3,FALSE),"") -> 0 | F11: =IFERROR(VLOOKUP(B11,'Cat 3 Setup'!$A:$F,6,FALSE),"") ->  | G11: =IFERROR(E11/$E$159,"") ->  | H11: =IFERROR(F11/D11,"") ->  | I11: =IFERROR(J11-L11,"") ->  | J11: =IFERROR(D11/E11,"") ->  | K11: =IFERROR(E11/$F$3,"") ->  | L11: =IFERROR(J11*H11,"") -> 
A12: Proposed | C12: =IFERROR(IF(AND(I12>$I$160,G12>$G$160),"Star",IF(AND(I12>$I$160,G12<$G$160),"Puzzle",IF(AND(I12<$I$160,G12>$G$160),"Plow Horse","Dog"))),"") -> Dog | D12: =IFERROR(IF(J12="",D11,E12*J12),D11) ->  | E12: =IFERROR(IF(K12="",E11,K12*$F$3),E11) -> 0 | F12: =IFERROR(D12*H12,F11) ->  | G12: =IFERROR(IF(E12="",G11,E12/$E$160),G11) ->  | H12: =IFERROR(IF(L12="",H11,L12/J12),H11) ->  | I12: =IFERROR(J12-L12,"") ->  | J12: =J11 -> 
A14: Baseline | B14: ='Cat 3 Setup'!A11 -> 0 | C14: =IFERROR(IF(AND(I14>$I$159,G14>$G$159),"Star",IF(AND(I14>$I$159,G14<$G$159),"Puzzle",IF(AND(I14<$I$159,G14>$G$159),"Plow Horse","Dog"))),"") -> Dog | D14: =IFERROR(VLOOKUP(B14,'Cat 3 Setup'!$A:$F,4,FALSE),"") ->  | E14: =IFERROR(VLOOKUP(B14,'Cat 3 Setup'!$A:$F,3,FALSE),"") -> 0 | F14: =IFERROR(VLOOKUP(B14,'Cat 3 Setup'!$A:$F,6,FALSE),"") ->  | G14: =IFERROR(E14/$E$159,"") ->  | H14: =IFERROR(F14/D14,"") ->  | I14: =IFERROR(J14-L14,"") ->  | J14: =IFERROR(D14/E14,"") ->  | K14: =IFERROR(E14/$F$3,"") ->  | L14: =IFERROR(J14*H14,"") -> 
A15: Proposed | C15: =IFERROR(IF(AND(I15>$I$160,G15>$G$160),"Star",IF(AND(I15>$I$160,G15<$G$160),"Puzzle",IF(AND(I15<$I$160,G15>$G$160),"Plow Horse","Dog"))),"") -> Dog | D15: =IFERROR(IF(J15="",D14,E15*J15),D14) ->  | E15: =IFERROR(IF(K15="",E14,K15*$F$3),E14) -> 0 | F15: =IFERROR(D15*H15,F14) ->  | G15: =IFERROR(IF(E15="",G14,E15/$E$160),G14) ->  | H15: =IFERROR(IF(L15="",H14,L15/J15),H14) ->  | I15: =IFERROR(J15-L15,"") ->  | J15: =J14 -> 
A17: Baseline | B17: ='Cat 3 Setup'!A12 -> 0 | C17: =IFERROR(IF(AND(I17>$I$159,G17>$G$159),"Star",IF(AND(I17>$I$159,G17<$G$159),"Puzzle",IF(AND(I17<$I$159,G17>$G$159),"Plow Horse","Dog"))),"") -> Dog | D17: =IFERROR(VLOOKUP(B17,'Cat 3 Setup'!$A:$F,4,FALSE),"") ->  | E17: =IFERROR(VLOOKUP(B17,'Cat 3 Setup'!$A:$F,3,FALSE),"") -> 0 | F17: =IFERROR(VLOOKUP(B17,'Cat 3 Setup'!$A:$F,6,FALSE),"") ->  | G17: =IFERROR(E17/$E$159,"") ->  | H17: =IFERROR(F17/D17,"") ->  | I17: =IFERROR(J17-L17,"") ->  | J17: =IFERROR(D17/E17,"") ->  | K17: =IFERROR(E17/$F$3,"") ->  | L17: =IFERROR(J17*H17,"") -> 
A18: Proposed | C18: =IFERROR(IF(AND(I18>$I$160,G18>$G$160),"Star",IF(AND(I18>$I$160,G18<$G$160),"Puzzle",IF(AND(I18<$I$160,G18>$G$160),"Plow Horse","Dog"))),"") -> Dog | D18: =IFERROR(IF(J18="",D17,E18*J18),D17) ->  | E18: =IFERROR(IF(K18="",E17,K18*$F$3),E17) -> 0 | F18: =IFERROR(D18*H18,F17) ->  | G18: =IFERROR(IF(E18="",G17,E18/$E$160),G17) ->  | H18: =IFERROR(IF(L18="",H17,L18/J18),H17) ->  | I18: =IFERROR(J18-L18,"") ->  | J18: =J17 -> 
A20: Baseline | B20: ='Cat 3 Setup'!A13 -> 0 | C20: =IFERROR(IF(AND(I20>$I$159,G20>$G$159),"Star",IF(AND(I20>$I$159,G20<$G$159),"Puzzle",IF(AND(I20<$I$159,G20>$G$159),"Plow Horse","Dog"))),"") -> Dog | D20: =IFERROR(VLOOKUP(B20,'Cat 3 Setup'!$A:$F,4,FALSE),"") ->  | E20: =IFERROR(VLOOKUP(B20,'Cat 3 Setup'!$A:$F,3,FALSE),"") -> 0 | F20: =IFERROR(VLOOKUP(B20,'Cat 3 Setup'!$A:$F,6,FALSE),"") ->  | G20: =IFERROR(E20/$E$159,"") ->  | H20: =IFERROR(F20/D20,"") ->  | I20: =IFERROR(J20-L20,"") ->  | J20: =IFERROR(D20/E20,"") ->  | K20: =IFERROR(E20/$F$3,"") ->  | L20: =IFERROR(J20*H20,"") -> 
A21: Proposed | C21: =IFERROR(IF(AND(I21>$I$160,G21>$G$160),"Star",IF(AND(I21>$I$160,G21<$G$160),"Puzzle",IF(AND(I21<$I$160,G21>$G$160),"Plow Horse","Dog"))),"") -> Dog | D21: =IFERROR(IF(J21="",D20,E21*J21),D20) ->  | E21: =IFERROR(IF(K21="",E20,K21*$F$3),E20) -> 0 | F21: =IFERROR(D21*H21,F20) ->  | G21: =IFERROR(IF(E21="",G20,E21/$E$160),G20) ->  | H21: =IFERROR(IF(L21="",H20,L21/J21),H20) ->  | I21: =IFERROR(J21-L21,"") ->  | J21: =J20 -> 
A23: Baseline | B23: ='Cat 3 Setup'!A14 -> 0 | C23: =IFERROR(IF(AND(I23>$I$159,G23>$G$159),"Star",IF(AND(I23>$I$159,G23<$G$159),"Puzzle",IF(AND(I23<$I$159,G23>$G$159),"Plow Horse","Dog"))),"") -> Dog | D23: =IFERROR(VLOOKUP(B23,'Cat 3 Setup'!$A:$F,4,FALSE),"") ->  | E23: =IFERROR(VLOOKUP(B23,'Cat 3 Setup'!$A:$F,3,FALSE),"") -> 0 | F23: =IFERROR(VLOOKUP(B23,'Cat 3 Setup'!$A:$F,6,FALSE),"") ->  | G23: =IFERROR(E23/$E$159,"") ->  | H23: =IFERROR(F23/D23,"") ->  | I23: =IFERROR(J23-L23,"") ->  | J23: =IFERROR(D23/E23,"") ->  | K23: =IFERROR(E23/$F$3,"") ->  | L23: =IFERROR(J23*H23,"") -> 
A24: Proposed | C24: =IFERROR(IF(AND(I24>$I$160,G24>$G$160),"Star",IF(AND(I24>$I$160,G24<$G$160),"Puzzle",IF(AND(I24<$I$160,G24>$G$160),"Plow Horse","Dog"))),"") -> Dog | D24: =IFERROR(IF(J24="",D23,E24*J24),D23) ->  | E24: =IFERROR(IF(K24="",E23,K24*$F$3),E23) -> 0 | F24: =IFERROR(D24*H24,F23) ->  | G24: =IFERROR(IF(E24="",G23,E24/$E$160),G23) ->  | H24: =IFERROR(IF(L24="",H23,L24/J24),H23) ->  | I24: =IFERROR(J24-L24,"") ->  | J24: =J23 -> 
A26: Baseline | B26: ='Cat 3 Setup'!A15 -> 0 | C26: =IFERROR(IF(AND(I26>$I$159,G26>$G$159),"Star",IF(AND(I26>$I$159,G26<$G$159),"Puzzle",IF(AND(I26<$I$159,G26>$G$159),"Plow Horse","Dog"))),"") -> Dog | D26: =IFERROR(VLOOKUP(B26,'Cat 3 Setup'!$A:$F,4,FALSE),"") ->  | E26: =IFERROR(VLOOKUP(B26,'Cat 3 Setup'!$A:$F,3,FALSE),"") -> 0 | F26: =IFERROR(VLOOKUP(B26,'Cat 3 Setup'!$A:$F,6,FALSE),"") ->  | G26: =IFERROR(E26/$E$159,"") ->  | H26: =IFERROR(F26/D26,"") ->  | I26: =IFERROR(J26-L26,"") ->  | J26: =IFERROR(D26/E26,"") ->  | K26: =IFERROR(E26/$F$3,"") ->  | L26: =IFERROR(J26*H26,"") -> 
A27: Proposed | C27: =IFERROR(IF(AND(I27>$I$160,G27>$G$160),"Star",IF(AND(I27>$I$160,G27<$G$160),"Puzzle",IF(AND(I27<$I$160,G27>$G$160),"Plow Horse","Dog"))),"") -> Dog | D27: =IFERROR(IF(J27="",D26,E27*J27),D26) ->  | E27: =IFERROR(IF(K27="",E26,K27*$F$3),E26) -> 0 | F27: =IFERROR(D27*H27,F26) ->  | G27: =IFERROR(IF(E27="",G26,E27/$E$160),G26) ->  | H27: =IFERROR(IF(L27="",H26,L27/J27),H26) ->  | I27: =IFERROR(J27-L27,"") ->  | J27: =J26 -> 
A29: Baseline | B29: ='Cat 3 Setup'!A16 -> 0 | C29: =IFERROR(IF(AND(I29>$I$159,G29>$G$159),"Star",IF(AND(I29>$I$159,G29<$G$159),"Puzzle",IF(AND(I29<$I$159,G29>$G$159),"Plow Horse","Dog"))),"") -> Dog | D29: =IFERROR(VLOOKUP(B29,'Cat 3 Setup'!$A:$F,4,FALSE),"") ->  | E29: =IFERROR(VLOOKUP(B29,'Cat 3 Setup'!$A:$F,3,FALSE),"") -> 0 | F29: =IFERROR(VLOOKUP(B29,'Cat 3 Setup'!$A:$F,6,FALSE),"") ->  | G29: =IFERROR(E29/$E$159,"") ->  | H29: =IFERROR(F29/D29,"") ->  | I29: =IFERROR(J29-L29,"") ->  | J29: =IFERROR(D29/E29,"") ->  | K29: =IFERROR(E29/$F$3,"") ->  | L29: =IFERROR(J29*H29,"") -> 
A30: Proposed | C30: =IFERROR(IF(AND(I30>$I$160,G30>$G$160),"Star",IF(AND(I30>$I$160,G30<$G$160),"Puzzle",IF(AND(I30<$I$160,G30>$G$160),"Plow Horse","Dog"))),"") -> Dog | D30: =IFERROR(IF(J30="",D29,E30*J30),D29) ->  | E30: =IFERROR(IF(K30="",E29,K30*$F$3),E29) -> 0 | F30: =IFERROR(D30*H30,F29) ->  | G30: =IFERROR(IF(E30="",G29,E30/$E$160),G29) ->  | H30: =IFERROR(IF(L30="",H29,L30/J30),H29) ->  | I30: =IFERROR(J30-L30,"") ->  | J30: =J29 -> 
A32: Baseline | B32: ='Cat 3 Setup'!A17 -> 0 | C32: =IFERROR(IF(AND(I32>$I$159,G32>$G$159),"Star",IF(AND(I32>$I$159,G32<$G$159),"Puzzle",IF(AND(I32<$I$159,G32>$G$159),"Plow Horse","Dog"))),"") -> Dog | D32: =IFERROR(VLOOKUP(B32,'Cat 3 Setup'!$A:$F,4,FALSE),"") ->  | E32: =IFERROR(VLOOKUP(B32,'Cat 3 Setup'!$A:$F,3,FALSE),"") -> 0 | F32: =IFERROR(VLOOKUP(B32,'Cat 3 Setup'!$A:$F,6,FALSE),"") ->  | G32: =IFERROR(E32/$E$159,"") ->  | H32: =IFERROR(F32/D32,"") ->  | I32: =IFERROR(J32-L32,"") ->  | J32: =IFERROR(D32/E32,"") ->  | K32: =IFERROR(E32/$F$3,"") ->  | L32: =IFERROR(J32*H32,"") -> 
A33: Proposed | C33: =IFERROR(IF(AND(I33>$I$160,G33>$G$160),"Star",IF(AND(I33>$I$160,G33<$G$160),"Puzzle",IF(AND(I33<$I$160,G33>$G$160),"Plow Horse","Dog"))),"") -> Dog | D33: =IFERROR(IF(J33="",D32,E33*J33),D32) ->  | E33: =IFERROR(IF(K33="",E32,K33*$F$3),E32) -> 0 | F33: =IFERROR(D33*H33,F32) ->  | G33: =IFERROR(IF(E33="",G32,E33/$E$160),G32) ->  | H33: =IFERROR(IF(L33="",H32,L33/J33),H32) ->  | I33: =IFERROR(J33-L33,"") ->  | J33: =J32 -> 
A35: Baseline | B35: ='Cat 3 Setup'!A18 -> 0 | C35: =IFERROR(IF(AND(I35>$I$159,G35>$G$159),"Star",IF(AND(I35>$I$159,G35<$G$159),"Puzzle",IF(AND(I35<$I$159,G35>$G$159),"Plow Horse","Dog"))),"") -> Dog | D35: =IFERROR(VLOOKUP(B35,'Cat 3 Setup'!$A:$F,4,FALSE),"") ->  | E35: =IFERROR(VLOOKUP(B35,'Cat 3 Setup'!$A:$F,3,FALSE),"") -> 0 | F35: =IFERROR(VLOOKUP(B35,'Cat 3 Setup'!$A:$F,6,FALSE),"") ->  | G35: =IFERROR(E35/$E$159,"") ->  | H35: =IFERROR(F35/D35,"") ->  | I35: =IFERROR(J35-L35,"") ->  | J35: =IFERROR(D35/E35,"") ->  | K35: =IFERROR(E35/$F$3,"") ->  | L35: =IFERROR(J35*H35,"") -> 
A36: Proposed | C36: =IFERROR(IF(AND(I36>$I$160,G36>$G$160),"Star",IF(AND(I36>$I$160,G36<$G$160),"Puzzle",IF(AND(I36<$I$160,G36>$G$160),"Plow Horse","Dog"))),"") -> Dog | D36: =IFERROR(IF(J36="",D35,E36*J36),D35) ->  | E36: =IFERROR(IF(K36="",E35,K36*$F$3),E35) -> 0 | F36: =IFERROR(D36*H36,F35) ->  | G36: =IFERROR(IF(E36="",G35,E36/$E$160),G35) ->  | H36: =IFERROR(IF(L36="",H35,L36/J36),H35) ->  | I36: =IFERROR(J36-L36,"") ->  | J36: =J35 -> 
A38: Baseline | B38: ='Cat 3 Setup'!A19 -> 0 | C38: =IFERROR(IF(AND(I38>$I$159,G38>$G$159),"Star",IF(AND(I38>$I$159,G38<$G$159),"Puzzle",IF(AND(I38<$I$159,G38>$G$159),"Plow Horse","Dog"))),"") -> Dog | D38: =IFERROR(VLOOKUP(B38,'Cat 3 Setup'!$A:$F,4,FALSE),"") ->  | E38: =IFERROR(VLOOKUP(B38,'Cat 3 Setup'!$A:$F,3,FALSE),"") -> 0 | F38: =IFERROR(VLOOKUP(B38,'Cat 3 Setup'!$A:$F,6,FALSE),"") ->  | G38: =IFERROR(E38/$E$159,"") ->  | H38: =IFERROR(F38/D38,"") ->  | I38: =IFERROR(J38-L38,"") ->  | J38: =IFERROR(D38/E38,"") ->  | K38: =IFERROR(E38/$F$3,"") ->  | L38: =IFERROR(J38*H38,"") -> 
A39: Proposed | C39: =IFERROR(IF(AND(I39>$I$160,G39>$G$160),"Star",IF(AND(I39>$I$160,G39<$G$160),"Puzzle",IF(AND(I39<$I$160,G39>$G$160),"Plow Horse","Dog"))),"") -> Dog | D39: =IFERROR(IF(J39="",D38,E39*J39),D38) ->  | E39: =IFERROR(IF(K39="",E38,K39*$F$3),E38) -> 0 | F39: =IFERROR(D39*H39,F38) ->  | G39: =IFERROR(IF(E39="",G38,E39/$E$160),G38) ->  | H39: =IFERROR(IF(L39="",H38,L39/J39),H38) ->  | I39: =IFERROR(J39-L39,"") ->  | J39: =J38 -> 
A41: Baseline | B41: ='Cat 3 Setup'!A20 -> 0 | C41: =IFERROR(IF(AND(I41>$I$159,G41>$G$159),"Star",IF(AND(I41>$I$159,G41<$G$159),"Puzzle",IF(AND(I41<$I$159,G41>$G$159),"Plow Horse","Dog"))),"") -> Dog | D41: =IFERROR(VLOOKUP(B41,'Cat 3 Setup'!$A:$F,4,FALSE),"") ->  | E41: =IFERROR(VLOOKUP(B41,'Cat 3 Setup'!$A:$F,3,FALSE),"") -> 0 | F41: =IFERROR(VLOOKUP(B41,'Cat 3 Setup'!$A:$F,6,FALSE),"") ->  | G41: =IFERROR(E41/$E$159,"") ->  | H41: =IFERROR(F41/D41,"") ->  | I41: =IFERROR(J41-L41,"") ->  | J41: =IFERROR(D41/E41,"") ->  | K41: =IFERROR(E41/$F$3,"") ->  | L41: =IFERROR(J41*H41,"") -> 
A42: Proposed | C42: =IFERROR(IF(AND(I42>$I$160,G42>$G$160),"Star",IF(AND(I42>$I$160,G42<$G$160),"Puzzle",IF(AND(I42<$I$160,G42>$G$160),"Plow Horse","Dog"))),"") -> Dog | D42: =IFERROR(IF(J42="",D41,E42*J42),D41) ->  | E42: =IFERROR(IF(K42="",E41,K42*$F$3),E41) -> 0 | F42: =IFERROR(D42*H42,F41) ->  | G42: =IFERROR(IF(E42="",G41,E42/$E$160),G41) ->  | H42: =IFERROR(IF(L42="",H41,L42/J42),H41) ->  | I42: =IFERROR(J42-L42,"") ->  | J42: =J41 -> 
A44: Baseline | B44: ='Cat 3 Setup'!A21 -> 0 | C44: =IFERROR(IF(AND(I44>$I$159,G44>$G$159),"Star",IF(AND(I44>$I$159,G44<$G$159),"Puzzle",IF(AND(I44<$I$159,G44>$G$159),"Plow Horse","Dog"))),"") -> Dog | D44: =IFERROR(VLOOKUP(B44,'Cat 3 Setup'!$A:$F,4,FALSE),"") ->  | E44: =IFERROR(VLOOKUP(B44,'Cat 3 Setup'!$A:$F,3,FALSE),"") -> 0 | F44: =IFERROR(VLOOKUP(B44,'Cat 3 Setup'!$A:$F,6,FALSE),"") ->  | G44: =IFERROR(E44/$E$159,"") ->  | H44: =IFERROR(F44/D44,"") ->  | I44: =IFERROR(J44-L44,"") ->  | J44: =IFERROR(D44/E44,"") ->  | K44: =IFERROR(E44/$F$3,"") ->  | L44: =IFERROR(J44*H44,"") -> 
A45: Proposed | C45: =IFERROR(IF(AND(I45>$I$160,G45>$G$160),"Star",IF(AND(I45>$I$160,G45<$G$160),"Puzzle",IF(AND(I45<$I$160,G45>$G$160),"Plow Horse","Dog"))),"") -> Dog | D45: =IFERROR(IF(J45="",D44,E45*J45),D44) ->  | E45: =IFERROR(IF(K45="",E44,K45*$F$3),E44) -> 0 | F45: =IFERROR(D45*H45,F44) ->  | G45: =IFERROR(IF(E45="",G44,E45/$E$160),G44) ->  | H45: =IFERROR(IF(L45="",H44,L45/J45),H44) ->  | I45: =IFERROR(J45-L45,"") ->  | J45: =J44 -> 
A47: Baseline | B47: ='Cat 3 Setup'!A22 -> 0 | C47: =IFERROR(IF(AND(I47>$I$159,G47>$G$159),"Star",IF(AND(I47>$I$159,G47<$G$159),"Puzzle",IF(AND(I47<$I$159,G47>$G$159),"Plow Horse","Dog"))),"") -> Dog | D47: =IFERROR(VLOOKUP(B47,'Cat 3 Setup'!$A:$F,4,FALSE),"") ->  | E47: =IFERROR(VLOOKUP(B47,'Cat 3 Setup'!$A:$F,3,FALSE),"") -> 0 | F47: =IFERROR(VLOOKUP(B47,'Cat 3 Setup'!$A:$F,6,FALSE),"") ->  | G47: =IFERROR(E47/$E$159,"") ->  | H47: =IFERROR(F47/D47,"") ->  | I47: =IFERROR(J47-L47,"") ->  | J47: =IFERROR(D47/E47,"") ->  | K47: =IFERROR(E47/$F$3,"") ->  | L47: =IFERROR(J47*H47,"") -> 
A48: Proposed | C48: =IFERROR(IF(AND(I48>$I$160,G48>$G$160),"Star",IF(AND(I48>$I$160,G48<$G$160),"Puzzle",IF(AND(I48<$I$160,G48>$G$160),"Plow Horse","Dog"))),"") -> Dog | D48: =IFERROR(IF(J48="",D47,E48*J48),D47) ->  | E48: =IFERROR(IF(K48="",E47,K48*$F$3),E47) -> 0 | F48: =IFERROR(D48*H48,F47) ->  | G48: =IFERROR(IF(E48="",G47,E48/$E$160),G47) ->  | H48: =IFERROR(IF(L48="",H47,L48/J48),H47) ->  | I48: =IFERROR(J48-L48,"") ->  | J48: =J47 -> 
A50: Baseline | B50: ='Cat 3 Setup'!A23 -> 0 | C50: =IFERROR(IF(AND(I50>$I$159,G50>$G$159),"Star",IF(AND(I50>$I$159,G50<$G$159),"Puzzle",IF(AND(I50<$I$159,G50>$G$159),"Plow Horse","Dog"))),"") -> Dog | D50: =IFERROR(VLOOKUP(B50,'Cat 3 Setup'!$A:$F,4,FALSE),"") ->  | E50: =IFERROR(VLOOKUP(B50,'Cat 3 Setup'!$A:$F,3,FALSE),"") -> 0 | F50: =IFERROR(VLOOKUP(B50,'Cat 3 Setup'!$A:$F,6,FALSE),"") ->  | G50: =IFERROR(E50/$E$159,"") ->  | H50: =IFERROR(F50/D50,"") ->  | I50: =IFERROR(J50-L50,"") ->  | J50: =IFERROR(D50/E50,"") ->  | K50: =IFERROR(E50/$F$3,"") ->  | L50: =IFERROR(J50*H50,"") -> 
A51: Proposed | C51: =IFERROR(IF(AND(I51>$I$160,G51>$G$160),"Star",IF(AND(I51>$I$160,G51<$G$160),"Puzzle",IF(AND(I51<$I$160,G51>$G$160),"Plow Horse","Dog"))),"") -> Dog | D51: =IFERROR(IF(J51="",D50,E51*J51),D50) ->  | E51: =IFERROR(IF(K51="",E50,K51*$F$3),E50) -> 0 | F51: =IFERROR(D51*H51,F50) ->  | G51: =IFERROR(IF(E51="",G50,E51/$E$160),G50) ->  | H51: =IFERROR(IF(L51="",H50,L51/J51),H50) ->  | I51: =IFERROR(J51-L51,"") ->  | J51: =J50 -> 
A53: Baseline | B53: ='Cat 3 Setup'!A24 -> 0 | C53: =IFERROR(IF(AND(I53>$I$159,G53>$G$159),"Star",IF(AND(I53>$I$159,G53<$G$159),"Puzzle",IF(AND(I53<$I$159,G53>$G$159),"Plow Horse","Dog"))),"") -> Dog | D53: =IFERROR(VLOOKUP(B53,'Cat 3 Setup'!$A:$F,4,FALSE),"") ->  | E53: =IFERROR(VLOOKUP(B53,'Cat 3 Setup'!$A:$F,3,FALSE),"") -> 0 | F53: =IFERROR(VLOOKUP(B53,'Cat 3 Setup'!$A:$F,6,FALSE),"") ->  | G53: =IFERROR(E53/$E$159,"") ->  | H53: =IFERROR(F53/D53,"") ->  | I53: =IFERROR(J53-L53,"") ->  | J53: =IFERROR(D53/E53,"") ->  | K53: =IFERROR(E53/$F$3,"") ->  | L53: =IFERROR(J53*H53,"") -> 
A54: Proposed | C54: =IFERROR(IF(AND(I54>$I$160,G54>$G$160),"Star",IF(AND(I54>$I$160,G54<$G$160),"Puzzle",IF(AND(I54<$I$160,G54>$G$160),"Plow Horse","Dog"))),"") -> Dog | D54: =IFERROR(IF(J54="",D53,E54*J54),D53) ->  | E54: =IFERROR(IF(K54="",E53,K54*$F$3),E53) -> 0 | F54: =IFERROR(D54*H54,F53) ->  | G54: =IFERROR(IF(E54="",G53,E54/$E$160),G53) ->  | H54: =IFERROR(IF(L54="",H53,L54/J54),H53) ->  | I54: =IFERROR(J54-L54,"") ->  | J54: =J53 -> 
A56: Baseline | B56: ='Cat 3 Setup'!A25 -> 0 | C56: =IFERROR(IF(AND(I56>$I$159,G56>$G$159),"Star",IF(AND(I56>$I$159,G56<$G$159),"Puzzle",IF(AND(I56<$I$159,G56>$G$159),"Plow Horse","Dog"))),"") -> Dog | D56: =IFERROR(VLOOKUP(B56,'Cat 3 Setup'!$A:$F,4,FALSE),"") ->  | E56: =IFERROR(VLOOKUP(B56,'Cat 3 Setup'!$A:$F,3,FALSE),"") -> 0 | F56: =IFERROR(VLOOKUP(B56,'Cat 3 Setup'!$A:$F,6,FALSE),"") ->  | G56: =IFERROR(E56/$E$159,"") ->  | H56: =IFERROR(F56/D56,"") ->  | I56: =IFERROR(J56-L56,"") ->  | J56: =IFERROR(D56/E56,"") ->  | K56: =IFERROR(E56/$F$3,"") ->  | L56: =IFERROR(J56*H56,"") -> 
A57: Proposed | C57: =IFERROR(IF(AND(I57>$I$160,G57>$G$160),"Star",IF(AND(I57>$I$160,G57<$G$160),"Puzzle",IF(AND(I57<$I$160,G57>$G$160),"Plow Horse","Dog"))),"") -> Dog | D57: =IFERROR(IF(J57="",D56,E57*J57),D56) ->  | E57: =IFERROR(IF(K57="",E56,K57*$F$3),E56) -> 0 | F57: =IFERROR(D57*H57,F56) ->  | G57: =IFERROR(IF(E57="",G56,E57/$E$160),G56) ->  | H57: =IFERROR(IF(L57="",H56,L57/J57),H56) ->  | I57: =IFERROR(J57-L57,"") ->  | J57: =J56 -> 
A59: Baseline | B59: ='Cat 3 Setup'!A26 -> 0 | C59: =IFERROR(IF(AND(I59>$I$159,G59>$G$159),"Star",IF(AND(I59>$I$159,G59<$G$159),"Puzzle",IF(AND(I59<$I$159,G59>$G$159),"Plow Horse","Dog"))),"") -> Dog | D59: =IFERROR(VLOOKUP(B59,'Cat 3 Setup'!$A:$F,4,FALSE),"") ->  | E59: =IFERROR(VLOOKUP(B59,'Cat 3 Setup'!$A:$F,3,FALSE),"") -> 0 | F59: =IFERROR(VLOOKUP(B59,'Cat 3 Setup'!$A:$F,6,FALSE),"") ->  | G59: =IFERROR(E59/$E$159,"") ->  | H59: =IFERROR(F59/D59,"") ->  | I59: =IFERROR(J59-L59,"") ->  | J59: =IFERROR(D59/E59,"") ->  | K59: =IFERROR(E59/$F$3,"") ->  | L59: =IFERROR(J59*H59,"") -> 
A60: Proposed | C60: =IFERROR(IF(AND(I60>$I$160,G60>$G$160),"Star",IF(AND(I60>$I$160,G60<$G$160),"Puzzle",IF(AND(I60<$I$160,G60>$G$160),"Plow Horse","Dog"))),"") -> Dog | D60: =IFERROR(IF(J60="",D59,E60*J60),D59) ->  | E60: =IFERROR(IF(K60="",E59,K60*$F$3),E59) -> 0 | F60: =IFERROR(D60*H60,F59) ->  | G60: =IFERROR(IF(E60="",G59,E60/$E$160),G59) ->  | H60: =IFERROR(IF(L60="",H59,L60/J60),H59) ->  | I60: =IFERROR(J60-L60,"") ->  | J60: =J59 -> 
A62: Baseline | B62: ='Cat 3 Setup'!A27 -> 0 | C62: =IFERROR(IF(AND(I62>$I$159,G62>$G$159),"Star",IF(AND(I62>$I$159,G62<$G$159),"Puzzle",IF(AND(I62<$I$159,G62>$G$159),"Plow Horse","Dog"))),"") -> Dog | D62: =IFERROR(VLOOKUP(B62,'Cat 3 Setup'!$A:$F,4,FALSE),"") ->  | E62: =IFERROR(VLOOKUP(B62,'Cat 3 Setup'!$A:$F,3,FALSE),"") -> 0 | F62: =IFERROR(VLOOKUP(B62,'Cat 3 Setup'!$A:$F,6,FALSE),"") ->  | G62: =IFERROR(E62/$E$159,"") ->  | H62: =IFERROR(F62/D62,"") ->  | I62: =IFERROR(J62-L62,"") ->  | J62: =IFERROR(D62/E62,"") ->  | K62: =IFERROR(E62/$F$3,"") ->  | L62: =IFERROR(J62*H62,"") -> 
A63: Proposed | C63: =IFERROR(IF(AND(I63>$I$160,G63>$G$160),"Star",IF(AND(I63>$I$160,G63<$G$160),"Puzzle",IF(AND(I63<$I$160,G63>$G$160),"Plow Horse","Dog"))),"") -> Dog | D63: =IFERROR(IF(J63="",D62,E63*J63),D62) ->  | E63: =IFERROR(IF(K63="",E62,K63*$F$3),E62) -> 0 | F63: =IFERROR(D63*H63,F62) ->  | G63: =IFERROR(IF(E63="",G62,E63/$E$160),G62) ->  | H63: =IFERROR(IF(L63="",H62,L63/J63),H62) ->  | I63: =IFERROR(J63-L63,"") ->  | J63: =J62 -> 
A65: Baseline | B65: ='Cat 3 Setup'!A28 -> 0 | C65: =IFERROR(IF(AND(I65>$I$159,G65>$G$159),"Star",IF(AND(I65>$I$159,G65<$G$159),"Puzzle",IF(AND(I65<$I$159,G65>$G$159),"Plow Horse","Dog"))),"") -> Dog | D65: =IFERROR(VLOOKUP(B65,'Cat 3 Setup'!$A:$F,4,FALSE),"") ->  | E65: =IFERROR(VLOOKUP(B65,'Cat 3 Setup'!$A:$F,3,FALSE),"") -> 0 | F65: =IFERROR(VLOOKUP(B65,'Cat 3 Setup'!$A:$F,6,FALSE),"") ->  | G65: =IFERROR(E65/$E$159,"") ->  | H65: =IFERROR(F65/D65,"") ->  | I65: =IFERROR(J65-L65,"") ->  | J65: =IFERROR(D65/E65,"") ->  | K65: =IFERROR(E65/$F$3,"") ->  | L65: =IFERROR(J65*H65,"") -> 
A66: Proposed | C66: =IFERROR(IF(AND(I66>$I$160,G66>$G$160),"Star",IF(AND(I66>$I$160,G66<$G$160),"Puzzle",IF(AND(I66<$I$160,G66>$G$160),"Plow Horse","Dog"))),"") -> Dog | D66: =IFERROR(IF(J66="",D65,E66*J66),D65) ->  | E66: =IFERROR(IF(K66="",E65,K66*$F$3),E65) -> 0 | F66: =IFERROR(D66*H66,F65) ->  | G66: =IFERROR(IF(E66="",G65,E66/$E$160),G65) ->  | H66: =IFERROR(IF(L66="",H65,L66/J66),H65) ->  | I66: =IFERROR(J66-L66,"") ->  | J66: =J65 -> 
A68: Baseline | B68: ='Cat 3 Setup'!A29 -> 0 | C68: =IFERROR(IF(AND(I68>$I$159,G68>$G$159),"Star",IF(AND(I68>$I$159,G68<$G$159),"Puzzle",IF(AND(I68<$I$159,G68>$G$159),"Plow Horse","Dog"))),"") -> Dog | D68: =IFERROR(VLOOKUP(B68,'Cat 3 Setup'!$A:$F,4,FALSE),"") ->  | E68: =IFERROR(VLOOKUP(B68,'Cat 3 Setup'!$A:$F,3,FALSE),"") -> 0 | F68: =IFERROR(VLOOKUP(B68,'Cat 3 Setup'!$A:$F,6,FALSE),"") ->  | G68: =IFERROR(E68/$E$159,"") ->  | H68: =IFERROR(F68/D68,"") ->  | I68: =IFERROR(J68-L68,"") ->  | J68: =IFERROR(D68/E68,"") ->  | K68: =IFERROR(E68/$F$3,"") ->  | L68: =IFERROR(J68*H68,"") -> 
A69: Proposed | C69: =IFERROR(IF(AND(I69>$I$160,G69>$G$160),"Star",IF(AND(I69>$I$160,G69<$G$160),"Puzzle",IF(AND(I69<$I$160,G69>$G$160),"Plow Horse","Dog"))),"") -> Dog | D69: =IFERROR(IF(J69="",D68,E69*J69),D68) ->  | E69: =IFERROR(IF(K69="",E68,K69*$F$3),E68) -> 0 | F69: =IFERROR(D69*H69,F68) ->  | G69: =IFERROR(IF(E69="",G68,E69/$E$160),G68) ->  | H69: =IFERROR(IF(L69="",H68,L69/J69),H68) ->  | I69: =IFERROR(J69-L69,"") ->  | J69: =J68 -> 
A71: Baseline | B71: ='Cat 3 Setup'!A30 -> 0 | C71: =IFERROR(IF(AND(I71>$I$159,G71>$G$159),"Star",IF(AND(I71>$I$159,G71<$G$159),"Puzzle",IF(AND(I71<$I$159,G71>$G$159),"Plow Horse","Dog"))),"") -> Dog | D71: =IFERROR(VLOOKUP(B71,'Cat 3 Setup'!$A:$F,4,FALSE),"") ->  | E71: =IFERROR(VLOOKUP(B71,'Cat 3 Setup'!$A:$F,3,FALSE),"") -> 0 | F71: =IFERROR(VLOOKUP(B71,'Cat 3 Setup'!$A:$F,6,FALSE),"") ->  | G71: =IFERROR(E71/$E$159,"") ->  | H71: =IFERROR(F71/D71,"") ->  | I71: =IFERROR(J71-L71,"") ->  | J71: =IFERROR(D71/E71,"") ->  | K71: =IFERROR(E71/$F$3,"") ->  | L71: =IFERROR(J71*H71,"") -> 
A72: Proposed | C72: =IFERROR(IF(AND(I72>$I$160,G72>$G$160),"Star",IF(AND(I72>$I$160,G72<$G$160),"Puzzle",IF(AND(I72<$I$160,G72>$G$160),"Plow Horse","Dog"))),"") -> Dog | D72: =IFERROR(IF(J72="",D71,E72*J72),D71) ->  | E72: =IFERROR(IF(K72="",E71,K72*$F$3),E71) -> 0 | F72: =IFERROR(D72*H72,F71) ->  | G72: =IFERROR(IF(E72="",G71,E72/$E$160),G71) ->  | H72: =IFERROR(IF(L72="",H71,L72/J72),H71) ->  | I72: =IFERROR(J72-L72,"") ->  | J72: =J71 -> 
A74: Baseline | B74: ='Cat 3 Setup'!A31 -> 0 | C74: =IFERROR(IF(AND(I74>$I$159,G74>$G$159),"Star",IF(AND(I74>$I$159,G74<$G$159),"Puzzle",IF(AND(I74<$I$159,G74>$G$159),"Plow Horse","Dog"))),"") -> Dog | D74: =IFERROR(VLOOKUP(B74,'Cat 3 Setup'!$A:$F,4,FALSE),"") ->  | E74: =IFERROR(VLOOKUP(B74,'Cat 3 Setup'!$A:$F,3,FALSE),"") -> 0 | F74: =IFERROR(VLOOKUP(B74,'Cat 3 Setup'!$A:$F,6,FALSE),"") ->  | G74: =IFERROR(E74/$E$159,"") ->  | H74: =IFERROR(F74/D74,"") ->  | I74: =IFERROR(J74-L74,"") ->  | J74: =IFERROR(D74/E74,"") ->  | K74: =IFERROR(E74/$F$3,"") ->  | L74: =IFERROR(J74*H74,"") -> 
A75: Proposed | C75: =IFERROR(IF(AND(I75>$I$160,G75>$G$160),"Star",IF(AND(I75>$I$160,G75<$G$160),"Puzzle",IF(AND(I75<$I$160,G75>$G$160),"Plow Horse","Dog"))),"") -> Dog | D75: =IFERROR(IF(J75="",D74,E75*J75),D74) ->  | E75: =IFERROR(IF(K75="",E74,K75*$F$3),E74) -> 0 | F75: =IFERROR(D75*H75,F74) ->  | G75: =IFERROR(IF(E75="",G74,E75/$E$160),G74) ->  | H75: =IFERROR(IF(L75="",H74,L75/J75),H74) ->  | I75: =IFERROR(J75-L75,"") ->  | J75: =J74 -> 
A77: Baseline | B77: ='Cat 3 Setup'!A32 -> 0 | C77: =IFERROR(IF(AND(I77>$I$159,G77>$G$159),"Star",IF(AND(I77>$I$159,G77<$G$159),"Puzzle",IF(AND(I77<$I$159,G77>$G$159),"Plow Horse","Dog"))),"") -> Dog | D77: =IFERROR(VLOOKUP(B77,'Cat 3 Setup'!$A:$F,4,FALSE),"") ->  | E77: =IFERROR(VLOOKUP(B77,'Cat 3 Setup'!$A:$F,3,FALSE),"") -> 0 | F77: =IFERROR(VLOOKUP(B77,'Cat 3 Setup'!$A:$F,6,FALSE),"") ->  | G77: =IFERROR(E77/$E$159,"") ->  | H77: =IFERROR(F77/D77,"") ->  | I77: =IFERROR(J77-L77,"") ->  | J77: =IFERROR(D77/E77,"") ->  | K77: =IFERROR(E77/$F$3,"") ->  | L77: =IFERROR(J77*H77,"") -> 
A78: Proposed | C78: =IFERROR(IF(AND(I78>$I$160,G78>$G$160),"Star",IF(AND(I78>$I$160,G78<$G$160),"Puzzle",IF(AND(I78<$I$160,G78>$G$160),"Plow Horse","Dog"))),"") -> Dog | D78: =IFERROR(IF(J78="",D77,E78*J78),D77) ->  | E78: =IFERROR(IF(K78="",E77,K78*$F$3),E77) -> 0 | F78: =IFERROR(D78*H78,F77) ->  | G78: =IFERROR(IF(E78="",G77,E78/$E$160),G77) ->  | H78: =IFERROR(IF(L78="",H77,L78/J78),H77) ->  | I78: =IFERROR(J78-L78,"") ->  | J78: =J77 -> 
A80: Baseline | B80: ='Cat 3 Setup'!A33 -> 0 | C80: =IFERROR(IF(AND(I80>$I$159,G80>$G$159),"Star",IF(AND(I80>$I$159,G80<$G$159),"Puzzle",IF(AND(I80<$I$159,G80>$G$159),"Plow Horse","Dog"))),"") -> Dog | D80: =IFERROR(VLOOKUP(B80,'Cat 3 Setup'!$A:$F,4,FALSE),"") ->  | E80: =IFERROR(VLOOKUP(B80,'Cat 3 Setup'!$A:$F,3,FALSE),"") -> 0 | F80: =IFERROR(VLOOKUP(B80,'Cat 3 Setup'!$A:$F,6,FALSE),"") ->  | G80: =IFERROR(E80/$E$159,"") ->  | H80: =IFERROR(F80/D80,"") ->  | I80: =IFERROR(J80-L80,"") ->  | J80: =IFERROR(D80/E80,"") ->  | K80: =IFERROR(E80/$F$3,"") ->  | L80: =IFERROR(J80*H80,"") -> 
A81: Proposed | C81: =IFERROR(IF(AND(I81>$I$160,G81>$G$160),"Star",IF(AND(I81>$I$160,G81<$G$160),"Puzzle",IF(AND(I81<$I$160,G81>$G$160),"Plow Horse","Dog"))),"") -> Dog | D81: =IFERROR(IF(J81="",D80,E81*J81),D80) ->  | E81: =IFERROR(IF(K81="",E80,K81*$F$3),E80) -> 0 | F81: =IFERROR(D81*H81,F80) ->  | G81: =IFERROR(IF(E81="",G80,E81/$E$160),G80) ->  | H81: =IFERROR(IF(L81="",H80,L81/J81),H80) ->  | I81: =IFERROR(J81-L81,"") ->  | J81: =J80 -> 
A83: Baseline | B83: ='Cat 3 Setup'!A34 -> 0 | C83: =IFERROR(IF(AND(I83>$I$159,G83>$G$159),"Star",IF(AND(I83>$I$159,G83<$G$159),"Puzzle",IF(AND(I83<$I$159,G83>$G$159),"Plow Horse","Dog"))),"") -> Dog | D83: =IFERROR(VLOOKUP(B83,'Cat 3 Setup'!$A:$F,4,FALSE),"") ->  | E83: =IFERROR(VLOOKUP(B83,'Cat 3 Setup'!$A:$F,3,FALSE),"") -> 0 | F83: =IFERROR(VLOOKUP(B83,'Cat 3 Setup'!$A:$F,6,FALSE),"") ->  | G83: =IFERROR(E83/$E$159,"") ->  | H83: =IFERROR(F83/D83,"") ->  | I83: =IFERROR(J83-L83,"") ->  | J83: =IFERROR(D83/E83,"") ->  | K83: =IFERROR(E83/$F$3,"") ->  | L83: =IFERROR(J83*H83,"") -> 
A84: Proposed | C84: =IFERROR(IF(AND(I84>$I$160,G84>$G$160),"Star",IF(AND(I84>$I$160,G84<$G$160),"Puzzle",IF(AND(I84<$I$160,G84>$G$160),"Plow Horse","Dog"))),"") -> Dog | D84: =IFERROR(IF(J84="",D83,E84*J84),D83) ->  | E84: =IFERROR(IF(K84="",E83,K84*$F$3),E83) -> 0 | F84: =IFERROR(D84*H84,F83) ->  | G84: =IFERROR(IF(E84="",G83,E84/$E$160),G83) ->  | H84: =IFERROR(IF(L84="",H83,L84/J84),H83) ->  | I84: =IFERROR(J84-L84,"") ->  | J84: =J83 -> 
A86: Baseline | B86: ='Cat 3 Setup'!A35 -> 0 | C86: =IFERROR(IF(AND(I86>$I$159,G86>$G$159),"Star",IF(AND(I86>$I$159,G86<$G$159),"Puzzle",IF(AND(I86<$I$159,G86>$G$159),"Plow Horse","Dog"))),"") -> Dog | D86: =IFERROR(VLOOKUP(B86,'Cat 3 Setup'!$A:$F,4,FALSE),"") ->  | E86: =IFERROR(VLOOKUP(B86,'Cat 3 Setup'!$A:$F,3,FALSE),"") -> 0 | F86: =IFERROR(VLOOKUP(B86,'Cat 3 Setup'!$A:$F,6,FALSE),"") ->  | G86: =IFERROR(E86/$E$159,"") ->  | H86: =IFERROR(F86/D86,"") ->  | I86: =IFERROR(J86-L86,"") ->  | J86: =IFERROR(D86/E86,"") ->  | K86: =IFERROR(E86/$F$3,"") ->  | L86: =IFERROR(J86*H86,"") -> 
A87: Proposed | C87: =IFERROR(IF(AND(I87>$I$160,G87>$G$160),"Star",IF(AND(I87>$I$160,G87<$G$160),"Puzzle",IF(AND(I87<$I$160,G87>$G$160),"Plow Horse","Dog"))),"") -> Dog | D87: =IFERROR(IF(J87="",D86,E87*J87),D86) ->  | E87: =IFERROR(IF(K87="",E86,K87*$F$3),E86) -> 0 | F87: =IFERROR(D87*H87,F86) ->  | G87: =IFERROR(IF(E87="",G86,E87/$E$160),G86) ->  | H87: =IFERROR(IF(L87="",H86,L87/J87),H86) ->  | I87: =IFERROR(J87-L87,"") ->  | J87: =J86 -> 
A89: Baseline | B89: ='Cat 3 Setup'!A36 -> 0 | C89: =IFERROR(IF(AND(I89>$I$159,G89>$G$159),"Star",IF(AND(I89>$I$159,G89<$G$159),"Puzzle",IF(AND(I89<$I$159,G89>$G$159),"Plow Horse","Dog"))),"") -> Dog | D89: =IFERROR(VLOOKUP(B89,'Cat 3 Setup'!$A:$F,4,FALSE),"") ->  | E89: =IFERROR(VLOOKUP(B89,'Cat 3 Setup'!$A:$F,3,FALSE),"") -> 0 | F89: =IFERROR(VLOOKUP(B89,'Cat 3 Setup'!$A:$F,6,FALSE),"") ->  | G89: =IFERROR(E89/$E$159,"") ->  | H89: =IFERROR(F89/D89,"") ->  | I89: =IFERROR(J89-L89,"") ->  | J89: =IFERROR(D89/E89,"") ->  | K89: =IFERROR(E89/$F$3,"") ->  | L89: =IFERROR(J89*H89,"") -> 
A90: Proposed | C90: =IFERROR(IF(AND(I90>$I$160,G90>$G$160),"Star",IF(AND(I90>$I$160,G90<$G$160),"Puzzle",IF(AND(I90<$I$160,G90>$G$160),"Plow Horse","Dog"))),"") -> Dog | D90: =IFERROR(IF(J90="",D89,E90*J90),D89) ->  | E90: =IFERROR(IF(K90="",E89,K90*$F$3),E89) -> 0 | F90: =IFERROR(D90*H90,F89) ->  | G90: =IFERROR(IF(E90="",G89,E90/$E$160),G89) ->  | H90: =IFERROR(IF(L90="",H89,L90/J90),H89) ->  | I90: =IFERROR(J90-L90,"") ->  | J90: =J89 -> 
A92: Baseline | B92: ='Cat 3 Setup'!A37 -> 0 | C92: =IFERROR(IF(AND(I92>$I$159,G92>$G$159),"Star",IF(AND(I92>$I$159,G92<$G$159),"Puzzle",IF(AND(I92<$I$159,G92>$G$159),"Plow Horse","Dog"))),"") -> Dog | D92: =IFERROR(VLOOKUP(B92,'Cat 3 Setup'!$A:$F,4,FALSE),"") ->  | E92: =IFERROR(VLOOKUP(B92,'Cat 3 Setup'!$A:$F,3,FALSE),"") -> 0 | F92: =IFERROR(VLOOKUP(B92,'Cat 3 Setup'!$A:$F,6,FALSE),"") ->  | G92: =IFERROR(E92/$E$159,"") ->  | H92: =IFERROR(F92/D92,"") ->  | I92: =IFERROR(J92-L92,"") ->  | J92: =IFERROR(D92/E92,"") ->  | K92: =IFERROR(E92/$F$3,"") ->  | L92: =IFERROR(J92*H92,"") -> 
A93: Proposed | C93: =IFERROR(IF(AND(I93>$I$160,G93>$G$160),"Star",IF(AND(I93>$I$160,G93<$G$160),"Puzzle",IF(AND(I93<$I$160,G93>$G$160),"Plow Horse","Dog"))),"") -> Dog | D93: =IFERROR(IF(J93="",D92,E93*J93),D92) ->  | E93: =IFERROR(IF(K93="",E92,K93*$F$3),E92) -> 0 | F93: =IFERROR(D93*H93,F92) ->  | G93: =IFERROR(IF(E93="",G92,E93/$E$160),G92) ->  | H93: =IFERROR(IF(L93="",H92,L93/J93),H92) ->  | I93: =IFERROR(J93-L93,"") ->  | J93: =J92 -> 
A95: Baseline | B95: ='Cat 3 Setup'!A38 -> 0 | C95: =IFERROR(IF(AND(I95>$I$159,G95>$G$159),"Star",IF(AND(I95>$I$159,G95<$G$159),"Puzzle",IF(AND(I95<$I$159,G95>$G$159),"Plow Horse","Dog"))),"") -> Dog | D95: =IFERROR(VLOOKUP(B95,'Cat 3 Setup'!$A:$F,4,FALSE),"") ->  | E95: =IFERROR(VLOOKUP(B95,'Cat 3 Setup'!$A:$F,3,FALSE),"") -> 0 | F95: =IFERROR(VLOOKUP(B95,'Cat 3 Setup'!$A:$F,6,FALSE),"") ->  | G95: =IFERROR(E95/$E$159,"") ->  | H95: =IFERROR(F95/D95,"") ->  | I95: =IFERROR(J95-L95,"") ->  | J95: =IFERROR(D95/E95,"") ->  | K95: =IFERROR(E95/$F$3,"") ->  | L95: =IFERROR(J95*H95,"") -> 
A96: Proposed | C96: =IFERROR(IF(AND(I96>$I$160,G96>$G$160),"Star",IF(AND(I96>$I$160,G96<$G$160),"Puzzle",IF(AND(I96<$I$160,G96>$G$160),"Plow Horse","Dog"))),"") -> Dog | D96: =IFERROR(IF(J96="",D95,E96*J96),D95) ->  | E96: =IFERROR(IF(K96="",E95,K96*$F$3),E95) -> 0 | F96: =IFERROR(D96*H96,F95) ->  | G96: =IFERROR(IF(E96="",G95,E96/$E$160),G95) ->  | H96: =IFERROR(IF(L96="",H95,L96/J96),H95) ->  | I96: =IFERROR(J96-L96,"") ->  | J96: =J95 -> 
A98: Baseline | B98: ='Cat 3 Setup'!A39 -> 0 | C98: =IFERROR(IF(AND(I98>$I$159,G98>$G$159),"Star",IF(AND(I98>$I$159,G98<$G$159),"Puzzle",IF(AND(I98<$I$159,G98>$G$159),"Plow Horse","Dog"))),"") -> Dog | D98: =IFERROR(VLOOKUP(B98,'Cat 3 Setup'!$A:$F,4,FALSE),"") ->  | E98: =IFERROR(VLOOKUP(B98,'Cat 3 Setup'!$A:$F,3,FALSE),"") -> 0 | F98: =IFERROR(VLOOKUP(B98,'Cat 3 Setup'!$A:$F,6,FALSE),"") ->  | G98: =IFERROR(E98/$E$159,"") ->  | H98: =IFERROR(F98/D98,"") ->  | I98: =IFERROR(J98-L98,"") ->  | J98: =IFERROR(D98/E98,"") ->  | K98: =IFERROR(E98/$F$3,"") ->  | L98: =IFERROR(J98*H98,"") -> 
A99: Proposed | C99: =IFERROR(IF(AND(I99>$I$160,G99>$G$160),"Star",IF(AND(I99>$I$160,G99<$G$160),"Puzzle",IF(AND(I99<$I$160,G99>$G$160),"Plow Horse","Dog"))),"") -> Dog | D99: =IFERROR(IF(J99="",D98,E99*J99),D98) ->  | E99: =IFERROR(IF(K99="",E98,K99*$F$3),E98) -> 0 | F99: =IFERROR(D99*H99,F98) ->  | G99: =IFERROR(IF(E99="",G98,E99/$E$160),G98) ->  | H99: =IFERROR(IF(L99="",H98,L99/J99),H98) ->  | I99: =IFERROR(J99-L99,"") ->  | J99: =J98 -> 
G100: =(1/COUNTA(B8:B96))*0.7 -> 0.02333333333
A101: Baseline | B101: ='Cat 3 Setup'!A40 -> 0 | C101: =IFERROR(IF(AND(I101>$I$159,G101>$G$159),"Star",IF(AND(I101>$I$159,G101<$G$159),"Puzzle",IF(AND(I101<$I$159,G101>$G$159),"Plow Horse","Dog"))),"") -> Dog | D101: =IFERROR(VLOOKUP(B101,'Cat 3 Setup'!$A:$F,4,FALSE),"") ->  | E101: =IFERROR(VLOOKUP(B101,'Cat 3 Setup'!$A:$F,3,FALSE),"") -> 0 | F101: =IFERROR(VLOOKUP(B101,'Cat 3 Setup'!$A:$F,6,FALSE),"") ->  | G101: =IFERROR(E101/$E$159,"") ->  | H101: =IFERROR(F101/D101,"") ->  | I101: =IFERROR(J101-L101,"") ->  | J101: =IFERROR(D101/E101,"") ->  | K101: =IFERROR(E101/$F$3,"") ->  | L101: =IFERROR(J101*H101,"") -> 
A102: Proposed | C102: =IFERROR(IF(AND(I102>$I$160,G102>$G$160),"Star",IF(AND(I102>$I$160,G102<$G$160),"Puzzle",IF(AND(I102<$I$160,G102>$G$160),"Plow Horse","Dog"))),"") -> Dog | D102: =IFERROR(IF(J102="",D101,E102*J102),D101) ->  | E102: =IFERROR(IF(K102="",E101,K102*$F$3),E101) -> 0 | F102: =IFERROR(D102*H102,F101) ->  | G102: =IFERROR(IF(E102="",G101,E102/$E$160),G101) ->  | H102: =IFERROR(IF(L102="",H101,L102/J102),H101) ->  | I102: =IFERROR(J102-L102,"") ->  | J102: =J101 -> 
A104: Baseline | B104: ='Cat 3 Setup'!A41 -> 0 | C104: =IFERROR(IF(AND(I104>$I$159,G104>$G$159),"Star",IF(AND(I104>$I$159,G104<$G$159),"Puzzle",IF(AND(I104<$I$159,G104>$G$159),"Plow Horse","Dog"))),"") -> Dog | D104: =IFERROR(VLOOKUP(B104,'Cat 3 Setup'!$A:$F,4,FALSE),"") ->  | E104: =IFERROR(VLOOKUP(B104,'Cat 3 Setup'!$A:$F,3,FALSE),"") -> 0 | F104: =IFERROR(VLOOKUP(B104,'Cat 3 Setup'!$A:$F,6,FALSE),"") ->  | G104: =IFERROR(E104/$E$159,"") ->  | H104: =IFERROR(F104/D104,"") ->  | I104: =IFERROR(J104-L104,"") ->  | J104: =IFERROR(D104/E104,"") ->  | K104: =IFERROR(E104/$F$3,"") ->  | L104: =IFERROR(J104*H104,"") -> 
A105: Proposed | C105: =IFERROR(IF(AND(I105>$I$160,G105>$G$160),"Star",IF(AND(I105>$I$160,G105<$G$160),"Puzzle",IF(AND(I105<$I$160,G105>$G$160),"Plow Horse","Dog"))),"") -> Dog | D105: =IFERROR(IF(J105="",D104,E105*J105),D104) ->  | E105: =IFERROR(IF(K105="",E104,K105*$F$3),E104) -> 0 | F105: =IFERROR(D105*H105,F104) ->  | G105: =IFERROR(IF(E105="",G104,E105/$E$160),G104) ->  | H105: =IFERROR(IF(L105="",H104,L105/J105),H104) ->  | I105: =IFERROR(J105-L105,"") ->  | J105: =J104 -> 
A107: Baseline | B107: ='Cat 3 Setup'!A42 -> 0 | C107: =IFERROR(IF(AND(I107>$I$159,G107>$G$159),"Star",IF(AND(I107>$I$159,G107<$G$159),"Puzzle",IF(AND(I107<$I$159,G107>$G$159),"Plow Horse","Dog"))),"") -> Dog | D107: =IFERROR(VLOOKUP(B107,'Cat 3 Setup'!$A:$F,4,FALSE),"") ->  | E107: =IFERROR(VLOOKUP(B107,'Cat 3 Setup'!$A:$F,3,FALSE),"") -> 0 | F107: =IFERROR(VLOOKUP(B107,'Cat 3 Setup'!$A:$F,6,FALSE),"") ->  | G107: =IFERROR(E107/$E$159,"") ->  | H107: =IFERROR(F107/D107,"") ->  | I107: =IFERROR(J107-L107,"") ->  | J107: =IFERROR(D107/E107,"") ->  | K107: =IFERROR(E107/$F$3,"") ->  | L107: =IFERROR(J107*H107,"") -> 
A108: Proposed | C108: =IFERROR(IF(AND(I108>$I$160,G108>$G$160),"Star",IF(AND(I108>$I$160,G108<$G$160),"Puzzle",IF(AND(I108<$I$160,G108>$G$160),"Plow Horse","Dog"))),"") -> Dog | D108: =IFERROR(IF(J108="",D107,E108*J108),D107) ->  | E108: =IFERROR(IF(K108="",E107,K108*$F$3),E107) -> 0 | F108: =IFERROR(D108*H108,F107) ->  | G108: =IFERROR(IF(E108="",G107,E108/$E$160),G107) ->  | H108: =IFERROR(IF(L108="",H107,L108/J108),H107) ->  | I108: =IFERROR(J108-L108,"") ->  | J108: =J107 -> 
A110: Baseline | B110: ='Cat 3 Setup'!A43 -> 0 | C110: =IFERROR(IF(AND(I110>$I$159,G110>$G$159),"Star",IF(AND(I110>$I$159,G110<$G$159),"Puzzle",IF(AND(I110<$I$159,G110>$G$159),"Plow Horse","Dog"))),"") -> Dog | D110: =IFERROR(VLOOKUP(B110,'Cat 3 Setup'!$A:$F,4,FALSE),"") ->  | E110: =IFERROR(VLOOKUP(B110,'Cat 3 Setup'!$A:$F,3,FALSE),"") -> 0 | F110: =IFERROR(VLOOKUP(B110,'Cat 3 Setup'!$A:$F,6,FALSE),"") ->  | G110: =IFERROR(E110/$E$159,"") ->  | H110: =IFERROR(F110/D110,"") ->  | I110: =IFERROR(J110-L110,"") ->  | J110: =IFERROR(D110/E110,"") ->  | K110: =IFERROR(E110/$F$3,"") ->  | L110: =IFERROR(J110*H110,"") -> 
A111: Proposed | C111: =IFERROR(IF(AND(I111>$I$160,G111>$G$160),"Star",IF(AND(I111>$I$160,G111<$G$160),"Puzzle",IF(AND(I111<$I$160,G111>$G$160),"Plow Horse","Dog"))),"") -> Dog | D111: =IFERROR(IF(J111="",D110,E111*J111),D110) ->  | E111: =IFERROR(IF(K111="",E110,K111*$F$3),E110) -> 0 | F111: =IFERROR(D111*H111,F110) ->  | G111: =IFERROR(IF(E111="",G110,E111/$E$160),G110) ->  | H111: =IFERROR(IF(L111="",H110,L111/J111),H110) ->  | I111: =IFERROR(J111-L111,"") ->  | J111: =J110 -> 
A113: Baseline | B113: ='Cat 3 Setup'!A44 -> 0 | C113: =IFERROR(IF(AND(I113>$I$159,G113>$G$159),"Star",IF(AND(I113>$I$159,G113<$G$159),"Puzzle",IF(AND(I113<$I$159,G113>$G$159),"Plow Horse","Dog"))),"") -> Dog | D113: =IFERROR(VLOOKUP(B113,'Cat 3 Setup'!$A:$F,4,FALSE),"") ->  | E113: =IFERROR(VLOOKUP(B113,'Cat 3 Setup'!$A:$F,3,FALSE),"") -> 0 | F113: =IFERROR(VLOOKUP(B113,'Cat 3 Setup'!$A:$F,6,FALSE),"") ->  | G113: =IFERROR(E113/$E$159,"") ->  | H113: =IFERROR(F113/D113,"") ->  | I113: =IFERROR(J113-L113,"") ->  | J113: =IFERROR(D113/E113,"") ->  | K113: =IFERROR(E113/$F$3,"") ->  | L113: =IFERROR(J113*H113,"") -> 
